{"text_format":"1","workbook":"xlsx","n_sheets":61,"sheets":["Base de Travail Mensuelle","CPL","RIPPEURS","ADMINISTRATIF","RESPONSABLE","Pointage","Parametres","Planning Mensuel","ABILE GAL","ADDARIO","ALLIOUANE","ARNAUDF","ARNAUD","AUDIBERT","BEN BOUZID","BOUR","CANTELLI","CARDINALE","CARLIN","COURTOIS","DALMASSO","DHOUIMER","ELLENA","FERALIS","FERRO","FIORUCCI","FRENDO","GANDOLIN","GLASKOFF","GUIZANI","ISOARD","LANDRIEUX","MALLO","MANDREA","MARCELLI","MARINO","MARTINELLI","MARZARRO","MATTEI","MOLINER","MONGRANDI","MORALDO","NAPOLITANO","OROFINO","OUTILI","PEREZ","PERRONE","PETERS","PIOMBINO","RATEAU","RINI","RODRIGUEZ","ROSSO","SARTORI","TORDO","TORRE","TRIPODIN","TRIPODIP","VANINI","VELLA","VIALE"],"not_rendered":{"charts":0,"images":0,"macros":1,"external_links":2,"defined_names":37,"comments":0,"pivot_tables":0},"unopened":[],"bounds":{"document_bytes":16777216,"sheet_cells":100000,"rows_first":2000,"rows_last":500,"rows_between":2000,"halvings":0,"cell_chars":16384,"cell_head_chars":4096},"cells_cut":0,"cells_raw":0,"read":"whole","date_system":"1900"}

{"sheet":"Base de Travail Mensuelle","index":0,"n_rows":57,"n_cols":80,"rows_kept":57,"cut":false,"hidden":false,"merged":[]}
["NOMS","PRESTATION","2016-12-17","2016-12-18","2016-12-19","2016-12-20","2016-12-21","2016-12-22","2016-12-23","2016-12-24","2016-12-25","2016-12-26","2016-12-27","2016-12-28","2016-12-29","2016-12-30","2016-12-31","2017-01-01","2017-01-02","2017-01-03","2017-01-04","2017-01-05","2017-01-06","2017-01-07","2017-01-08","2017-01-09","2017-01-10","2017-01-11","2017-01-12","2017-01-13","2017-01-14","2017-01-15","2017-01-16","2017-01-17","2017-01-18","2017-01-19","2017-01-20","2017-01-21","2017-01-22","1900-01-23",null,25,null,27,null,29,null,31,null,2,null,4,null,null,null,null,null,null,null,null,null,null,null,null,"pris","conges","arrt","prendre",null,null,null,null,null,null,null,null,null,null,null,"2016-12-20"]
["Glaskoff Hervé","Benne Carton","EST",null,"B. CARTON","B. CARTON","B. CARTON","B. CARTON","B. CARTON",null,null,"Congés","Congés","Congés","Congés","Congés","Congés","Congés","B. CARTON","Repos","B. CARTON","B. CARTON","B. CARTON","NICE OUEST",null,"B. CARTON","B. CARTON","B. CARTON","B. CARTON","B. CARTON","Repos","V.N.  Après Midi","B. CARTON","B. CARTON","B. CARTON","B. CARTON","B. CARTON","Repos","Repos"]
["Torre Jean Marie","Benne Carton","EST",null,"B. CARTON","B. CARTON","B. CARTON","B. CARTON","B. CARTON",null,null,"B. CARTON","B. CARTON","B. CARTON","B. CARTON","B. CARTON","Repos","Repos","B. CARTON","B. CARTON","B. CARTON","B. CARTON","B. CARTON",null,null,"B. CARTON","Repos","B. CARTON","B. CARTON","B. CARTON","NICE EST","Repos","B. CARTON","B. CARTON","B. CARTON","B. CARTON","B. CARTON"]
["Frendo Mathieu","EST  Déchetterie","EST",null,"NICE EST","NICE EST","NICE EST","NICE EST","NICE EST",null,null,"NICE EST","NICE EST","NICE EST","NICE EST","NICE EST","Repos","Repos","NICE EST","NICE EST","Repos","NICE EST","NICE EST","NICE EST",null,"NICE EST","NICE EST","NICE EST","NICE EST","NICE EST","Repos","NICE EST","NICE EST","NICE EST","NICE EST","NICE EST","NICE EST","Repos"]
["Marcelli Alain","EST  Déchetterie",null,"EST","NICE EST","NICE EST","NICE EST","NICE EST","NICE EST",null,null,"NICE EST","NICE EST","NICE EST","NICE EST","NICE EST","Repos","Repos","Congés","Congés","Congés","Congés","Congés","Congés","Congés","NICE EST","Repos","NICE EST","NICE EST","NICE EST","NICE EST","Repos","NICE EST","NICE EST","NICE EST","NICE EST","NICE EST","Repos",null,null,null,null,null,null,null,null,null,null,null,null,null,null,null,null,null,null,null,null,null,null,null,null,null,null,null,null,null,null,null,"Glaskoff Hervé","Benne Carton"]
["Mongrandi Frédéric","EST  Déchetterie",null,null,"Congés","Congés","Congés","Congés","Congés",null,null,"NICE EST","NICE EST","Repos","NICE EST","NICE EST","NICE EST","Repos","NICE EST","NICE EST","NICE EST","NICE EST","NICE EST","NICE EST",null,"NICE EST","NICE EST","NICE EST","NICE EST","NICE EST","Repos","Repos","NICE EST","NICE EST","NICE EST","NICE EST","NICE EST","Repos","Repos",null,null,null,null,null,null,null,null,null,null,null,null,null,null,null,null,null,null,null,null,null,null,null,null,null,null,null,null,null,null,"Torre Jean Marie","Benne Carton"]
["Rini Romain","EST  Déchetterie",null,null,"Congés","Congés","Congés","Congés","Congés",null,null,"Congés","Congés","Congés","Congés","Congés","Congés","Congés","NICE EST","NICE EST","NICE EST","NICE EST","NICE EST",null,null,"NICE EST","NICE EST","Repos","NICE EST","NICE EST","NICE EST","Repos","NICE EST","NICE EST","NICE EST","NICE EST","NICE EST",null,null,null,null,null,null,null,null,null,null,null,"2017-02-01",null,null,null,null,null,null,null,null,null,null,null,null,null,null,null,null,null,null,null,null,"Guizani Samy","fourgon carton matin"]
["Arnaud Fabrice","fourgon carton AMP",null,null,"CARTON AM","CARTON AM","CARTON AM","CARTON AM","CARTON AM",null,"V.N.  Après Midi","CARTON AM","CARTON AM","CARTON AM","CARTON AM","CARTON AM","Repos","Repos","Repos","CARTON AM","CARTON AM","CARTON AM","CARTON AM","CARTON AM",null,"CARTON AM","CARTON AM","CARTON AM","CARTON AM","CARTON AM","Repos","Repos","CARTON AM","CARTON AM","CARTON AM","CARTON AM","CARTON AM","Repos","Repos",null,null,null,null,null,null,null,null,null,null,null,null,null,null,null,null,null,null,null,null,null,null,null,null,null,null,null,null,null,null,"Martinelli Julien","fourgon carton matin"]
["Marzarro Christopher","fourgon carton AMP",null,null,"Repos","CARTON AP","CARTON AP","CARTON AP","CARTON AP","CARTON AP",null,"CARTON AP","CARTON AP","CARTON AP","CARTON AP","CARTON AP","Repos","Repos","CARTON AP","CARTON AP","CARTON AP","CARTON AP","CARTON AP",null,null,"CARTON AP","CARTON AP","CARTON AP","CARTON AP","CARTON AP","Repos","Repos","Repos","CARTON AP","CARTON AP","CARTON AP","CARTON AP","CARTON AP",null,null,null,null,null,null,null,null,null,null,null,null,null,null,null,null,null,null,null,null,null,null,null,null,null,null,null,null,null,null,null,"Arnaud Fabrice","fourgon carton AMP"]
["Perez Yann","fourgon carton AMP",null,"OUEST","CARTON AM","CARTON AM","CARTON AM","CARTON AM","CARTON AM",null,null,"CARTON AM","CARTON AM","CARTON AM","CARTON AM","CARTON AM","Repos","Repos","Congés","Congés","Congés","Congés","Congés",null,null,"Repos","CARTON AM","CARTON AM","CARTON AM","CARTON AM","CARTON AM","Repos","CARTON AM","CARTON AM","CARTON AM","CARTON AM","CARTON AM",null,null,null,null,null,null,null,null,null,null,null,null,null,null,null,null,null,null,null,null,null,null,null,null,null,null,null,null,null,null,null,null,"Vanini Kévin","fourgon carton AMP"]
["Vanini Kévin","fourgon carton AMP","CARTON AP",null,"CARTON AM","CARTON AM","CARTON AM","CARTON AM","CARTON AM",null,null,"Repos","CARTON AM","CARTON AM","CARTON AM","CARTON AM","CARTON AM","Repos","CARTON AM","CARTON AM","CARTON AM","CARTON AM","CARTON AM",null,null,"Congés","Congés","Congés","Congés","Congés","Congés","Congés","CARTON AM","CARTON AM","CARTON AM","CARTON AM","CARTON AM",null,null,null,null,null,null,null,null,null,null,null,null,null,null,null,null,null,null,null,null,null,null,null,null,null,null,null,null,null,null,null,null,"Perez Yann","fourgon carton AMP"]
["Guizani Samy","fourgon carton matin",null,null,"CARTON MATIN","CARTON MATIN","CARTON MATIN","CARTON MATIN","Repos","EST",null,"CARTON MATIN","CARTON MATIN","CARTON MATIN","CARTON MATIN","CARTON MATIN","Repos","V.N.  Après Midi","CARTON MATIN","CARTON MATIN","CARTON MATIN","CARTON MATIN","CARTON MATIN",null,null,"CARTON MATIN","CARTON MATIN","CARTON MATIN","CARTON MATIN","CARTON MATIN","Repos","NICE NORD & VIEUX NICE","CARTON MATIN","CARTON MATIN","CARTON MATIN","CARTON MATIN","CARTON MATIN","Repos",null,null,null,null,null,null,null,null,null,null,null,null,null,null,null,null,null,null,null,null,null,null,null,null,null,null,null,null,null,null,null,null,"fourgon carton AMP"]
["Martinelli Julien","fourgon carton matin","OUEST",null,"CARTON MATIN","CARTON MATIN","CARTON MATIN","CARTON MATIN","CARTON MATIN",null,null,"Congés","Congés","Congés","Congés","Congés","Congés","Congés","CARTON MATIN","CARTON MATIN","CARTON MATIN","CARTON MATIN","CARTON MATIN",null,"NICE OUEST","CARTON MATIN","CARTON MATIN","Repos","CARTON MATIN","CARTON MATIN","NICE OUEST","Repos","CARTON MATIN","CARTON MATIN","CARTON MATIN","CARTON MATIN","CARTON MATIN","Repos",null,null,null,null,null,null,null,null,null,null,null,null,null,null,null,null,null,null,null,null,null,null,null,null,null,null,null,null,null,null,null,"Rini Romain","EST  Déchetterie","AM","Rodriguez franck"]
["Mallo Alfred","NORD  Déchetterie",null,"NORD","Repos","NICE NORD","Repos","NICE NORD","NICE NORD","NICE NORD",null,"NICE NORD","NICE NORD","NICE NORD","NICE NORD","NICE NORD","Repos","Repos","NICE NORD","NICE NORD","NICE NORD","NICE NORD","NICE NORD",null,null,"NICE NORD","NICE NORD","NICE NORD","NICE NORD","NICE NORD","Repos","Repos","NICE NORD","NICE NORD","NICE NORD","NICE NORD","NICE NORD","Repos","Repos",null,null,null,null,null,null,null,null,null,null,null,null,null,null,null,null,null,null,null,null,null,null,null,null,null,null,null,null,null,null,"Marcelli Alain","EST  Déchetterie","AM","Cantelli Thomas"]
["Audibert Michel","OUEST  Déchetterie",null,null,"NICE OUEST","NICE OUEST","NICE OUEST","NICE OUEST","NICE OUEST","NICE OUEST",null,"NICE OUEST","NICE OUEST","NICE OUEST","NICE OUEST","NICE OUEST","Repos","Repos","Congés","Congés","Congés","Congés","Congés","Congés","Congés","NICE OUEST","NICE OUEST","NICE OUEST","NICE OUEST","Repos","NICE OUEST","Repos","NICE OUEST","NICE OUEST","NICE OUEST","NICE OUEST","NICE OUEST","Repos","Repos",null,null,null,null,null,null,null,null,null,null,null,null,null,null,null,null,null,null,null,null,null,null,null,null,null,null,null,null,null,null,"Mongrandi Frédéric","EST  Déchetterie"]
["Ben Bouzid Bourhane","OUEST  Déchetterie",null,"OUEST","NICE OUEST","NICE OUEST","Repos","NICE OUEST","NICE OUEST","NICE OUEST",null,"NICE OUEST","NICE OUEST","NICE OUEST","NICE OUEST","NICE OUEST","Repos","Repos","NICE OUEST","NICE OUEST","NICE OUEST","NICE OUEST","NICE OUEST",null,"NICE OUEST","NICE OUEST","NICE OUEST","NICE OUEST","NICE OUEST","NICE OUEST","Repos","Repos","NICE OUEST","NICE OUEST","Repos","NICE OUEST","NICE OUEST","NICE OUEST",null,null,null,null,null,null,null,null,null,null,null,null,null,null,null,null,null,null,null,null,null,null,null,null,null,null,null,null,null,null,null,"Frendo Mathieu","EST  Déchetterie","EST","Dhouimer Yassine"]
["Cardinale Jean Claude","OUEST  Déchetterie",null,null,"Congés","Congés","Congés","Congés","Congés",null,null,"NICE OUEST","NICE OUEST","Repos","NICE OUEST","NICE OUEST","NICE OUEST","Repos","NICE OUEST","NICE OUEST","NICE OUEST","NICE OUEST","NICE OUEST",null,"NICE OUEST","NICE OUEST","NICE OUEST","NICE OUEST","NICE OUEST","NICE OUEST","Repos","Repos","NICE OUEST","NICE OUEST","NICE OUEST","NICE OUEST","NICE OUEST","Repos","Repos",null,null,null,null,null,null,null,null,null,null,null,null,null,null,null,null,null,null,null,null,null,null,null,null,null,null,null,null,null,null,null,"NORD  Déchetterie",null,"Mattei Patrick"]
["Mandrea Thierry","OUEST  Déchetterie","OUEST",null,"NICE OUEST","NICE OUEST","NICE OUEST","NICE OUEST","NICE OUEST",null,null,"Congés","Congés","Congés","Congés","Congés","Congés","Congés","NICE OUEST","NICE OUEST","Repos","NICE OUEST","NICE OUEST","NICE OUEST",null,"NICE OUEST","NICE OUEST","NICE OUEST","NICE OUEST","NICE OUEST","Repos","NICE OUEST","NICE OUEST","NICE OUEST","NICE OUEST","NICE OUEST","NICE OUEST","Repos","Repos",null,null,null,null,null,null,null,null,null,null,null,null,null,null,null,null,null,null,null,null,null,null,null,null,null,null,null,null,null,null,"Audibert Michel","OUEST  Déchetterie",null,"Marino Alain"]
["Addario Grégory","remplaçant","NUIT",null,"ENC NUIT 20H30-02H30","ENC NUIT 20H30-02H30","ENC NUIT 20H30-02H30","ENC NUIT 20H30-02H30","ENC NUIT 20H30-02H30",null,null,"ENC MATIN 5H-12H","ENC MATIN 5H-12H","ENC MATIN 5H-12H","Repos","ENC MATIN 5H-12H","NICE OUEST","Repos","ENC MATIN 5H-12H","ENC MATIN 5H-12H","ENC MATIN 5H-12H","ENC MATIN 5H-12H","ENC MATIN 5H-12H",null,"V.N.  Matin","ENC MATIN 5H-12H","ENC MATIN 5H-12H","ENC MATIN 5H-12H","ENC MATIN 5H-12H","ENC MATIN 5H-12H","Repos","Repos","ENC NUIT 20H30-02H30","ENC NUIT 20H30-02H30","ENC NUIT 20H30-02H30","ENC NUIT 20H30-02H30","ENC NUIT 20H30-02H30","Repos","Repos",null,null,null,null,null,null,null,null,null,null,null,null,null,null,null,null,null,null,null,null,null,null,null,null,null,null,null,null,null,null,"Mandrea Thierry","OUEST  Déchetterie","NUIT","Perrone Lucas"]
["Alliouane Saïd","remplaçant",null,null,"ENC NUIT 20H30-02H30","ENC NUIT 20H30-02H30","ENC NUIT 20H30-02H30","ENC NUIT 20H30-02H30","ENC NUIT 20H30-02H30",null,"V.N.  Après Midi","ENC MATIN 5H-12H","ENC MATIN 5H-12H","Repos","ENC MATIN 5H-12H","ENC MATIN 5H-12H","OUEST","Repos","ENC NUIT 20H30-02H30","ENC NUIT 20H30-02H30","ENC NUIT 20H30-02H30","ENC NUIT 20H30-02H30","ENC NUIT 20H30-02H30",null,null,"ENC MATIN 5H-12H","ENC MATIN 5H-12H","ENC MATIN 5H-12H","ENC MATIN 5H-12H","ENC MATIN 5H-12H","Repos","Repos","ENC NUIT 20H30-02H30","ENC NUIT 20H30-02H30","ENC NUIT 20H30-02H30","ENC NUIT 20H30-02H30","ENC NUIT 20H30-02H30","Repos","Repos",null,null,null,null,null,null,null,null,null,null,null,null,null,null,null,null,null,null,null,null,null,null,null,null,null,null,null,null,null,null,"Ben Bouzid Bourhane","OUEST  Déchetterie","NUIT","Cantelli Thomas"]
["Cantelli Thomas","remplaçant",null,null,null,null,null,null,null,null,null,null,null,null,null,null,null,null,"Repos","ENC MATIN 5H-12H","ENC MATIN 5H-12H","ENC MATIN 5H-12H","ENC MATIN 5H-12H","NICE OUEST",null,"ENC NUIT 20H30-02H30","ENC NUIT 20H30-02H30","ENC NUIT 20H30-02H30","ENC NUIT 20H30-02H30","ENC NUIT 20H30-02H30","Repos","Repos","ENC MATIN 5H-12H","ENC MATIN 5H-12H","Repos","ENC MATIN 5H-12H","ENC MATIN 5H-12H","NICE EST","Repos",null,null,null,null,null,null,null,null,null,null,null,null,null,null,null,null,null,null,null,null,null,null,null,null,null,null,null,null,null,null,"Cardinale Jean Claude","OUEST  Déchetterie","NUIT","Gandolin Adrien"]
["Courtois Alexis","remplaçant","EST",null,"ENC MATIN 5H-12H","ENC MATIN 5H-12H","ENC MATIN 5H-12H","ENC MATIN 5H-12H","Repos","NICE EST",null,"ENC NUIT 20H30-02H30","ENC NUIT 20H30-02H30","ENC NUIT 20H30-02H30","ENC NUIT 20H30-02H30","ENC NUIT 20H30-02H30","Repos","Repos","ENC NUIT 20H30-02H30","ENC NUIT 20H30-02H30","ENC NUIT 20H30-02H30","ENC NUIT 20H30-02H30","ENC NUIT 20H30-02H30","Repos","Repos","ENC NUIT 20H30-02H30","ENC NUIT 20H30-02H30","ENC NUIT 20H30-02H30","ENC NUIT 20H30-02H30","ENC NUIT 20H30-02H30","Repos","Repos","ENC MATIN 5H-12H","ENC MATIN 5H-12H","ENC MATIN 5H-12H","ENC MATIN 5H-12H","Repos","NICE EST","Repos",null,null,null,null,null,null,null,null,null,null,null,null,null,null,null,null,null,null,null,null,null,null,null,null,null,null,null,null,null,null,"Addario Grégory","remplaçant","NUIT","Courtois Alexis"]
["Dhouimer Yassine","remplaçant",null,"V.N.  Matin","NICE EST","NICE EST","NICE EST","NICE EST","NICE EST",null,"V.N.  Matin","NICE EST","NICE EST","NICE EST","NICE EST","NICE EST","Repos","V.N.  Matin","NICE EST","NICE EST","NICE EST","NICE EST","Repos","NICE EST","Repos","NICE EST","NICE EST","NICE EST","NICE EST","NICE EST","Repos","Repos","NICE EST","NICE EST","NICE EST","NICE EST","NICE EST","Repos",null,null,null,null,null,null,null,null,null,null,null,null,null,null,null,null,null,null,null,null,null,null,null,null,null,null,null,null,null,null,null,"Alliouane Saïd","remplaçant","NUIT","Napolitano Walter"]
["Ellena Thomas","remplaçant",null,null,"ENC NUIT 20H30-02H30","ENC NUIT 20H30-02H30","ENC NUIT 20H30-02H30","ENC NUIT 20H30-02H30","ENC NUIT 20H30-02H30",null,null,"NICE OUEST","NICE OUEST","NICE OUEST","NICE OUEST","NICE OUEST","NICE EST","Repos","NICE OUEST","NICE OUEST","NICE OUEST","Repos","NICE OUEST","NICE OUEST","Repos","ENC MATIN 5H-12H","ENC MATIN 5H-12H","ENC MATIN 5H-12H","ENC MATIN 5H-12H","ENC MATIN 5H-12H","Repos","NICE OUEST & VIEUX NICE","ENC NUIT 20H30-02H30","ENC NUIT 20H30-02H30","ENC NUIT 20H30-02H30","ENC NUIT 20H30-02H30","ENC NUIT 20H30-02H30","Repos","Repos",null,null,null,null,null,null,null,null,null,null,null,null,null,null,null,null,null,null,null,null,null,null,null,null,null,null,null,null,null,null,"Cantelli Thomas","remplaçant",null,"Tordo Fabien"]
["Gandolin Adrien","remplaçant",null,null,"ENC MATIN 5H-12H","ENC MATIN 5H-12H","ENC MATIN 5H-12H","Repos","ENC MATIN 5H-12H","NICE EST",null,"ENC NUIT 20H30-02H30","ENC NUIT 20H30-02H30","ENC NUIT 20H30-02H30","ENC NUIT 20H30-02H30","ENC NUIT 20H30-02H30","Repos","Repos","ENC NUIT 20H30-02H30","ENC NUIT 20H30-02H30","ENC NUIT 20H30-02H30","ENC NUIT 20H30-02H30","ENC NUIT 20H30-02H30","Repos","V.N.  Après Midi","ENC NUIT 20H30-02H30","ENC NUIT 20H30-02H30","ENC NUIT 20H30-02H30","ENC NUIT 20H30-02H30","ENC NUIT 20H30-02H30","Repos","V.N.  Matin","ENC MATIN 5H-12H","ENC MATIN 5H-12H","ENC MATIN 5H-12H","Repos","ENC MATIN 5H-12H","NICE EST","Repos",null,null,null,null,null,null,null,null,null,null,null,null,null,null,null,null,null,null,null,null,null,null,null,null,null,null,null,null,null,null,"Courtois Alexis","remplaçant"]
["Marino Alain","remplaçant","NORD",null,"ENC MATIN 5H-12H","ENC MATIN 5H-12H","NICE NORD","ENC MATIN 5H-12H","CARTON MATIN",null,null,"ENC MATIN 5H-12H","Repos","ENC MATIN 5H-12H","ENC MATIN 5H-12H","ENC MATIN 5H-12H","NICE NORD","Repos","ENC MATIN 5H-12H","ENC MATIN 5H-12H","ENC MATIN 5H-12H","ENC MATIN 5H-12H","ENC MATIN 5H-12H","Repos","NICE EST","ENC MATIN 5H-12H","ENC MATIN 5H-12H","CARTON MATIN","ENC MATIN 5H-12H","ENC MATIN 5H-12H","Repos","Repos","ENC MATIN 5H-12H","ENC MATIN 5H-12H","ENC MATIN 5H-12H","ENC MATIN 5H-12H","ENC MATIN 5H-12H","Repos","Repos",null,null,null,null,null,null,null,null,null,null,null,null,null,null,null,null,null,null,null,null,null,null,null,null,null,null,null,null,null,null,"Dhouimer Yassine","remplaçant","5 H","Outili Yassin"]
["Mattei Patrick","remplaçant",null,null,"NICE NORD","Repos","NICE NORD","ENC MATIN 5H-12H","CARTON MATIN",null,null,"ENC MATIN 5H-12H","Repos","ENC MATIN 5H-12H","ENC MATIN 5H-12H","ENC MATIN 5H-12H","NICE NORD","Repos","ENC MATIN 5H-12H","ENC MATIN 5H-12H","ENC MATIN 5H-12H","ENC MATIN 5H-12H","ENC MATIN 5H-12H","Repos","NICE EST","ENC MATIN 5H-12H","ENC MATIN 5H-12H","CARTON MATIN","ENC MATIN 5H-12H","ENC MATIN 5H-12H","Repos","Repos","ENC MATIN 5H-12H","ENC MATIN 5H-12H","ENC MATIN 5H-12H","ENC MATIN 5H-12H","ENC MATIN 5H-12H","Repos",null,null,null,null,null,null,null,null,null,null,null,null,null,null,null,null,null,null,null,null,null,null,null,null,null,null,null,null,null,null,null,"Ellena Thomas","remplaçant","5 H","Addario Grégory"]
["Napolitano Walter","remplaçant","OUEST",null,"ENC MATIN 5H-12H","ENC MATIN 5H-12H","ENC MATIN 5H-12H","ENC MATIN 5H-12H","ENC MATIN 5H-12H",null,null,"ENC NUIT 20H30-02H30","ENC NUIT 20H30-02H30","ENC NUIT 20H30-02H30","ENC NUIT 20H30-02H30","ENC NUIT 20H30-02H30","Repos","Repos","ENC NUIT 20H30-02H30","ENC NUIT 20H30-02H30","ENC NUIT 20H30-02H30","ENC NUIT 20H30-02H30","ENC NUIT 20H30-02H30","Repos","Repos","ENC MATIN 5H-12H","ENC MATIN 5H-12H","ENC MATIN 5H-12H","ENC MATIN 5H-12H","Repos","NICE OUEST","Repos","ENC MATIN 5H-12H","ENC MATIN 5H-12H","ENC MATIN 5H-12H","Repos","ENC MATIN 5H-12H","NICE OUEST","Repos",null,null,null,"Congés","Congés",null,null,null,null,null,null,null,null,null,null,null,null,null,null,null,null,null,null,null,null,null,null,null,null,null,"Gandolin Adrien","remplaçant","5 H","Alliouane Saïd"]
["Orofino Carmelo","remplaçant",null,null,"NICE EST","NICE EST","NICE EST","NICE EST","NICE EST",null,null,"B. CARTON","B. CARTON","B. CARTON","B. CARTON","B. CARTON","Repos","Repos","NICE EST","B. CARTON","NICE EST","Repos","NICE EST","Repos","Repos","NICE EST","B. CARTON","NICE EST","ENC AM 12H30-19H30","ENC AM 12H30-19H30","Repos","Repos","ENC AM 12H30-19H30","ENC AM 12H30-19H30","ENC AM 12H30-19H30","ENC AM 12H30-19H30","ENC AM 12H30-19H30","Repos",null,null,null,null,null,null,null,null,null,null,null,null,null,null,null,null,null,null,null,null,null,null,null,null,null,null,null,null,null,null,null,"Marino Alain","remplaçant","5 H","Ellena Thomas"]
["Outili Yassin","remplaçant",null,null,"ENC NUIT 20H30-02H30","ENC NUIT 20H30-02H30","ENC NUIT 20H30-02H30","ENC NUIT 20H30-02H30","ENC NUIT 20H30-02H30",null,null,"ENC MATIN 5H-12H","ENC MATIN 5H-12H","ENC MATIN 5H-12H","Repos","ENC MATIN 5H-12H","NICE OUEST","Repos","ENC MATIN 5H-12H","ENC MATIN 5H-12H","ENC MATIN 5H-12H","ENC MATIN 5H-12H","ENC MATIN 5H-12H","Repos","V.N.  Après Midi","ENC NUIT 20H30-02H30","ENC NUIT 20H30-02H30","ENC NUIT 20H30-02H30","ENC NUIT 20H30-02H30","ENC NUIT 20H30-02H30","Repos","Repos","ENC NUIT 20H30-02H30","ENC NUIT 20H30-02H30","ENC NUIT 20H30-02H30","ENC NUIT 20H30-02H30","ENC NUIT 20H30-02H30",null,null,null,null,null,null,null,null,null,null,null,null,null,null,null,null,null,null,null,null,null,null,null,null,null,null,null,null,null,null,null,null,"Mattei Patrick","remplaçant","5 H","Viale Jonathan"]
["Tordo Fabien","remplaçant","OUEST",null,"NICE OUEST","NICE OUEST","NICE OUEST","NICE OUEST","NICE OUEST",null,null,"ENC NUIT 20H30-02H30","ENC NUIT 20H30-02H30","ENC NUIT 20H30-02H30","ENC NUIT 20H30-02H30","ENC NUIT 20H30-02H30","Repos","Repos","ENC NUIT 20H30-02H30","ENC NUIT 20H30-02H30","ENC NUIT 20H30-02H30","ENC NUIT 20H30-02H30","ENC NUIT 20H30-02H30","Repos","Repos","ENC NUIT 20H30-02H30","ENC NUIT 20H30-02H30","ENC NUIT 20H30-02H30","ENC NUIT 20H30-02H30","ENC NUIT 20H30-02H30","Repos","Repos","ENC MATIN 5H-12H","ENC MATIN 5H-12H","ENC MATIN 5H-12H","ENC MATIN 5H-12H","Repos","NICE OUEST",null,null,null,null,null,null,null,null,null,null,null,null,null,null,null,null,null,null,null,null,null,null,null,null,null,null,null,null,null,null,null,"Moraldo Adrien"]
["Viale Jonathan","remplaçant",null,null,"ENC NUIT 20H30-02H30","ENC NUIT 20H30-02H30","ENC NUIT 20H30-02H30","ENC NUIT 20H30-02H30","ENC NUIT 20H30-02H30",null,null,"ENC MATIN 5H-12H","ENC MATIN 5H-12H","ENC MATIN 5H-12H","ENC MATIN 5H-12H","Repos","NICE EST","Repos","ENC MATIN 5H-12H","ENC MATIN 5H-12H","ENC MATIN 5H-12H","ENC MATIN 5H-12H","ENC MATIN 5H-12H","Repos","Repos","ENC NUIT 20H30-02H30","ENC NUIT 20H30-02H30","ENC NUIT 20H30-02H30","ENC NUIT 20H30-02H30","ENC NUIT 20H30-02H30","Repos","NICE NORD","ENC NUIT 20H30-02H30","ENC NUIT 20H30-02H30","ENC NUIT 20H30-02H30","ENC NUIT 20H30-02H30","ENC NUIT 20H30-02H30",null,null,null,null,null,null,null,null,null,null,null,null,null,null,null,null,null,null,null,null,null,null,null,null,null,null,null,null,null,null,null,null,"Napolitano Walter","remplaçant"]
["Isoard Nicolas","remplaçant",null,null,null,null,null,null,null,null,null,null,null,null,null,null,null,null,null,null,null,null,null,null,null,null,null,null,null,null,null,null,null,null,null,null,null,null,null,null,null,null,null,null,null,null,null,null,null,null,null,null,null,null,null,null,null,null,null,null,null,null,null,null,null,null,null,null,null,"Orofino Carmelo","remplaçant"]
["Moraldo Adrien",null,null,null,"ENC AM 12H30-19H30","ENC AM 12H30-19H30","ENC AM 12H30-19H30","Repos","ENC AM 12H30-19H30","NICE OUEST",null,"Congés","Congés","Congés","Congés","Congés","Congés","Congés","CARTON AM","CARTON AM","CARTON AM","CARTON AM","CARTON AM","Repos","Repos","CARTON AM","CARTON AM","CARTON AM","CARTON AM","CARTON AM","Repos","Repos","ENC AM 12H30-19H30","ENC AM 12H30-19H30","ENC AM 12H30-19H30","ENC AM 12H30-19H30","ENC AM 12H30-19H30","Repos",null,null,null,null,null,null,null,null,null,null,null,null,null,null,null,null,null,null,null,null,null,null,null,null,null,null,null,null,null,null,null,"Outili Yassin","remplaçant"]
["Perrone Lucas",null,null,null,"Congés","Congés","Congés","Congés","Congés",null,null,"ENC NUIT 20H30-02H30","ENC NUIT 20H30-02H30","ENC NUIT 20H30-02H30","ENC NUIT 20H30-02H30","ENC NUIT 20H30-02H30","Repos","V.N.  Après Midi","ENC NUIT 20H30-02H30","ENC NUIT 20H30-02H30","ENC NUIT 20H30-02H30","ENC NUIT 20H30-02H30","ENC NUIT 20H30-02H30","Repos","V.N.  Après Midi","ENC AM 12H30-19H30","ENC AM 12H30-19H30","ENC AM 12H30-19H30","ENC AM 12H30-19H30","Repos","NICE NORD","Repos","ENC NUIT 20H30-02H30","ENC NUIT 20H30-02H30","ENC NUIT 20H30-02H30","ENC NUIT 20H30-02H30","ENC NUIT 20H30-02H30",null,null,null,null,null,null,null,null,null,null,null,null,null,null,null,null,null,null,null,null,null,null,null,null,null,null,null,null,null,null,null,null,"Rodriguez franck"]
["Rodriguez franck",null,null,null,"Congés","Congés","Congés","Congés","Congés",null,null,"ENC AM 12H30-19H30","ENC AM 12H30-19H30","ENC AM 12H30-19H30","ENC AM 12H30-19H30","ENC AM 12H30-19H30","Repos","V.N.  A.M.","ENC AM 12H30-19H30","ENC AM 12H30-19H30","ENC AM 12H30-19H30","ENC AM 12H30-19H30","ENC AM 12H30-19H30","Repos","Repos","ENC AM 12H30-19H30","ENC AM 12H30-19H30","ENC AM 12H30-19H30","Repos","ENC AM 12H30-19H30","NICE OUEST","Repos","ENC AM 12H30-19H30","ENC AM 12H30-19H30","ENC AM 12H30-19H30","ENC AM 12H30-19H30","ENC AM 12H30-19H30",null,null,null,null,null,null,null,null,null,null,null,null,null,null,null,null,null,null,null,null,null,null,null,null,null,null,null,null,null,null,null,null,"Perrone Lucas"]
[]
["Bour Yvon",null,"POLY 7H-12H / 14H-18H","POLY 7H-12H","Repos","POLY 12H-19H","POLY 12H-19H","POLY 12H-18H","POLY 12H-18H","POLY 7H-14H",null,"Repos","POLY 12H-19H","POLY 12H-19H","POLY 12H-18H","POLY 12H-18H","POLY 7H-14H",null,"Repos","Congés","12H-19H","POLY 12H-18H","POLY 12H-18H","7H-12H / 14H-18H","POLY 7H-12H","Repos","POLY 12H-19H","Congés","POLY 12H-18H","POLY 12H-18H","POLY 7H-12H / 14H-18H","POLY 7H-12H","Repos","POLY 12H-19H","Congés","12H-18H","12H-18H","POLY 7H-12H / 14H-18H","POLY 7H-12H"]
["Dalmasso Yves",null,null,null,"POLY 7H-14H","POLY 7H-14H","B. CARTON","POLY 5H-12H","Congés",null,null,"POLY 9H-16H","POLY 5H-12H","B. CARTON","9H-16H","9H-16H",null,null,"POLY 5H-12H","POLY 5H-12H","POLY 5H-12H","POLY 5H-12H","POLY 5H-12H",null,null,"Repos","POLY 7H-14H","B. CARTON","POLY 7H-14H","POLY 7H-14H","POLY 7H-12H / 14H-18H",null,"POLY 7H-14H","POLY 7H-14H","B. CARTON","POLY 7H-14H","POLY 7H-14H"]
["Féralis Cécile",null,null,null,"POLY 12H-19H","POLY 12H-19H","POLY 12H-19H","POLY 12H-19H","POLY 12H-19H",null,null,"Congés","congés","Congés","Congés","Congés",null,null,"12H-19H","12H-19H","B. CARTON","12H-19H","Repos","7H-12H / 14H-18H",null,"POLY 12H-19H","POLY 12H-19H","POLY 12H-19H","POLY 12H-19H","POLY 12H-19H",null,"CP + POLY 7H-12H","POLY 12H-19H","POLY 12H-19H","POLY 12H-19H","POLY 12H-19H","POLY 12H-19H"]
["Landrieux Nathalie",null,"7H-12H / 14H-18H",null,"B. CARTON","B. CARTON","Repos","B. CARTON","B. CARTON","POLY 7H-14H",null,"B. CARTON","B. CARTON","Repos","B. CARTON","B. CARTON","POLY 7H-14H",null,"B. CARTON","B. CARTON","Repos","B. CARTON","B. CARTON","7H-12H / 14H-18H","CP + POLY 4H-12H","B. CARTON","B. CARTON","Repos","B. CARTON","B. CARTON","POLY 7H-12H / 14H-18H",null,"B. CARTON","B. CARTON","Repos","B. CARTON","B. CARTON","POLY 7H-12H / 14H-18H"]
["Moliner David",null,"CP 4H-7H",null,"POLY 5H-12H","POLY 5H-12H","CP + POLY 4H-12H","Repos","POLY + CP 4H-12H","4H-14H COMPACTEUR",null,"CP + POLY 4H-12H","CP + POLY 4H-12H","CP + POLY 4H-12H","CP + POLY 4H-12H","CP + POLY 4H-12H",null,null,"Congés","Congés","Congés","Congés","Congés",null,null,"CP + POLY 4H-12H","CP + POLY 4H-12H","CP + POLY 4H-12H","CP + POLY 4H-12H","CP + POLY 4H-12H","CP 4H-7H",null,"POLY 5H-12H","POLY 5H-12H","POLY 5H-12H","POLY 5H-12H","POLY 5H-12H"]
["Piombino Jean-Marc",null,null,"7H-12H","CP + POLY 4H-12H","CP + POLY 4H-12H","5H-12H","CP + POLY 4H-12H","CP + POLY 4H-12H",null,null,"POLY 5H-12H","Repos","POLY 5H-12H","POLY 5H-12H","POLY 5H-12H","POLY 4H-14H COMPACTEUR",null,"CP + POLY 4H-12H","CP + POLY 4H-12H","CP + POLY 4H-12H","CP + POLY 4H-12H","CP + POLY 4H-12H","CP 4H-7H",null,"POLY 5H-12H","POLY 5H-12H","POLY 5H-12H","POLY 5H-12H","POLY 5H-12H",null,null,"CP + POLY 4H-12H","CP + POLY 4H-12H","CP + POLY 4H-12H","CP + POLY 4H-12H","CP + POLY 4H-12H","CP 4H-7H"]
["Rateau Laurent",null,null,null,"POLY 9H-16H","POLY 9H-16H","POLY 9H-16H","POLY 9H-16H","POLY 9H-16H",null,null,"POLY 9H-16H","POLY 9H-16H","POLY 9H-16H","POLY 9H-16H","POLY 9H-16H",null,null,"POLY 9H-16H","POLY 9H-16H","POLY 9H-16H","POLY 9H-16H","POLY 9H-16H",null,null,"POLY 9H-16H","POLY 9H-16H","POLY 9H-16H","POLY 9H-16H","POLY 9H-16H",null,null,"POLY 9H-16H","POLY 9H-16H","POLY 9H-16H","POLY 9H-16H","Repos"]
["Rosso Dominique",null,"7H-12H / 14H-18H",null,"POLY 12H-19H","POLY 12H-19H","POLY 12H-19H","POLY 12H-19H","POLY 12H-19H",null,null,"POLY 12H-19H","POLY 12H-19H","POLY 12H-19H","Congés","Congés",null,null,"POLY 12H-19H","POLY 12H-19H","POLY 12H-19H","POLY 12H-19H","POLY 12H-19H",null,null,"POLY 12H-19H","POLY 12H-19H","POLY 12H-19H","POLY 12H-19H","POLY 12H-19H",null,null,"POLY 12H-19H","POLY 12H-19H","POLY 12H-19H","POLY 12H-19H","Repos","POLY 7H-12H / 14H-18H"]
[]
["Arnaud Gérard",null,null,null,"Contrôle 12H-19H","Contrôle 12H-19H","Contrôle 12H-19H","Congés","Congés",null,null,"Congés","Congés","Congés","Contrôle 12H-19H","Contrôle 12H-19H","Repos","Repos","Contrôle 12H-19H","Contrôle 12H-19H","Contrôle 12H-19H","Contrôle 12H-19H","Contrôle 12H-19H","Repos","Contrôle OM 03H-09H","Contrôle 12H-19H","Contrôle 12H-19H","Contrôle 12H-19H","Contrôle 12H-19H","Contrôle 12H-19H","Repos","Repos","Contrôle 12H-19H","Contrôle 12H-19H","Contrôle 12H-19H","Contrôle 12H-19H","Contrôle 12H-19H","Repos","Repos"]
["Fiorucci Alain",null,null,null,"Contröle Privé 19H00- 02H30","Contrôle 13H-20H","Contrôle 19H-02H30","Contrôle 19H-02H30","Contrôle 19H-02H30",null,"Contrôle OM 20H-02H","Contrôle 19H-02H30","Contrôle 19H-02H30","Contrôle 19H-02H30","Repos","Contrôle 19H-02H30","Contrôle Enc 5H-11H","Contrôle Enc 5H-11H","Contrôle 19H-02H30","Contrôle 19H-02H30","Congés","Contrôle 19H-02H30","Contrôle 19H-02H30","Repos","Contrôle OM 20H-02H","Contrôle 19H-02H30","Contrôle 19H-02H30","Contrôle 19H-02H30","Contrôle 19H-02H30","Contrôle 19H-02H30","Repos","Repos","Contrôle 19H-02H30","Contrôle 13H-20H","Contrôle 19H-02H30","Contrôle 19H-02H30","Contrôle 19H-02H30","Repos","Repos"]
["Peters Robert",null,null,null,"Congés","Congés","Congés","Congés","Congés",null,null,"Contrôle 7H-12H / 14H30-17H","Contrôle 7H-12H / 14H30-17H","Contrôle 7H-12H / 14H30-17H","Contrôle 7H-12H / 14H30-17H","Contrôle 7H-12H / 14H30-17H","Repos","Repos","Contrôle 7H-12H / 14H30-17H","Contrôle 7H-12H / 14H30-17H","Contrôle 7H-12H / 14H30-17H","Contrôle 7H-12H / 14H30-17H","Contrôle 7H-12H / 14H30-17H","Repos","Contrôle Déch 6H-12H","Contrôle 7H-12H / 14H30-17H","Contrôle 7H-12H / 14H30-17H","Contrôle 7H-12H / 14H30-17H","Contrôle 7H-12H / 14H30-17H","Contrôle 7H-12H / 14H30-17H","Repos","Contrôle Déch 6H-12H","Contrôle 7H-12H / 14H30-17H","Contrôle 7H-12H / 14H30-17H","Contrôle 7H-12H / 14H30-17H","Contrôle 7H-12H / 14H30-17H","Contrôle 7H-12H / 14H30-17H","Repos","Repos"]
["Tripodi Patrick",null,null,null,"Contröle 12H00-19H30","Contröle 12H00-19H30","Contröle 12H00-19H30","Contröle 12H00-19H30","Contröle 12H00-19H30",null,"Contrôle Enc 13H-19H","Contröle 12H00-19H30","Contröle 12H00-19H30","Contröle 12H00-19H30","Contröle 12H00-19H30","Contröle 12H00-19H30","Repos","Repos","Contröle 12H00-19H30","Contröle 12H00-19H30","Contröle 12H00-19H30","Contröle 12H00-19H30","Contröle 12H00-19H30","Repos","Repos","Contröle 12H00-19H30","Contröle 12H00-19H30","Contröle 12H00-19H30","Contröle 12H00-19H30","Contröle 12H00-19H30","Repos","Repos","Contröle 12H00-19H30","Contröle 12H00-19H30","Contröle 12H00-19H30","Contröle 12H00-19H30","Contröle 12H00-19H30","Repos","Repos"]
["Sartori Pierre",null,null,null,"Contrôle Privé 06H-14H","Contrôle Privé 06H-14H","Contrôle Privé 19H00-02H","Contrôle Privé 12H-19H","Contrôle Privé 06H-13H30",null,null,"Contrôle Privé 06H-14H","Contrôle Privé 06H-14H","Contrôle Privé 19H00-02H","Contrôle Privé 12H-19H","Contrôle Privé 06H-13H30","Repos","Repos","Contrôle Privé 06H-14H","Contrôle Privé 06H-14H","Contrôle Privé 19H00-02H","Contrôle Privé 12H-19H","Contrôle Privé 06H-13H30","Repos","Repos","Contrôle Privé 06H-14H","Contrôle Privé 06H-14H","Contrôle Privé 19H00-02H","Contrôle Privé 12H-19H","Contrôle Privé 06H-13H30","Repos","Repos","Contrôle Privé 06H-14H","Contrôle Privé 06H-14H","Contrôle Privé 19H00-02H","Contrôle Privé 12H-19H","Contrôle Privé 06H-13H30","Repos","Repos"]
["Vella Ferdinand",null,null,null,"Contrôle 19H-02H30","Contrôle 19H-02H30","Contrôle 19H-02H30","Contrôle 19H-02H30","Contrôle 19H-02H30",null,null,"Congés","Congés","Congés","Congés","Congés","Congés","Congés","Contrôle 13H-20H","Contrôle 19H-02H30","Contrôle 19H-02H30","Contrôle 19H-02H30","Repos","Contrôle 19H-02H30","Repos","Contrôle 13H-20H","Contrôle 19H-02H30","Contrôle 19H-02H30","Contrôle 19H-02H30","Contrôle 19H-02H30","Repos","Contrôle OM 20H-02H","Contrôle 13H-20H","Contrôle 19H-02H30","Contrôle 19H-02H30","VN 13H-20H","VN 13H-20H","Repos","Repos"]
[]
["Abile Gal Roger",null,"Repos","Repos","Standard 11H-15H / 15H30-19H","Standard 11H-15H / 15H30-19H","Standard 11H-15H / 15H30-19H","Congés","Congés",null,null,"Congés","Congés","Congés","Congés","Congés",null,null,"Standard 11H-15H / 15H30-19H","Standard 11H-15H / 15H30-19H","Standard 11H-15H / 15H30-19H","Standard 11H-15H / 15H30-19H","Standard 11H-15H / 15H30-19H","Repos","Repos","Standard 11H-15H / 15H30-19H","Standard 11H-15H / 15H30-19H","Standard 11H-15H / 15H30-19H","Standard 11H-15H / 15H30-19H","Standard 11H-15H / 15H30-19H","Repos","Repos","Standard 11H-15H / 15H30-19H","Standard 11H-15H / 15H30-19H","Standard 11H-15H / 15H30-19H","Standard 11H-15H / 15H30-19H","Standard 11H-15H / 15H30-19H","Repos","Repos"]
["Carlin Hélène",null,null,null,"Secrétariat 9H-12H /13H-17H /20H-21H30","Secrétariat 13H-18H","Congés","Congés","Congés",null,null,"Congés","Congés","Secrétariat 8H30-12H /13H-17H","Secrétariat 9H-12H /13H-17H /20H-21H30","Secrétariat 8H30-12H /12H30-17H","Repos","Repos","Secrétariat 9H-12H /13H-17H /20H-21H30","Secrétariat 13H-18H","Secrétariat 8H30-12H /13H-17H","Secrétariat 9H-12H /13H-17H /20H-21H30","Secrétariat 8H30-12H /12H30-17H","Repos","Repos","Secrétariat 9H-12H /13H-17H /20H-21H30","Secrétariat 13H-18H","Secrétariat 8H30-12H /13H-17H","Secrétariat 9H-12H /13H-17H /20H-21H30","Secrétariat 8H30-12H /12H30-17H","Repos","Repos","Secrétariat 9H-12H /13H-17H /20H-21H30","Secrétariat 13H-18H","Secrétariat 8H30-12H /13H-17H","Secrétariat 9H-12H /13H-17H /20H-21H30","Secrétariat 8H30-12H /12H30-17H","Repos","Repos"]
["Ferro Clément",null,"Repos","Repos","Standard 8H-12H/13H-16H30","Standard 8H-12H/13H-16H30","Standard 8H-12H/13H-16H30","Standard 8H-12H/13H-16H30","Standard 8H-12H/13H-16H30",null,null,"Standard 8H-12H/13H-16H30","Standard 8H-12H/13H-16H30","Standard 8H-12H/13H-16H30","Standard 8H-12H/13H-16H30","Standard 8H-12H/13H-16H30","Repos","Repos","Standard 8H-12H/13H-16H30","Standard 8H-12H/13H-16H30","Standard 8H-12H/13H-16H30","Standard 8H-12H/13H-16H30","Standard 8H-12H/13H-16H30","Repos","Repos","Standard 8H-12H/13H-16H30","Standard 8H-12H/13H-16H30","Standard 8H-12H/13H-16H30","Standard 8H-12H/13H-16H30","Standard 8H-12H/13H-16H30","Repos","Repos","Standard 8H-12H/13H-16H30","Standard 8H-12H/13H-16H30","Standard 8H-12H/13H-16H30","Standard 8H-12H/13H-16H30","Standard 8H-12H/13H-16H30","Repos","Repos"]
["Tripodi Nadège",null,null,null,"Secrétariat 8H30-12H/12H45-16H15","Secrétariat 8H30-12H/12H45-16H15","Repos","Secrétariat 8H30-12H/12H45-16H15","Secrétariat 8H30-12H/12H45-16H15",null,null,"Secrétariat 8H30-12H/12H45-16H15","Congés","Congés","Congés","Congés","Congés","Congés","Congés","Secrétariat 8H30-12H/12H45-16H15","Repos","Secrétariat 8H30-12H/12H45-16H15","Secrétariat 8H30-12H/12H45-16H15","Repos","Repos","Secrétariat 8H30-12H/12H45-16H15","Secrétariat 8H30-12H/12H45-16H15","Repos","Secrétariat 8H30-12H/12H45-16H15","Secrétariat 8H30-12H/12H45-16H15","Repos","Repos","Secrétariat 8H30-12H/12H45-16H15","Secrétariat 8H30-12H/12H45-16H15","Repos","Secrétariat 8H30-12H/12H45-16H15","Secrétariat 8H30-12H/12H45-16H15","Repos","Repos"]

{"sheet":"CPL","index":1,"n_rows":16,"n_cols":1,"rows_kept":16,"cut":false,"hidden":false,"merged":[]}
["B. CARTON"]
["CP 4H-7H"]
["CP + POLY 7H-12H"]
["CP + POLY 4H-12H"]
["POLY 5H-12H"]
["POLY 7H-14H"]
["POLY 9H-16H"]
["POLY 12H-18H"]
["POLY 12H-19H"]
["POLY 7H-12H"]
["POLY 4H-14H COMPACTEUR"]
["POLY 7H-12H"]
["POLY 7H-12H / 14H-18H"]
["ABSENT"]
["CONGES"]
["REPOS"]

{"sheet":"RIPPEURS","index":2,"n_rows":17,"n_cols":1,"rows_kept":17,"cut":false,"hidden":false,"merged":[]}
["B. CARTON"]
["CARTON AP"]
["CARTON MATIN"]
["ENC MATIN 5H-12H"]
["ENC AM 12H30-19H30"]
["ENC NUIT 20H30-02H30"]
["NICE EST"]
["NICE NORD"]
["NICE OUEST"]
["V.N.  A.M"]
["V.N.  Matin"]
["NICE OUEST & VIEUX NICE"]
["NICE EST & VIEUX NICE"]
["NICE NORD & VIEUX NICE"]
["ABSENT"]
["CONGES"]
["REPOS"]

{"sheet":"ADMINISTRATIF","index":3,"n_rows":10,"n_cols":1,"rows_kept":10,"cut":false,"hidden":false,"merged":[]}
["Secrétariat 13H-18H"]
["Secrétariat 8H30-12H /12H30-17H"]
["Secrétariat 8H30-12H /13H-17H"]
["Secrétariat 8H30-12H/12H45-16H15"]
["Secrétariat 9H-12H /13H-17H /20H-21H30"]
["Standard 11H-15H / 15H30-19H"]
["Standard 8H-12H/13H-16H30"]
["CONGES"]
["ABSENT"]
["REPOS"]

{"sheet":"RESPONSABLE","index":4,"n_rows":18,"n_cols":1,"rows_kept":18,"cut":false,"hidden":false,"merged":[]}
["Contrôle Privé 06H-13H30"]
["Contrôle Privé 06H-14H"]
["Contrôle 12H00-19H30"]
["Contrôle 12H-19H"]
["Contrôle 13H-20H"]
["Contrôle 19H-02H30"]
["Contrôle 7H-12H / 14H30-17H"]
["Contrôle Déch 6H-12H"]
["Contrôle Enc 13H-20H"]
["Contrôle Enc 5H-12H"]
["Contrôle OM 03H-09H"]
["Contrôle OM 20H-02H"]
["Contrôle Privé 19H00-02H30"]
["Contrôle Privé 19H00-02H"]
["Contrôle Privé 12H-19H"]
["CONGES"]
["ABSENT"]
["REPOS"]

{"sheet":"Pointage","index":5,"n_rows":54,"n_cols":80,"rows_kept":54,"cut":false,"hidden":false,"merged":[]}
["NOMS","PRESTATION","2016-12-17","2016-12-18","2016-12-19","2016-12-20","2016-12-21","2016-12-22","2016-12-23","2016-12-24","2016-12-25","2016-12-26","2016-12-27","2016-12-28","2016-12-29","2016-12-30","2016-12-31","2017-01-01","2017-01-02","2017-01-03","2017-01-04","2017-01-05","2017-01-06","2017-01-07","2017-01-08","2017-01-09","2017-01-10","2017-01-11","2017-01-12","2017-01-13","2017-01-14","2017-01-15","2017-01-16","2017-01-17","2017-01-18","2017-01-19","2017-01-20","2017-01-21","2017-01-22","1900-01-23",null,25,null,27,null,29,null,31,null,2,null,4,null,null,null,null,null,null,null,null,null,null,null,null,"pris","conges","arrt","prendre",null,null,null,null,null,null,null,null,null,null,null,"2016-12-20"]
["Abile Gal Roger",null,"Repos","Repos","Standard 11H-15H / 15H30-19H","Standard 11H-15H / 15H30-19H","Standard 11H-15H / 15H30-19H","Congés","Congés","Congés","Congés","Congés","Congés","Congés","Congés","Congés","Congés","Congés","Standard 11H-15H / 15H30-19H","Standard 11H-15H / 15H30-19H","Standard 11H-15H / 15H30-19H","ABSENT","Standard 11H-15H / 15H30-19H","Repos","Repos","Standard 11H-15H / 15H30-19H","Standard 11H-15H / 15H30-19H","Standard 11H-15H / 15H30-19H","Standard 11H-15H / 15H30-19H","Standard 11H-15H / 15H30-19H","Repos","Repos","Standard 11H-15H / 15H30-19H","Standard 11H-15H / 15H30-19H","Standard 11H-15H / 15H30-19H","Standard 11H-15H / 15H30-19H","Standard 11H-15H / 15H30-19H","Repos","Repos"]
["Addario Grégory","remplaçant","NUIT",null,"ENC NUIT 20H30-02H30","ENC NUIT 20H30-02H30","ENC NUIT 20H30-02H30","ENC NUIT 20H30-02H30","ENC NUIT 20H30-02H30","Repos","Repos","ENC MATIN 5H-12H","ENC MATIN 5H-12H","ENC MATIN 5H-12H","Repos","ENC MATIN 5H-12H","NICE OUEST","Repos","ENC MATIN 5H-12H","ENC MATIN 5H-12H","ENC MATIN 5H-12H","ENC MATIN 5H-12H","ENC MATIN 5H-12H","Repos","V.N.  Matin","ENC MATIN 5H-12H","ENC MATIN 5H-12H","ENC MATIN 5H-12H","ENC MATIN 5H-12H","ENC MATIN 5H-12H","Repos","Repos","ENC NUIT 20H30-02H30","ENC NUIT 20H30-02H30","ENC NUIT 20H30-02H30","ENC NUIT 20H30-02H30","ENC NUIT 20H30-02H30","Repos","Repos"]
["Alliouane Saïd","remplaçant",null,null,"ENC NUIT 20H30-02H30","ENC NUIT 20H30-02H30","ENC NUIT 20H30-02H30","ENC NUIT 20H30-02H30","ENC NUIT 20H30-02H30","Repos","V.N.  Après Midi","ENC MATIN 5H-12H","ENC MATIN 5H-12H","Repos","ENC MATIN 5H-12H","ENC MATIN 5H-12H","OUEST","Repos","ENC NUIT 20H30-02H30","ENC NUIT 20H30-02H30","ENC NUIT 20H30-02H30","ENC NUIT 20H30-02H30","ENC NUIT 20H30-02H30","Repos","Repos","ENC MATIN 5H-12H","ENC MATIN 5H-12H","ENC MATIN 5H-12H","ENC MATIN 5H-12H","ENC MATIN 5H-12H","Repos","Repos","ENC NUIT 20H30-02H30","ENC NUIT 20H30-02H30","ENC NUIT 20H30-02H30","ENC NUIT 20H30-02H30","ENC NUIT 20H30-02H30","Repos","Repos"]
["Arnaud Fabrice","fourgon carton AMP",null,null,"CARTON AM","CARTON AM","CARTON AM","CARTON AM","CARTON AM","Repos","V.N.  Après Midi","CARTON AM","CARTON AM","CARTON AM","CARTON AM","CARTON AM","Repos","Repos","Repos","CARTON AM","CARTON AM","CARTON AM","CARTON AM","CARTON AM","Repos","CARTON AM","CARTON AM","CARTON AM","CARTON AM","CARTON AM","Repos","Repos","CARTON AM","CARTON AM","CARTON AM","CARTON AM","CARTON AM","Repos","Repos",null,null,null,null,null,null,null,null,null,null,null,null,null,null,null,null,null,null,null,null,null,null,null,null,null,null,null,null,null,null,"Glaskoff Hervé","Benne Carton"]
["Arnaud Gérard",null,null,null,"Contrôle 12H-19H","Contrôle 12H-19H","Contrôle 12H-19H","Congés","Congés","Congés","Congés","Congés","Congés","Congés","Contrôle 12H-19H","Contrôle 12H-19H","Repos","Repos","Contrôle 12H-19H","Contrôle 12H-19H","Contrôle 12H-19H","Contrôle 12H-19H","Contrôle 12H-19H","Repos","Contrôle OM 03H-09H","Contrôle 12H-19H","Contrôle 12H-19H","Contrôle 12H-19H","Contrôle 12H-19H","Contrôle 12H-19H","Repos","Repos","Contrôle 12H-19H","Contrôle 12H-19H","Contrôle 12H-19H","Contrôle 12H-19H","Contrôle 12H-19H","Repos","Repos",null,null,null,null,null,null,null,null,null,null,null,null,null,null,null,null,null,null,null,null,null,null,null,null,null,null,null,null,null,null,"Torre Jean Marie","Benne Carton"]
["Audibert Michel","OUEST  Déchetterie",null,null,"NICE OUEST","NICE OUEST","NICE OUEST","NICE OUEST","NICE OUEST","NICE OUEST","Repos","NICE OUEST","NICE OUEST","NICE OUEST","NICE OUEST","NICE OUEST","Repos","Repos","Congés","Congés","Congés","Congés","Congés","Congés","Congés","NICE OUEST","NICE OUEST","NICE OUEST","NICE OUEST","Repos","NICE OUEST","Repos","NICE OUEST","NICE OUEST","NICE OUEST","NICE OUEST","NICE OUEST","Repos","Repos",null,null,null,null,null,null,null,null,null,"2017-02-01",null,null,null,null,null,null,null,null,null,null,null,null,null,null,null,null,null,null,null,null,"Guizani Samy","fourgon carton matin"]
["Ben Bouzid Bourhane","OUEST  Déchetterie",null,"OUEST","NICE OUEST","NICE OUEST","NICE OUEST","NICE OUEST","NICE OUEST","NICE OUEST","Repos","NICE OUEST","NICE OUEST","NICE OUEST","NICE OUEST","NICE OUEST","Repos","Repos","NICE OUEST","NICE OUEST","NICE OUEST","NICE OUEST","NICE OUEST","Repos","NICE OUEST","NICE OUEST","NICE OUEST","NICE OUEST","NICE OUEST","NICE OUEST","Repos","Repos","NICE OUEST","NICE OUEST","Repos","NICE OUEST","NICE OUEST","NICE OUEST",null,null,null,null,null,null,null,null,null,null,null,null,null,null,null,null,null,null,null,null,null,null,null,null,null,null,null,null,null,null,null,"Martinelli Julien","fourgon carton matin"]
["Bour Yvon",null,"7H-12H / 14H-18H","7H-12H","Repos","12H-19H","POLY 12H-19H","12H-18H","12H-18H","7H-14H",null,"Repos","12H-19H","12H-19H","12H-18H","12H-18H","7H-14H",null,"Repos","Congés","12H-19H","12H-18H","12H-18H","7H-12H / 14H-18H","7H-12H","Repos","12H-19H","Congés","12H-18H","12H-18H","7H-12H / 14H-18H","7H-12H","Repos","12H-19H","Congés","12H-18H","12H-18H","7H-12H / 14H-18H","7H-12H",null,null,null,null,null,null,null,null,null,null,null,null,null,null,null,null,null,null,null,null,null,null,null,null,null,null,null,null,null,null,"Arnaud Fabrice","fourgon carton AMP"]
["Cantelli Thomas","remplaçant",null,null,null,null,null,null,null,null,null,null,null,null,null,null,null,null,"Repos","ENC MATIN 5H-12H","ENC MATIN 5H-12H","ENC MATIN 5H-12H","ENC MATIN 5H-12H","NICE OUEST","Repos","ENC NUIT 20H30-02H30","ENC NUIT 20H30-02H30","ENC NUIT 20H30-02H30","ENC NUIT 20H30-02H30","ENC NUIT 20H30-02H30","Repos","Repos","ENC MATIN 5H-12H","ENC MATIN 5H-12H","Repos","ENC MATIN 5H-12H","ENC MATIN 5H-12H","NICE EST","Repos",null,null,null,null,null,null,null,null,null,null,null,null,null,null,null,null,null,null,null,null,null,null,null,null,null,null,null,null,null,null,"Vanini Kévin","fourgon carton AMP"]
["Cardinale Jean Claude","OUEST  Déchetterie",null,null,"Congés","Congés","Congés","Congés","Congés","Congés","Congés","NICE OUEST","NICE OUEST","Repos","NICE OUEST","NICE OUEST","NICE OUEST","Repos","NICE OUEST","NICE OUEST","NICE OUEST","NICE OUEST","NICE OUEST","Repos","NICE OUEST","NICE OUEST","NICE OUEST","NICE OUEST","NICE OUEST","NICE OUEST","Repos","Repos","NICE OUEST","NICE OUEST","NICE OUEST","NICE OUEST","NICE OUEST","Repos","Repos",null,null,null,null,null,null,null,null,null,null,null,null,null,null,null,null,null,null,null,null,null,null,null,null,null,null,null,null,null,null,"Perez Yann","fourgon carton AMP"]
["Carlin Hélène",null,null,null,"Secrétariat 9H-12H /13H-17H /20H-21H30","Secrétariat 13H-18H","Congés","Congés","Congés","Congés","Congés","Congés","Congés","Secrétariat 8H30-12H /13H-17H","Secrétariat 9H-12H /13H-17H /20H-21H30","Secrétariat 8H30-12H /12H30-17H","Repos","Repos","Secrétariat 9H-12H /13H-17H /20H-21H30","Secrétariat 13H-18H","Secrétariat 8H30-12H /13H-17H","Secrétariat 9H-12H /13H-17H /20H-21H30","Secrétariat 8H30-12H /12H30-17H","Repos","Repos","Secrétariat 9H-12H /13H-17H /20H-21H30","Secrétariat 13H-18H","Secrétariat 8H30-12H /13H-17H","Secrétariat 9H-12H /13H-17H /20H-21H30","Secrétariat 8H30-12H /12H30-17H","Repos","Repos","Secrétariat 9H-12H /13H-17H /20H-21H30","Secrétariat 13H-18H","Secrétariat 8H30-12H /13H-17H","Secrétariat 9H-12H /13H-17H /20H-21H30","Secrétariat 8H30-12H /12H30-17H","Repos","Repos",null,null,null,null,null,null,null,null,null,null,null,null,null,null,null,null,null,null,null,null,null,null,null,null,null,null,null,null,null,null,null,"fourgon carton AMP"]
["Courtois Alexis","remplaçant","EST",null,"B. CARTON","B. CARTON","B. CARTON","B. CARTON","B. CARTON","NICE EST","Repos","ENC NUIT 20H30-02H30","ENC NUIT 20H30-02H30","ENC NUIT 20H30-02H30","ENC NUIT 20H30-02H30","ENC NUIT 20H30-02H30","Repos","Repos","ENC NUIT 20H30-02H30","ENC NUIT 20H30-02H30","ENC NUIT 20H30-02H30","ENC NUIT 20H30-02H30","ENC NUIT 20H30-02H30","Repos","Repos","ENC NUIT 20H30-02H30","ENC NUIT 20H30-02H30","ENC NUIT 20H30-02H30","ENC NUIT 20H30-02H30","ENC NUIT 20H30-02H30","Repos","Repos","ENC MATIN 5H-12H","ENC MATIN 5H-12H","ENC MATIN 5H-12H","ENC MATIN 5H-12H","Repos","NICE EST","Repos",null,null,null,null,null,null,null,null,null,null,null,null,null,null,null,null,null,null,null,null,null,null,null,null,null,null,null,null,null,null,"Rini Romain","EST  Déchetterie","AM","Rodriguez franck"]
["Dalmasso Yves",null,null,null,"7H-14H","7H-14H","B. CARTON","5H-12H","Congés",null,null,"9H-16H","5H-12H","B. CARTON","9H-16H","9H-16H",null,null,"5H-12H","5H-12H","5H-12H","5H-12H","5H-12H",null,null,"Repos","7H-14H","B. CARTON","7H-14H","7H-14H","7H-12H / 14H-18H",null,"7H-14H","7H-14H","B. CARTON","7H-14H","7H-14H",null,null,null,null,null,null,null,null,null,null,null,null,null,null,null,null,null,null,null,null,null,null,null,null,null,null,null,null,null,null,null,null,"Marcelli Alain","EST  Déchetterie","AM","Cantelli Thomas"]
["Dhouimer Yassine","remplaçant",null,"V.N.  Matin","NICE EST","NICE EST","NICE EST","NICE EST","NICE EST","Repos","V.N.  Matin","NICE EST","NICE EST","NICE EST","NICE EST","NICE EST","Repos","V.N.  Matin","NICE EST","NICE EST","NICE EST","NICE EST","Repos","NICE EST","Repos","NICE EST","NICE EST","NICE EST","NICE EST","NICE EST","Repos","Repos","NICE EST","NICE EST","NICE EST","NICE EST","NICE EST","Repos",null,null,null,null,null,null,null,null,null,null,null,null,null,null,null,null,null,null,null,null,null,null,null,null,null,null,null,null,null,null,null,"Mongrandi Frédéric","EST  Déchetterie"]
["Ellena Thomas","remplaçant",null,null,"ENC NUIT 20H30-02H30","ENC NUIT 20H30-02H30","ENC NUIT 20H30-02H30","ENC NUIT 20H30-02H30","ENC NUIT 20H30-02H30","Repos","Repos","NICE OUEST","NICE OUEST","NICE OUEST","NICE OUEST","NICE OUEST","NICE EST","Repos","NICE OUEST","NICE OUEST","NICE OUEST","Repos","NICE OUEST","NICE OUEST","Repos","ENC MATIN 5H-12H","ENC MATIN 5H-12H","ENC MATIN 5H-12H","ENC MATIN 5H-12H","ENC MATIN 5H-12H","Repos","NICE OUEST & VIEUX NICE","ENC NUIT 20H30-02H30","ENC NUIT 20H30-02H30","ENC NUIT 20H30-02H30","ENC NUIT 20H30-02H30","ENC NUIT 20H30-02H30","Repos","Repos",null,null,null,null,null,null,null,null,null,null,null,null,null,null,null,null,null,null,null,null,null,null,null,null,null,null,null,null,null,null,"Frendo Mathieu","EST  Déchetterie","EST","Dhouimer Yassine"]
["Féralis Cécile",null,null,null,"12H-19H","12H-19H","POLY 12H-19H","12H-19H","12H-19H",null,null,"Congés","congés","Congés","Congés","Congés",null,null,"12H-19H","12H-19H","B. CARTON","12H-19H","Repos","7H-12H / 14H-18H",null,"12H-19H","12H-19H","12H-19H","12H-19H","12H-19H",null,"compact.+ Est\n7H-12H","12H-19H","12H-19H","12H-19H","12H-19H","12H-19H",null,null,null,null,null,null,null,null,null,null,null,null,null,null,null,null,null,null,null,null,null,null,null,null,null,null,null,null,null,null,null,null,null,"NORD  Déchetterie",null,"Mattei Patrick"]
["Ferro Clément",null,"Repos","Repos","Standard 8H-12H/13H-16H30","Standard 8H-12H/13H-16H30","Standard 8H-12H/13H-16H30","Standard 8H-12H/13H-16H30","Standard 8H-12H/13H-16H30","Repos","Repos","Standard 8H-12H/13H-16H30","Standard 8H-12H/13H-16H30","Standard 8H-12H/13H-16H30","Standard 8H-12H/13H-16H30","Standard 8H-12H/13H-16H30","Repos","Repos","Standard 8H-12H/13H-16H30","Standard 8H-12H/13H-16H30","Standard 8H-12H/13H-16H30","Standard 8H-12H/13H-16H30","Standard 8H-12H/13H-16H30","Repos","Repos","Standard 8H-12H/13H-16H30","Standard 8H-12H/13H-16H30","Standard 8H-12H/13H-16H30","Standard 8H-12H/13H-16H30","Standard 8H-12H/13H-16H30","Repos","Repos","Standard 8H-12H/13H-16H30","Standard 8H-12H/13H-16H30","Standard 8H-12H/13H-16H30","Standard 8H-12H/13H-16H30","Standard 8H-12H/13H-16H30","Repos","Repos",null,null,null,null,null,null,null,null,null,null,null,null,null,null,null,null,null,null,null,null,null,null,null,null,null,null,null,null,null,null,"Audibert Michel","OUEST  Déchetterie",null,"Marino Alain"]
["Fiorucci Alain",null,null,null,"Contröle Privé 19H00- 02H30","Contrôle 13H-20H","Contrôle 19H-02H30","Contrôle 19H-02H30","Contrôle 19H-02H30","Repos","Contrôle OM 20H-02H","Contrôle 19H-02H30","Contrôle 19H-02H30","Contrôle 19H-02H30","Repos","Contrôle 19H-02H30","Contrôle Enc 5H-11H","Contrôle Enc 5H-11H","Contrôle 19H-02H30","Contrôle 19H-02H30","Congés","Contrôle 19H-02H30","Contrôle 19H-02H30","Repos","Contrôle OM 20H-02H","Contrôle 19H-02H30","Contrôle 19H-02H30","Contrôle 19H-02H30","Contrôle 19H-02H30","Contrôle 19H-02H30","Repos","Repos","Contrôle 19H-02H30","Contrôle 13H-20H","Contrôle 19H-02H30","Contrôle 19H-02H30","Contrôle 19H-02H30","Repos","Repos",null,null,null,null,null,null,null,null,null,null,null,null,null,null,null,null,null,null,null,null,null,null,null,null,null,null,null,null,null,null,"Mandrea Thierry","OUEST  Déchetterie","NUIT","Perrone Lucas"]
["Frendo Mathieu","EST  Déchetterie","EST",null,"ABSENT","ABSENT","NICE EST","NICE EST","NICE EST","Repos","Repos","NICE EST","NICE EST","NICE EST","NICE EST","NICE EST","Repos","Repos","NICE EST","NICE EST","Repos","NICE EST","NICE EST","NICE EST","Repos","NICE EST","NICE EST","NICE EST","NICE EST","NICE EST","Repos","Repos","NICE EST","NICE EST","NICE EST","NICE EST","NICE EST","Repos",null,null,null,null,null,null,null,null,null,null,null,null,null,null,null,null,null,null,null,null,null,null,null,null,null,null,null,null,null,null,null,"Ben Bouzid Bourhane","OUEST  Déchetterie","NUIT","Cantelli Thomas"]
["Gandolin Adrien","remplaçant",null,null,"ENC MATIN 5H-12H","ENC MATIN 5H-12H","ENC MATIN 5H-12H","Repos","ENC MATIN 5H-12H","NICE EST","Repos","ENC NUIT 20H30-02H30","ENC NUIT 20H30-02H30","ENC NUIT 20H30-02H30","ENC NUIT 20H30-02H30","ENC NUIT 20H30-02H30","Repos","Repos","ENC NUIT 20H30-02H30","ENC NUIT 20H30-02H30","ENC NUIT 20H30-02H30","ENC NUIT 20H30-02H30","ENC NUIT 20H30-02H30","Repos","V.N.  Après Midi","ENC NUIT 20H30-02H30","ENC NUIT 20H30-02H30","ENC NUIT 20H30-02H30","ENC NUIT 20H30-02H30","ENC NUIT 20H30-02H30","Repos","V.N.  Matin","ENC MATIN 5H-12H","ENC MATIN 5H-12H","ENC MATIN 5H-12H","Repos","ENC MATIN 5H-12H","NICE EST","Repos",null,null,null,null,null,null,null,null,null,null,null,null,null,null,null,null,null,null,null,null,null,null,null,null,null,null,null,null,null,null,"Cardinale Jean Claude","OUEST  Déchetterie","NUIT","Gandolin Adrien"]
["Glaskoff Hervé","Benne Carton","EST",null,"B. CARTON","B. CARTON","B. CARTON","B. CARTON","B. CARTON","Repos","Repos","Congés","Congés","Congés","Congés","Congés","Congés","Congés","B. CARTON","Repos","B. CARTON","B. CARTON","B. CARTON","NICE OUEST","Repos","B. CARTON","B. CARTON","B. CARTON","B. CARTON","B. CARTON","Repos","V.N.  Après Midi","B. CARTON","B. CARTON","B. CARTON","B. CARTON","B. CARTON","Repos","Repos",null,null,null,null,null,null,null,null,null,null,null,null,null,null,null,null,null,null,null,null,null,null,null,null,null,null,null,null,null,null,"Addario Grégory","remplaçant","NUIT","Courtois Alexis"]
["Guizani Samy","fourgon carton matin",null,null,"CARTON MATIN","CARTON MATIN","CARTON MATIN","CARTON MATIN","CARTON MATIN","EST","Repos","CARTON MATIN","CARTON MATIN","CARTON MATIN","CARTON MATIN","CARTON MATIN","Repos","V.N.  Après Midi","CARTON MATIN","CARTON MATIN","CARTON MATIN","CARTON MATIN","CARTON MATIN","Repos","Repos","CARTON MATIN","CARTON MATIN","CARTON MATIN","CARTON MATIN","CARTON MATIN","Repos","NICE EST & VIEUX NICE","CARTON MATIN","CARTON MATIN","CARTON MATIN","CARTON MATIN","CARTON MATIN","Repos",null,null,null,null,null,null,null,null,null,null,null,null,null,null,null,null,null,null,null,null,null,null,null,null,null,null,null,null,null,null,null,"Alliouane Saïd","remplaçant","NUIT","Napolitano Walter"]
["Isoard Nicolas","remplaçant",null,null,null,null,null,null,null,null,null,null,null,null,null,null,null,null,null,null,null,null,null,null,null,null,null,null,null,null,null,null,null,null,null,null,null,null,null,null,null,null,null,null,null,null,null,null,null,null,null,null,null,null,null,null,null,null,null,null,null,null,null,null,null,null,null,null,null,"Cantelli Thomas","remplaçant",null,"Tordo Fabien"]
["Landrieux Nathalie",null,"7H-12H / 14H-18H",null,"B. CARTON","B. CARTON","Repos","B. CARTON","B. CARTON","7H-14H",null,"B. CARTON","B. CARTON","Repos","B. CARTON","B. CARTON","7H-14H",null,"B. CARTON","B. CARTON","Repos","B. CARTON","B. CARTON","7H-12H / 14H-18H","Compact.+Est\n7H-12H","B. CARTON","B. CARTON","Repos","B. CARTON","B. CARTON","7H-12H / 14H-18H",null,"B. CARTON","B. CARTON","Repos","B. CARTON","B. CARTON","7H-12H / 14H-18H",null,null,null,null,null,null,null,null,null,null,null,null,null,null,null,null,null,null,null,null,null,null,null,null,null,null,null,null,null,null,null,"Courtois Alexis","remplaçant"]
["Mallo Alfred","NORD  Déchetterie",null,"NORD","NICE NORD","NICE NORD","NICE NORD","NICE NORD","NICE NORD","NICE NORD","Repos","NICE NORD","NICE NORD","NICE NORD","NICE NORD","NICE NORD","Repos","Repos","NICE NORD","NICE NORD","NICE NORD","NICE NORD","NICE NORD","Repos","Repos","NICE NORD","NICE NORD","NICE NORD","NICE NORD","NICE NORD","Repos","Repos","NICE NORD","NICE NORD","NICE NORD","NICE NORD","NICE NORD","Repos","Repos",null,null,null,null,null,null,null,null,null,null,null,null,null,null,null,null,null,null,null,null,null,null,null,null,null,null,null,null,null,null,"Dhouimer Yassine","remplaçant","5 H","Outili Yassin"]
["Mandrea Thierry","OUEST  Déchetterie","OUEST",null,"NICE OUEST","NICE OUEST","NICE OUEST","NICE OUEST","NICE OUEST","Repos","Repos","Congés","Congés","Congés","Congés","Congés","Congés","Congés","NICE OUEST","NICE OUEST","Repos","NICE OUEST","NICE OUEST","NICE OUEST","Repos","NICE OUEST","NICE OUEST","NICE OUEST","NICE OUEST","NICE OUEST","Repos","NICE OUEST","NICE OUEST","NICE OUEST","NICE OUEST","NICE OUEST","NICE OUEST","Repos","Repos",null,null,null,null,null,null,null,null,null,null,null,null,null,null,null,null,null,null,null,null,null,null,null,null,null,null,null,null,null,null,"Ellena Thomas","remplaçant","5 H","Addario Grégory"]
["Marcelli Alain","EST  Déchetterie",null,"EST","NICE EST","NICE EST","NICE EST","NICE EST","NICE EST","Repos","Repos","NICE EST","NICE EST","NICE EST","NICE EST","NICE EST","Repos","Repos","Congés","Congés","Congés","Congés","Congés","Congés","Congés","NICE EST","Repos","NICE EST","NICE EST","NICE EST","NICE EST","Repos","NICE EST","NICE EST","NICE EST","NICE EST","NICE EST","Repos",null,null,null,null,"Congés","Congés",null,null,null,null,null,null,null,null,null,null,null,null,null,null,null,null,null,null,null,null,null,null,null,null,null,"Gandolin Adrien","remplaçant","5 H","Alliouane Saïd"]
["Marino Alain","remplaçant","NORD",null,"CARTON MATIN","CARTON MATIN","CARTON MATIN","CARTON MATIN","CARTON MATIN","Repos","Repos","ENC MATIN 5H-12H","Repos","ENC MATIN 5H-12H","ENC MATIN 5H-12H","ENC MATIN 5H-12H","NICE NORD","Repos","ENC MATIN 5H-12H","ENC MATIN 5H-12H","ENC MATIN 5H-12H","ENC MATIN 5H-12H","ENC MATIN 5H-12H","Repos","NICE EST","ENC MATIN 5H-12H","ENC MATIN 5H-12H","CARTON MATIN","ENC MATIN 5H-12H","ENC MATIN 5H-12H","Repos","Repos","ENC MATIN 5H-12H","ENC MATIN 5H-12H","ENC MATIN 5H-12H","ENC MATIN 5H-12H","ENC MATIN 5H-12H","Repos","Repos",null,null,null,null,null,null,null,null,null,null,null,null,null,null,null,null,null,null,null,null,null,null,null,null,null,null,null,null,null,null,"Marino Alain","remplaçant","5 H","Ellena Thomas"]
["Martinelli Julien","fourgon carton matin","OUEST",null,"ABSENT","ABSENT","ABSENT","ABSENT","ABSENT","ABSENT","ABSENT","Congés","Congés","Congés","Congés","Congés","Congés","Congés","CARTON MATIN","CARTON MATIN","CARTON MATIN","CARTON MATIN","CARTON MATIN","Repos","NICE NORD","CARTON MATIN","CARTON MATIN","Repos","CARTON MATIN","CARTON MATIN","NICE OUEST","Repos","CARTON MATIN","CARTON MATIN","CARTON MATIN","CARTON MATIN","CARTON MATIN","Repos",null,null,null,null,null,null,null,null,null,null,null,null,null,null,null,null,null,null,null,null,null,null,null,null,null,null,null,null,null,null,null,"Mattei Patrick","remplaçant","5 H","Viale Jonathan"]
["Marzarro Christopher","fourgon carton AMP","Repos","Repos","Repos","CARTON AP","CARTON AP","CARTON AP","CARTON AP","CARTON AP","Repos","CARTON AP","CARTON AP","CARTON AP","CARTON AP","CARTON AP","Repos","Repos","CARTON AP","CARTON AP","CARTON AP","CARTON AP","CARTON AP","Repos","Repos","CARTON AP","CARTON AP","CARTON AP","CARTON AP","CARTON AP","Repos","Repos","Repos","CARTON AP","CARTON AP","CARTON AP","CARTON AP","CARTON AP",null,null,null,null,null,null,null,null,null,null,null,null,null,null,null,null,null,null,null,null,null,null,null,null,null,null,null,null,null,null,null,"Moraldo Adrien"]
["Mattei Patrick","remplaçant",null,null,"NICE OUEST","NICE EST","ENC MATIN 5H-12H","ENC MATIN 5H-12H","ENC MATIN 5H-12H","Repos","Repos","CARTON MATIN","CARTON MATIN","CARTON MATIN","CARTON MATIN","CARTON MATIN","Repos","Repos","ENC MATIN 5H-12H","ENC MATIN 5H-12H","ENC MATIN 5H-12H","ENC MATIN 5H-12H","Repos","NICE NORD","Repos","ENC MATIN 5H-12H","ENC MATIN 5H-12H","CARTON MATIN","ENC MATIN 5H-12H","ENC MATIN 5H-12H","Repos","Repos","ENC MATIN 5H-12H","Repos","ENC MATIN 5H-12H","ENC MATIN 5H-12H","ENC MATIN 5H-12H","Repos",null,null,null,null,null,null,null,null,null,null,null,null,null,null,null,null,null,null,null,null,null,null,null,null,null,null,null,null,null,null,null,"Napolitano Walter","remplaçant"]
["Moliner David",null,"4H-7H COMPACTEUR",null,"5H-12H","5H-12H","PLOY 4-12H","Repos","4-12H","4H-14H COMPACTEUR",null,"4-12H","4-12H","4-12H","4-12H","4-12H",null,null,"Congés","Congés","Congés","Congés","Congés",null,null,"4-12H","4-12H","4-12H","4-12H","4-12H","4H-7H COMPACTEUR",null,"5H-12H","5H-12H","5H-12H","5H-12H","5H-12H",null,null,null,null,null,null,null,null,null,null,null,null,null,null,null,null,null,null,null,null,null,null,null,null,null,null,null,null,null,null,null,null,"Orofino Carmelo","remplaçant"]
["Mongrandi Frédéric","EST  Déchetterie",null,null,"Congés","Congés","Congés","Congés","Congés","Congés","Congés","NICE EST","NICE EST","Repos","NICE EST","NICE EST","NICE EST","Repos","NICE EST","NICE EST","NICE EST","NICE EST","NICE EST","NICE EST","Repos","NICE EST","NICE EST","NICE EST","NICE EST","NICE EST","Repos","Repos","NICE EST","NICE EST","NICE EST","NICE EST","NICE EST","Repos","Repos",null,null,null,null,null,null,null,null,null,null,null,null,null,null,null,null,null,null,null,null,null,null,null,null,null,null,null,null,null,null,"Outili Yassin","remplaçant"]
["Moraldo Adrien",null,null,null,"ENC AM 12H30-19H30","ENC AM 12H30-19H30","CARTON AP","CARTON AP","CARTON AP","NICE OUEST","Repos","Congés","Congés","Congés","Congés","Congés","Congés","Congés","CARTON AM","CARTON AM","CARTON AM","CARTON AM","CARTON AM","Repos","Repos","CARTON AM","CARTON AM","CARTON AM","CARTON AM","CARTON AM","Repos","Repos","ENC AM 12H30-19H30","ENC AM 12H30-19H30","ENC AM 12H30-19H30","ENC AM 12H30-19H30","ENC AM 12H30-19H30","Repos",null,null,null,null,null,null,null,null,null,null,null,null,null,null,null,null,null,null,null,null,null,null,null,null,null,null,null,null,null,null,null,"Rodriguez franck"]
["Napolitano Walter","remplaçant","OUEST",null,"ABSENT","ABSENT","ABSENT","ABSENT","ABSENT","ABSENT","ABSENT","ENC NUIT 20H30-02H30","ENC NUIT 20H30-02H30","ENC NUIT 20H30-02H30","ENC NUIT 20H30-02H30","ENC NUIT 20H30-02H30","Repos","Repos","ENC NUIT 20H30-02H30","ENC NUIT 20H30-02H30","ENC NUIT 20H30-02H30","ENC NUIT 20H30-02H30","ENC NUIT 20H30-02H30","Repos","Repos","ENC MATIN 5H-12H","ENC MATIN 5H-12H","ENC MATIN 5H-12H","ENC MATIN 5H-12H","Repos","NICE OUEST","Repos","ENC MATIN 5H-12H","ENC MATIN 5H-12H","ENC MATIN 5H-12H","Repos","ENC MATIN 5H-12H","NICE OUEST","Repos",null,null,null,null,null,null,null,null,null,null,null,null,null,null,null,null,null,null,null,null,null,null,null,null,null,null,null,null,null,null,"Perrone Lucas"]
["Orofino Carmelo","remplaçant",null,null,"NICE EST","NICE EST","NICE EST","NICE EST","NICE EST","Repos","Repos","B. CARTON","B. CARTON","B. CARTON","B. CARTON","B. CARTON","Repos","Repos","NICE EST","B. CARTON","NICE EST","Repos","NICE EST","NICE EST","Repos","NICE EST","B. CARTON","NICE EST","ENC AM 12H30-19H30","ENC AM 12H30-19H30","Repos","Repos","ENC AM 12H30-19H30","ENC AM 12H30-19H30","ENC AM 12H30-19H30","ENC AM 12H30-19H30","ENC AM 12H30-19H30","Repos"]
["Outili Yassin","remplaçant",null,null,"ENC NUIT 20H30-02H30","ENC NUIT 20H30-02H30","ENC NUIT 20H30-02H30","ENC NUIT 20H30-02H30","ENC NUIT 20H30-02H30","Repos","Repos","ENC MATIN 5H-12H","ENC MATIN 5H-12H","ENC MATIN 5H-12H","Repos","ENC MATIN 5H-12H","NICE OUEST","Repos","ENC MATIN 5H-12H","ENC MATIN 5H-12H","ENC MATIN 5H-12H","ENC MATIN 5H-12H","ENC MATIN 5H-12H","Repos","V.N.  Après Midi","ENC NUIT 20H30-02H30","ENC NUIT 20H30-02H30","ENC NUIT 20H30-02H30","ENC NUIT 20H30-02H30","ENC NUIT 20H30-02H30","Repos","Repos","ENC NUIT 20H30-02H30","ENC NUIT 20H30-02H30","ENC NUIT 20H30-02H30","ENC NUIT 20H30-02H30","ENC NUIT 20H30-02H30"]
["Perez Yann","fourgon carton AMP",null,"OUEST","CONGES EXP","CONGES EXP","CONGES EXP","CONGES EXP","CONGES EXP","Repos","Repos","CONGES EXP","CARTON AM","CARTON AM","CARTON AM","CARTON AM","Repos","Repos","Congés","Congés","Congés","Congés","Congés","Congés","Congés","Repos","CARTON AM","CARTON AM","CARTON AM","CARTON AM","CARTON AM","Repos","CARTON AM","CARTON AM","CARTON AM","CARTON AM","CARTON AM"]
["Perrone Lucas",null,null,null,"Congés","Congés","Congés","Congés","Congés","Congés","Congés","ENC NUIT 20H30-02H30","ENC NUIT 20H30-02H30","ENC NUIT 20H30-02H30","ENC NUIT 20H30-02H30","ENC NUIT 20H30-02H30","Repos","V.N.  Après Midi","ENC AM 12H30-19H30","ENC AM 12H30-19H30","ENC AM 12H30-19H30","ENC AM 12H30-19H30","ENC AM 12H30-19H30","Repos","V.N.  Après Midi","ENC AM 12H30-19H30","ENC AM 12H30-19H30","ENC AM 12H30-19H30","ENC AM 12H30-19H30","Repos","NICE NORD","Repos","ENC NUIT 20H30-02H30","ENC NUIT 20H30-02H30","ENC NUIT 20H30-02H30","ENC NUIT 20H30-02H30","ENC NUIT 20H30-02H30"]
["Peters Robert",null,null,null,"Congés","Congés","Congés","Congés","Congés","Repos","Repos","Contrôle 7H-12H / 14H30-17H","Contrôle 7H-12H / 14H30-17H","Contrôle 7H-12H / 14H30-17H","Contrôle 7H-12H / 14H30-17H","Contrôle 7H-12H / 14H30-17H","Repos","Repos","Contrôle 7H-12H / 14H30-17H","Contrôle 7H-12H / 14H30-17H","Contrôle 7H-12H / 14H30-17H","Contrôle 7H-12H / 14H30-17H","Contrôle 7H-12H / 14H30-17H","Repos","Contrôle Déch 6H-12H","Contrôle 7H-12H / 14H30-17H","Contrôle 7H-12H / 14H30-17H","Contrôle 7H-12H / 14H30-17H","Contrôle 7H-12H / 14H30-17H","Contrôle 7H-12H / 14H30-17H","Repos","Contrôle Déch 6H-12H","Contrôle 7H-12H / 14H30-17H","Contrôle 7H-12H / 14H30-17H","Contrôle 7H-12H / 14H30-17H","Contrôle 7H-12H / 14H30-17H","Contrôle 7H-12H / 14H30-17H","Repos","Repos"]
["Piombino Jean-Marc",null,null,"7H-12H","4-12H","4-12H","POLY 5H-12H","4-12H","5H-12H",null,null,"5H-12H","Repos","5H-12H","5H-12H","5H-12H","4H-14H COMPACTEUR",null,"4-12H","4-12H","4-12H","4-12H","4-12H","4H-7H COMPACTEUR",null,"5H-12H","5H-12H","5H-12H","5H-12H","5H-12H",null,null,"4-12H","4-12H","4-12H","4-12H","4-12H","4H-7H COMPACTEUR"]
["Rateau Laurent",null,null,null,"9H-16H","9H-16H","POLY 9H-16H","9H-16H","9H-16H",null,null,"9H-16H","9H-16H","9H-16H","9H-16H","9H-16H",null,null,"9H-16H","9H-16H","9H-16H","9H-16H","9H-16H",null,null,"9H-16H","9H-16H","9H-16H","9H-16H","9H-16H",null,null,"9H-16H","9H-16H","9H-16H","9H-16H","Repos"]
["Rini Romain","EST  Déchetterie",null,null,"Congés","Congés","Congés","Congés","Congés","Congés","Congés","Congés","Congés","Congés","Congés","Congés","Congés","Congés","NICE EST","NICE EST","NICE EST","NICE EST","NICE EST","Repos","Repos","NICE EST","NICE EST","Repos","NICE EST","NICE EST","NICE EST","Repos","NICE EST","NICE EST","NICE EST","NICE EST","NICE EST"]
["Rodriguez franck",null,null,null,"Congés","Congés","Congés","Congés","Congés","Congés","Congés","ENC AM 12H30-19H30","ENC AM 12H30-19H30","ENC AM 12H30-19H30","ENC AM 12H30-19H30","ENC AM 12H30-19H30","Repos","V.N.  A.M.","ENC AM 12H30-19H30","ENC AM 12H30-19H30","ENC AM 12H30-19H30","ENC AM 12H30-19H30","ENC AM 12H30-19H30","Repos","Repos","ENC AM 12H30-19H30","ENC AM 12H30-19H30","ENC AM 12H30-19H30","Repos","ENC AM 12H30-19H30","NICE OUEST","Repos","ENC AM 12H30-19H30","ENC AM 12H30-19H30","ENC AM 12H30-19H30","ENC AM 12H30-19H30","ENC AM 12H30-19H30"]
["Rosso Dominique",null,"7H-12H / 14H-18H",null,"12H-19H","12H-19H","POLY 12H-19H","12H-19H","12H-19H",null,null,"12H-19H","12H-19H","12H-19H","Congés","Congés",null,null,"12H-19H","12H-19H","12H-19H","12H-19H","12H-19H",null,null,"12H-19H","12H-19H","12H-19H","12H-19H","12H-19H",null,null,"12H-19H","12H-19H","12H-19H","12H-19H","Repos","7H-12H / 14H-18H"]
["Sartori Pierre",null,null,null,"Contrôle Privé 06H-14H","Contrôle Privé 06H-14H","Contrôle Privé 19H00-02H","Contrôle Privé 12H-19H","Contrôle Privé 06H-13H30","Repos","Repos","Contrôle Privé 06H-14H","Contrôle Privé 06H-14H","Contrôle Privé 19H00-02H","Contrôle Privé 12H-19H","Contrôle Privé 06H-13H30","Repos","Repos","Contrôle Privé 06H-14H","Contrôle Privé 06H-14H","Contrôle Privé 19H00-02H","Contrôle Privé 12H-19H","Contrôle Privé 06H-13H30","Repos","Repos","Contrôle Privé 06H-14H","Contrôle Privé 06H-14H","Contrôle Privé 19H00-02H","Contrôle Privé 12H-19H","Contrôle Privé 06H-13H30","Repos","Repos","Contrôle Privé 06H-14H","Contrôle Privé 06H-14H","Contrôle Privé 19H00-02H","Contrôle Privé 12H-19H","Contrôle Privé 06H-13H30","Repos","Repos"]
["Tordo Fabien","remplaçant","OUEST",null,"ABSENT","ABSENT","ABSENT","ABSENT","ABSENT","Repos","Repos","ENC NUIT 20H30-02H30","ENC NUIT 20H30-02H30","ENC NUIT 20H30-02H30","ENC NUIT 20H30-02H30","ENC NUIT 20H30-02H30","Repos","Repos","ENC NUIT 20H30-02H30","ENC NUIT 20H30-02H30","ENC NUIT 20H30-02H30","ENC NUIT 20H30-02H30","ENC NUIT 20H30-02H30","Repos","Repos","ENC NUIT 20H30-02H30","ENC NUIT 20H30-02H30","ENC NUIT 20H30-02H30","ENC NUIT 20H30-02H30","Repos","NICE EST","Repos","ENC MATIN 5H-12H","ENC MATIN 5H-12H","ENC MATIN 5H-12H","ENC MATIN 5H-12H","Repos","NICE OUEST"]
["Torre Jean Marie","Benne Carton","EST",null,"ABSENT","ABSENT","ABSENT","ABSENT","ABSENT","Repos","Repos","B. CARTON","B. CARTON","B. CARTON","B. CARTON","B. CARTON","Repos","Repos","B. CARTON","B. CARTON","B. CARTON","B. CARTON","B. CARTON","Repos","Repos","B. CARTON","Repos","B. CARTON","B. CARTON","B. CARTON","NICE EST","Repos","B. CARTON","B. CARTON","B. CARTON","B. CARTON","B. CARTON"]
["Tripodi Nadège",null,null,null,"Secrétariat 8H30-12H/12H45-16H15","Secrétariat 8H30-12H/12H45-16H15","Repos","Secrétariat 8H30-12H/12H45-16H15","Secrétariat 8H30-12H/12H45-16H15",null,null,"Secrétariat 8H30-12H/12H45-16H15","Congés","Congés","Congés","Congés","Congés","Congés","Congés","Secrétariat 8H30-12H/12H45-16H15","Repos","Secrétariat 8H30-12H/12H45-16H15","Secrétariat 8H30-12H/12H45-16H15","Repos","Repos","Secrétariat 8H30-12H/12H45-16H15","Secrétariat 8H30-12H/12H45-16H15","Repos","Secrétariat 8H30-12H/12H45-16H15","Secrétariat 8H30-12H/12H45-16H15","Repos","Repos","Secrétariat 8H30-12H/12H45-16H15","Secrétariat 8H30-12H/12H45-16H15","Repos","Colonne1","Colonne2","Repos","Repos"]
["Tripodi Patrick",null,null,null,"Contröle 12H00-19H30","Contröle 12H00-19H30","Contröle 12H00-19H30","Contröle 12H00-19H30","Contröle 12H00-19H30","Repos","Contrôle Enc 13H-19H","Contröle 12H00-19H30","Contröle 12H00-19H30","Contröle 12H00-19H30","Contröle 12H00-19H30","Contröle 12H00-19H30","Repos","Repos","Contröle 12H00-19H30","Contröle 12H00-19H30","Contröle 12H00-19H30","Contröle 12H00-19H30","Contröle 12H00-19H30","Repos","Repos","Contröle 12H00-19H30","Contröle 12H00-19H30","Contröle 12H00-19H30","Contröle 12H00-19H30","Contröle 12H00-19H30","Repos","Repos","Contröle 12H00-19H30","Contröle 12H00-19H30","Contröle 12H00-19H30","Contröle 12H00-19H30","Contröle 12H00-19H30","Repos","Repos"]
["Vanini Kévin","fourgon carton AMP","CARTON AP",null,"CARTON AM","CARTON AM","CARTON AM","CARTON AM","CARTON AM","Repos","Repos","Repos","CARTON AM","CARTON AM","CARTON AM","CARTON AM","CARTON AM","Repos","CARTON AM","CARTON AM","CARTON AM","CARTON AM","CARTON AM","Repos","Repos","Congés","Congés","Congés","Congés","Congés","Congés","Congés","CARTON AM","CARTON AM","CARTON AM","CARTON AM","CARTON AM"]
["Vella Ferdinand",null,null,null,"Contrôle 19H-02H30","Contrôle 19H-02H30","Contrôle 19H-02H30","Contrôle 19H-02H30","Contrôle 19H-02H30","Repos","Repos","Congés","Congés","Congés","Congés","Congés","Congés","Congés","Contrôle 13H-20H","Contrôle 19H-02H30","Contrôle 19H-02H30","Contrôle 19H-02H30","Repos","Contrôle 19H-02H30","Repos","Contrôle 13H-20H","Contrôle 19H-02H30","Contrôle 19H-02H30","Contrôle 19H-02H30","Contrôle 19H-02H30","Repos","Contrôle OM 20H-02H","Contrôle 13H-20H","Contrôle 19H-02H30","Contrôle 19H-02H30","VN 13H-20H","VN 13H-20H","Repos","Repos"]
["Viale Jonathan","remplaçant",null,null,"ENC NUIT 20H30-02H30","ENC NUIT 20H30-02H30","ENC NUIT 20H30-02H30","ENC NUIT 20H30-02H30","ENC NUIT 20H30-02H30","Repos","Repos","ENC MATIN 5H-12H","ENC MATIN 5H-12H","ENC MATIN 5H-12H","ENC MATIN 5H-12H","Repos","NICE EST","Repos","ENC MATIN 5H-12H","ENC MATIN 5H-12H","ENC MATIN 5H-12H","ENC MATIN 5H-12H","ENC MATIN 5H-12H","Repos","Repos","ENC NUIT 20H30-02H30","ENC NUIT 20H30-02H30","ENC NUIT 20H30-02H30","ENC NUIT 20H30-02H30","ENC NUIT 20H30-02H30","Repos","NICE NORD","ENC NUIT 20H30-02H30","ENC NUIT 20H30-02H30","ENC NUIT 20H30-02H30","ENC NUIT 20H30-02H30","ENC NUIT 20H30-02H30"]

{"sheet":"Parametres","index":6,"n_rows":59,"n_cols":13,"rows_kept":59,"cut":false,"hidden":false,"merged":[]}
[null,"Liste des saisies\nde la feuille Base de Travail","Liste des saisies\nSouhaitée",null,null,"Noms","Nom et prénoms",null,null,"Période en cours",null,"Mois","Années"]
[null,"12H-18H","12H-18H",null,null,"ABILE GAL","ABILE GAL ROGER",null,null,{"$f":"\"du \"&TEXT(I4,\"jj mmmm aaaa\")&\" au \" & TEXT(J4,\"jj mmmm aaa\")","v":"du 21 décembre 2016 au 20 janvier 2017"},null,"janvier",2016]
[null,"12H-19H","12H-19H",null,null,"ADDARIO","ADDARIO GREGORY",null,null,null,null,"février",2017]
[null,"4-12H","4-12H",null,null,"ALLIOUANE","ALLIOUANE SAID",null,{"$f":"DATE(YEAR('[1]Planning Mensuel'!A3),MONTH('[1]Planning Mensuel'!A3),21)","v":"2016-12-21"},{"$f":"DATE(YEAR('[1]Planning Mensuel'!A3),MONTH('[1]Planning Mensuel'!A3)+1,20)","v":"2017-01-20"},null,"mars",2018]
[null,"4H-14H COMPACTEUR","4H-14H COMPACTEUR",null,null,"ARNAUDF","ARNAUD FABRICE",null,null,null,null,"avril",2019]
[null,"4H-7H COMPACTEUR","4H-7H COMPACTEUR",null,null,"AUDIBERT","AUDIBERT MICHEL",null,null,null,null,"mai",2020]
[null,"5H-12H","5H-12H",null,null,"BEN BOUZID","BEN BOUZID BOURHANE",null,null,null,null,"juin",2021]
[null,"7H-12H","7H-12H",null,null,"CANTELLI","CANTELLI THOMAS",null,null,null,null,"juillet",2022]
[null,"7H-12H / 14H-18H","7H-12H / 14H-18H",null,null,"CARDINALE","CARDINALE JEAN CLAUDE",null,null,null,null,"août",2023]
[null,"7H-14H","7H-14H",null,null,"COURTOIS","COURTOIS ALEXIS",null,null,null,null,"septembre",2024]
[null,"9H-16H","9H-16H",null,null,"DHOUIMER","DHOUIMER YASSINE",null,null,null,null,"octobre",2025]
[null,"B. CARTON","B. CARTON",null,null,"ELLENA","ELLENA THOMAS",null,null,null,null,"novembre",2026]
[null,"Benne Carton","Benne Carton",null,null,"FRENDO","FRENDO MATHIEU",null,null,null,null,"décembre",2027]
[null,"CARTON AM","CARTON AM",null,null,"GANDOLIN","GANDOLIN ADRIEN"]
[null,"CARTON MATIN","CARTON MATIN",null,null,"GLASKOFF","GLASKOFF HERVE"]
[null,"compact.+ Est\n7H-12H","compact.+ Est\n7H-12H",null,null,"GUIZANI","GUIZANI SAMI"]
[null,"Compact.+Est\n7H-12H","Compact.+Est\n7H-12H",null,null,"MALLO","MALLO ALFRED"]
[null,"Congés","Congés",null,null,"MANDREA","MANDREA THIERRY"]
[null,"congés","congés",null,null,"MARCELLI","MARCELLI ALAIN"]
[null,"Contröle 12H00-19H30","Contröle 12H00-19H30",null,null,"MARINO","MARINO ALAIN"]
[null,"Contrôle 12H-19H","Contrôle 12H-19H",null,null,"MARTINELLI","MARTINELLI JULIEN"]
[null,"Contrôle 13H-20H","Contrôle 13H-20H",null,null,"MARZARRO","MARZARO CHRISTOPHER"]
[null,"Contrôle 19H-02H30","Contrôle 19H-02H30",null,null,"MATTEI","MATTEI PATRICK"]
[null,"Contrôle 7H-12H / 14H30-17H","Contrôle 7H-12H / 14H30-17H",null,null,"MONGRANDI","MONGRANDI FREDERIC"]
[null,"Contrôle Déch 6H-12H","Contrôle Déch 6H-12H",null,null,"MORALDO","MORALDO ADRIEN"]
[null,"Contrôle Enc 13H-19H","Contrôle Enc 13H-19H",null,null,"NAPOLITANO","NAPOLITANO VALTER"]
[null,"Contrôle Enc 5H-11H","Contrôle Enc 5H-11H",null,null,"OROFINO","OROFINO CARMELO"]
[null,"Contrôle OM 03H-09H","Contrôle OM 03H-09H",null,null,"OUTILI","OUTILI YASSIN"]
[null,"Contrôle OM 20H-02H","Contrôle OM 20H-02H",null,null,"PEREZ","PEREZ YANN"]
[null,"Contrôle Privé 06H-13H30","Contrôle Privé 06H-13H30",null,null,"PERRONE","PERRONE  LUCAS"]
[null,"Contrôle Privé 06H-14H","Contrôle Privé 06H-14H",null,null,"RINI","RINI ROMAIN"]
[null,"Contrôle Privé 12H-19H","Contrôle Privé 12H-19H",null,null,"RODRIGUEZ","RODRIGUEZ FRANCK"]
[null,"Contröle Privé 19H00- 02H30","Contröle Privé 19H00- 02H30",null,null,"TORDO","TORDO FABIEN"]
[null,"Contrôle Privé 19H00-02H","Contrôle Privé 19H00-02H",null,null,"TORRE","TORRE JEAN MARIE"]
[null,"ENC AM 12H30-19H30","ENC AM 12H30-19H30",null,null,"VANINI","VANINI KEVIN"]
[null,"ENC MATIN 5H-12H","ENC MATIN 5H-12H",null,null,"VIALE","VIALE JONATHAN"]
[null,"ENC NUIT 20H30-02H30","ENC NUIT 20H30-02H30",null,null,"ISOARD","ISOARD NICOLAS"]
[null,"EST  Déchetterie","EST  Déchetterie"]
[null,"fourgon carton AMP","fourgon carton AMP",null,null,"BOUR","BOUR YVON"]
[null,"fourgon carton matin","fourgon carton matin",null,null,"DALMASSO","DALMASSO YVES"]
[null,"NICE EST","NICE EST",null,null,"FERALIS","FERALIS CECILE"]
[null,"NICE NORD","NICE NORD",null,null,"LANDRIEUX","LANDRIEUX NATHALIE"]
[null,"NICE NORD & VIEUX NICE","NICE NORD & VIEUX NICE",null,null,"MOLINER","MOLINER DAVID"]
[null,"NICE OUEST","NICE OUEST",null,null,"PIOMBINO","PIOMBINO JEAN MARC"]
[null,"NICE OUEST & VIEUX NICE","NICE OUEST & VIEUX NICE",null,null,"RATEAU","RATEAU LAURENT"]
[null,"NORD  Déchetterie","NORD  Déchetterie",null,null,"ROSSO","ROSSO DOMINIQUE"]
[null,"OUEST  Déchetterie","OUEST  Déchetterie"]
[null,"remplaçant","remplaçant",null,null,"ABILE GAL","ABILE GAL ROGER"]
[null,"Repos","Repos",null,null,"FERRO","FERRO CLEMENT"]
[null,"Secrétariat 13H-18H","Secrétariat 13H-18H"]
[null,"Secrétariat 8H30-12H /12H30-17H","Secrétariat 8H30-12H /12H30-17H",null,null,"ARNAUD","ARNAUD GERARD"]
[null,"Secrétariat 8H30-12H /13H-17H","Secrétariat 8H30-12H /13H-17H",null,null,"FIORUCCI","FIORUCCI ALAIN"]
[null,"Secrétariat 9H-12H /13H-17H /20H-21H30","Secrétariat 9H-12H /13H-17H /20H-21H30",null,null,"PETERS","PETERS ROBERT"]
[null,"Standard 11H-15H / 15H30-19H","Standard 11H-15H / 15H30-19H",null,null,"TRIPODIP","TRIPODI PATRICK"]
[null,"Standard 8H-12H/13H-16H30","Standard 8H-12H/13H-16H30",null,null,"SARTORI","SARTORI PIERRE"]
[null,"V.N.  A.M.","V.N.  A.M.",null,null,"VELLA","VELLA FERDINAND"]
[null,"V.N.  Après Midi","V.N.  Après Midi"]
[null,"V.N.  Matin","V.N.  Matin",null,null,"CARLIN","CARLIN HELENE"]
[null,"VN 13H-20H","VN 13H-20H",null,null,"TRIPODIN","TRIPODI NADEGE"]

{"sheet":"Planning Mensuel","index":7,"n_rows":39,"n_cols":61,"rows_kept":39,"cut":false,"hidden":false,"merged":[]}
[{"$f":"TRANSPOSE('Base de Travail Mensuelle'!A1:AM57)","v":"NOMS"},"Glaskoff Hervé","Torre Jean Marie","Frendo Mathieu","Marcelli Alain","Mongrandi Frédéric","Rini Romain","Arnaud Fabrice","Marzarro Christopher","Perez Yann","Vanini Kévin","Guizani Samy","Martinelli Julien","Mallo Alfred","Audibert Michel","Ben Bouzid Bourhane","Cardinale Jean Claude","Mandrea Thierry","Addario Grégory","Alliouane Saïd","Cantelli Thomas","Courtois Alexis","Dhouimer Yassine","Ellena Thomas","Gandolin Adrien","Marino Alain","Mattei Patrick","Napolitano Walter","Orofino Carmelo","Outili Yassin","Tordo Fabien","Viale Jonathan","Isoard Nicolas","Moraldo Adrien","Perrone Lucas","Rodriguez franck",0,"Bour Yvon","Dalmasso Yves","Féralis Cécile","Landrieux Nathalie","Moliner David","Piombino Jean-Marc","Rateau Laurent","Rosso Dominique",0,"Arnaud Gérard","Fiorucci Alain","Peters Robert","Tripodi Patrick","Sartori Pierre","Vella Ferdinand",0,"Abile Gal Roger","Carlin Hélène","Ferro Clément","Tripodi Nadège",{"$error":"#N/A"},{"$error":"#N/A"},{"$error":"#N/A"},{"$error":"#N/A"}]
["PRESTATION","Benne Carton","Benne Carton","EST  Déchetterie","EST  Déchetterie","EST  Déchetterie","EST  Déchetterie","fourgon carton AMP","fourgon carton AMP","fourgon carton AMP","fourgon carton AMP","fourgon carton matin","fourgon carton matin","NORD  Déchetterie","OUEST  Déchetterie","OUEST  Déchetterie","OUEST  Déchetterie","OUEST  Déchetterie","remplaçant","remplaçant","remplaçant","remplaçant","remplaçant","remplaçant","remplaçant","remplaçant","remplaçant","remplaçant","remplaçant","remplaçant","remplaçant","remplaçant","remplaçant",0,0,0,0,0,0,0,0,0,0,0,0,0,0,0,0,0,0,0,0,0,0,0,0,{"$error":"#N/A"},{"$error":"#N/A"},{"$error":"#N/A"},{"$error":"#N/A"}]
["2016-12-17","EST","EST","EST",0,0,0,0,0,0,"CARTON AP",0,"OUEST",0,0,0,0,"OUEST","NUIT",0,0,"EST",0,0,0,"NORD",0,"OUEST",0,0,"OUEST",0,0,0,0,0,0,"POLY 7H-12H / 14H-18H",0,0,"7H-12H / 14H-18H","CP 4H-7H",0,0,"7H-12H / 14H-18H",0,0,0,0,0,0,0,0,"Repos",0,"Repos",0,{"$error":"#N/A"},{"$error":"#N/A"},{"$error":"#N/A"},{"$error":"#N/A"}]
["2016-12-18",0,0,0,"EST",0,0,0,0,"OUEST",0,0,0,"NORD",0,"OUEST",0,0,0,0,0,0,"V.N.  Matin",0,0,0,0,0,0,0,0,0,0,0,0,0,0,"POLY 7H-12H",0,0,0,0,"7H-12H",0,0,0,0,0,0,0,0,0,0,"Repos",0,"Repos",0,{"$error":"#N/A"},{"$error":"#N/A"},{"$error":"#N/A"},{"$error":"#N/A"}]
["2016-12-19","B. CARTON","B. CARTON","NICE EST","NICE EST","Congés","Congés","CARTON AM","Repos","CARTON AM","CARTON AM","CARTON MATIN","CARTON MATIN","Repos","NICE OUEST","NICE OUEST","Congés","NICE OUEST","ENC NUIT 20H30-02H30","ENC NUIT 20H30-02H30",0,"ENC MATIN 5H-12H","NICE EST","ENC NUIT 20H30-02H30","ENC MATIN 5H-12H","ENC MATIN 5H-12H","NICE NORD","ENC MATIN 5H-12H","NICE EST","ENC NUIT 20H30-02H30","NICE OUEST","ENC NUIT 20H30-02H30",0,"ENC AM 12H30-19H30","Congés","Congés",0,"Repos","POLY 7H-14H","POLY 12H-19H","B. CARTON","POLY 5H-12H","CP + POLY 4H-12H","POLY 9H-16H","POLY 12H-19H",0,"Contrôle 12H-19H","Contröle Privé 19H00- 02H30","Congés","Contröle 12H00-19H30","Contrôle Privé 06H-14H","Contrôle 19H-02H30",0,"Standard 11H-15H / 15H30-19H","Secrétariat 9H-12H /13H-17H /20H-21H30","Standard 8H-12H/13H-16H30","Secrétariat 8H30-12H/12H45-16H15",{"$error":"#N/A"},{"$error":"#N/A"},{"$error":"#N/A"},{"$error":"#N/A"}]
["2016-12-20","B. CARTON","B. CARTON","NICE EST","NICE EST","Congés","Congés","CARTON AM","CARTON AP","CARTON AM","CARTON AM","CARTON MATIN","CARTON MATIN","NICE NORD","NICE OUEST","NICE OUEST","Congés","NICE OUEST","ENC NUIT 20H30-02H30","ENC NUIT 20H30-02H30",0,"ENC MATIN 5H-12H","NICE EST","ENC NUIT 20H30-02H30","ENC MATIN 5H-12H","ENC MATIN 5H-12H","Repos","ENC MATIN 5H-12H","NICE EST","ENC NUIT 20H30-02H30","NICE OUEST","ENC NUIT 20H30-02H30",0,"ENC AM 12H30-19H30","Congés","Congés",0,"POLY 12H-19H","POLY 7H-14H","POLY 12H-19H","B. CARTON","POLY 5H-12H","CP + POLY 4H-12H","POLY 9H-16H","POLY 12H-19H",0,"Contrôle 12H-19H","Contrôle 13H-20H","Congés","Contröle 12H00-19H30","Contrôle Privé 06H-14H","Contrôle 19H-02H30",0,"Standard 11H-15H / 15H30-19H","Secrétariat 13H-18H","Standard 8H-12H/13H-16H30","Secrétariat 8H30-12H/12H45-16H15",{"$error":"#N/A"},{"$error":"#N/A"},{"$error":"#N/A"},{"$error":"#N/A"}]
["2016-12-21","B. CARTON","B. CARTON","NICE EST","NICE EST","Congés","Congés","CARTON AM","CARTON AP","CARTON AM","CARTON AM","CARTON MATIN","CARTON MATIN","Repos","NICE OUEST","Repos","Congés","NICE OUEST","ENC NUIT 20H30-02H30","ENC NUIT 20H30-02H30",0,"ENC MATIN 5H-12H","NICE EST","ENC NUIT 20H30-02H30","ENC MATIN 5H-12H","NICE NORD","NICE NORD","ENC MATIN 5H-12H","NICE EST","ENC NUIT 20H30-02H30","NICE OUEST","ENC NUIT 20H30-02H30",0,"ENC AM 12H30-19H30","Congés","Congés",0,"POLY 12H-19H","B. CARTON","POLY 12H-19H","Repos","CP + POLY 4H-12H","5H-12H","POLY 9H-16H","POLY 12H-19H",0,"Contrôle 12H-19H","Contrôle 19H-02H30","Congés","Contröle 12H00-19H30","Contrôle Privé 19H00-02H","Contrôle 19H-02H30",0,"Standard 11H-15H / 15H30-19H","Congés","Standard 8H-12H/13H-16H30","Repos",{"$error":"#N/A"},{"$error":"#N/A"},{"$error":"#N/A"},{"$error":"#N/A"}]
["2016-12-22","B. CARTON","B. CARTON","NICE EST","NICE EST","Congés","Congés","CARTON AM","CARTON AP","CARTON AM","CARTON AM","CARTON MATIN","CARTON MATIN","NICE NORD","NICE OUEST","NICE OUEST","Congés","NICE OUEST","ENC NUIT 20H30-02H30","ENC NUIT 20H30-02H30",0,"ENC MATIN 5H-12H","NICE EST","ENC NUIT 20H30-02H30","Repos","ENC MATIN 5H-12H","ENC MATIN 5H-12H","ENC MATIN 5H-12H","NICE EST","ENC NUIT 20H30-02H30","NICE OUEST","ENC NUIT 20H30-02H30",0,"Repos","Congés","Congés",0,"POLY 12H-18H","POLY 5H-12H","POLY 12H-19H","B. CARTON","Repos","CP + POLY 4H-12H","POLY 9H-16H","POLY 12H-19H",0,"Congés","Contrôle 19H-02H30","Congés","Contröle 12H00-19H30","Contrôle Privé 12H-19H","Contrôle 19H-02H30",0,"Congés","Congés","Standard 8H-12H/13H-16H30","Secrétariat 8H30-12H/12H45-16H15",{"$error":"#N/A"},{"$error":"#N/A"},{"$error":"#N/A"},{"$error":"#N/A"}]
["2016-12-23","B. CARTON","B. CARTON","NICE EST","NICE EST","Congés","Congés","CARTON AM","CARTON AP","CARTON AM","CARTON AM","Repos","CARTON MATIN","NICE NORD","NICE OUEST","NICE OUEST","Congés","NICE OUEST","ENC NUIT 20H30-02H30","ENC NUIT 20H30-02H30",0,"Repos","NICE EST","ENC NUIT 20H30-02H30","ENC MATIN 5H-12H","CARTON MATIN","CARTON MATIN","ENC MATIN 5H-12H","NICE EST","ENC NUIT 20H30-02H30","NICE OUEST","ENC NUIT 20H30-02H30",0,"ENC AM 12H30-19H30","Congés","Congés",0,"POLY 12H-18H","Congés","POLY 12H-19H","B. CARTON","POLY + CP 4H-12H","CP + POLY 4H-12H","POLY 9H-16H","POLY 12H-19H",0,"Congés","Contrôle 19H-02H30","Congés","Contröle 12H00-19H30","Contrôle Privé 06H-13H30","Contrôle 19H-02H30",0,"Congés","Congés","Standard 8H-12H/13H-16H30","Secrétariat 8H30-12H/12H45-16H15",{"$error":"#N/A"},{"$error":"#N/A"},{"$error":"#N/A"},{"$error":"#N/A"}]
["2016-12-24",0,0,0,0,0,0,0,"CARTON AP",0,0,"EST",0,"NICE NORD","NICE OUEST","NICE OUEST",0,0,0,0,0,"NICE EST",0,0,"NICE EST",0,0,0,0,0,0,0,0,"NICE OUEST",0,0,0,"POLY 7H-14H",0,0,"POLY 7H-14H","4H-14H COMPACTEUR",0,0,0,0,0,0,0,0,0,0,0,0,0,0,0,{"$error":"#N/A"},{"$error":"#N/A"},{"$error":"#N/A"},{"$error":"#N/A"}]
["2016-12-25",0,0,0,0,0,0,"V.N.  Après Midi",0,0,0,0,0,0,0,0,0,0,0,"V.N.  Après Midi",0,0,"V.N.  Matin",0,0,0,0,0,0,0,0,0,0,0,0,0,0,0,0,0,0,0,0,0,0,0,0,"Contrôle OM 20H-02H",0,"Contrôle Enc 13H-19H",0,0,0,0,0,0,0,{"$error":"#N/A"},{"$error":"#N/A"},{"$error":"#N/A"},{"$error":"#N/A"}]
["2016-12-26","Congés","B. CARTON","NICE EST","NICE EST","NICE EST","Congés","CARTON AM","CARTON AP","CARTON AM","Repos","CARTON MATIN","Congés","NICE NORD","NICE OUEST","NICE OUEST","NICE OUEST","Congés","ENC MATIN 5H-12H","ENC MATIN 5H-12H",0,"ENC NUIT 20H30-02H30","NICE EST","NICE OUEST","ENC NUIT 20H30-02H30","ENC MATIN 5H-12H","ENC MATIN 5H-12H","ENC NUIT 20H30-02H30","B. CARTON","ENC MATIN 5H-12H","ENC NUIT 20H30-02H30","ENC MATIN 5H-12H",0,"Congés","ENC NUIT 20H30-02H30","ENC AM 12H30-19H30",0,"Repos","POLY 9H-16H","Congés","B. CARTON","CP + POLY 4H-12H","POLY 5H-12H","POLY 9H-16H","POLY 12H-19H",0,"Congés","Contrôle 19H-02H30","Contrôle 7H-12H / 14H30-17H","Contröle 12H00-19H30","Contrôle Privé 06H-14H","Congés",0,"Congés","Congés","Standard 8H-12H/13H-16H30","Secrétariat 8H30-12H/12H45-16H15",{"$error":"#N/A"},{"$error":"#N/A"},{"$error":"#N/A"},{"$error":"#N/A"}]
["2016-12-27","Congés","B. CARTON","NICE EST","NICE EST","NICE EST","Congés","CARTON AM","CARTON AP","CARTON AM","CARTON AM","CARTON MATIN","Congés","NICE NORD","NICE OUEST","NICE OUEST","NICE OUEST","Congés","ENC MATIN 5H-12H","ENC MATIN 5H-12H",0,"ENC NUIT 20H30-02H30","NICE EST","NICE OUEST","ENC NUIT 20H30-02H30","Repos","Repos","ENC NUIT 20H30-02H30","B. CARTON","ENC MATIN 5H-12H","ENC NUIT 20H30-02H30","ENC MATIN 5H-12H",0,"Congés","ENC NUIT 20H30-02H30","ENC AM 12H30-19H30",0,"POLY 12H-19H","POLY 5H-12H","congés","B. CARTON","CP + POLY 4H-12H","Repos","POLY 9H-16H","POLY 12H-19H",0,"Congés","Contrôle 19H-02H30","Contrôle 7H-12H / 14H30-17H","Contröle 12H00-19H30","Contrôle Privé 06H-14H","Congés",0,"Congés","Congés","Standard 8H-12H/13H-16H30","Congés",{"$error":"#N/A"},{"$error":"#N/A"},{"$error":"#N/A"},{"$error":"#N/A"}]
["2016-12-28","Congés","B. CARTON","NICE EST","NICE EST","Repos","Congés","CARTON AM","CARTON AP","CARTON AM","CARTON AM","CARTON MATIN","Congés","NICE NORD","NICE OUEST","NICE OUEST","Repos","Congés","ENC MATIN 5H-12H","Repos",0,"ENC NUIT 20H30-02H30","NICE EST","NICE OUEST","ENC NUIT 20H30-02H30","ENC MATIN 5H-12H","ENC MATIN 5H-12H","ENC NUIT 20H30-02H30","B. CARTON","ENC MATIN 5H-12H","ENC NUIT 20H30-02H30","ENC MATIN 5H-12H",0,"Congés","ENC NUIT 20H30-02H30","ENC AM 12H30-19H30",0,"POLY 12H-19H","B. CARTON","Congés","Repos","CP + POLY 4H-12H","POLY 5H-12H","POLY 9H-16H","POLY 12H-19H",0,"Congés","Contrôle 19H-02H30","Contrôle 7H-12H / 14H30-17H","Contröle 12H00-19H30","Contrôle Privé 19H00-02H","Congés",0,"Congés","Secrétariat 8H30-12H /13H-17H","Standard 8H-12H/13H-16H30","Congés",{"$error":"#N/A"},{"$error":"#N/A"},{"$error":"#N/A"},{"$error":"#N/A"}]
["2016-12-29","Congés","B. CARTON","NICE EST","NICE EST","NICE EST","Congés","CARTON AM","CARTON AP","CARTON AM","CARTON AM","CARTON MATIN","Congés","NICE NORD","NICE OUEST","NICE OUEST","NICE OUEST","Congés","Repos","ENC MATIN 5H-12H",0,"ENC NUIT 20H30-02H30","NICE EST","NICE OUEST","ENC NUIT 20H30-02H30","ENC MATIN 5H-12H","ENC MATIN 5H-12H","ENC NUIT 20H30-02H30","B. CARTON","Repos","ENC NUIT 20H30-02H30","ENC MATIN 5H-12H",0,"Congés","ENC NUIT 20H30-02H30","ENC AM 12H30-19H30",0,"POLY 12H-18H","9H-16H","Congés","B. CARTON","CP + POLY 4H-12H","POLY 5H-12H","POLY 9H-16H","Congés",0,"Contrôle 12H-19H","Repos","Contrôle 7H-12H / 14H30-17H","Contröle 12H00-19H30","Contrôle Privé 12H-19H","Congés",0,"Congés","Secrétariat 9H-12H /13H-17H /20H-21H30","Standard 8H-12H/13H-16H30","Congés",{"$error":"#N/A"},{"$error":"#N/A"},{"$error":"#N/A"},{"$error":"#N/A"}]
["2016-12-30","Congés","B. CARTON","NICE EST","NICE EST","NICE EST","Congés","CARTON AM","CARTON AP","CARTON AM","CARTON AM","CARTON MATIN","Congés","NICE NORD","NICE OUEST","NICE OUEST","NICE OUEST","Congés","ENC MATIN 5H-12H","ENC MATIN 5H-12H",0,"ENC NUIT 20H30-02H30","NICE EST","NICE OUEST","ENC NUIT 20H30-02H30","ENC MATIN 5H-12H","ENC MATIN 5H-12H","ENC NUIT 20H30-02H30","B. CARTON","ENC MATIN 5H-12H","ENC NUIT 20H30-02H30","Repos",0,"Congés","ENC NUIT 20H30-02H30","ENC AM 12H30-19H30",0,"POLY 12H-18H","9H-16H","Congés","B. CARTON","CP + POLY 4H-12H","POLY 5H-12H","POLY 9H-16H","Congés",0,"Contrôle 12H-19H","Contrôle 19H-02H30","Contrôle 7H-12H / 14H30-17H","Contröle 12H00-19H30","Contrôle Privé 06H-13H30","Congés",0,"Congés","Secrétariat 8H30-12H /12H30-17H","Standard 8H-12H/13H-16H30","Congés",{"$error":"#N/A"},{"$error":"#N/A"},{"$error":"#N/A"},{"$error":"#N/A"}]
["2016-12-31","Congés","Repos","Repos","Repos","NICE EST","Congés","Repos","Repos","Repos","CARTON AM","Repos","Congés","Repos","Repos","Repos","NICE OUEST","Congés","NICE OUEST","OUEST",0,"Repos","Repos","NICE EST","Repos","NICE NORD","NICE NORD","Repos","Repos","NICE OUEST","Repos","NICE EST",0,"Congés","Repos","Repos",0,"POLY 7H-14H",0,0,"POLY 7H-14H",0,"POLY 4H-14H COMPACTEUR",0,0,0,"Repos","Contrôle Enc 5H-11H","Repos","Repos","Repos","Congés",0,0,"Repos","Repos","Congés",{"$error":"#N/A"},{"$error":"#N/A"},{"$error":"#N/A"},{"$error":"#N/A"}]
["2017-01-01","Congés","Repos","Repos","Repos","Repos","Congés","Repos","Repos","Repos","Repos","V.N.  Après Midi","Congés","Repos","Repos","Repos","Repos","Congés","Repos","Repos",0,"Repos","V.N.  Matin","Repos","Repos","Repos","Repos","Repos","Repos","Repos","Repos","Repos",0,"Congés","V.N.  Après Midi","V.N.  A.M.",0,0,0,0,0,0,0,0,0,0,"Repos","Contrôle Enc 5H-11H","Repos","Repos","Repos","Congés",0,0,"Repos","Repos","Congés",{"$error":"#N/A"},{"$error":"#N/A"},{"$error":"#N/A"},{"$error":"#N/A"}]
["2017-01-02","B. CARTON","B. CARTON","NICE EST","Congés","NICE EST","NICE EST","Repos","CARTON AP","Congés","CARTON AM","CARTON MATIN","CARTON MATIN","NICE NORD","Congés","NICE OUEST","NICE OUEST","NICE OUEST","ENC MATIN 5H-12H","ENC NUIT 20H30-02H30","Repos","ENC NUIT 20H30-02H30","NICE EST","NICE OUEST","ENC NUIT 20H30-02H30","ENC MATIN 5H-12H","ENC MATIN 5H-12H","ENC NUIT 20H30-02H30","NICE EST","ENC MATIN 5H-12H","ENC NUIT 20H30-02H30","ENC MATIN 5H-12H",0,"CARTON AM","ENC NUIT 20H30-02H30","ENC AM 12H30-19H30",0,"Repos","POLY 5H-12H","12H-19H","B. CARTON","Congés","CP + POLY 4H-12H","POLY 9H-16H","POLY 12H-19H",0,"Contrôle 12H-19H","Contrôle 19H-02H30","Contrôle 7H-12H / 14H30-17H","Contröle 12H00-19H30","Contrôle Privé 06H-14H","Contrôle 13H-20H",0,"Standard 11H-15H / 15H30-19H","Secrétariat 9H-12H /13H-17H /20H-21H30","Standard 8H-12H/13H-16H30","Congés",{"$error":"#N/A"},{"$error":"#N/A"},{"$error":"#N/A"},{"$error":"#N/A"}]
["2017-01-03","Repos","B. CARTON","NICE EST","Congés","NICE EST","NICE EST","CARTON AM","CARTON AP","Congés","CARTON AM","CARTON MATIN","CARTON MATIN","NICE NORD","Congés","NICE OUEST","NICE OUEST","NICE OUEST","ENC MATIN 5H-12H","ENC NUIT 20H30-02H30","ENC MATIN 5H-12H","ENC NUIT 20H30-02H30","NICE EST","NICE OUEST","ENC NUIT 20H30-02H30","ENC MATIN 5H-12H","ENC MATIN 5H-12H","ENC NUIT 20H30-02H30","B. CARTON","ENC MATIN 5H-12H","ENC NUIT 20H30-02H30","ENC MATIN 5H-12H",0,"CARTON AM","ENC NUIT 20H30-02H30","ENC AM 12H30-19H30",0,"Congés","POLY 5H-12H","12H-19H","B. CARTON","Congés","CP + POLY 4H-12H","POLY 9H-16H","POLY 12H-19H",0,"Contrôle 12H-19H","Contrôle 19H-02H30","Contrôle 7H-12H / 14H30-17H","Contröle 12H00-19H30","Contrôle Privé 06H-14H","Contrôle 19H-02H30",0,"Standard 11H-15H / 15H30-19H","Secrétariat 13H-18H","Standard 8H-12H/13H-16H30","Secrétariat 8H30-12H/12H45-16H15",{"$error":"#N/A"},{"$error":"#N/A"},{"$error":"#N/A"},{"$error":"#N/A"}]
["2017-01-04","B. CARTON","B. CARTON","Repos","Congés","NICE EST","NICE EST","CARTON AM","CARTON AP","Congés","CARTON AM","CARTON MATIN","CARTON MATIN","NICE NORD","Congés","NICE OUEST","NICE OUEST","Repos","ENC MATIN 5H-12H","ENC NUIT 20H30-02H30","ENC MATIN 5H-12H","ENC NUIT 20H30-02H30","NICE EST","NICE OUEST","ENC NUIT 20H30-02H30","ENC MATIN 5H-12H","ENC MATIN 5H-12H","ENC NUIT 20H30-02H30","NICE EST","ENC MATIN 5H-12H","ENC NUIT 20H30-02H30","ENC MATIN 5H-12H",0,"CARTON AM","ENC NUIT 20H30-02H30","ENC AM 12H30-19H30",0,"12H-19H","POLY 5H-12H","B. CARTON","Repos","Congés","CP + POLY 4H-12H","POLY 9H-16H","POLY 12H-19H",0,"Contrôle 12H-19H","Congés","Contrôle 7H-12H / 14H30-17H","Contröle 12H00-19H30","Contrôle Privé 19H00-02H","Contrôle 19H-02H30",0,"Standard 11H-15H / 15H30-19H","Secrétariat 8H30-12H /13H-17H","Standard 8H-12H/13H-16H30","Repos",{"$error":"#N/A"},{"$error":"#N/A"},{"$error":"#N/A"},{"$error":"#N/A"}]
["2017-01-05","B. CARTON","B. CARTON","NICE EST","Congés","NICE EST","NICE EST","CARTON AM","CARTON AP","Congés","CARTON AM","CARTON MATIN","CARTON MATIN","NICE NORD","Congés","NICE OUEST","NICE OUEST","NICE OUEST","ENC MATIN 5H-12H","ENC NUIT 20H30-02H30","ENC MATIN 5H-12H","ENC NUIT 20H30-02H30","NICE EST","Repos","ENC NUIT 20H30-02H30","ENC MATIN 5H-12H","ENC MATIN 5H-12H","ENC NUIT 20H30-02H30","Repos","ENC MATIN 5H-12H","ENC NUIT 20H30-02H30","ENC MATIN 5H-12H",0,"CARTON AM","ENC NUIT 20H30-02H30","ENC AM 12H30-19H30",0,"POLY 12H-18H","POLY 5H-12H","12H-19H","B. CARTON","Congés","CP + POLY 4H-12H","POLY 9H-16H","POLY 12H-19H",0,"Contrôle 12H-19H","Contrôle 19H-02H30","Contrôle 7H-12H / 14H30-17H","Contröle 12H00-19H30","Contrôle Privé 12H-19H","Contrôle 19H-02H30",0,"Standard 11H-15H / 15H30-19H","Secrétariat 9H-12H /13H-17H /20H-21H30","Standard 8H-12H/13H-16H30","Secrétariat 8H30-12H/12H45-16H15",{"$error":"#N/A"},{"$error":"#N/A"},{"$error":"#N/A"},{"$error":"#N/A"}]
["2017-01-06","B. CARTON","B. CARTON","NICE EST","Congés","NICE EST","NICE EST","CARTON AM","CARTON AP","Congés","CARTON AM","CARTON MATIN","CARTON MATIN","NICE NORD","Congés","NICE OUEST","NICE OUEST","NICE OUEST","ENC MATIN 5H-12H","ENC NUIT 20H30-02H30","ENC MATIN 5H-12H","ENC NUIT 20H30-02H30","Repos","NICE OUEST","ENC NUIT 20H30-02H30","ENC MATIN 5H-12H","ENC MATIN 5H-12H","ENC NUIT 20H30-02H30","NICE EST","ENC MATIN 5H-12H","ENC NUIT 20H30-02H30","ENC MATIN 5H-12H",0,"CARTON AM","ENC NUIT 20H30-02H30","ENC AM 12H30-19H30",0,"POLY 12H-18H","POLY 5H-12H","Repos","B. CARTON","Congés","CP + POLY 4H-12H","POLY 9H-16H","POLY 12H-19H",0,"Contrôle 12H-19H","Contrôle 19H-02H30","Contrôle 7H-12H / 14H30-17H","Contröle 12H00-19H30","Contrôle Privé 06H-13H30","Repos",0,"Standard 11H-15H / 15H30-19H","Secrétariat 8H30-12H /12H30-17H","Standard 8H-12H/13H-16H30","Secrétariat 8H30-12H/12H45-16H15",{"$error":"#N/A"},{"$error":"#N/A"},{"$error":"#N/A"},{"$error":"#N/A"}]
["2017-01-07","NICE OUEST",0,"NICE EST","Congés","NICE EST",0,"CARTON AM",0,0,0,0,0,0,"Congés",0,0,"NICE OUEST",0,0,"NICE OUEST","Repos","NICE EST","NICE OUEST","Repos","Repos","Repos","Repos","Repos","Repos","Repos","Repos",0,"Repos","Repos","Repos",0,"7H-12H / 14H-18H",0,"7H-12H / 14H-18H","7H-12H / 14H-18H",0,"CP 4H-7H",0,0,0,"Repos","Repos","Repos","Repos","Repos","Contrôle 19H-02H30",0,"Repos","Repos","Repos","Repos",{"$error":"#N/A"},{"$error":"#N/A"},{"$error":"#N/A"},{"$error":"#N/A"}]
["2017-01-08",0,0,0,"Congés",0,0,0,0,0,0,0,"NICE OUEST",0,"Congés","NICE OUEST","NICE OUEST",0,"V.N.  Matin",0,0,"Repos","Repos","Repos","V.N.  Après Midi","NICE EST","NICE EST","Repos","Repos","V.N.  Après Midi","Repos","Repos",0,"Repos","V.N.  Après Midi","Repos",0,"POLY 7H-12H",0,0,"CP + POLY 4H-12H",0,0,0,0,0,"Contrôle OM 03H-09H","Contrôle OM 20H-02H","Contrôle Déch 6H-12H","Repos","Repos","Repos",0,"Repos","Repos","Repos","Repos",{"$error":"#N/A"},{"$error":"#N/A"},{"$error":"#N/A"},{"$error":"#N/A"}]
["2017-01-09","B. CARTON","B. CARTON","NICE EST","NICE EST","NICE EST","NICE EST","CARTON AM","CARTON AP","Repos","Congés","CARTON MATIN","CARTON MATIN","NICE NORD","NICE OUEST","NICE OUEST","NICE OUEST","NICE OUEST","ENC MATIN 5H-12H","ENC MATIN 5H-12H","ENC NUIT 20H30-02H30","ENC NUIT 20H30-02H30","NICE EST","ENC MATIN 5H-12H","ENC NUIT 20H30-02H30","ENC MATIN 5H-12H","ENC MATIN 5H-12H","ENC MATIN 5H-12H","NICE EST","ENC NUIT 20H30-02H30","ENC NUIT 20H30-02H30","ENC NUIT 20H30-02H30",0,"CARTON AM","ENC AM 12H30-19H30","ENC AM 12H30-19H30",0,"Repos","Repos","POLY 12H-19H","B. CARTON","CP + POLY 4H-12H","POLY 5H-12H","POLY 9H-16H","POLY 12H-19H",0,"Contrôle 12H-19H","Contrôle 19H-02H30","Contrôle 7H-12H / 14H30-17H","Contröle 12H00-19H30","Contrôle Privé 06H-14H","Contrôle 13H-20H",0,"Standard 11H-15H / 15H30-19H","Secrétariat 9H-12H /13H-17H /20H-21H30","Standard 8H-12H/13H-16H30","Secrétariat 8H30-12H/12H45-16H15",{"$error":"#N/A"},{"$error":"#N/A"},{"$error":"#N/A"},{"$error":"#N/A"}]
["2017-01-10","B. CARTON","Repos","NICE EST","Repos","NICE EST","NICE EST","CARTON AM","CARTON AP","CARTON AM","Congés","CARTON MATIN","CARTON MATIN","NICE NORD","NICE OUEST","NICE OUEST","NICE OUEST","NICE OUEST","ENC MATIN 5H-12H","ENC MATIN 5H-12H","ENC NUIT 20H30-02H30","ENC NUIT 20H30-02H30","NICE EST","ENC MATIN 5H-12H","ENC NUIT 20H30-02H30","ENC MATIN 5H-12H","ENC MATIN 5H-12H","ENC MATIN 5H-12H","B. CARTON","ENC NUIT 20H30-02H30","ENC NUIT 20H30-02H30","ENC NUIT 20H30-02H30",0,"CARTON AM","ENC AM 12H30-19H30","ENC AM 12H30-19H30",0,"POLY 12H-19H","POLY 7H-14H","POLY 12H-19H","B. CARTON","CP + POLY 4H-12H","POLY 5H-12H","POLY 9H-16H","POLY 12H-19H",0,"Contrôle 12H-19H","Contrôle 19H-02H30","Contrôle 7H-12H / 14H30-17H","Contröle 12H00-19H30","Contrôle Privé 06H-14H","Contrôle 19H-02H30",0,"Standard 11H-15H / 15H30-19H","Secrétariat 13H-18H","Standard 8H-12H/13H-16H30","Secrétariat 8H30-12H/12H45-16H15",{"$error":"#N/A"},{"$error":"#N/A"},{"$error":"#N/A"},{"$error":"#N/A"}]
["2017-01-11","B. CARTON","B. CARTON","NICE EST","NICE EST","NICE EST","Repos","CARTON AM","CARTON AP","CARTON AM","Congés","CARTON MATIN","Repos","NICE NORD","NICE OUEST","NICE OUEST","NICE OUEST","NICE OUEST","ENC MATIN 5H-12H","ENC MATIN 5H-12H","ENC NUIT 20H30-02H30","ENC NUIT 20H30-02H30","NICE EST","ENC MATIN 5H-12H","ENC NUIT 20H30-02H30","CARTON MATIN","CARTON MATIN","ENC MATIN 5H-12H","NICE EST","ENC NUIT 20H30-02H30","ENC NUIT 20H30-02H30","ENC NUIT 20H30-02H30",0,"CARTON AM","ENC AM 12H30-19H30","ENC AM 12H30-19H30",0,"Congés","B. CARTON","POLY 12H-19H","Repos","CP + POLY 4H-12H","POLY 5H-12H","POLY 9H-16H","POLY 12H-19H",0,"Contrôle 12H-19H","Contrôle 19H-02H30","Contrôle 7H-12H / 14H30-17H","Contröle 12H00-19H30","Contrôle Privé 19H00-02H","Contrôle 19H-02H30",0,"Standard 11H-15H / 15H30-19H","Secrétariat 8H30-12H /13H-17H","Standard 8H-12H/13H-16H30","Repos",{"$error":"#N/A"},{"$error":"#N/A"},{"$error":"#N/A"},{"$error":"#N/A"}]
["2017-01-12","B. CARTON","B. CARTON","NICE EST","NICE EST","NICE EST","NICE EST","CARTON AM","CARTON AP","CARTON AM","Congés","CARTON MATIN","CARTON MATIN","NICE NORD","NICE OUEST","NICE OUEST","NICE OUEST","NICE OUEST","ENC MATIN 5H-12H","ENC MATIN 5H-12H","ENC NUIT 20H30-02H30","ENC NUIT 20H30-02H30","NICE EST","ENC MATIN 5H-12H","ENC NUIT 20H30-02H30","ENC MATIN 5H-12H","ENC MATIN 5H-12H","ENC MATIN 5H-12H","ENC AM 12H30-19H30","ENC NUIT 20H30-02H30","ENC NUIT 20H30-02H30","ENC NUIT 20H30-02H30",0,"CARTON AM","ENC AM 12H30-19H30","Repos",0,"POLY 12H-18H","POLY 7H-14H","POLY 12H-19H","B. CARTON","CP + POLY 4H-12H","POLY 5H-12H","POLY 9H-16H","POLY 12H-19H",0,"Contrôle 12H-19H","Contrôle 19H-02H30","Contrôle 7H-12H / 14H30-17H","Contröle 12H00-19H30","Contrôle Privé 12H-19H","Contrôle 19H-02H30",0,"Standard 11H-15H / 15H30-19H","Secrétariat 9H-12H /13H-17H /20H-21H30","Standard 8H-12H/13H-16H30","Secrétariat 8H30-12H/12H45-16H15",{"$error":"#N/A"},{"$error":"#N/A"},{"$error":"#N/A"},{"$error":"#N/A"}]
["2017-01-13","B. CARTON","B. CARTON","NICE EST","NICE EST","NICE EST","NICE EST","CARTON AM","CARTON AP","CARTON AM","Congés","CARTON MATIN","CARTON MATIN","NICE NORD","Repos","NICE OUEST","NICE OUEST","NICE OUEST","ENC MATIN 5H-12H","ENC MATIN 5H-12H","ENC NUIT 20H30-02H30","ENC NUIT 20H30-02H30","NICE EST","ENC MATIN 5H-12H","ENC NUIT 20H30-02H30","ENC MATIN 5H-12H","ENC MATIN 5H-12H","Repos","ENC AM 12H30-19H30","ENC NUIT 20H30-02H30","ENC NUIT 20H30-02H30","ENC NUIT 20H30-02H30",0,"CARTON AM","Repos","ENC AM 12H30-19H30",0,"POLY 12H-18H","POLY 7H-14H","POLY 12H-19H","B. CARTON","CP + POLY 4H-12H","POLY 5H-12H","POLY 9H-16H","POLY 12H-19H",0,"Contrôle 12H-19H","Contrôle 19H-02H30","Contrôle 7H-12H / 14H30-17H","Contröle 12H00-19H30","Contrôle Privé 06H-13H30","Contrôle 19H-02H30",0,"Standard 11H-15H / 15H30-19H","Secrétariat 8H30-12H /12H30-17H","Standard 8H-12H/13H-16H30","Secrétariat 8H30-12H/12H45-16H15",{"$error":"#N/A"},{"$error":"#N/A"},{"$error":"#N/A"},{"$error":"#N/A"}]
["2017-01-14","Repos","NICE EST","Repos","NICE EST","Repos","NICE EST","Repos","Repos","CARTON AM","Congés","Repos","NICE OUEST","Repos","NICE OUEST","Repos","Repos","Repos","Repos","Repos","Repos","Repos","Repos","Repos","Repos","Repos","Repos","NICE OUEST","Repos","Repos","Repos","Repos",0,"Repos","NICE NORD","NICE OUEST",0,"POLY 7H-12H / 14H-18H","POLY 7H-12H / 14H-18H",0,"POLY 7H-12H / 14H-18H","CP 4H-7H",0,0,0,0,"Repos","Repos","Repos","Repos","Repos","Repos",0,"Repos","Repos","Repos","Repos",{"$error":"#N/A"},{"$error":"#N/A"},{"$error":"#N/A"},{"$error":"#N/A"}]
["2017-01-15","V.N.  Après Midi","Repos","NICE EST","Repos","Repos","Repos","Repos","Repos","Repos","Congés","NICE NORD & VIEUX NICE","Repos","Repos","Repos","Repos","Repos","NICE OUEST","Repos","Repos","Repos","Repos","Repos","NICE OUEST & VIEUX NICE","V.N.  Matin","Repos","Repos","Repos","Repos","Repos","Repos","NICE NORD",0,"Repos","Repos","Repos",0,"POLY 7H-12H",0,"CP + POLY 7H-12H",0,0,0,0,0,0,"Repos","Repos","Contrôle Déch 6H-12H","Repos","Repos","Contrôle OM 20H-02H",0,"Repos","Repos","Repos","Repos",{"$error":"#N/A"},{"$error":"#N/A"},{"$error":"#N/A"},{"$error":"#N/A"}]
["2017-01-16","B. CARTON","B. CARTON","NICE EST","NICE EST","NICE EST","NICE EST","CARTON AM","Repos","CARTON AM","CARTON AM","CARTON MATIN","CARTON MATIN","NICE NORD","NICE OUEST","NICE OUEST","NICE OUEST","NICE OUEST","ENC NUIT 20H30-02H30","ENC NUIT 20H30-02H30","ENC MATIN 5H-12H","ENC MATIN 5H-12H","NICE EST","ENC NUIT 20H30-02H30","ENC MATIN 5H-12H","ENC MATIN 5H-12H","ENC MATIN 5H-12H","ENC MATIN 5H-12H","ENC AM 12H30-19H30","ENC NUIT 20H30-02H30","ENC MATIN 5H-12H","ENC NUIT 20H30-02H30",0,"ENC AM 12H30-19H30","ENC NUIT 20H30-02H30","ENC AM 12H30-19H30",0,"Repos","POLY 7H-14H","POLY 12H-19H","B. CARTON","POLY 5H-12H","CP + POLY 4H-12H","POLY 9H-16H","POLY 12H-19H",0,"Contrôle 12H-19H","Contrôle 19H-02H30","Contrôle 7H-12H / 14H30-17H","Contröle 12H00-19H30","Contrôle Privé 06H-14H","Contrôle 13H-20H",0,"Standard 11H-15H / 15H30-19H","Secrétariat 9H-12H /13H-17H /20H-21H30","Standard 8H-12H/13H-16H30","Secrétariat 8H30-12H/12H45-16H15",{"$error":"#N/A"},{"$error":"#N/A"},{"$error":"#N/A"},{"$error":"#N/A"}]
["2017-01-17","B. CARTON","B. CARTON","NICE EST","NICE EST","NICE EST","NICE EST","CARTON AM","CARTON AP","CARTON AM","CARTON AM","CARTON MATIN","CARTON MATIN","NICE NORD","NICE OUEST","NICE OUEST","NICE OUEST","NICE OUEST","ENC NUIT 20H30-02H30","ENC NUIT 20H30-02H30","ENC MATIN 5H-12H","ENC MATIN 5H-12H","NICE EST","ENC NUIT 20H30-02H30","ENC MATIN 5H-12H","ENC MATIN 5H-12H","ENC MATIN 5H-12H","ENC MATIN 5H-12H","ENC AM 12H30-19H30","ENC NUIT 20H30-02H30","ENC MATIN 5H-12H","ENC NUIT 20H30-02H30",0,"ENC AM 12H30-19H30","ENC NUIT 20H30-02H30","ENC AM 12H30-19H30",0,"POLY 12H-19H","POLY 7H-14H","POLY 12H-19H","B. CARTON","POLY 5H-12H","CP + POLY 4H-12H","POLY 9H-16H","POLY 12H-19H",0,"Contrôle 12H-19H","Contrôle 13H-20H","Contrôle 7H-12H / 14H30-17H","Contröle 12H00-19H30","Contrôle Privé 06H-14H","Contrôle 19H-02H30",0,"Standard 11H-15H / 15H30-19H","Secrétariat 13H-18H","Standard 8H-12H/13H-16H30","Secrétariat 8H30-12H/12H45-16H15",{"$error":"#N/A"},{"$error":"#N/A"},{"$error":"#N/A"},{"$error":"#N/A"}]
["2017-01-18","B. CARTON","B. CARTON","NICE EST","NICE EST","NICE EST","NICE EST","CARTON AM","CARTON AP","CARTON AM","CARTON AM","CARTON MATIN","CARTON MATIN","NICE NORD","NICE OUEST","Repos","NICE OUEST","NICE OUEST","ENC NUIT 20H30-02H30","ENC NUIT 20H30-02H30","Repos","ENC MATIN 5H-12H","NICE EST","ENC NUIT 20H30-02H30","ENC MATIN 5H-12H","ENC MATIN 5H-12H","ENC MATIN 5H-12H","ENC MATIN 5H-12H","ENC AM 12H30-19H30","ENC NUIT 20H30-02H30","ENC MATIN 5H-12H","ENC NUIT 20H30-02H30",0,"ENC AM 12H30-19H30","ENC NUIT 20H30-02H30","ENC AM 12H30-19H30",0,"Congés","B. CARTON","POLY 12H-19H","Repos","POLY 5H-12H","CP + POLY 4H-12H","POLY 9H-16H","POLY 12H-19H",0,"Contrôle 12H-19H","Contrôle 19H-02H30","Contrôle 7H-12H / 14H30-17H","Contröle 12H00-19H30","Contrôle Privé 19H00-02H","Contrôle 19H-02H30",0,"Standard 11H-15H / 15H30-19H","Secrétariat 8H30-12H /13H-17H","Standard 8H-12H/13H-16H30","Repos",{"$error":"#N/A"},{"$error":"#N/A"},{"$error":"#N/A"},{"$error":"#N/A"}]
["2017-01-19","B. CARTON","B. CARTON","NICE EST","NICE EST","NICE EST","NICE EST","CARTON AM","CARTON AP","CARTON AM","CARTON AM","CARTON MATIN","CARTON MATIN","NICE NORD","NICE OUEST","NICE OUEST","NICE OUEST","NICE OUEST","ENC NUIT 20H30-02H30","ENC NUIT 20H30-02H30","ENC MATIN 5H-12H","ENC MATIN 5H-12H","NICE EST","ENC NUIT 20H30-02H30","Repos","ENC MATIN 5H-12H","ENC MATIN 5H-12H","Repos","ENC AM 12H30-19H30","ENC NUIT 20H30-02H30","ENC MATIN 5H-12H","ENC NUIT 20H30-02H30",0,"ENC AM 12H30-19H30","ENC NUIT 20H30-02H30","ENC AM 12H30-19H30",0,"12H-18H","POLY 7H-14H","POLY 12H-19H","B. CARTON","POLY 5H-12H","CP + POLY 4H-12H","POLY 9H-16H","POLY 12H-19H",0,"Contrôle 12H-19H","Contrôle 19H-02H30","Contrôle 7H-12H / 14H30-17H","Contröle 12H00-19H30","Contrôle Privé 12H-19H","VN 13H-20H",0,"Standard 11H-15H / 15H30-19H","Secrétariat 9H-12H /13H-17H /20H-21H30","Standard 8H-12H/13H-16H30","Secrétariat 8H30-12H/12H45-16H15",{"$error":"#N/A"},{"$error":"#N/A"},{"$error":"#N/A"},{"$error":"#N/A"}]
["2017-01-20","B. CARTON","B. CARTON","NICE EST","NICE EST","NICE EST","NICE EST","CARTON AM","CARTON AP","CARTON AM","CARTON AM","CARTON MATIN","CARTON MATIN","NICE NORD","NICE OUEST","NICE OUEST","NICE OUEST","NICE OUEST","ENC NUIT 20H30-02H30","ENC NUIT 20H30-02H30","ENC MATIN 5H-12H","Repos","NICE EST","ENC NUIT 20H30-02H30","ENC MATIN 5H-12H","ENC MATIN 5H-12H","ENC MATIN 5H-12H","ENC MATIN 5H-12H","ENC AM 12H30-19H30","ENC NUIT 20H30-02H30","Repos","ENC NUIT 20H30-02H30",0,"ENC AM 12H30-19H30","ENC NUIT 20H30-02H30","ENC AM 12H30-19H30",0,"12H-18H","POLY 7H-14H","POLY 12H-19H","B. CARTON","POLY 5H-12H","CP + POLY 4H-12H","Repos","Repos",0,"Contrôle 12H-19H","Contrôle 19H-02H30","Contrôle 7H-12H / 14H30-17H","Contröle 12H00-19H30","Contrôle Privé 06H-13H30","VN 13H-20H",0,"Standard 11H-15H / 15H30-19H","Secrétariat 8H30-12H /12H30-17H","Standard 8H-12H/13H-16H30","Secrétariat 8H30-12H/12H45-16H15",{"$error":"#N/A"},{"$error":"#N/A"},{"$error":"#N/A"},{"$error":"#N/A"}]
["2017-01-21","Repos",0,"Repos","Repos","Repos",0,"Repos","CARTON AP",0,0,"Repos","Repos","Repos","Repos","NICE OUEST","Repos","Repos","Repos","Repos","NICE EST","NICE EST","Repos","Repos","NICE EST","Repos","Repos","NICE OUEST","Repos",0,"NICE OUEST",0,0,"Repos",0,0,0,"POLY 7H-12H / 14H-18H",0,0,"POLY 7H-12H / 14H-18H",0,"CP 4H-7H",0,"POLY 7H-12H / 14H-18H",0,"Repos","Repos","Repos","Repos","Repos","Repos",0,"Repos","Repos","Repos","Repos",{"$error":"#N/A"},{"$error":"#N/A"},{"$error":"#N/A"},{"$error":"#N/A"}]
["2017-01-22","Repos",0,0,0,"Repos",0,"Repos",0,0,0,0,0,"Repos","Repos",0,"Repos","Repos","Repos","Repos","Repos","Repos",0,"Repos","Repos","Repos",0,"Repos",0,0,0,0,0,0,0,0,0,"POLY 7H-12H",0,0,0,0,0,0,0,0,"Repos","Repos","Repos","Repos","Repos","Repos",0,"Repos","Repos","Repos","Repos",{"$error":"#N/A"},{"$error":"#N/A"},{"$error":"#N/A"},{"$error":"#N/A"}]

{"sheet":"ABILE GAL","index":8,"n_rows":48,"n_cols":12,"rows_kept":48,"cut":false,"hidden":false,"merged":[[64,2,64,4],[65,2,65,4],[66,2,66,4],[67,2,67,4],[58,2,58,4],[59,2,59,4],[60,2,60,4],[61,2,61,4],[62,2,62,4],[63,2,63,4],[57,2,57,4],[46,0,46,5],[47,2,47,4],[48,2,48,4],[49,2,49,4],[50,2,50,4],[51,2,51,4],[52,2,52,4],[53,2,53,4],[54,2,54,4],[55,2,55,4],[56,2,56,4],[40,2,45,5],[0,0,1,2],[0,3,1,5],[0,6,1,11],[2,0,2,1],[2,2,2,5]]}
["ABILE GAL ROGER",null,null,null,null,null,"Feuille Attachement"]
[]
["2017-01-01",null," fournir avant  Mercredi 04/01  demande de congés pour Février 2017 en fonction des disponibilités",null,null,null,"HS","HS","HS","Total","Nuit","Insalubrité"]
["Jours","Date","Prestations","Confirmations","Prestations  HS","Horaires",0,0,0,{"$f":"SUM(G4:I4)","v":0},0,0]
["Mercredi","2016-12-21",{"$f":"'Planning Mensuel'!BB7","v":"Standard 11H-15H / 15H30-19H"},null,null,null,null,null,null,0]
["Jeudi","2016-12-22",{"$f":"'Planning Mensuel'!BB8","v":"Congés"},"Congés",null,null,null,null,null,0]
["Vendredi","2016-12-23",{"$f":"'Planning Mensuel'!BB9","v":"Congés"},"Congés",null,null,null,null,null,0]
["Samedi","2016-12-24",{"$f":"'Planning Mensuel'!BB10","v":0},null,null,null,null,null,null,0]
["Dimanche","2016-12-25",{"$f":"'Planning Mensuel'!BB11","v":0},null,null,null,null,null,null,0]
["Lundi","2016-12-26",{"$f":"'Planning Mensuel'!BB12","v":"Congés"},"Congés",null,null,null,null,null,0]
["Mardi","2016-12-27",{"$f":"'Planning Mensuel'!BB13","v":"Congés"},"Congés",null,null,null,null,null,0]
["Mercredi","2016-12-28",{"$f":"'Planning Mensuel'!BB14","v":"Congés"},"Congés",null,null,null,null,null,0]
["Jeudi","2016-12-29",{"$f":"'Planning Mensuel'!BB15","v":"Congés"},"Congés",null,null,null,null,null,0]
["Vendredi","2016-12-30",{"$f":"'Planning Mensuel'!BB16","v":"Congés"},"Congés",null,null,null,null,null,0]
["Samedi","2016-12-31",{"$f":"'Planning Mensuel'!BB17","v":0},null,null,null,null,null,null,0]
["Dimanche","2017-01-01",{"$f":"'Planning Mensuel'!BB18","v":0},null,null,null,null,null,null,0]
["Lundi","2017-01-02",{"$f":"'Planning Mensuel'!BB19","v":"Standard 11H-15H / 15H30-19H"},null,null,null,null,null,null,0]
["Mardi","2017-01-03",{"$f":"'Planning Mensuel'!BB20","v":"Standard 11H-15H / 15H30-19H"},null,"Standard","10H-11H",null,null,null,0]
["Mercredi","2017-01-04",{"$f":"'Planning Mensuel'!BB21","v":"Standard 11H-15H / 15H30-19H"},null,"Standard","10H-11H",null,null,null,0]
["Jeudi","2017-01-05",{"$f":"'Planning Mensuel'!BB22","v":"Standard 11H-15H / 15H30-19H"},null,"Standard","10H-11H",null,null,null,0]
["Vendredi","2017-01-06",{"$f":"'Planning Mensuel'!BB23","v":"Standard 11H-15H / 15H30-19H"},null,"Standard","10H-11H",null,null,null,0]
["Samedi","2017-01-07",{"$f":"'Planning Mensuel'!BB24","v":"Repos"},null,null,null,null,null,null,0]
["Dimanche","2017-01-08",{"$f":"'Planning Mensuel'!BB25","v":"Repos"},null,null,null,null,null,null,0]
["Lundi","2017-01-09",{"$f":"'Planning Mensuel'!BB26","v":"Standard 11H-15H / 15H30-19H"},null,null,null,null,null,null,0]
["Mardi","2017-01-10",{"$f":"'Planning Mensuel'!BB27","v":"Standard 11H-15H / 15H30-19H"},null,null,null,null,null,null,0]
["Mercredi","2017-01-11",{"$f":"'Planning Mensuel'!BB28","v":"Standard 11H-15H / 15H30-19H"},null,null,null,null,null,null,0]
["Jeudi","2017-01-12",{"$f":"'Planning Mensuel'!BB29","v":"Standard 11H-15H / 15H30-19H"},null,null,null,null,null,null,0]
["Vendredi","2017-01-13",{"$f":"'Planning Mensuel'!BB30","v":"Standard 11H-15H / 15H30-19H"},null,null,null,null,null,null,0]
["Samedi","2017-01-14",{"$f":"'Planning Mensuel'!BB31","v":"Repos"},null,null,null,null,null,null,0]
["Dimanche","2017-01-15",{"$f":"'Planning Mensuel'!BB32","v":"Repos"},null,null,null,null,null,null,0]
["Lundi","2017-01-16",{"$f":"'Planning Mensuel'!BB33","v":"Standard 11H-15H / 15H30-19H"},null,"Standard","10H-11H",null,null,null,0]
["Mardi","2017-01-17",{"$f":"'Planning Mensuel'!BB34","v":"Standard 11H-15H / 15H30-19H"},null,"Standard","10H-11H",null,null,null,0]
["Mercredi","2017-01-18",{"$f":"'Planning Mensuel'!BB35","v":"Standard 11H-15H / 15H30-19H"},null,"Standard","10H-11H",null,null,null,0]
["Jeudi","2017-01-19",{"$f":"'Planning Mensuel'!BB36","v":"Standard 11H-15H / 15H30-19H"},null,"Standard","10H-11H",null,null,null,0]
["Vendredi","2017-01-20",{"$f":"'Planning Mensuel'!BB37","v":"Standard 11H-15H / 15H30-19H"},null,"Standard","10H-11H",null,null,null,0]
[null,null,null,null,null,null,{"$f":"SUM(G5:G35)","v":0},0,0,0,0,0]
[]
[]
[]
[]
[]
[]
[]
[]
[]
[]
["REMARQUES"]
["Date","heures","Remarques",null,null,"Responsables"]

{"sheet":"ADDARIO","index":9,"n_rows":48,"n_cols":12,"rows_kept":48,"cut":false,"hidden":false,"merged":[[64,2,64,4],[65,2,65,4],[66,2,66,4],[67,2,67,4],[68,3,68,5],[63,2,63,4],[52,2,52,4],[53,2,53,4],[54,2,54,4],[55,2,55,4],[56,2,56,4],[57,2,57,4],[58,2,58,4],[59,2,59,4],[60,2,60,4],[61,2,61,4],[62,2,62,4],[51,2,51,4],[0,0,1,2],[0,3,1,5],[0,6,1,11],[2,0,2,1],[2,2,2,5],[40,2,45,5],[46,0,46,5],[47,2,47,4],[48,2,48,4],[49,2,49,4],[50,2,50,4]]}
["ADDARIO GREGORY",null,null,null,null,null,"Feuille Attachement"]
[]
["2017-01-01",null," fournir avant  Mercredi 04/01  demande de congés pour Février 2017 en fonction des disponibilités",null,null,null,"HS","HS","HS","Total","Nuit","Insalubrité"]
["Jours","Date","Prestations","Confirmations","Prestations  HS","Horaires",0,0,0,{"$f":"SUM(G4:I4)","v":0},0,0]
["Mercredi","2016-12-21",{"$f":"'Planning Mensuel'!S7","v":"ENC NUIT 20H30-02H30"},null,null,null,null,null,null,0]
["Jeudi","2016-12-22",{"$f":"'Planning Mensuel'!S8","v":"ENC NUIT 20H30-02H30"},null,null,null,null,null,null,0]
["Vendredi","2016-12-23",{"$f":"'Planning Mensuel'!S9","v":"ENC NUIT 20H30-02H30"},null,null,null,null,null,null,0]
["Samedi","2016-12-24",{"$f":"'Planning Mensuel'!S10","v":0},null,null,null,null,null,null,0]
["Dimanche","2016-12-25",{"$f":"'Planning Mensuel'!S11","v":0},null,null,null,null,null,null,0]
["Lundi","2016-12-26",{"$f":"'Planning Mensuel'!S12","v":"ENC MATIN 5H-12H"},null,null,null,null,null,null,0]
["Mardi","2016-12-27",{"$f":"'Planning Mensuel'!S13","v":"ENC MATIN 5H-12H"},null,null,null,null,null,null,0]
["Mercredi","2016-12-28",{"$f":"'Planning Mensuel'!S14","v":"ENC MATIN 5H-12H"},null,null,null,null,null,null,0]
["Jeudi","2016-12-29",{"$f":"'Planning Mensuel'!S15","v":"Repos"},null,null,null,null,null,null,0]
["Vendredi","2016-12-30",{"$f":"'Planning Mensuel'!S16","v":"ENC MATIN 5H-12H"},null,null,null,null,null,null,0]
["Samedi","2016-12-31",{"$f":"'Planning Mensuel'!S17","v":"NICE OUEST"},null,null,null,null,null,null,0]
["Dimanche","2017-01-01",{"$f":"'Planning Mensuel'!S18","v":"Repos"},null,null,null,null,null,null,0]
["Lundi","2017-01-02",{"$f":"'Planning Mensuel'!S19","v":"ENC MATIN 5H-12H"},null,null,null,null,null,null,0]
["Mardi","2017-01-03",{"$f":"'Planning Mensuel'!S20","v":"ENC MATIN 5H-12H"},null,null,null,null,null,null,0]
["Mercredi","2017-01-04",{"$f":"'Planning Mensuel'!S21","v":"ENC MATIN 5H-12H"},null,null,null,null,null,null,0]
["Jeudi","2017-01-05",{"$f":"'Planning Mensuel'!S22","v":"ENC MATIN 5H-12H"},null,null,null,null,null,null,0]
["Vendredi","2017-01-06",{"$f":"'Planning Mensuel'!S23","v":"ENC MATIN 5H-12H"},null,null,null,null,null,null,0]
["Samedi","2017-01-07",{"$f":"'Planning Mensuel'!S24","v":0},null,null,null,null,null,null,0]
["Dimanche","2017-01-08",{"$f":"'Planning Mensuel'!S25","v":"V.N.  Matin"},null,"Vieux Nice","05H-11H",null,null,null,0]
["Lundi","2017-01-09",{"$f":"'Planning Mensuel'!S26","v":"ENC MATIN 5H-12H"},null,null,null,null,null,null,0]
["Mardi","2017-01-10",{"$f":"'Planning Mensuel'!S27","v":"ENC MATIN 5H-12H"},null,null,null,null,null,null,0]
["Mercredi","2017-01-11",{"$f":"'Planning Mensuel'!S28","v":"ENC MATIN 5H-12H"},null,null,null,null,null,null,0]
["Jeudi","2017-01-12",{"$f":"'Planning Mensuel'!S29","v":"ENC MATIN 5H-12H"},null,null,null,null,null,null,0]
["Vendredi","2017-01-13",{"$f":"'Planning Mensuel'!S30","v":"ENC MATIN 5H-12H"},null,null,null,null,null,null,0]
["Samedi","2017-01-14",{"$f":"'Planning Mensuel'!S31","v":"Repos"},null,null,null,null,null,null,0]
["Dimanche","2017-01-15",{"$f":"'Planning Mensuel'!S32","v":"Repos"},null,null,null,null,null,null,0]
["Lundi","2017-01-16",{"$f":"'Planning Mensuel'!S33","v":"ENC NUIT 20H30-02H30"},null,null,null,null,null,null,0]
["Mardi","2017-01-17",{"$f":"'Planning Mensuel'!S34","v":"ENC NUIT 20H30-02H30"},null,null,null,null,null,null,0]
["Mercredi","2017-01-18",{"$f":"'Planning Mensuel'!S35","v":"ENC NUIT 20H30-02H30"},null,null,null,null,null,null,0]
["Jeudi","2017-01-19",{"$f":"'Planning Mensuel'!S36","v":"ENC NUIT 20H30-02H30"},null,null,null,null,null,null,0]
["Vendredi","2017-01-20",{"$f":"'Planning Mensuel'!S37","v":"ENC NUIT 20H30-02H30"},null,null,null,null,null,null,0]
[null,null,null,null,null,null,{"$f":"SUM(G5:G35)","v":0},0,0,0,0,0]
[]
[]
[]
[]
[]
[]
[]
[]
[]
[]
["REMARQUES"]
["Date","heures","Remarques",null,null,"Responsables"]

{"sheet":"ALLIOUANE","index":10,"n_rows":50,"n_cols":12,"rows_kept":50,"cut":false,"hidden":false,"merged":[[64,2,64,4],[65,2,65,4],[58,2,58,4],[59,2,59,4],[60,2,60,4],[61,2,61,4],[62,2,62,4],[63,2,63,4],[57,2,57,4],[46,0,46,5],[47,2,47,4],[48,2,48,4],[49,2,49,4],[50,2,50,4],[51,2,51,4],[52,2,52,4],[53,2,53,4],[54,2,54,4],[55,2,55,4],[56,2,56,4],[40,2,45,5],[0,0,1,2],[0,3,1,5],[0,6,1,11],[2,0,2,1],[2,2,2,5]]}
["ALLIOUANE SAID",null,null,null,null,null,"Feuille Attachement"]
[]
["2017-01-01",null," fournir avant  Mercredi 04/01  demande de congés pour Février 2017 en fonction des disponibilités",null,null,null,"HS","HS","HS","Total","Nuit","Insalubrité"]
["Jours","Date","Prestations","Confirmations","Prestations  HS","Horaires",0,0,0,{"$f":"SUM(G4:I4)","v":0},0,0]
["Mercredi","2016-12-21",{"$f":"'Planning Mensuel'!T7","v":"ENC NUIT 20H30-02H30"},null,null,null,null,null,null,0]
["Jeudi","2016-12-22",{"$f":"'Planning Mensuel'!T8","v":"ENC NUIT 20H30-02H30"},null,null,null,null,null,null,0]
["Vendredi","2016-12-23",{"$f":"'Planning Mensuel'!T9","v":"ENC NUIT 20H30-02H30"},null,null,null,null,null,null,0]
["Samedi","2016-12-24",{"$f":"'Planning Mensuel'!T10","v":0},null,null,null,null,null,null,0]
["Dimanche","2016-12-25",{"$f":"'Planning Mensuel'!T11","v":"V.N.  Après Midi"},null,"Vieux Nice","14H-19H",null,null,null,0]
["Lundi","2016-12-26",{"$f":"'Planning Mensuel'!T12","v":"ENC MATIN 5H-12H"},null,null,null,null,null,null,0]
["Mardi","2016-12-27",{"$f":"'Planning Mensuel'!T13","v":"ENC MATIN 5H-12H"},null,null,null,null,null,null,0]
["Mercredi","2016-12-28",{"$f":"'Planning Mensuel'!T14","v":"Repos"},null,null,null,null,null,null,0]
["Jeudi","2016-12-29",{"$f":"'Planning Mensuel'!T15","v":"ENC MATIN 5H-12H"},null,null,null,null,null,null,0]
["Vendredi","2016-12-30",{"$f":"'Planning Mensuel'!T16","v":"ENC MATIN 5H-12H"},null,null,null,null,null,null,0]
["Samedi","2016-12-31",{"$f":"'Planning Mensuel'!T17","v":"OUEST"},null,null,null,null,null,null,0]
["Dimanche","2017-01-01",{"$f":"'Planning Mensuel'!T18","v":"Repos"},null,null,null,null,null,null,0]
["Lundi","2017-01-02",{"$f":"'Planning Mensuel'!T19","v":"ENC NUIT 20H30-02H30"},null,null,null,null,null,null,0]
["Mardi","2017-01-03",{"$f":"'Planning Mensuel'!T20","v":"ENC NUIT 20H30-02H30"},null,null,null,null,null,null,0]
["Mercredi","2017-01-04",{"$f":"'Planning Mensuel'!T21","v":"ENC NUIT 20H30-02H30"},null,null,null,null,null,null,0]
["Jeudi","2017-01-05",{"$f":"'Planning Mensuel'!T22","v":"ENC NUIT 20H30-02H30"},null,null,null,null,null,null,0]
["Vendredi","2017-01-06",{"$f":"'Planning Mensuel'!T23","v":"ENC NUIT 20H30-02H30"},null,null,null,null,null,null,0]
["Samedi","2017-01-07",{"$f":"'Planning Mensuel'!T24","v":0},null,null,null,null,null,null,0]
["Dimanche","2017-01-08",{"$f":"'Planning Mensuel'!T25","v":0},null,null,null,null,null,null,0]
["Lundi","2017-01-09",{"$f":"'Planning Mensuel'!T26","v":"ENC MATIN 5H-12H"},null,null,null,null,null,null,0]
["Mardi","2017-01-10",{"$f":"'Planning Mensuel'!T27","v":"ENC MATIN 5H-12H"},null,null,null,null,null,null,0]
["Mercredi","2017-01-11",{"$f":"'Planning Mensuel'!T28","v":"ENC MATIN 5H-12H"},null,null,null,null,null,null,0]
["Jeudi","2017-01-12",{"$f":"'Planning Mensuel'!T29","v":"ENC MATIN 5H-12H"},null,null,null,null,null,null,0]
["Vendredi","2017-01-13",{"$f":"'Planning Mensuel'!T30","v":"ENC MATIN 5H-12H"},null,null,null,null,null,null,0]
["Samedi","2017-01-14",{"$f":"'Planning Mensuel'!T31","v":"Repos"},null,null,null,null,null,null,0]
["Dimanche","2017-01-15",{"$f":"'Planning Mensuel'!T32","v":"Repos"},null,null,null,null,null,null,0]
["Lundi","2017-01-16",{"$f":"'Planning Mensuel'!T33","v":"ENC NUIT 20H30-02H30"},null,null,null,null,null,null,0]
["Mardi","2017-01-17",{"$f":"'Planning Mensuel'!T34","v":"ENC NUIT 20H30-02H30"},null,null,null,null,null,null,0]
["Mercredi","2017-01-18",{"$f":"'Planning Mensuel'!T35","v":"ENC NUIT 20H30-02H30"},null,null,null,null,null,null,0]
["Jeudi","2017-01-19",{"$f":"'Planning Mensuel'!T36","v":"ENC NUIT 20H30-02H30"},null,null,null,null,null,null,0]
["Vendredi","2017-01-20",{"$f":"'Planning Mensuel'!T37","v":"ENC NUIT 20H30-02H30"},null,null,null,null,null,null,0]
[null,null,null,null,null,null,{"$f":"SUM(G5:G35)","v":0},0,0,0,0,0]
[]
[]
[]
[]
[null,null,"Travaille le samedi 22/10"]
[]
[]
[]
[]
[]
["REMARQUES"]
["Date","heures","Remarques",null,null,"Responsables"]
["2016-01-09","8H30-12H / 14H-18H","Nice Ouest Aucun tri sur les DEEE",null,null,"Peters"]
["2016-10-02","13H-19H","Arrivée à 13H45",null,null,"Arnaud"]

{"sheet":"ARNAUDF","index":11,"n_rows":50,"n_cols":12,"rows_kept":50,"cut":false,"hidden":false,"merged":[[64,2,64,4],[65,2,65,4],[66,2,66,4],[67,2,67,4],[58,2,58,4],[59,2,59,4],[60,2,60,4],[61,2,61,4],[62,2,62,4],[63,2,63,4],[57,2,57,4],[46,0,46,5],[47,2,47,4],[48,2,48,4],[49,2,49,4],[50,2,50,4],[51,2,51,4],[52,2,52,4],[53,2,53,4],[54,2,54,4],[55,2,55,4],[56,2,56,4],[40,2,45,5],[0,0,1,2],[0,3,1,5],[0,6,1,11],[2,0,2,1],[2,2,2,5]]}
["ARNAUD FABRICE",null,null,null,null,null,"Feuille Attachement"]
[]
["2017-01-01",null," fournir avant  Mercredi 04/01  demande de congés pour Février 2017 en fonction des disponibilités",null,null,null,"HS","HS","HS","Total","Nuit","Insalubrité"]
["Jours","Date","Prestations","Confirmations","Prestations  HS","Horaires",0,0,0,{"$f":"SUM(G4:I4)","v":0},0,0]
["Mercredi","2016-12-21",{"$f":"'Planning Mensuel'!H7","v":"CARTON AM"},null,null,null,null,null,null,0]
["Jeudi","2016-12-22",{"$f":"'Planning Mensuel'!H8","v":"CARTON AM"},null,null,null,null,null,null,0]
["Vendredi","2016-12-23",{"$f":"'Planning Mensuel'!H9","v":"CARTON AM"},null,null,null,null,null,null,0]
["Samedi","2016-12-24",{"$f":"'Planning Mensuel'!H10","v":0},null,null,null,null,null,null,0]
["Dimanche","2016-12-25",{"$f":"'Planning Mensuel'!H11","v":"V.N.  Après Midi"},null,"Vieux Nice ","14H-19H",null,null,null,0]
["Lundi","2016-12-26",{"$f":"'Planning Mensuel'!H12","v":"CARTON AM"},null,null,null,null,null,null,0]
["Mardi","2016-12-27",{"$f":"'Planning Mensuel'!H13","v":"CARTON AM"},null,null,null,null,null,null,0]
["Mercredi","2016-12-28",{"$f":"'Planning Mensuel'!H14","v":"CARTON AM"},null,null,null,null,null,null,0]
["Jeudi","2016-12-29",{"$f":"'Planning Mensuel'!H15","v":"CARTON AM"},null,null,null,null,null,null,0]
["Vendredi","2016-12-30",{"$f":"'Planning Mensuel'!H16","v":"CARTON AM"},null,null,null,null,null,null,0]
["Samedi","2016-12-31",{"$f":"'Planning Mensuel'!H17","v":"Repos"},null,null,null,null,null,null,0]
["Dimanche","2017-01-01",{"$f":"'Planning Mensuel'!H18","v":"Repos"},null,null,null,null,null,null,0]
["Lundi","2017-01-02",{"$f":"'Planning Mensuel'!H19","v":"Repos"},null,null,null,null,null,null,0]
["Mardi","2017-01-03",{"$f":"'Planning Mensuel'!H20","v":"CARTON AM"},null,null,null,null,null,null,0]
["Mercredi","2017-01-04",{"$f":"'Planning Mensuel'!H21","v":"CARTON AM"},null,null,null,null,null,null,0]
["Jeudi","2017-01-05",{"$f":"'Planning Mensuel'!H22","v":"CARTON AM"},null,null,null,null,null,null,0]
["Vendredi","2017-01-06",{"$f":"'Planning Mensuel'!H23","v":"CARTON AM"},null,null,null,null,null,null,0]
["Samedi","2017-01-07",{"$f":"'Planning Mensuel'!H24","v":"CARTON AM"},null,null,null,null,null,null,0]
["Dimanche","2017-01-08",{"$f":"'Planning Mensuel'!H25","v":0},null,null,null,null,null,null,0]
["Lundi","2017-01-09",{"$f":"'Planning Mensuel'!H26","v":"CARTON AM"},null,null,null,null,null,null,0]
["Mardi","2017-01-10",{"$f":"'Planning Mensuel'!H27","v":"CARTON AM"},null,null,null,null,null,null,0]
["Mercredi","2017-01-11",{"$f":"'Planning Mensuel'!H28","v":"CARTON AM"},null,null,null,null,null,null,0]
["Jeudi","2017-01-12",{"$f":"'Planning Mensuel'!H29","v":"CARTON AM"},null,null,null,null,null,null,0]
["Vendredi","2017-01-13",{"$f":"'Planning Mensuel'!H30","v":"CARTON AM"},null,null,null,null,null,null,0]
["Samedi","2017-01-14",{"$f":"'Planning Mensuel'!H31","v":"Repos"},null,null,null,null,null,null,0]
["Dimanche","2017-01-15",{"$f":"'Planning Mensuel'!H32","v":"Repos"},null,null,null,null,null,null,0]
["Lundi","2017-01-16",{"$f":"'Planning Mensuel'!H33","v":"CARTON AM"},null,null,null,null,null,null,0]
["Mardi","2017-01-17",{"$f":"'Planning Mensuel'!H34","v":"CARTON AM"},null,null,null,null,null,null,0]
["Mercredi","2017-01-18",{"$f":"'Planning Mensuel'!H35","v":"CARTON AM"},null,null,null,null,null,null,0]
["Jeudi","2017-01-19",{"$f":"'Planning Mensuel'!H36","v":"CARTON AM"},null,null,null,null,null,null,0]
["Vendredi","2017-01-20",{"$f":"'Planning Mensuel'!H37","v":"CARTON AM"},null,null,null,null,null,null,0]
[null,null,null,null,null,null,{"$f":"SUM(G5:G35)","v":0},0,0,0,0,0]
[]
[]
[]
[]
[null,null,"Congés le 01/01/17"]
[]
[]
[]
[]
[]
["REMARQUES"]
["Date","heures","Remarques",null,null,"Responsables"]
["2016-03-05","8H30-12H / 14H-18H","Nice Ouest Aucun tri sur les DEEE",null,null,"Peters"]
["2016-03-19","8H30-12H / 14H-18H","Dans un accès de colère",null,null,"Novelli"]

{"sheet":"ARNAUD","index":12,"n_rows":47,"n_cols":12,"rows_kept":47,"cut":false,"hidden":false,"merged":[[67,3,67,5],[67,6,67,10],[68,3,68,5],[68,6,68,10],[64,3,64,5],[64,6,64,10],[65,3,65,5],[65,6,65,10],[66,3,66,5],[66,6,66,10],[61,3,61,5],[61,6,61,10],[62,3,62,5],[62,6,62,10],[63,3,63,5],[63,6,63,10],[58,3,58,5],[58,6,58,10],[59,3,59,5],[59,6,59,10],[60,3,60,5],[60,6,60,10],[55,3,55,5],[55,6,55,10],[56,3,56,5],[56,6,56,10],[57,3,57,5],[57,6,57,10],[52,3,52,5],[52,6,52,10],[53,3,53,5],[53,6,53,10],[54,3,54,5],[54,6,54,10],[49,3,49,5],[49,6,49,10],[50,3,50,5],[50,6,50,10],[51,3,51,5],[51,6,51,10],[48,3,48,5],[48,6,48,10],[0,0,1,2],[0,3,1,5],[0,6,1,11],[2,0,2,1],[2,2,2,5],[37,2,42,5],[44,0,45,10],[46,3,46,5],[46,6,46,10],[47,3,47,5],[47,6,47,10]]}
["ARNAUD GERARD",null,null,null,null,null,"Feuille Attachement"]
[]
["2017-01-01",null," fournir avant  Mercredi 04/01  demande de congés pour Février 2017 en fonction des disponibilités",null,null,null,"HS","HS","HS","Total","Nuit","Insalubrité"]
["Jours","Date","Prestations","Confirmations","Prestations  HS","Horaires",0,0,0,{"$f":"SUM(G4:I4)","v":0},0,0]
["Mercredi","2016-12-21",{"$f":"'Planning Mensuel'!AU7","v":"Contrôle 12H-19H"},null,null,null,null,null,null,0]
["Jeudi","2016-12-22",{"$f":"'Planning Mensuel'!AU8","v":"Congés"},"Congés",null,null,null,null,null,0]
["Vendredi","2016-12-23",{"$f":"'Planning Mensuel'!AU9","v":"Congés"},"Congés",null,null,null,null,null,0]
["Samedi","2016-12-24",{"$f":"'Planning Mensuel'!AU10","v":0},"Congés",null,null,null,null,null,0]
["Dimanche","2016-12-25",{"$f":"'Planning Mensuel'!AU11","v":0},"Congés",null,null,null,null,null,0]
["Lundi","2016-12-26",{"$f":"'Planning Mensuel'!AU12","v":"Congés"},"Congés",null,null,null,null,null,0]
["Mardi","2016-12-27",{"$f":"'Planning Mensuel'!AU13","v":"Congés"},"Congés",null,null,null,null,null,0]
["Mercredi","2016-12-28",{"$f":"'Planning Mensuel'!AU14","v":"Congés"},"Congés",null,null,null,null,null,0]
["Jeudi","2016-12-29",{"$f":"'Planning Mensuel'!AU15","v":"Contrôle 12H-19H"},null,null,null,null,null,null,0]
["Vendredi","2016-12-30",{"$f":"'Planning Mensuel'!AU16","v":"Contrôle 12H-19H"},null,null,null,null,null,null,0]
["Samedi","2016-12-31",{"$f":"'Planning Mensuel'!AU17","v":"Repos"},null,null,null,null,null,null,0]
["Dimanche","2017-01-01",{"$f":"'Planning Mensuel'!AU18","v":"Repos"},null,null,null,null,null,null,0]
["Lundi","2017-01-02",{"$f":"'Planning Mensuel'!AU19","v":"Contrôle 12H-19H"},null,null,null,null,null,null,0]
["Mardi","2017-01-03",{"$f":"'Planning Mensuel'!AU20","v":"Contrôle 12H-19H"},null,null,null,null,null,null,0]
["Mercredi","2017-01-04",{"$f":"'Planning Mensuel'!AU21","v":"Contrôle 12H-19H"},null,null,null,null,null,null,0]
["Jeudi","2017-01-05",{"$f":"'Planning Mensuel'!AU22","v":"Contrôle 12H-19H"},null,null,null,null,null,null,0]
["Vendredi","2017-01-06",{"$f":"'Planning Mensuel'!AU23","v":"Contrôle 12H-19H"},null,null,null,null,null,null,0]
["Samedi","2017-01-07",{"$f":"'Planning Mensuel'!AU24","v":"Repos"},null,null,null,null,null,null,0]
["Dimanche","2017-01-08",{"$f":"'Planning Mensuel'!AU25","v":"Contrôle OM 03H-09H"},null,"Contrôle OM","03H-09H",null,null,null,0]
["Lundi","2017-01-09",{"$f":"'Planning Mensuel'!AU26","v":"Contrôle 12H-19H"},null,null,null,null,null,null,0]
["Mardi","2017-01-10",{"$f":"'Planning Mensuel'!AU27","v":"Contrôle 12H-19H"},null,null,null,null,null,null,0]
["Mercredi","2017-01-11",{"$f":"'Planning Mensuel'!AU28","v":"Contrôle 12H-19H"},null,null,null,null,null,null,0]
["Jeudi","2017-01-12",{"$f":"'Planning Mensuel'!AU29","v":"Contrôle 12H-19H"},null,null,null,null,null,null,0]
["Vendredi","2017-01-13",{"$f":"'Planning Mensuel'!AU30","v":"Contrôle 12H-19H"},null,null,null,null,null,null,0]
["Samedi","2017-01-14",{"$f":"'Planning Mensuel'!AU31","v":"Repos"},null,null,null,null,null,null,0]
["Dimanche","2017-01-15",{"$f":"'Planning Mensuel'!AU32","v":"Repos"},null,null,null,null,null,null,0]
["Lundi","2017-01-16",{"$f":"'Planning Mensuel'!AU33","v":"Contrôle 12H-19H"},null,null,null,null,null,null,0]
["Mardi","2017-01-17",{"$f":"'Planning Mensuel'!AU34","v":"Contrôle 12H-19H"},null,null,null,null,null,null,0]
["Mercredi","2017-01-18",{"$f":"'Planning Mensuel'!AU35","v":"Contrôle 12H-19H"},null,null,null,null,null,null,0]
["Jeudi","2017-01-19",{"$f":"'Planning Mensuel'!AU36","v":"Contrôle 12H-19H"},null,null,null,null,null,null,0]
["Vendredi","2017-01-20",{"$f":"'Planning Mensuel'!AU37","v":"Contrôle 12H-19H"},null,null,null,null,null,null,0]
[null,null,null,null,null,null,{"$f":"SUM(G5:G35)","v":0},0,0,0,0,0]
[]
[]
[]
[]
[]
[]
[]
[]
["REMARQUES"]
[]
["Jours","Date","Date et heures","Remarques",null,null,"Responsables"]

{"sheet":"AUDIBERT","index":13,"n_rows":48,"n_cols":12,"rows_kept":48,"cut":false,"hidden":false,"merged":[[68,6,68,10],[58,2,58,4],[59,2,59,4],[60,2,60,4],[61,2,61,4],[62,2,62,4],[63,2,63,4],[64,2,64,4],[65,2,65,4],[66,2,66,4],[67,2,67,4],[68,3,68,5],[57,2,57,4],[46,0,46,5],[47,2,47,4],[48,2,48,4],[49,2,49,4],[50,2,50,4],[51,2,51,4],[52,2,52,4],[53,2,53,4],[54,2,54,4],[55,2,55,4],[56,2,56,4],[40,2,45,5],[0,0,1,2],[0,3,1,5],[0,6,1,11],[2,0,2,1],[2,2,2,5]]}
["AUDIBERT MICHEL",null,null,null,null,null,"Feuille Attachement"]
[]
["2017-01-01",null," fournir avant  Mercredi 04/01  demande de congés pour Février 2017 en fonction des disponibilités",null,null,null,"HS","HS","HS","Total","Nuit","Insalubrité"]
["Jours","Date","Prestations","Confirmations","Prestations  HS","Horaires",0,0,0,{"$f":"SUM(G4:I4)","v":0},0,0]
["Mercredi","2016-12-21",{"$f":"'Planning Mensuel'!O7","v":"NICE OUEST"},null,"Nice Ouest","14H-14H30",0.5,null,null,0.5]
["Jeudi","2016-12-22",{"$f":"'Planning Mensuel'!O8","v":"NICE OUEST"},null,"Nice Ouest","14H-14H30",0.5,null,null,0.5]
["Vendredi","2016-12-23",{"$f":"'Planning Mensuel'!O9","v":"NICE OUEST"},null,"Nice Ouest","14H-14H30",0.5,null,null,0.5]
["Samedi","2016-12-24",{"$f":"'Planning Mensuel'!O10","v":"NICE OUEST"},null,"Nice Ouest","8H30-14H30",6,null,null,6]
["Dimanche","2016-12-25",{"$f":"'Planning Mensuel'!O11","v":0},null,null,null,null,null,null,0]
["Lundi","2016-12-26",{"$f":"'Planning Mensuel'!O12","v":"NICE OUEST"},null,"Nice Ouest","14H-14H30",0.5,null,null,0.5]
["Mardi","2016-12-27",{"$f":"'Planning Mensuel'!O13","v":"NICE OUEST"},null,"Nice Ouest","14H-14H30",0.5,null,null,0.5]
["Mercredi","2016-12-28",{"$f":"'Planning Mensuel'!O14","v":"NICE OUEST"},null,"Nice Ouest","14H-14H30",0.5,null,null,0.5]
["Jeudi","2016-12-29",{"$f":"'Planning Mensuel'!O15","v":"NICE OUEST"},null,"Nice Ouest","14H-14H30",0.5,null,null,0.5]
["Vendredi","2016-12-30",{"$f":"'Planning Mensuel'!O16","v":"NICE OUEST"},null,"Nice Ouest","14H-14H30",0.5,null,null,0.5]
["Samedi","2016-12-31",{"$f":"'Planning Mensuel'!O17","v":"Repos"},null,null,null,null,null,null,0]
["Dimanche","2017-01-01",{"$f":"'Planning Mensuel'!O18","v":"Repos"},null,null,null,null,null,null,0]
["Lundi","2017-01-02",{"$f":"'Planning Mensuel'!O19","v":"Congés"},null,null,null,null,null,null,0]
["Mardi","2017-01-03",{"$f":"'Planning Mensuel'!O20","v":"Congés"},null,null,null,null,null,null,0]
["Mercredi","2017-01-04",{"$f":"'Planning Mensuel'!O21","v":"Congés"},null,null,null,null,null,null,0]
["Jeudi","2017-01-05",{"$f":"'Planning Mensuel'!O22","v":"Congés"},null,null,null,null,null,null,0]
["Vendredi","2017-01-06",{"$f":"'Planning Mensuel'!O23","v":"Congés"},null,null,null,null,null,null,0]
["Samedi","2017-01-07",{"$f":"'Planning Mensuel'!O24","v":"Congés"},null,null,null,null,null,null,0]
["Dimanche","2017-01-08",{"$f":"'Planning Mensuel'!O25","v":"Congés"},null,null,null,null,null,null,0]
["Lundi","2017-01-09",{"$f":"'Planning Mensuel'!O26","v":"NICE OUEST"},null,"Nice Ouest","14H-14H30",0.5,null,null,0.5]
["Mardi","2017-01-10",{"$f":"'Planning Mensuel'!O27","v":"NICE OUEST"},null,"Nice Ouest","14H-14H30",0.5,null,null,0.5]
["Mercredi","2017-01-11",{"$f":"'Planning Mensuel'!O28","v":"NICE OUEST"},null,"Nice Ouest","14H-14H30",0.5,null,null,0.5]
["Jeudi","2017-01-12",{"$f":"'Planning Mensuel'!O29","v":"NICE OUEST"},null,"Nice Ouest","14H-14H30",0.5,null,null,0.5]
["Vendredi","2017-01-13",{"$f":"'Planning Mensuel'!O30","v":"Repos"},null,null,null,null,null,null,0]
["Samedi","2017-01-14",{"$f":"'Planning Mensuel'!O31","v":"NICE OUEST"},null,"Nice Ouest","14H-14H30",0.5,null,null,0.5]
["Dimanche","2017-01-15",{"$f":"'Planning Mensuel'!O32","v":"Repos"},null,null,null,null,null,null,0]
["Lundi","2017-01-16",{"$f":"'Planning Mensuel'!O33","v":"NICE OUEST"},null,"Nice Ouest","14H-14H30",0.5,null,null,0.5]
["Mardi","2017-01-17",{"$f":"'Planning Mensuel'!O34","v":"NICE OUEST"},null,"Nice Ouest","14H-14H30",0.5,null,null,0.5]
["Mercredi","2017-01-18",{"$f":"'Planning Mensuel'!O35","v":"NICE OUEST"},null,"Nice Ouest","14H-14H30",0.5,null,null,0.5]
["Jeudi","2017-01-19",{"$f":"'Planning Mensuel'!O36","v":"NICE OUEST"},null,"Nice Ouest","14H-14H30",0.5,null,null,0.5]
["Vendredi","2017-01-20",{"$f":"'Planning Mensuel'!O37","v":"NICE OUEST"},null,"Nice Ouest","14H-14H30",0.5,null,null,0.5]
[null,null,null,null,null,null,{"$f":"SUM(G5:G35)","v":15},0,0,15,0,0]
[]
[]
[]
[]
[null,null,"Congés du 30/12 inclus au 08/01/17"]
[]
[]
[]
[]
[]
["REMARQUES"]
["Date","heures","Remarques",null,null,"Responsables"]

{"sheet":"BEN BOUZID","index":14,"n_rows":48,"n_cols":12,"rows_kept":48,"cut":false,"hidden":false,"merged":[[68,6,68,10],[58,2,58,4],[59,2,59,4],[60,2,60,4],[61,2,61,4],[62,2,62,4],[63,2,63,4],[64,2,64,4],[65,2,65,4],[66,2,66,4],[67,2,67,4],[68,3,68,5],[57,2,57,4],[46,0,46,5],[47,2,47,4],[48,2,48,4],[49,2,49,4],[50,2,50,4],[51,2,51,4],[52,2,52,4],[53,2,53,4],[54,2,54,4],[55,2,55,4],[56,2,56,4],[40,2,45,5],[0,0,1,2],[0,3,1,5],[0,6,1,11],[2,0,2,1],[2,2,2,5]]}
["BEN BOUZID BOURHANE",null,null,null,null,null,"Feuille Attachement"]
[]
["2017-01-01",null," fournir avant  Mercredi 04/01  demande de congés pour Février 2017 en fonction des disponibilités",null,null,null,"HS","HS","HS","Total","Nuit","Insalubrité"]
["Jours","Date","Prestations","Confirmations","Prestations  HS","Horaires",0,0,0,{"$f":"SUM(G4:I4)","v":0},0,0]
["Mercredi","2016-12-21",{"$f":"'Planning Mensuel'!P7","v":"Repos"},"NICE OUEST",null,null,null,null,null,0]
["Jeudi","2016-12-22",{"$f":"'Planning Mensuel'!P8","v":"NICE OUEST"},null,"Nice Ouest","14H-14H30",null,null,null,0]
["Vendredi","2016-12-23",{"$f":"'Planning Mensuel'!P9","v":"NICE OUEST"},null,"Nice Ouest","14H-14H30",null,null,null,0]
["Samedi","2016-12-24",{"$f":"'Planning Mensuel'!P10","v":"NICE OUEST"},null,"Nice Ouest","8H30-14H30",null,null,null,0]
["Dimanche","2016-12-25",{"$f":"'Planning Mensuel'!P11","v":0},null,null,null,null,null,null,0]
["Lundi","2016-12-26",{"$f":"'Planning Mensuel'!P12","v":"NICE OUEST"},null,"Nice Ouest","14H-14H30",null,null,null,0]
["Mardi","2016-12-27",{"$f":"'Planning Mensuel'!P13","v":"NICE OUEST"},null,"Nice Ouest","14H-14H30",null,null,null,0]
["Mercredi","2016-12-28",{"$f":"'Planning Mensuel'!P14","v":"NICE OUEST"},null,"Nice Ouest","14H-14H30",null,null,null,0]
["Jeudi","2016-12-29",{"$f":"'Planning Mensuel'!P15","v":"NICE OUEST"},null,"Nice Ouest","14H-14H30",null,null,null,0]
["Vendredi","2016-12-30",{"$f":"'Planning Mensuel'!P16","v":"NICE OUEST"},null,"Nice Ouest","14H-14H30",null,null,null,0]
["Samedi","2016-12-31",{"$f":"'Planning Mensuel'!P17","v":"Repos"},null,null,null,null,null,null,0]
["Dimanche","2017-01-01",{"$f":"'Planning Mensuel'!P18","v":"Repos"},null,null,null,null,null,null,0]
["Lundi","2017-01-02",{"$f":"'Planning Mensuel'!P19","v":"NICE OUEST"},null,"Nice Ouest","14H-14H30",null,null,null,0]
["Mardi","2017-01-03",{"$f":"'Planning Mensuel'!P20","v":"NICE OUEST"},null,"Nice Ouest","14H-14H30",null,null,null,0]
["Mercredi","2017-01-04",{"$f":"'Planning Mensuel'!P21","v":"NICE OUEST"},null,"Nice Ouest","14H-14H30",null,null,null,0]
["Jeudi","2017-01-05",{"$f":"'Planning Mensuel'!P22","v":"NICE OUEST"},null,"Nice Ouest","14H-14H30",null,null,null,0]
["Vendredi","2017-01-06",{"$f":"'Planning Mensuel'!P23","v":"NICE OUEST"},null,"Nice Ouest","14H-14H30",null,null,null,0]
["Samedi","2017-01-07",{"$f":"'Planning Mensuel'!P24","v":0},null,null,null,null,null,null,0]
["Dimanche","2017-01-08",{"$f":"'Planning Mensuel'!P25","v":"NICE OUEST"},null,"Nice Ouest","8H-12H",null,null,null,0]
["Lundi","2017-01-09",{"$f":"'Planning Mensuel'!P26","v":"NICE OUEST"},null,"Nice Ouest","14H-14H30",null,null,null,0]
["Mardi","2017-01-10",{"$f":"'Planning Mensuel'!P27","v":"NICE OUEST"},null,"Nice Ouest","14H-14H30",null,null,null,0]
["Mercredi","2017-01-11",{"$f":"'Planning Mensuel'!P28","v":"NICE OUEST"},null,"Nice Ouest","14H-14H30",null,null,null,0]
["Jeudi","2017-01-12",{"$f":"'Planning Mensuel'!P29","v":"NICE OUEST"},null,"Nice Ouest","14H-14H30",null,null,null,0]
["Vendredi","2017-01-13",{"$f":"'Planning Mensuel'!P30","v":"NICE OUEST"},null,"Nice Ouest","14H-14H30",null,null,null,0]
["Samedi","2017-01-14",{"$f":"'Planning Mensuel'!P31","v":"Repos"},null,null,null,null,null,null,0]
["Dimanche","2017-01-15",{"$f":"'Planning Mensuel'!P32","v":"Repos"},null,null,null,null,null,null,0]
["Lundi","2017-01-16",{"$f":"'Planning Mensuel'!P33","v":"NICE OUEST"},null,"Nice Ouest","14H-14H30",null,null,null,0]
["Mardi","2017-01-17",{"$f":"'Planning Mensuel'!P34","v":"NICE OUEST"},null,"Nice Ouest","14H-14H30",null,null,null,0]
["Mercredi","2017-01-18",{"$f":"'Planning Mensuel'!P35","v":"Repos"},null,null,null,null,null,null,0]
["Jeudi","2017-01-19",{"$f":"'Planning Mensuel'!P36","v":"NICE OUEST"},null,"Nice Ouest","14H-14H30",null,null,null,0]
["Vendredi","2017-01-20",{"$f":"'Planning Mensuel'!P37","v":"NICE OUEST"},null,"Nice Ouest","14H-14H30",null,null,null,0]
[null,null,null,null,null,null,{"$f":"SUM(G5:G35)","v":0},0,0,0,0,0]
[]
[]
[]
[]
[null,null,"Travaillera le Samedi 21/01/17"]
[]
[]
[]
[]
[]
["REMARQUES"]
["Date","heures","Remarques",null,null,"Responsables"]

{"sheet":"BOUR","index":15,"n_rows":49,"n_cols":12,"rows_kept":49,"cut":false,"hidden":false,"merged":[[64,2,64,4],[65,2,65,4],[66,2,66,4],[67,2,67,4],[58,2,58,4],[59,2,59,4],[60,2,60,4],[61,2,61,4],[62,2,62,4],[63,2,63,4],[57,2,57,4],[46,0,46,5],[47,2,47,4],[48,2,48,4],[49,2,49,4],[50,2,50,4],[51,2,51,4],[52,2,52,4],[53,2,53,4],[54,2,54,4],[55,2,55,4],[56,2,56,4],[40,2,45,5],[0,0,1,2],[0,3,1,5],[0,6,1,11],[2,0,2,1],[2,2,2,5]]}
["BOUR YVON",null,null,null,null,null,"Feuille Attachement"]
[]
["2017-01-01",null," fournir avant  Mercredi 04/01  demande de congés pour Février 2017 en fonction des disponibilités",null,null,null,"HS","HS","HS","Total","Nuit","Insalubrité"]
["Jours","Date","Prestations","Confirmations","Prestations  HS","Horaires",0,0,0,{"$f":"SUM(G4:I4)","v":0},0,0]
["Mercredi","2016-12-21",{"$f":"'Planning Mensuel'!AL7","v":"POLY 12H-19H"},null,null,null,null,null,null,0]
["Jeudi","2016-12-22",{"$f":"'Planning Mensuel'!AL8","v":"POLY 12H-18H"},null,null,null,null,null,null,0]
["Vendredi","2016-12-23",{"$f":"'Planning Mensuel'!AL9","v":"POLY 12H-18H"},null,null,null,null,null,null,0]
["Samedi","2016-12-24",{"$f":"'Planning Mensuel'!AL10","v":"POLY 7H-14H"},null,null,null,null,null,null,0]
["Dimanche","2016-12-25",{"$f":"'Planning Mensuel'!AL11","v":0},null,null,null,null,null,null,0]
["Lundi","2016-12-26",{"$f":"'Planning Mensuel'!AL12","v":"Repos"},null,null,null,null,null,null,0]
["Mardi","2016-12-27",{"$f":"'Planning Mensuel'!AL13","v":"POLY 12H-19H"},null,null,null,null,null,null,0]
["Mercredi","2016-12-28",{"$f":"'Planning Mensuel'!AL14","v":"POLY 12H-19H"},null,null,null,null,null,null,0]
["Jeudi","2016-12-29",{"$f":"'Planning Mensuel'!AL15","v":"POLY 12H-18H"},null,null,null,null,null,null,0]
["Vendredi","2016-12-30",{"$f":"'Planning Mensuel'!AL16","v":"POLY 12H-18H"},null,null,null,null,null,null,0]
["Samedi","2016-12-31",{"$f":"'Planning Mensuel'!AL17","v":"POLY 7H-14H"},null,null,null,null,null,null,0]
["Dimanche","2017-01-01",{"$f":"'Planning Mensuel'!AL18","v":0},null,null,null,null,null,null,0]
["Lundi","2017-01-02",{"$f":"'Planning Mensuel'!AL19","v":"Repos"},null,null,null,null,null,null,0]
["Mardi","2017-01-03",{"$f":"'Planning Mensuel'!AL20","v":"Congés"},null,null,null,null,null,null,0]
["Mercredi","2017-01-04",{"$f":"'Planning Mensuel'!AL21","v":"12H-19H"},null,null,null,null,null,null,0]
["Jeudi","2017-01-05",{"$f":"'Planning Mensuel'!AL22","v":"POLY 12H-18H"},null,null,null,null,null,null,0]
["Vendredi","2017-01-06",{"$f":"'Planning Mensuel'!AL23","v":"POLY 12H-18H"},null,null,null,null,null,null,0]
["Samedi","2017-01-07",{"$f":"'Planning Mensuel'!AL24","v":"7H-12H / 14H-18H"},null,null,null,null,null,null,0]
["Dimanche","2017-01-08",{"$f":"'Planning Mensuel'!AL25","v":"POLY 7H-12H"},null,"Polybenne ","7H-12H",null,null,null,0]
["Lundi","2017-01-09",{"$f":"'Planning Mensuel'!AL26","v":"Repos"},null,null,null,null,null,null,0]
["Mardi","2017-01-10",{"$f":"'Planning Mensuel'!AL27","v":"POLY 12H-19H"},null,null,null,null,null,null,0]
["Mercredi","2017-01-11",{"$f":"'Planning Mensuel'!AL28","v":"Congés"},null,null,null,null,null,null,0]
["Jeudi","2017-01-12",{"$f":"'Planning Mensuel'!AL29","v":"POLY 12H-18H"},null,null,null,null,null,null,0]
["Vendredi","2017-01-13",{"$f":"'Planning Mensuel'!AL30","v":"POLY 12H-18H"},null,null,null,null,null,null,0]
["Samedi","2017-01-14",{"$f":"'Planning Mensuel'!AL31","v":"POLY 7H-12H / 14H-18H"},null,null,null,null,null,null,0]
["Dimanche","2017-01-15",{"$f":"'Planning Mensuel'!AL32","v":"POLY 7H-12H"},null,"Polybenne ","7H-12H",null,null,null,0]
["Lundi","2017-01-16",{"$f":"'Planning Mensuel'!AL33","v":"Repos"},null,null,null,null,null,null,0]
["Mardi","2017-01-17",{"$f":"'Planning Mensuel'!AL34","v":"POLY 12H-19H"},null,null,null,null,null,null,0]
["Mercredi","2017-01-18",{"$f":"'Planning Mensuel'!AL35","v":"Congés"},null,null,null,null,null,null,0]
["Jeudi","2017-01-19",{"$f":"'Planning Mensuel'!AL36","v":"12H-18H"},null,null,null,null,null,null,0]
["Vendredi","2017-01-20",{"$f":"'Planning Mensuel'!AL37","v":"12H-18H"},null,null,null,null,null,null,0]
[null,null,null,null,null,null,{"$f":"SUM(G5:G35)","v":0},0,0,0,0,0]
[]
[]
[]
[]
[]
[]
[]
[]
[]
[]
["REMARQUES"]
["Date","heures","Remarques",null,null,"Responsables"]
["2015-12-10","18H","Vidage à la Sonitherm",null,null,"Peters"]

{"sheet":"CANTELLI","index":16,"n_rows":49,"n_cols":12,"rows_kept":49,"cut":false,"hidden":false,"merged":[[64,2,64,4],[65,2,65,4],[66,2,66,4],[67,2,67,4],[58,2,58,4],[59,2,59,4],[60,2,60,4],[61,2,61,4],[62,2,62,4],[63,2,63,4],[57,2,57,4],[46,0,46,5],[47,2,47,4],[48,2,48,4],[49,2,49,4],[50,2,50,4],[51,2,51,4],[52,2,52,4],[53,2,53,4],[54,2,54,4],[55,2,55,4],[56,2,56,4],[40,2,45,5],[0,0,1,2],[0,3,1,5],[0,6,1,11],[2,0,2,1],[2,2,2,5]]}
["CANTELLI THOMAS",null,null,null,null,null,"Feuille Attachement"]
[]
["2017-01-01",null," fournir avant  Mercredi 04/01  demande de congés pour Février 2017 en fonction des disponibilités",null,null,null,"HS","HS","HS","Total","Nuit","Insalubrité"]
["Jours","Date","Prestations","Confirmations","Prestations  HS","Horaires",0,0,0,{"$f":"SUM(G4:I4)","v":0},0,0]
["Mercredi","2016-12-21",{"$f":"'Planning Mensuel'!U7","v":0},null,null,null,null,null,null,0]
["Jeudi","2016-12-22",{"$f":"'Planning Mensuel'!U8","v":0},null,null,null,null,null,null,0]
["Vendredi","2016-12-23",{"$f":"'Planning Mensuel'!U9","v":0},null,null,null,null,null,null,0]
["Samedi","2016-12-24",{"$f":"'Planning Mensuel'!U10","v":0},null,null,null,null,null,null,0]
["Dimanche","2016-12-25",{"$f":"'Planning Mensuel'!U11","v":0},null,"COP Cagnes / Vence",null,null,null,null,0]
["Lundi","2016-12-26",{"$f":"'Planning Mensuel'!U12","v":0},null,null,null,null,null,null,0]
["Mardi","2016-12-27",{"$f":"'Planning Mensuel'!U13","v":0},null,null,null,null,null,null,0]
["Mercredi","2016-12-28",{"$f":"'Planning Mensuel'!U14","v":0},null,null,null,null,null,null,0]
["Jeudi","2016-12-29",{"$f":"'Planning Mensuel'!U15","v":0},null,null,null,null,null,null,0]
["Vendredi","2016-12-30",{"$f":"'Planning Mensuel'!U16","v":0},null,null,null,null,null,null,0]
["Samedi","2016-12-31",{"$f":"'Planning Mensuel'!U17","v":0},null,null,null,null,null,null,0]
["Dimanche","2017-01-01",{"$f":"'Planning Mensuel'!U18","v":0},null,"COP Cagnes / Vence",null,null,null,null,0]
["Lundi","2017-01-02",{"$f":"'Planning Mensuel'!U19","v":"Repos"},null,null,null,null,null,null,0]
["Mardi","2017-01-03",{"$f":"'Planning Mensuel'!U20","v":"ENC MATIN 5H-12H"},null,null,null,null,null,null,0]
["Mercredi","2017-01-04",{"$f":"'Planning Mensuel'!U21","v":"ENC MATIN 5H-12H"},null,null,null,null,null,null,0]
["Jeudi","2017-01-05",{"$f":"'Planning Mensuel'!U22","v":"ENC MATIN 5H-12H"},null,null,null,null,null,null,0]
["Vendredi","2017-01-06",{"$f":"'Planning Mensuel'!U23","v":"ENC MATIN 5H-12H"},null,null,null,null,null,null,0]
["Samedi","2017-01-07",{"$f":"'Planning Mensuel'!U24","v":"NICE OUEST"},null,"Nice Ouest","14H-14H30",null,null,null,0]
["Dimanche","2017-01-08",{"$f":"'Planning Mensuel'!U25","v":0},null,null,null,null,null,null,0]
["Lundi","2017-01-09",{"$f":"'Planning Mensuel'!U26","v":"ENC NUIT 20H30-02H30"},null,null,null,null,null,null,0]
["Mardi","2017-01-10",{"$f":"'Planning Mensuel'!U27","v":"ENC NUIT 20H30-02H30"},null,null,null,null,null,null,0]
["Mercredi","2017-01-11",{"$f":"'Planning Mensuel'!U28","v":"ENC NUIT 20H30-02H30"},null,null,null,null,null,null,0]
["Jeudi","2017-01-12",{"$f":"'Planning Mensuel'!U29","v":"ENC NUIT 20H30-02H30"},null,null,null,null,null,null,0]
["Vendredi","2017-01-13",{"$f":"'Planning Mensuel'!U30","v":"ENC NUIT 20H30-02H30"},null,null,null,null,null,null,0]
["Samedi","2017-01-14",{"$f":"'Planning Mensuel'!U31","v":"Repos"},null,null,null,null,null,null,0]
["Dimanche","2017-01-15",{"$f":"'Planning Mensuel'!U32","v":"Repos"},null,null,null,null,null,null,0]
["Lundi","2017-01-16",{"$f":"'Planning Mensuel'!U33","v":"ENC MATIN 5H-12H"},null,null,null,null,null,null,0]
["Mardi","2017-01-17",{"$f":"'Planning Mensuel'!U34","v":"ENC MATIN 5H-12H"},null,null,null,null,null,null,0]
["Mercredi","2017-01-18",{"$f":"'Planning Mensuel'!U35","v":"Repos"},null,null,null,null,null,null,0]
["Jeudi","2017-01-19",{"$f":"'Planning Mensuel'!U36","v":"ENC MATIN 5H-12H"},null,null,null,null,null,null,0]
["Vendredi","2017-01-20",{"$f":"'Planning Mensuel'!U37","v":"ENC MATIN 5H-12H"},null,null,null,null,null,null,0]
[null,null,null,null,null,null,{"$f":"SUM(G5:G35)","v":0},0,0,0,0,0]
[]
[]
[]
[]
[null,null,"Travaillera le samedi 21/01 à NE"]
[]
[]
[]
[]
[]
["REMARQUES"]
["Date","heures","Remarques",null,null,"Responsables"]
["2016-05-30","5H40","Arrivée à 5H40 aux encombrants",null,null,"Cambra"]

{"sheet":"CARDINALE","index":17,"n_rows":49,"n_cols":12,"rows_kept":49,"cut":false,"hidden":false,"merged":[[64,2,64,4],[65,2,65,4],[58,2,58,4],[59,2,59,4],[60,2,60,4],[61,2,61,4],[62,2,62,4],[63,2,63,4],[57,2,57,4],[46,0,46,5],[47,2,47,4],[48,2,48,4],[49,2,49,4],[50,2,50,4],[51,2,51,4],[52,2,52,4],[53,2,53,4],[54,2,54,4],[55,2,55,4],[56,2,56,4],[40,2,45,5],[0,0,1,2],[0,3,1,5],[0,6,1,11],[2,0,2,1],[2,2,2,5]]}
["CARDINALE JEAN CLAUDE",null,null,null,null,null,"Feuille Attachement"]
[]
["2017-01-01",null," fournir avant  Mercredi 04/01  demande de congés pour Février 2017 en fonction des disponibilités",null,null,null,"HS","HS","HS","Total","Nuit","Insalubrité"]
["Jours","Date","Prestations","Confirmations","Prestations  HS","Horaires",0,0,0,{"$f":"SUM(G4:I4)","v":0},0,0]
["Mercredi","2016-12-21",{"$f":"'Planning Mensuel'!Q7","v":"Congés"},null,null,null,null,null,null,0]
["Jeudi","2016-12-22",{"$f":"'Planning Mensuel'!Q8","v":"Congés"},null,null,null,null,null,null,0]
["Vendredi","2016-12-23",{"$f":"'Planning Mensuel'!Q9","v":"Congés"},null,null,null,null,null,null,0]
["Samedi","2016-12-24",{"$f":"'Planning Mensuel'!Q10","v":0},null,null,null,null,null,null,0]
["Dimanche","2016-12-25",{"$f":"'Planning Mensuel'!Q11","v":0},null,null,null,null,null,null,0]
["Lundi","2016-12-26",{"$f":"'Planning Mensuel'!Q12","v":"NICE OUEST"},null,"Nice Ouest","14H-14H30",null,null,null,0]
["Mardi","2016-12-27",{"$f":"'Planning Mensuel'!Q13","v":"NICE OUEST"},null,"Nice Ouest","14H-14H30",null,null,null,0]
["Mercredi","2016-12-28",{"$f":"'Planning Mensuel'!Q14","v":"Repos"},null,null,null,null,null,null,0]
["Jeudi","2016-12-29",{"$f":"'Planning Mensuel'!Q15","v":"NICE OUEST"},null,"Nice Ouest","14H-14H30",null,null,null,0]
["Vendredi","2016-12-30",{"$f":"'Planning Mensuel'!Q16","v":"NICE OUEST"},null,"Nice Ouest","14H-14H30",null,null,null,0]
["Samedi","2016-12-31",{"$f":"'Planning Mensuel'!Q17","v":"NICE OUEST"},null,null,null,null,null,null,0]
["Dimanche","2017-01-01",{"$f":"'Planning Mensuel'!Q18","v":"Repos"},null,null,null,null,null,null,0]
["Lundi","2017-01-02",{"$f":"'Planning Mensuel'!Q19","v":"NICE OUEST"},null,"Nice Ouest","14H-14H30",null,null,null,0]
["Mardi","2017-01-03",{"$f":"'Planning Mensuel'!Q20","v":"NICE OUEST"},null,"Nice Ouest","14H-14H30",null,null,null,0]
["Mercredi","2017-01-04",{"$f":"'Planning Mensuel'!Q21","v":"NICE OUEST"},null,"Nice Ouest","14H-14H30",null,null,null,0]
["Jeudi","2017-01-05",{"$f":"'Planning Mensuel'!Q22","v":"NICE OUEST"},null,"Nice Ouest","14H-14H30",null,null,null,0]
["Vendredi","2017-01-06",{"$f":"'Planning Mensuel'!Q23","v":"NICE OUEST"},null,"Nice Ouest","14H-14H30",null,null,null,0]
["Samedi","2017-01-07",{"$f":"'Planning Mensuel'!Q24","v":0},null,null,null,null,null,null,0]
["Dimanche","2017-01-08",{"$f":"'Planning Mensuel'!Q25","v":"NICE OUEST"},null,"Nice Ouest","8H-12H",null,null,null,0]
["Lundi","2017-01-09",{"$f":"'Planning Mensuel'!Q26","v":"NICE OUEST"},null,"Nice Ouest","14H-14H30",null,null,null,0]
["Mardi","2017-01-10",{"$f":"'Planning Mensuel'!Q27","v":"NICE OUEST"},null,"Nice Ouest","14H-14H30",null,null,null,0]
["Mercredi","2017-01-11",{"$f":"'Planning Mensuel'!Q28","v":"NICE OUEST"},null,"Nice Ouest","14H-14H30",null,null,null,0]
["Jeudi","2017-01-12",{"$f":"'Planning Mensuel'!Q29","v":"NICE OUEST"},null,"Nice Ouest","14H-14H30",null,null,null,0]
["Vendredi","2017-01-13",{"$f":"'Planning Mensuel'!Q30","v":"NICE OUEST"},null,"Nice Ouest","14H-14H30",null,null,null,0]
["Samedi","2017-01-14",{"$f":"'Planning Mensuel'!Q31","v":"Repos"},null,null,null,null,null,null,0]
["Dimanche","2017-01-15",{"$f":"'Planning Mensuel'!Q32","v":"Repos"},null,null,null,null,null,null,0]
["Lundi","2017-01-16",{"$f":"'Planning Mensuel'!Q33","v":"NICE OUEST"},null,"Nice Ouest","14H-14H30",null,null,null,0]
["Mardi","2017-01-17",{"$f":"'Planning Mensuel'!Q34","v":"NICE OUEST"},null,"Nice Ouest","14H-14H30",null,null,null,0]
["Mercredi","2017-01-18",{"$f":"'Planning Mensuel'!Q35","v":"NICE OUEST"},null,"Nice Ouest","14H-14H30",null,null,null,0]
["Jeudi","2017-01-19",{"$f":"'Planning Mensuel'!Q36","v":"NICE OUEST"},null,"Nice Ouest","14H-14H30",null,null,null,0]
["Vendredi","2017-01-20",{"$f":"'Planning Mensuel'!Q37","v":"NICE OUEST"},null,"Nice Ouest","14H-14H30",null,null,null,0]
[null,null,null,null,null,null,{"$f":"SUM(G5:G35)","v":0},0,0,0,0,0]
[]
[]
[]
[]
[null,null,"En congés jusqu'au 25/12"]
[]
[]
[]
[]
[]
["REMARQUES"]
["Date","heures","Remarques",null,null,"Responsables"]
["2016-01-09","8H30-12H / 14H-18H","Aucun tri sur les DEEE",null,null,"peters"]

{"sheet":"CARLIN","index":18,"n_rows":48,"n_cols":12,"rows_kept":48,"cut":false,"hidden":false,"merged":[[68,6,68,10],[58,2,58,4],[59,2,59,4],[60,2,60,4],[61,2,61,4],[62,2,62,4],[63,2,63,4],[64,2,64,4],[65,2,65,4],[66,2,66,4],[67,2,67,4],[68,3,68,5],[57,2,57,4],[46,0,46,5],[47,2,47,4],[48,2,48,4],[49,2,49,4],[50,2,50,4],[51,2,51,4],[52,2,52,4],[53,2,53,4],[54,2,54,4],[55,2,55,4],[56,2,56,4],[40,2,45,5],[0,0,1,2],[0,3,1,5],[0,6,1,11],[2,0,2,1],[2,2,2,5]]}
["CARLIN HELENE",null,null,null,null,null,"Feuille Attachement"]
[]
["2017-01-01",null," fournir avant  Mercredi 04/01  demande de congés pour Février 2017 en fonction des disponibilités",null,null,null,"HS","HS","HS","Total","Nuit","Insalubrité"]
["Jours","Date","Prestations","Confirmations","Prestations  HS","Horaires",0,0,0,{"$f":"SUM(G4:I4)","v":0},0,0]
["Mercredi","2016-12-21",{"$f":"'Planning Mensuel'!BC7","v":"Congés"},"Congés",null,null,null,null,null,0]
["Jeudi","2016-12-22",{"$f":"'Planning Mensuel'!BC8","v":"Congés"},"Congés",null,null,null,null,null,0]
["Vendredi","2016-12-23",{"$f":"'Planning Mensuel'!BC9","v":"Congés"},"Congés",null,null,null,null,null,0]
["Samedi","2016-12-24",{"$f":"'Planning Mensuel'!BC10","v":0},"Congés",null,null,null,null,null,0]
["Dimanche","2016-12-25",{"$f":"'Planning Mensuel'!BC11","v":0},"Congés",null,null,null,null,null,0]
["Lundi","2016-12-26",{"$f":"'Planning Mensuel'!BC12","v":"Congés"},"Congés",null,null,null,null,null,0]
["Mardi","2016-12-27",{"$f":"'Planning Mensuel'!BC13","v":"Congés"},"Congés",null,null,null,null,null,0]
["Mercredi","2016-12-28",{"$f":"'Planning Mensuel'!BC14","v":"Secrétariat 8H30-12H /13H-17H"},null,null,null,null,null,null,0]
["Jeudi","2016-12-29",{"$f":"'Planning Mensuel'!BC15","v":"Secrétariat 9H-12H /13H-17H /20H-21H30"},null,null,null,null,null,null,0]
["Vendredi","2016-12-30",{"$f":"'Planning Mensuel'!BC16","v":"Secrétariat 8H30-12H /12H30-17H"},null,null,null,null,null,null,0]
["Samedi","2016-12-31",{"$f":"'Planning Mensuel'!BC17","v":"Repos"},null,null,null,null,null,null,0]
["Dimanche","2017-01-01",{"$f":"'Planning Mensuel'!BC18","v":"Repos"},null,null,null,null,null,null,0]
["Lundi","2017-01-02",{"$f":"'Planning Mensuel'!BC19","v":"Secrétariat 9H-12H /13H-17H /20H-21H30"},null,null,null,null,null,null,0]
["Mardi","2017-01-03",{"$f":"'Planning Mensuel'!BC20","v":"Secrétariat 13H-18H"},null,null,null,null,null,null,0]
["Mercredi","2017-01-04",{"$f":"'Planning Mensuel'!BC21","v":"Secrétariat 8H30-12H /13H-17H"},null,null,null,null,null,null,0]
["Jeudi","2017-01-05",{"$f":"'Planning Mensuel'!BC22","v":"Secrétariat 9H-12H /13H-17H /20H-21H30"},null,null,null,null,null,null,0]
["Vendredi","2017-01-06",{"$f":"'Planning Mensuel'!BC23","v":"Secrétariat 8H30-12H /12H30-17H"},null,null,null,null,null,null,0]
["Samedi","2017-01-07",{"$f":"'Planning Mensuel'!BC24","v":"Repos"},null,null,null,null,null,null,0]
["Dimanche","2017-01-08",{"$f":"'Planning Mensuel'!BC25","v":"Repos"},null,null,null,null,null,null,0]
["Lundi","2017-01-09",{"$f":"'Planning Mensuel'!BC26","v":"Secrétariat 9H-12H /13H-17H /20H-21H30"},null,null,null,null,null,null,0]
["Mardi","2017-01-10",{"$f":"'Planning Mensuel'!BC27","v":"Secrétariat 13H-18H"},null,null,null,null,null,null,0]
["Mercredi","2017-01-11",{"$f":"'Planning Mensuel'!BC28","v":"Secrétariat 8H30-12H /13H-17H"},null,null,null,null,null,null,0]
["Jeudi","2017-01-12",{"$f":"'Planning Mensuel'!BC29","v":"Secrétariat 9H-12H /13H-17H /20H-21H30"},null,null,null,null,null,null,0]
["Vendredi","2017-01-13",{"$f":"'Planning Mensuel'!BC30","v":"Secrétariat 8H30-12H /12H30-17H"},null,null,null,null,null,null,0]
["Samedi","2017-01-14",{"$f":"'Planning Mensuel'!BC31","v":"Repos"},null,null,null,null,null,null,0]
["Dimanche","2017-01-15",{"$f":"'Planning Mensuel'!BC32","v":"Repos"},null,null,null,null,null,null,0]
["Lundi","2017-01-16",{"$f":"'Planning Mensuel'!BC33","v":"Secrétariat 9H-12H /13H-17H /20H-21H30"},null,null,null,null,null,null,0]
["Mardi","2017-01-17",{"$f":"'Planning Mensuel'!BC34","v":"Secrétariat 13H-18H"},null,null,null,null,null,null,0]
["Mercredi","2017-01-18",{"$f":"'Planning Mensuel'!BC35","v":"Secrétariat 8H30-12H /13H-17H"},null,null,null,null,null,null,0]
["Jeudi","2017-01-19",{"$f":"'Planning Mensuel'!BC36","v":"Secrétariat 9H-12H /13H-17H /20H-21H30"},null,null,null,null,null,null,0]
["Vendredi","2017-01-20",{"$f":"'Planning Mensuel'!BC37","v":"Secrétariat 8H30-12H /12H30-17H"},null,null,null,null,null,null,0]
[null,null,null,null,null,null,{"$f":"SUM(G5:G35)","v":0},0,0,0,0,0]
[]
[]
[]
[]
[null,null,"Congés le 21 et le 27 Décembre"]
[]
[]
[]
[]
[]
["REMARQUES"]
["Date","heures","Remarques",null,null,"Responsables"]

{"sheet":"COURTOIS","index":19,"n_rows":48,"n_cols":12,"rows_kept":48,"cut":false,"hidden":false,"merged":[[64,2,64,4],[58,2,58,4],[59,2,59,4],[60,2,60,4],[61,2,61,4],[62,2,62,4],[63,2,63,4],[57,2,57,4],[46,0,46,5],[47,2,47,4],[48,2,48,4],[49,2,49,4],[50,2,50,4],[51,2,51,4],[52,2,52,4],[53,2,53,4],[54,2,54,4],[55,2,55,4],[56,2,56,4],[40,2,45,5],[0,0,1,2],[0,3,1,5],[0,6,1,11],[2,0,2,1],[2,2,2,5]]}
["COURTOIS ALEXIS",null,null,null,null,null,"Feuille Attachement"]
[]
["2017-01-01",null," fournir avant  Mercredi 04/01  demande de congés pour Février 2017 en fonction des disponibilités",null,null,null,"HS","HS","HS","Total","Nuit","Insalubrité"]
["Jours","Date","Prestations","Confirmations","Prestations  HS","Horaires",0,0,0,{"$f":"SUM(G4:I4)","v":0},0,0]
["Mercredi","2016-12-21",{"$f":"'Planning Mensuel'!V7","v":"ENC MATIN 5H-12H"},"Benne Cartons",null,null,null,null,null,0]
["Jeudi","2016-12-22",{"$f":"'Planning Mensuel'!V8","v":"ENC MATIN 5H-12H"},"Benne Cartons",null,null,null,null,null,0]
["Vendredi","2016-12-23",{"$f":"'Planning Mensuel'!V9","v":"Repos"},"Benne Cartons",null,null,null,null,null,0]
["Samedi","2016-12-24",{"$f":"'Planning Mensuel'!V10","v":"NICE EST"},null,"Nice Est","8H30-14H30",null,null,null,0]
["Dimanche","2016-12-25",{"$f":"'Planning Mensuel'!V11","v":0},null,null,null,null,null,null,0]
["Lundi","2016-12-26",{"$f":"'Planning Mensuel'!V12","v":"ENC NUIT 20H30-02H30"},null,null,null,null,null,null,0]
["Mardi","2016-12-27",{"$f":"'Planning Mensuel'!V13","v":"ENC NUIT 20H30-02H30"},null,null,null,null,null,null,0]
["Mercredi","2016-12-28",{"$f":"'Planning Mensuel'!V14","v":"ENC NUIT 20H30-02H30"},null,null,null,null,null,null,0]
["Jeudi","2016-12-29",{"$f":"'Planning Mensuel'!V15","v":"ENC NUIT 20H30-02H30"},null,null,null,null,null,null,0]
["Vendredi","2016-12-30",{"$f":"'Planning Mensuel'!V16","v":"ENC NUIT 20H30-02H30"},null,null,null,null,null,null,0]
["Samedi","2016-12-31",{"$f":"'Planning Mensuel'!V17","v":"Repos"},null,null,null,null,null,null,0]
["Dimanche","2017-01-01",{"$f":"'Planning Mensuel'!V18","v":"Repos"},null,null,null,null,null,null,0]
["Lundi","2017-01-02",{"$f":"'Planning Mensuel'!V19","v":"ENC NUIT 20H30-02H30"},null,null,null,null,null,null,0]
["Mardi","2017-01-03",{"$f":"'Planning Mensuel'!V20","v":"ENC NUIT 20H30-02H30"},null,null,null,null,null,null,0]
["Mercredi","2017-01-04",{"$f":"'Planning Mensuel'!V21","v":"ENC NUIT 20H30-02H30"},null,null,null,null,null,null,0]
["Jeudi","2017-01-05",{"$f":"'Planning Mensuel'!V22","v":"ENC NUIT 20H30-02H30"},null,null,null,null,null,null,0]
["Vendredi","2017-01-06",{"$f":"'Planning Mensuel'!V23","v":"ENC NUIT 20H30-02H30"},null,null,null,null,null,null,0]
["Samedi","2017-01-07",{"$f":"'Planning Mensuel'!V24","v":"Repos"},null,null,null,null,null,null,0]
["Dimanche","2017-01-08",{"$f":"'Planning Mensuel'!V25","v":"Repos"},null,null,null,null,null,null,0]
["Lundi","2017-01-09",{"$f":"'Planning Mensuel'!V26","v":"ENC NUIT 20H30-02H30"},null,null,null,null,null,null,0]
["Mardi","2017-01-10",{"$f":"'Planning Mensuel'!V27","v":"ENC NUIT 20H30-02H30"},null,null,null,null,null,null,0]
["Mercredi","2017-01-11",{"$f":"'Planning Mensuel'!V28","v":"ENC NUIT 20H30-02H30"},null,null,null,null,null,null,0]
["Jeudi","2017-01-12",{"$f":"'Planning Mensuel'!V29","v":"ENC NUIT 20H30-02H30"},null,null,null,null,null,null,0]
["Vendredi","2017-01-13",{"$f":"'Planning Mensuel'!V30","v":"ENC NUIT 20H30-02H30"},null,null,null,null,null,null,0]
["Samedi","2017-01-14",{"$f":"'Planning Mensuel'!V31","v":"Repos"},null,null,null,null,null,null,0]
["Dimanche","2017-01-15",{"$f":"'Planning Mensuel'!V32","v":"Repos"},null,null,null,null,null,null,0]
["Lundi","2017-01-16",{"$f":"'Planning Mensuel'!V33","v":"ENC MATIN 5H-12H"},null,null,null,null,null,null,0]
["Mardi","2017-01-17",{"$f":"'Planning Mensuel'!V34","v":"ENC MATIN 5H-12H"},null,null,null,null,null,null,0]
["Mercredi","2017-01-18",{"$f":"'Planning Mensuel'!V35","v":"ENC MATIN 5H-12H"},null,null,null,null,null,null,0]
["Jeudi","2017-01-19",{"$f":"'Planning Mensuel'!V36","v":"ENC MATIN 5H-12H"},null,null,null,null,null,null,0]
["Vendredi","2017-01-20",{"$f":"'Planning Mensuel'!V37","v":"Repos"},null,null,null,null,null,null,0]
[null,null,null,null,null,null,{"$f":"SUM(G5:G35)","v":0},0,0,0,0,0]
[]
[]
[]
[]
[null,null,"Travaillera le Samedi 21/01/17"]
[]
[]
[]
[]
[]
["REMARQUES"]
["Date","heures","Remarques",null,null,"Responsables"]

{"sheet":"DALMASSO","index":20,"n_rows":48,"n_cols":12,"rows_kept":48,"cut":false,"hidden":false,"merged":[[64,2,64,4],[58,2,58,4],[59,2,59,4],[60,2,60,4],[61,2,61,4],[62,2,62,4],[63,2,63,4],[57,2,57,4],[46,0,46,5],[47,2,47,4],[48,2,48,4],[49,2,49,4],[50,2,50,4],[51,2,51,4],[52,2,52,4],[53,2,53,4],[54,2,54,4],[55,2,55,4],[56,2,56,4],[40,2,45,5],[0,0,1,2],[0,3,1,5],[0,6,1,11],[2,0,2,1],[2,2,2,5]]}
["DALMASSO YVES",null,null,null,null,null,"Feuille Attachement"]
[]
["2017-01-01",null," fournir avant  Mercredi 04/01  demande de congés pour Février 2017 en fonction des disponibilités",null,null,null,"HS","HS","HS","Total","Nuit","Insalubrité"]
["Jours","Date","Prestations","Confirmations","Prestations  HS","Horaires",0,0,0,{"$f":"SUM(G4:I4)","v":0},0,0]
["Mercredi","2016-12-21",{"$f":"'Planning Mensuel'!AM7","v":"B. CARTON"},null,null,null,null,null,null,0]
["Jeudi","2016-12-22",{"$f":"'Planning Mensuel'!AM8","v":"POLY 5H-12H"},null,null,null,null,null,null,0]
["Vendredi","2016-12-23",{"$f":"'Planning Mensuel'!AM9","v":"Congés"},null,null,null,null,null,null,0]
["Samedi","2016-12-24",{"$f":"'Planning Mensuel'!AM10","v":0},null,null,null,null,null,null,0]
["Dimanche","2016-12-25",{"$f":"'Planning Mensuel'!AM11","v":0},null,null,null,null,null,null,0]
["Lundi","2016-12-26",{"$f":"'Planning Mensuel'!AM12","v":"POLY 9H-16H"},null,null,null,null,null,null,0]
["Mardi","2016-12-27",{"$f":"'Planning Mensuel'!AM13","v":"POLY 5H-12H"},null,null,null,null,null,null,0]
["Mercredi","2016-12-28",{"$f":"'Planning Mensuel'!AM14","v":"B. CARTON"},null,null,null,null,null,null,0]
["Jeudi","2016-12-29",{"$f":"'Planning Mensuel'!AM15","v":"9H-16H"},null,null,null,null,null,null,0]
["Vendredi","2016-12-30",{"$f":"'Planning Mensuel'!AM16","v":"9H-16H"},null,null,null,null,null,null,0]
["Samedi","2016-12-31",{"$f":"'Planning Mensuel'!AM17","v":0},null,null,null,null,null,null,0]
["Dimanche","2017-01-01",{"$f":"'Planning Mensuel'!AM18","v":0},null,null,null,null,null,null,0]
["Lundi","2017-01-02",{"$f":"'Planning Mensuel'!AM19","v":"POLY 5H-12H"},null,null,null,null,null,null,0]
["Mardi","2017-01-03",{"$f":"'Planning Mensuel'!AM20","v":"POLY 5H-12H"},null,null,null,null,null,null,0]
["Mercredi","2017-01-04",{"$f":"'Planning Mensuel'!AM21","v":"POLY 5H-12H"},null,null,null,null,null,null,0]
["Jeudi","2017-01-05",{"$f":"'Planning Mensuel'!AM22","v":"POLY 5H-12H"},null,null,null,null,null,null,0]
["Vendredi","2017-01-06",{"$f":"'Planning Mensuel'!AM23","v":"POLY 5H-12H"},null,null,null,null,null,null,0]
["Samedi","2017-01-07",{"$f":"'Planning Mensuel'!AM24","v":0},null,null,null,null,null,null,0]
["Dimanche","2017-01-08",{"$f":"'Planning Mensuel'!AM25","v":0},null,null,null,null,null,null,0]
["Lundi","2017-01-09",{"$f":"'Planning Mensuel'!AM26","v":"Repos"},null,null,null,null,null,null,0]
["Mardi","2017-01-10",{"$f":"'Planning Mensuel'!AM27","v":"POLY 7H-14H"},null,null,null,null,null,null,0]
["Mercredi","2017-01-11",{"$f":"'Planning Mensuel'!AM28","v":"B. CARTON"},null,null,null,null,null,null,0]
["Jeudi","2017-01-12",{"$f":"'Planning Mensuel'!AM29","v":"POLY 7H-14H"},null,null,null,null,null,null,0]
["Vendredi","2017-01-13",{"$f":"'Planning Mensuel'!AM30","v":"POLY 7H-14H"},null,null,null,null,null,null,0]
["Samedi","2017-01-14",{"$f":"'Planning Mensuel'!AM31","v":"POLY 7H-12H / 14H-18H"},null,"Polybenne","16H-18H",null,null,null,0]
["Dimanche","2017-01-15",{"$f":"'Planning Mensuel'!AM32","v":0},null,null,null,null,null,null,0]
["Lundi","2017-01-16",{"$f":"'Planning Mensuel'!AM33","v":"POLY 7H-14H"},null,null,null,null,null,null,0]
["Mardi","2017-01-17",{"$f":"'Planning Mensuel'!AM34","v":"POLY 7H-14H"},null,null,null,null,null,null,0]
["Mercredi","2017-01-18",{"$f":"'Planning Mensuel'!AM35","v":"B. CARTON"},null,null,null,null,null,null,0]
["Jeudi","2017-01-19",{"$f":"'Planning Mensuel'!AM36","v":"POLY 7H-14H"},null,null,null,null,null,null,0]
["Vendredi","2017-01-20",{"$f":"'Planning Mensuel'!AM37","v":"POLY 7H-14H"},null,null,null,null,null,null,0]
[null,null,null,null,null,null,{"$f":"SUM(G5:G35)","v":0},0,0,0,0,0]
[]
[]
[]
[]
[]
[]
[]
[]
[]
[]
["REMARQUES"]
["Date","heures","Remarques",null,null,"Responsables"]

{"sheet":"DHOUIMER","index":21,"n_rows":48,"n_cols":12,"rows_kept":48,"cut":false,"hidden":false,"merged":[[68,6,68,10],[58,2,58,4],[59,2,59,4],[60,2,60,4],[61,2,61,4],[62,2,62,4],[63,2,63,4],[64,2,64,4],[65,2,65,4],[66,2,66,4],[67,2,67,4],[68,3,68,5],[57,2,57,4],[46,0,46,5],[47,2,47,4],[48,2,48,4],[49,2,49,4],[50,2,50,4],[51,2,51,4],[52,2,52,4],[53,2,53,4],[54,2,54,4],[55,2,55,4],[56,2,56,4],[40,2,45,5],[0,0,1,2],[0,3,1,5],[0,6,1,11],[2,0,2,1],[2,2,2,5]]}
["DHOUIMER YASSINE",null,null,null,null,null,"Feuille Attachement"]
[]
["2017-01-01",null," fournir avant  Mercredi 04/01  demande de congés pour Février 2017 en fonction des disponibilités",null,null,null,"HS","HS","HS","Total","Nuit","Insalubrité"]
["Jours","Date","Prestations","Confirmations","Prestations  HS","Horaires",0,0,0,{"$f":"SUM(G4:I4)","v":0},0,0]
["Mercredi","2016-12-21",{"$f":"'Planning Mensuel'!W7","v":"NICE EST"},null,null,null,null,null,null,0]
["Jeudi","2016-12-22",{"$f":"'Planning Mensuel'!W8","v":"NICE EST"},null,null,null,null,null,null,0]
["Vendredi","2016-12-23",{"$f":"'Planning Mensuel'!W9","v":"NICE EST"},null,null,null,null,null,null,0]
["Samedi","2016-12-24",{"$f":"'Planning Mensuel'!W10","v":0},null,null,null,null,null,null,0]
["Dimanche","2016-12-25",{"$f":"'Planning Mensuel'!W11","v":"V.N.  Matin"},null,"Vieux Nice ","05H-10H",null,null,null,0]
["Lundi","2016-12-26",{"$f":"'Planning Mensuel'!W12","v":"NICE EST"},null,null,null,null,null,null,0]
["Mardi","2016-12-27",{"$f":"'Planning Mensuel'!W13","v":"NICE EST"},null,null,null,null,null,null,0]
["Mercredi","2016-12-28",{"$f":"'Planning Mensuel'!W14","v":"NICE EST"},null,null,null,null,null,null,0]
["Jeudi","2016-12-29",{"$f":"'Planning Mensuel'!W15","v":"NICE EST"},null,null,null,null,null,null,0]
["Vendredi","2016-12-30",{"$f":"'Planning Mensuel'!W16","v":"NICE EST"},null,null,null,null,null,null,0]
["Samedi","2016-12-31",{"$f":"'Planning Mensuel'!W17","v":"Repos"},null,null,null,null,null,null,0]
["Dimanche","2017-01-01",{"$f":"'Planning Mensuel'!W18","v":"V.N.  Matin"},null,"Vieux Nice","05H-10H",null,null,null,0]
["Lundi","2017-01-02",{"$f":"'Planning Mensuel'!W19","v":"NICE EST"},null,null,null,null,null,null,0]
["Mardi","2017-01-03",{"$f":"'Planning Mensuel'!W20","v":"NICE EST"},null,null,null,null,null,null,0]
["Mercredi","2017-01-04",{"$f":"'Planning Mensuel'!W21","v":"NICE EST"},null,null,null,null,null,null,0]
["Jeudi","2017-01-05",{"$f":"'Planning Mensuel'!W22","v":"NICE EST"},null,null,null,null,null,null,0]
["Vendredi","2017-01-06",{"$f":"'Planning Mensuel'!W23","v":"Repos"},null,null,null,null,null,null,0]
["Samedi","2017-01-07",{"$f":"'Planning Mensuel'!W24","v":"NICE EST"},null,null,null,null,null,null,0]
["Dimanche","2017-01-08",{"$f":"'Planning Mensuel'!W25","v":"Repos"},null,null,null,null,null,null,0]
["Lundi","2017-01-09",{"$f":"'Planning Mensuel'!W26","v":"NICE EST"},null,null,null,null,null,null,0]
["Mardi","2017-01-10",{"$f":"'Planning Mensuel'!W27","v":"NICE EST"},null,null,null,null,null,null,0]
["Mercredi","2017-01-11",{"$f":"'Planning Mensuel'!W28","v":"NICE EST"},null,null,null,null,null,null,0]
["Jeudi","2017-01-12",{"$f":"'Planning Mensuel'!W29","v":"NICE EST"},null,null,null,null,null,null,0]
["Vendredi","2017-01-13",{"$f":"'Planning Mensuel'!W30","v":"NICE EST"},null,null,null,null,null,null,0]
["Samedi","2017-01-14",{"$f":"'Planning Mensuel'!W31","v":"Repos"},null,null,null,null,null,null,0]
["Dimanche","2017-01-15",{"$f":"'Planning Mensuel'!W32","v":"Repos"},null,null,null,null,null,null,0]
["Lundi","2017-01-16",{"$f":"'Planning Mensuel'!W33","v":"NICE EST"},null,null,null,null,null,null,0]
["Mardi","2017-01-17",{"$f":"'Planning Mensuel'!W34","v":"NICE EST"},null,null,null,null,null,null,0]
["Mercredi","2017-01-18",{"$f":"'Planning Mensuel'!W35","v":"NICE EST"},null,null,null,null,null,null,0]
["Jeudi","2017-01-19",{"$f":"'Planning Mensuel'!W36","v":"NICE EST"},null,null,null,null,null,null,0]
["Vendredi","2017-01-20",{"$f":"'Planning Mensuel'!W37","v":"NICE EST"},null,null,null,null,null,null,0]
[null,null,null,null,null,null,{"$f":"SUM(G5:G35)","v":0},0,0,0,0,0]
[]
[]
[]
[]
[]
[]
[]
[]
[]
[]
["REMARQUES"]
["Date","heures","Remarques",null,null,"Responsables"]

{"sheet":"ELLENA","index":22,"n_rows":48,"n_cols":12,"rows_kept":48,"cut":false,"hidden":false,"merged":[[64,2,64,4],[65,2,65,4],[66,2,66,4],[67,2,67,4],[58,2,58,4],[59,2,59,4],[60,2,60,4],[61,2,61,4],[62,2,62,4],[63,2,63,4],[57,2,57,4],[46,0,46,5],[47,2,47,4],[48,2,48,4],[49,2,49,4],[50,2,50,4],[51,2,51,4],[52,2,52,4],[53,2,53,4],[54,2,54,4],[55,2,55,4],[56,2,56,4],[40,2,45,5],[0,0,1,2],[0,3,1,5],[0,6,1,11],[2,0,2,1],[2,2,2,5]]}
["ELLENA THOMAS",null,null,null,null,null,"Feuille Attachement"]
[]
["2017-01-01",null," fournir avant  Mercredi 04/01  demande de congés pour Février 2017 en fonction des disponibilités",null,null,null,"HS","HS","HS","Total","Nuit","Insalubrité"]
["Jours","Date","Prestations","Confirmations","Prestations  HS","Horaires",0,0,0,{"$f":"SUM(G4:I4)","v":0},0,0]
["Mercredi","2016-12-21",{"$f":"'Planning Mensuel'!X7","v":"ENC NUIT 20H30-02H30"},null,null,null,null,null,null,0]
["Jeudi","2016-12-22",{"$f":"'Planning Mensuel'!X8","v":"ENC NUIT 20H30-02H30"},null,null,null,null,null,null,0]
["Vendredi","2016-12-23",{"$f":"'Planning Mensuel'!X9","v":"ENC NUIT 20H30-02H30"},null,null,null,null,null,null,0]
["Samedi","2016-12-24",{"$f":"'Planning Mensuel'!X10","v":0},null,null,null,null,null,null,0]
["Dimanche","2016-12-25",{"$f":"'Planning Mensuel'!X11","v":0},null,null,null,null,null,null,0]
["Lundi","2016-12-26",{"$f":"'Planning Mensuel'!X12","v":"NICE OUEST"},null,"Nice Ouest","14H-14H30",null,null,null,0]
["Mardi","2016-12-27",{"$f":"'Planning Mensuel'!X13","v":"NICE OUEST"},null,"Nice Ouest","14H-14H30",null,null,null,0]
["Mercredi","2016-12-28",{"$f":"'Planning Mensuel'!X14","v":"NICE OUEST"},null,"Nice Ouest","14H-14H30",null,null,null,0]
["Jeudi","2016-12-29",{"$f":"'Planning Mensuel'!X15","v":"NICE OUEST"},null,"Nice Ouest","14H-14H30",null,null,null,0]
["Vendredi","2016-12-30",{"$f":"'Planning Mensuel'!X16","v":"NICE OUEST"},null,"Nice Ouest","14H-14H30",null,null,null,0]
["Samedi","2016-12-31",{"$f":"'Planning Mensuel'!X17","v":"NICE EST"},null,"Nice Est","8H30-14H30",null,null,null,0]
["Dimanche","2017-01-01",{"$f":"'Planning Mensuel'!X18","v":"Repos"},null,null,null,null,null,null,0]
["Lundi","2017-01-02",{"$f":"'Planning Mensuel'!X19","v":"NICE OUEST"},null,"Nice Ouest","14H-14H30",null,null,null,0]
["Mardi","2017-01-03",{"$f":"'Planning Mensuel'!X20","v":"NICE OUEST"},null,"Nice Ouest","14H-14H30",null,null,null,0]
["Mercredi","2017-01-04",{"$f":"'Planning Mensuel'!X21","v":"NICE OUEST"},null,"Nice Ouest","14H-14H30",null,null,null,0]
["Jeudi","2017-01-05",{"$f":"'Planning Mensuel'!X22","v":"Repos"},null,null,null,null,null,null,0]
["Vendredi","2017-01-06",{"$f":"'Planning Mensuel'!X23","v":"NICE OUEST"},null,"Nice Ouest","14H-14H30",null,null,null,0]
["Samedi","2017-01-07",{"$f":"'Planning Mensuel'!X24","v":"NICE OUEST"},null,"Nice Ouest","14H-14H30",null,null,null,0]
["Dimanche","2017-01-08",{"$f":"'Planning Mensuel'!X25","v":"Repos"},null,null,null,null,null,null,0]
["Lundi","2017-01-09",{"$f":"'Planning Mensuel'!X26","v":"ENC MATIN 5H-12H"},null,null,null,null,null,null,0]
["Mardi","2017-01-10",{"$f":"'Planning Mensuel'!X27","v":"ENC MATIN 5H-12H"},null,null,null,null,null,null,0]
["Mercredi","2017-01-11",{"$f":"'Planning Mensuel'!X28","v":"ENC MATIN 5H-12H"},null,null,null,null,null,null,0]
["Jeudi","2017-01-12",{"$f":"'Planning Mensuel'!X29","v":"ENC MATIN 5H-12H"},null,null,null,null,null,null,0]
["Vendredi","2017-01-13",{"$f":"'Planning Mensuel'!X30","v":"ENC MATIN 5H-12H"},null,null,null,null,null,null,0]
["Samedi","2017-01-14",{"$f":"'Planning Mensuel'!X31","v":"Repos"},null,null,null,null,null,null,0]
["Dimanche","2017-01-15",{"$f":"'Planning Mensuel'!X32","v":"NICE OUEST & VIEUX NICE"},null,"Nice Ouest & Vieux Nice","8H-12H / 13H-19H",null,null,null,0]
["Lundi","2017-01-16",{"$f":"'Planning Mensuel'!X33","v":"ENC NUIT 20H30-02H30"},null,null,null,null,null,null,0]
["Mardi","2017-01-17",{"$f":"'Planning Mensuel'!X34","v":"ENC NUIT 20H30-02H30"},null,null,null,null,null,null,0]
["Mercredi","2017-01-18",{"$f":"'Planning Mensuel'!X35","v":"ENC NUIT 20H30-02H30"},null,null,null,null,null,null,0]
["Jeudi","2017-01-19",{"$f":"'Planning Mensuel'!X36","v":"ENC NUIT 20H30-02H30"},null,null,null,null,null,null,0]
["Vendredi","2017-01-20",{"$f":"'Planning Mensuel'!X37","v":"ENC NUIT 20H30-02H30"},null,null,null,null,null,null,0]
[null,null,null,null,null,null,{"$f":"SUM(G5:G35)","v":0},0,0,0,0,0]
[]
[]
[]
[]
[]
[]
[]
[]
[]
[]
["REMARQUES"]
["Date","heures","Remarques",null,null,"Responsables"]

{"sheet":"FERALIS","index":23,"n_rows":48,"n_cols":12,"rows_kept":48,"cut":false,"hidden":false,"merged":[[68,6,68,10],[58,2,58,4],[59,2,59,4],[60,2,60,4],[61,2,61,4],[62,2,62,4],[63,2,63,4],[64,2,64,4],[65,2,65,4],[66,2,66,4],[67,2,67,4],[68,3,68,5],[57,2,57,4],[46,0,46,5],[47,2,47,4],[48,2,48,4],[49,2,49,4],[50,2,50,4],[51,2,51,4],[52,2,52,4],[53,2,53,4],[54,2,54,4],[55,2,55,4],[56,2,56,4],[40,2,45,5],[0,0,1,2],[0,3,1,5],[0,6,1,11],[2,0,2,1],[2,2,2,5]]}
["FERALIS CECILE",null,null,null,null,null,"Feuille Attachement"]
[]
["2017-01-01",null," fournir avant  Mercredi 04/01  demande de congés pour Février 2017 en fonction des disponibilités",null,null,null,"HS","HS","HS","Total","Nuit","Insalubrité"]
["Jours","Date","Prestations","Confirmations","Prestations  HS","Horaires",0,0,0,{"$f":"SUM(G4:I4)","v":0},0,0]
["Mercredi","2016-12-21",{"$f":"'Planning Mensuel'!AN7","v":"POLY 12H-19H"},null,null,null,null,null,null,0]
["Jeudi","2016-12-22",{"$f":"'Planning Mensuel'!AN8","v":"POLY 12H-19H"},null,null,null,null,null,null,0]
["Vendredi","2016-12-23",{"$f":"'Planning Mensuel'!AN9","v":"POLY 12H-19H"},null,null,null,null,null,null,0]
["Samedi","2016-12-24",{"$f":"'Planning Mensuel'!AN10","v":0},null,null,null,null,null,null,0]
["Dimanche","2016-12-25",{"$f":"'Planning Mensuel'!AN11","v":0},null,null,null,null,null,null,0]
["Lundi","2016-12-26",{"$f":"'Planning Mensuel'!AN12","v":"Congés"},null,null,null,null,null,null,0]
["Mardi","2016-12-27",{"$f":"'Planning Mensuel'!AN13","v":"congés"},null,null,null,null,null,null,0]
["Mercredi","2016-12-28",{"$f":"'Planning Mensuel'!AN14","v":"Congés"},null,null,null,null,null,null,0]
["Jeudi","2016-12-29",{"$f":"'Planning Mensuel'!AN15","v":"Congés"},null,null,null,null,null,null,0]
["Vendredi","2016-12-30",{"$f":"'Planning Mensuel'!AN16","v":"Congés"},null,null,null,null,null,null,0]
["Samedi","2016-12-31",{"$f":"'Planning Mensuel'!AN17","v":0},null,null,null,null,null,null,0]
["Dimanche","2017-01-01",{"$f":"'Planning Mensuel'!AN18","v":0},null,null,null,null,null,null,0]
["Lundi","2017-01-02",{"$f":"'Planning Mensuel'!AN19","v":"12H-19H"},null,null,null,null,null,null,0]
["Mardi","2017-01-03",{"$f":"'Planning Mensuel'!AN20","v":"12H-19H"},null,null,null,null,null,null,0]
["Mercredi","2017-01-04",{"$f":"'Planning Mensuel'!AN21","v":"B. CARTON"},null,null,null,null,null,null,0]
["Jeudi","2017-01-05",{"$f":"'Planning Mensuel'!AN22","v":"12H-19H"},null,null,null,null,null,null,0]
["Vendredi","2017-01-06",{"$f":"'Planning Mensuel'!AN23","v":"Repos"},null,null,null,null,null,null,0]
["Samedi","2017-01-07",{"$f":"'Planning Mensuel'!AN24","v":"7H-12H / 14H-18H"},null,"Polybenne","16H-18H",null,null,null,0]
["Dimanche","2017-01-08",{"$f":"'Planning Mensuel'!AN25","v":0},null,null,null,null,null,null,0]
["Lundi","2017-01-09",{"$f":"'Planning Mensuel'!AN26","v":"POLY 12H-19H"},null,null,null,null,null,null,0]
["Mardi","2017-01-10",{"$f":"'Planning Mensuel'!AN27","v":"POLY 12H-19H"},null,null,null,null,null,null,0]
["Mercredi","2017-01-11",{"$f":"'Planning Mensuel'!AN28","v":"POLY 12H-19H"},null,null,null,null,null,null,0]
["Jeudi","2017-01-12",{"$f":"'Planning Mensuel'!AN29","v":"POLY 12H-19H"},null,null,null,null,null,null,0]
["Vendredi","2017-01-13",{"$f":"'Planning Mensuel'!AN30","v":"POLY 12H-19H"},null,null,null,null,null,null,0]
["Samedi","2017-01-14",{"$f":"'Planning Mensuel'!AN31","v":0},null,null,null,null,null,null,0]
["Dimanche","2017-01-15",{"$f":"'Planning Mensuel'!AN32","v":"CP + POLY 7H-12H"},null,"Cité du Parc & polybenne","7H-12H",null,null,null,0]
["Lundi","2017-01-16",{"$f":"'Planning Mensuel'!AN33","v":"POLY 12H-19H"},null,null,null,null,null,null,0]
["Mardi","2017-01-17",{"$f":"'Planning Mensuel'!AN34","v":"POLY 12H-19H"},null,null,null,null,null,null,0]
["Mercredi","2017-01-18",{"$f":"'Planning Mensuel'!AN35","v":"POLY 12H-19H"},null,null,null,null,null,null,0]
["Jeudi","2017-01-19",{"$f":"'Planning Mensuel'!AN36","v":"POLY 12H-19H"},null,null,null,null,null,null,0]
["Vendredi","2017-01-20",{"$f":"'Planning Mensuel'!AN37","v":"POLY 12H-19H"},null,null,null,null,null,null,0]
[null,null,null,null,null,null,{"$f":"SUM(G5:G35)","v":0},0,0,0,0,0]
[]
[]
[]
[]
[]
[]
[]
[]
[]
[]
["REMARQUES"]
["Date","heures","Remarques",null,null,"Responsables"]

{"sheet":"FERRO","index":24,"n_rows":48,"n_cols":12,"rows_kept":48,"cut":false,"hidden":false,"merged":[[64,2,64,4],[65,2,65,4],[66,2,66,4],[67,2,67,4],[58,2,58,4],[59,2,59,4],[60,2,60,4],[61,2,61,4],[62,2,62,4],[63,2,63,4],[57,2,57,4],[46,0,46,5],[47,2,47,4],[48,2,48,4],[49,2,49,4],[50,2,50,4],[51,2,51,4],[52,2,52,4],[53,2,53,4],[54,2,54,4],[55,2,55,4],[56,2,56,4],[40,2,45,5],[0,0,1,2],[0,3,1,5],[0,6,1,11],[2,0,2,1],[2,2,2,5]]}
["FERRO CLEMENT",null,null,null,null,null,"Feuille Attachement"]
[]
["2017-01-01",null," fournir avant  Mercredi 04/01  demande de congés pour Février 2017 en fonction des disponibilités",null,null,null,"HS","HS","HS","Total","Nuit","Insalubrité"]
["Jours","Date","Prestations","Confirmations","Prestations  HS","Horaires",0,0,0,{"$f":"SUM(G4:I4)","v":0},0,0]
["Mercredi","2016-12-21",{"$f":"'Planning Mensuel'!BD7","v":"Standard 8H-12H/13H-16H30"},null,"Standard ","16H30-17H30",null,null,null,0]
["Jeudi","2016-12-22",{"$f":"'Planning Mensuel'!BD8","v":"Standard 8H-12H/13H-16H30"},null,"Standard ","16H30-17H30",null,null,null,0]
["Vendredi","2016-12-23",{"$f":"'Planning Mensuel'!BD9","v":"Standard 8H-12H/13H-16H30"},null,"Standard ","16H30-17H30",null,null,null,0]
["Samedi","2016-12-24",{"$f":"'Planning Mensuel'!BD10","v":0},null,null,null,null,null,null,0]
["Dimanche","2016-12-25",{"$f":"'Planning Mensuel'!BD11","v":0},null,null,null,null,null,null,0]
["Lundi","2016-12-26",{"$f":"'Planning Mensuel'!BD12","v":"Standard 8H-12H/13H-16H30"},null,"Standard ","16H30-17H30",null,null,null,0]
["Mardi","2016-12-27",{"$f":"'Planning Mensuel'!BD13","v":"Standard 8H-12H/13H-16H30"},null,"Standard ","16H30-17H30",null,null,null,0]
["Mercredi","2016-12-28",{"$f":"'Planning Mensuel'!BD14","v":"Standard 8H-12H/13H-16H30"},null,"Standard ","16H30-17H30",null,null,null,0]
["Jeudi","2016-12-29",{"$f":"'Planning Mensuel'!BD15","v":"Standard 8H-12H/13H-16H30"},null,"Standard ","16H30-17H30",null,null,null,0]
["Vendredi","2016-12-30",{"$f":"'Planning Mensuel'!BD16","v":"Standard 8H-12H/13H-16H30"},null,"Standard ","16H30-17H30",null,null,null,0]
["Samedi","2016-12-31",{"$f":"'Planning Mensuel'!BD17","v":"Repos"},null,null,null,null,null,null,0]
["Dimanche","2017-01-01",{"$f":"'Planning Mensuel'!BD18","v":"Repos"},null,null,null,null,null,null,0]
["Lundi","2017-01-02",{"$f":"'Planning Mensuel'!BD19","v":"Standard 8H-12H/13H-16H30"},null,"Standard ","16H30-17H30",null,null,null,0]
["Mardi","2017-01-03",{"$f":"'Planning Mensuel'!BD20","v":"Standard 8H-12H/13H-16H30"},null,null,null,null,null,null,0]
["Mercredi","2017-01-04",{"$f":"'Planning Mensuel'!BD21","v":"Standard 8H-12H/13H-16H30"},null,null,null,null,null,null,0]
["Jeudi","2017-01-05",{"$f":"'Planning Mensuel'!BD22","v":"Standard 8H-12H/13H-16H30"},null,null,null,null,null,null,0]
["Vendredi","2017-01-06",{"$f":"'Planning Mensuel'!BD23","v":"Standard 8H-12H/13H-16H30"},null,null,null,null,null,null,0]
["Samedi","2017-01-07",{"$f":"'Planning Mensuel'!BD24","v":"Repos"},null,null,null,null,null,null,0]
["Dimanche","2017-01-08",{"$f":"'Planning Mensuel'!BD25","v":"Repos"},null,null,null,null,null,null,0]
["Lundi","2017-01-09",{"$f":"'Planning Mensuel'!BD26","v":"Standard 8H-12H/13H-16H30"},null,"Standard ","16H30-17H30",null,null,null,0]
["Mardi","2017-01-10",{"$f":"'Planning Mensuel'!BD27","v":"Standard 8H-12H/13H-16H30"},null,"Standard ","16H30-17H30",null,null,null,0]
["Mercredi","2017-01-11",{"$f":"'Planning Mensuel'!BD28","v":"Standard 8H-12H/13H-16H30"},null,"Standard ","16H30-17H30",null,null,null,0]
["Jeudi","2017-01-12",{"$f":"'Planning Mensuel'!BD29","v":"Standard 8H-12H/13H-16H30"},null,"Standard ","16H30-17H30",null,null,null,0]
["Vendredi","2017-01-13",{"$f":"'Planning Mensuel'!BD30","v":"Standard 8H-12H/13H-16H30"},null,"Standard ","16H30-17H30",null,null,null,0]
["Samedi","2017-01-14",{"$f":"'Planning Mensuel'!BD31","v":"Repos"},null,null,null,null,null,null,0]
["Dimanche","2017-01-15",{"$f":"'Planning Mensuel'!BD32","v":"Repos"},null,null,null,null,null,null,0]
["Lundi","2017-01-16",{"$f":"'Planning Mensuel'!BD33","v":"Standard 8H-12H/13H-16H30"},null,null,null,null,null,null,0]
["Mardi","2017-01-17",{"$f":"'Planning Mensuel'!BD34","v":"Standard 8H-12H/13H-16H30"},null,null,null,null,null,null,0]
["Mercredi","2017-01-18",{"$f":"'Planning Mensuel'!BD35","v":"Standard 8H-12H/13H-16H30"},null,null,null,null,null,null,0]
["Jeudi","2017-01-19",{"$f":"'Planning Mensuel'!BD36","v":"Standard 8H-12H/13H-16H30"},null,null,null,null,null,null,0]
["Vendredi","2017-01-20",{"$f":"'Planning Mensuel'!BD37","v":"Standard 8H-12H/13H-16H30"},null,null,null,null,null,null,0]
[null,null,null,null,null,null,{"$f":"SUM(G5:G35)","v":0},0,0,0,0,0]
[]
[]
[]
[]
[]
[]
[]
[]
[]
[]
["REMARQUES"]
["Date","heures","Remarques",null,null,"Responsables"]

{"sheet":"FIORUCCI","index":25,"n_rows":48,"n_cols":12,"rows_kept":48,"cut":false,"hidden":false,"merged":[[64,2,64,4],[65,2,65,4],[66,2,66,4],[67,2,67,4],[58,2,58,4],[59,2,59,4],[60,2,60,4],[61,2,61,4],[62,2,62,4],[63,2,63,4],[57,2,57,4],[46,0,46,5],[47,2,47,4],[48,2,48,4],[49,2,49,4],[50,2,50,4],[51,2,51,4],[52,2,52,4],[53,2,53,4],[54,2,54,4],[55,2,55,4],[56,2,56,4],[40,2,45,5],[0,0,1,2],[0,3,1,5],[0,6,1,11],[2,0,2,1],[2,2,2,5]]}
["FIORUCCI ALAIN",null,null,null,null,null,"Feuille Attachement"]
[]
["2017-01-01",null," fournir avant  Mercredi 04/01  demande de congés pour Février 2017 en fonction des disponibilités",null,null,null,"HS","HS","HS","Total","Nuit","Insalubrité"]
["Jours","Date","Prestations","Confirmations","Prestations  HS","Horaires",0,0,0,{"$f":"SUM(G4:I4)","v":0},0,0]
["Mercredi","2016-12-21",{"$f":"'Planning Mensuel'!AV7","v":"Contrôle 19H-02H30"},null,null,null,null,null,null,0]
["Jeudi","2016-12-22",{"$f":"'Planning Mensuel'!AV8","v":"Contrôle 19H-02H30"},null,null,null,null,null,null,0]
["Vendredi","2016-12-23",{"$f":"'Planning Mensuel'!AV9","v":"Contrôle 19H-02H30"},null,null,null,null,null,null,0]
["Samedi","2016-12-24",{"$f":"'Planning Mensuel'!AV10","v":0},null,null,null,null,null,null,0]
["Dimanche","2016-12-25",{"$f":"'Planning Mensuel'!AV11","v":"Contrôle OM 20H-02H"},null,"Contröle OM","20H-02H",null,2,4,6]
["Lundi","2016-12-26",{"$f":"'Planning Mensuel'!AV12","v":"Contrôle 19H-02H30"},null,null,null,null,null,null,0]
["Mardi","2016-12-27",{"$f":"'Planning Mensuel'!AV13","v":"Contrôle 19H-02H30"},null,null,null,null,null,null,0]
["Mercredi","2016-12-28",{"$f":"'Planning Mensuel'!AV14","v":"Contrôle 19H-02H30"},null,null,null,null,null,null,0]
["Jeudi","2016-12-29",{"$f":"'Planning Mensuel'!AV15","v":"Repos"},null,null,null,null,null,null,0]
["Vendredi","2016-12-30",{"$f":"'Planning Mensuel'!AV16","v":"Contrôle 19H-02H30"},null,null,null,null,null,null,0]
["Samedi","2016-12-31",{"$f":"'Planning Mensuel'!AV17","v":"Contrôle Enc 5H-11H"},null,"Contrôle encombrants","03H-05H",null,null,2,2]
["Dimanche","2017-01-01",{"$f":"'Planning Mensuel'!AV18","v":"Contrôle Enc 5H-11H"},null,"Contôle Encombrants","5H-11H",null,4,2,6]
["Lundi","2017-01-02",{"$f":"'Planning Mensuel'!AV19","v":"Contrôle 19H-02H30"},null,null,null,null,null,null,0]
["Mardi","2017-01-03",{"$f":"'Planning Mensuel'!AV20","v":"Contrôle 19H-02H30"},null,null,null,null,null,null,0]
["Mercredi","2017-01-04",{"$f":"'Planning Mensuel'!AV21","v":"Congés"},null,null,null,null,null,null,0]
["Jeudi","2017-01-05",{"$f":"'Planning Mensuel'!AV22","v":"Contrôle 19H-02H30"},null,null,null,null,null,null,0]
["Vendredi","2017-01-06",{"$f":"'Planning Mensuel'!AV23","v":"Contrôle 19H-02H30"},null,null,null,null,null,null,0]
["Samedi","2017-01-07",{"$f":"'Planning Mensuel'!AV24","v":"Repos"},null,null,null,null,null,null,0]
["Dimanche","2017-01-08",{"$f":"'Planning Mensuel'!AV25","v":"Contrôle OM 20H-02H"},null,"Contröle OM","20H-02H",null,null,4,4]
["Lundi","2017-01-09",{"$f":"'Planning Mensuel'!AV26","v":"Contrôle 19H-02H30"},null,null,null,null,null,null,0]
["Mardi","2017-01-10",{"$f":"'Planning Mensuel'!AV27","v":"Contrôle 19H-02H30"},null,null,null,null,null,null,0]
["Mercredi","2017-01-11",{"$f":"'Planning Mensuel'!AV28","v":"Contrôle 19H-02H30"},null,null,null,null,null,null,0]
["Jeudi","2017-01-12",{"$f":"'Planning Mensuel'!AV29","v":"Contrôle 19H-02H30"},null,null,null,null,null,null,0]
["Vendredi","2017-01-13",{"$f":"'Planning Mensuel'!AV30","v":"Contrôle 19H-02H30"},null,null,null,null,null,null,0]
["Samedi","2017-01-14",{"$f":"'Planning Mensuel'!AV31","v":"Repos"},null,null,null,null,null,null,0]
["Dimanche","2017-01-15",{"$f":"'Planning Mensuel'!AV32","v":"Repos"},null,null,null,null,null,null,0]
["Lundi","2017-01-16",{"$f":"'Planning Mensuel'!AV33","v":"Contrôle 19H-02H30"},null,null,null,null,null,null,0]
["Mardi","2017-01-17",{"$f":"'Planning Mensuel'!AV34","v":"Contrôle 13H-20H"},null,"Contrôle PM","22H-02H",null,null,4,4]
["Mercredi","2017-01-18",{"$f":"'Planning Mensuel'!AV35","v":"Contrôle 19H-02H30"},null,null,null,null,null,null,0]
["Jeudi","2017-01-19",{"$f":"'Planning Mensuel'!AV36","v":"Contrôle 19H-02H30"},null,null,null,null,null,null,0]
["Vendredi","2017-01-20",{"$f":"'Planning Mensuel'!AV37","v":"Contrôle 19H-02H30"},null,null,null,null,null,null,0]
[null,null,null,null,null,null,{"$f":"SUM(G5:G35)","v":0},6,16,22,0,0]
[]
[]
[]
[]
[]
[]
[]
[]
[]
[]
["REMARQUES"]
["Date","heures","Remarques",null,null,"Responsables"]

{"sheet":"FRENDO","index":26,"n_rows":49,"n_cols":12,"rows_kept":49,"cut":false,"hidden":false,"merged":[[64,2,64,4],[65,2,65,4],[66,2,66,4],[67,2,67,4],[58,2,58,4],[59,2,59,4],[60,2,60,4],[61,2,61,4],[62,2,62,4],[63,2,63,4],[57,2,57,4],[46,0,46,5],[47,2,47,4],[48,2,48,4],[49,2,49,4],[50,2,50,4],[51,2,51,4],[52,2,52,4],[53,2,53,4],[54,2,54,4],[55,2,55,4],[56,2,56,4],[40,2,45,5],[0,0,1,2],[0,3,1,5],[0,6,1,11],[2,0,2,1],[2,2,2,5]]}
["FRENDO MATHIEU",null,null,null,null,null,"Feuille Attachement"]
[]
["2017-01-01",null," fournir avant  Mercredi 04/01  demande de congés pour Février 2017 en fonction des disponibilités",null,null,null,"HS","HS","HS","Total","Nuit","Insalubrité"]
["Jours","Date","Prestations","Confirmations","Prestations  HS","Horaires",0,0,0,{"$f":"SUM(G4:I4)","v":0},0,0]
["Mercredi","2016-12-21",{"$f":"'Planning Mensuel'!D7","v":"NICE EST"},null,null,null,null,null,null,0]
["Jeudi","2016-12-22",{"$f":"'Planning Mensuel'!D8","v":"NICE EST"},null,null,null,null,null,null,0]
["Vendredi","2016-12-23",{"$f":"'Planning Mensuel'!D9","v":"NICE EST"},null,null,null,null,null,null,0]
["Samedi","2016-12-24",{"$f":"'Planning Mensuel'!D10","v":0},null,null,null,null,null,null,0]
["Dimanche","2016-12-25",{"$f":"'Planning Mensuel'!D11","v":0},null,null,null,null,null,null,0]
["Lundi","2016-12-26",{"$f":"'Planning Mensuel'!D12","v":"NICE EST"},null,null,null,null,null,null,0]
["Mardi","2016-12-27",{"$f":"'Planning Mensuel'!D13","v":"NICE EST"},null,null,null,null,null,null,0]
["Mercredi","2016-12-28",{"$f":"'Planning Mensuel'!D14","v":"NICE EST"},null,null,null,null,null,null,0]
["Jeudi","2016-12-29",{"$f":"'Planning Mensuel'!D15","v":"NICE EST"},null,null,null,null,null,null,0]
["Vendredi","2016-12-30",{"$f":"'Planning Mensuel'!D16","v":"NICE EST"},null,null,null,null,null,null,0]
["Samedi","2016-12-31",{"$f":"'Planning Mensuel'!D17","v":"Repos"},null,null,null,null,null,null,0]
["Dimanche","2017-01-01",{"$f":"'Planning Mensuel'!D18","v":"Repos"},null,null,null,null,null,null,0]
["Lundi","2017-01-02",{"$f":"'Planning Mensuel'!D19","v":"NICE EST"},null,null,null,null,null,null,0]
["Mardi","2017-01-03",{"$f":"'Planning Mensuel'!D20","v":"NICE EST"},null,null,null,null,null,null,0]
["Mercredi","2017-01-04",{"$f":"'Planning Mensuel'!D21","v":"Repos"},null,null,null,null,null,null,0]
["Jeudi","2017-01-05",{"$f":"'Planning Mensuel'!D22","v":"NICE EST"},null,null,null,null,null,null,0]
["Vendredi","2017-01-06",{"$f":"'Planning Mensuel'!D23","v":"NICE EST"},null,null,null,null,null,null,0]
["Samedi","2017-01-07",{"$f":"'Planning Mensuel'!D24","v":"NICE EST"},null,null,null,null,null,null,0]
["Dimanche","2017-01-08",{"$f":"'Planning Mensuel'!D25","v":0},null,null,null,null,null,null,0]
["Lundi","2017-01-09",{"$f":"'Planning Mensuel'!D26","v":"NICE EST"},null,null,null,null,null,null,0]
["Mardi","2017-01-10",{"$f":"'Planning Mensuel'!D27","v":"NICE EST"},null,null,null,null,null,null,0]
["Mercredi","2017-01-11",{"$f":"'Planning Mensuel'!D28","v":"NICE EST"},null,null,null,null,null,null,0]
["Jeudi","2017-01-12",{"$f":"'Planning Mensuel'!D29","v":"NICE EST"},null,null,null,null,null,null,0]
["Vendredi","2017-01-13",{"$f":"'Planning Mensuel'!D30","v":"NICE EST"},null,null,null,null,null,null,0]
["Samedi","2017-01-14",{"$f":"'Planning Mensuel'!D31","v":"Repos"},null,null,null,null,null,null,0]
["Dimanche","2017-01-15",{"$f":"'Planning Mensuel'!D32","v":"NICE EST"},null,null,null,null,null,null,0]
["Lundi","2017-01-16",{"$f":"'Planning Mensuel'!D33","v":"NICE EST"},null,null,null,null,null,null,0]
["Mardi","2017-01-17",{"$f":"'Planning Mensuel'!D34","v":"NICE EST"},null,null,null,null,null,null,0]
["Mercredi","2017-01-18",{"$f":"'Planning Mensuel'!D35","v":"NICE EST"},null,null,null,null,null,null,0]
["Jeudi","2017-01-19",{"$f":"'Planning Mensuel'!D36","v":"NICE EST"},null,null,null,null,null,null,0]
["Vendredi","2017-01-20",{"$f":"'Planning Mensuel'!D37","v":"NICE EST"},null,null,null,null,null,null,0]
[null,null,null,null,null,null,{"$f":"SUM(G5:G35)","v":0},0,0,0,0,0]
[]
[]
[]
[]
[null,null,"Fin astreinte 21/11/2016"]
[]
[]
[]
[]
[]
["REMARQUES"]
["Date","heures","Remarques",null,null,"Responsables"]
["2016-03-21","09H25","Arrivée à 9H25 sur la déchetterie Nice Est",null,null,"Corvisier"]

{"sheet":"GANDOLIN","index":27,"n_rows":48,"n_cols":12,"rows_kept":48,"cut":false,"hidden":false,"merged":[[64,2,64,4],[65,2,65,4],[66,2,66,4],[67,2,67,4],[58,2,58,4],[59,2,59,4],[60,2,60,4],[61,2,61,4],[62,2,62,4],[63,2,63,4],[57,2,57,4],[46,0,46,5],[47,2,47,4],[48,2,48,4],[49,2,49,4],[50,2,50,4],[51,2,51,4],[52,2,52,4],[53,2,53,4],[54,2,54,4],[55,2,55,4],[56,2,56,4],[40,2,45,5],[0,0,1,2],[0,3,1,5],[0,6,1,11],[2,0,2,1],[2,2,2,5]]}
["GANDOLIN ADRIEN",null,null,null,null,null,"Feuille Attachement"]
[]
["2017-01-01",null," fournir avant  Mercredi 04/01  demande de congés pour Février 2017 en fonction des disponibilités",null,null,null,"HS","HS","HS","Total","Nuit","Insalubrité"]
["Jours","Date","Prestations","Confirmations","Prestations  HS","Horaires",0,0,0,{"$f":"SUM(G4:I4)","v":0},0,0]
["Mercredi","2016-12-21",{"$f":"'Planning Mensuel'!Y7","v":"ENC MATIN 5H-12H"},null,null,null,null,null,null,0]
["Jeudi","2016-12-22",{"$f":"'Planning Mensuel'!Y8","v":"Repos"},null,null,null,null,null,null,0]
["Vendredi","2016-12-23",{"$f":"'Planning Mensuel'!Y9","v":"ENC MATIN 5H-12H"},null,null,null,null,null,null,0]
["Samedi","2016-12-24",{"$f":"'Planning Mensuel'!Y10","v":"NICE EST"},null,null,null,null,null,null,0]
["Dimanche","2016-12-25",{"$f":"'Planning Mensuel'!Y11","v":0},null,null,null,null,null,null,0]
["Lundi","2016-12-26",{"$f":"'Planning Mensuel'!Y12","v":"ENC NUIT 20H30-02H30"},null,null,null,null,null,null,0]
["Mardi","2016-12-27",{"$f":"'Planning Mensuel'!Y13","v":"ENC NUIT 20H30-02H30"},null,null,null,null,null,null,0]
["Mercredi","2016-12-28",{"$f":"'Planning Mensuel'!Y14","v":"ENC NUIT 20H30-02H30"},null,null,null,null,null,null,0]
["Jeudi","2016-12-29",{"$f":"'Planning Mensuel'!Y15","v":"ENC NUIT 20H30-02H30"},null,null,null,null,null,null,0]
["Vendredi","2016-12-30",{"$f":"'Planning Mensuel'!Y16","v":"ENC NUIT 20H30-02H30"},null,null,null,null,null,null,0]
["Samedi","2016-12-31",{"$f":"'Planning Mensuel'!Y17","v":"Repos"},null,null,null,null,null,null,0]
["Dimanche","2017-01-01",{"$f":"'Planning Mensuel'!Y18","v":"Repos"},null,null,null,null,null,null,0]
["Lundi","2017-01-02",{"$f":"'Planning Mensuel'!Y19","v":"ENC NUIT 20H30-02H30"},null,null,null,null,null,null,0]
["Mardi","2017-01-03",{"$f":"'Planning Mensuel'!Y20","v":"ENC NUIT 20H30-02H30"},null,null,null,null,null,null,0]
["Mercredi","2017-01-04",{"$f":"'Planning Mensuel'!Y21","v":"ENC NUIT 20H30-02H30"},null,null,null,null,null,null,0]
["Jeudi","2017-01-05",{"$f":"'Planning Mensuel'!Y22","v":"ENC NUIT 20H30-02H30"},null,null,null,null,null,null,0]
["Vendredi","2017-01-06",{"$f":"'Planning Mensuel'!Y23","v":"ENC NUIT 20H30-02H30"},null,null,null,null,null,null,0]
["Samedi","2017-01-07",{"$f":"'Planning Mensuel'!Y24","v":"Repos"},null,null,null,null,null,null,0]
["Dimanche","2017-01-08",{"$f":"'Planning Mensuel'!Y25","v":"V.N.  Après Midi"},null,"Vieux Nice ","13H-19H",null,null,null,0]
["Lundi","2017-01-09",{"$f":"'Planning Mensuel'!Y26","v":"ENC NUIT 20H30-02H30"},null,null,null,null,null,null,0]
["Mardi","2017-01-10",{"$f":"'Planning Mensuel'!Y27","v":"ENC NUIT 20H30-02H30"},null,null,null,null,null,null,0]
["Mercredi","2017-01-11",{"$f":"'Planning Mensuel'!Y28","v":"ENC NUIT 20H30-02H30"},null,null,null,null,null,null,0]
["Jeudi","2017-01-12",{"$f":"'Planning Mensuel'!Y29","v":"ENC NUIT 20H30-02H30"},null,null,null,null,null,null,0]
["Vendredi","2017-01-13",{"$f":"'Planning Mensuel'!Y30","v":"ENC NUIT 20H30-02H30"},null,null,null,null,null,null,0]
["Samedi","2017-01-14",{"$f":"'Planning Mensuel'!Y31","v":"Repos"},null,null,null,null,null,null,0]
["Dimanche","2017-01-15",{"$f":"'Planning Mensuel'!Y32","v":"V.N.  Matin"},null,"Vieux Nice","05H-11H",null,null,null,0]
["Lundi","2017-01-16",{"$f":"'Planning Mensuel'!Y33","v":"ENC MATIN 5H-12H"},null,null,null,null,null,null,0]
["Mardi","2017-01-17",{"$f":"'Planning Mensuel'!Y34","v":"ENC MATIN 5H-12H"},null,null,null,null,null,null,0]
["Mercredi","2017-01-18",{"$f":"'Planning Mensuel'!Y35","v":"ENC MATIN 5H-12H"},null,null,null,null,null,null,0]
["Jeudi","2017-01-19",{"$f":"'Planning Mensuel'!Y36","v":"Repos"},null,null,null,null,null,null,0]
["Vendredi","2017-01-20",{"$f":"'Planning Mensuel'!Y37","v":"ENC MATIN 5H-12H"},null,null,null,null,null,null,0]
[null,null,null,null,null,null,{"$f":"SUM(G5:G35)","v":0},0,0,0,0,0]
[]
[]
[]
[]
[null,null,"Travailleras le samedi 21/01"]
[]
[]
[]
[]
[]
["REMARQUES"]
["Date","heures","Remarques",null,null,"Responsables"]

{"sheet":"GLASKOFF","index":28,"n_rows":51,"n_cols":12,"rows_kept":51,"cut":false,"hidden":false,"merged":[[64,2,64,4],[65,2,65,4],[66,2,66,4],[67,2,67,4],[58,2,58,4],[59,2,59,4],[60,2,60,4],[61,2,61,4],[62,2,62,4],[63,2,63,4],[57,2,57,4],[46,0,46,5],[47,2,47,4],[48,2,48,4],[49,2,49,4],[50,2,50,4],[51,2,51,4],[52,2,52,4],[53,2,53,4],[54,2,54,4],[55,2,55,4],[56,2,56,4],[40,2,45,5],[0,0,1,2],[0,3,1,5],[0,6,1,11],[2,0,2,1],[2,2,2,5]]}
["GLASKOFF HERVE",null,null,null,null,null,"Feuille Attachement"]
[]
["2017-01-01",null," fournir avant  Mercredi 04/01  demande de congés pour Février 2017 en fonction des disponibilités",null,null,null,"HS","HS","HS","Total","Nuit","Insalubrité"]
["Jours","Date","Prestations","Confirmations","Prestations  HS","Horaires",0,0,0,{"$f":"SUM(G4:I4)","v":0},0,0]
["Mercredi","2016-12-21",{"$f":"'Planning Mensuel'!B7","v":"B. CARTON"},null,null,null,null,null,null,0]
["Jeudi","2016-12-22",{"$f":"'Planning Mensuel'!B8","v":"B. CARTON"},null,null,null,null,null,null,0]
["Vendredi","2016-12-23",{"$f":"'Planning Mensuel'!B9","v":"B. CARTON"},null,null,null,null,null,null,0]
["Samedi","2016-12-24",{"$f":"'Planning Mensuel'!B10","v":0},null,null,null,null,null,null,0]
["Dimanche","2016-12-25",{"$f":"'Planning Mensuel'!B11","v":0},null,null,null,null,null,null,0]
["Lundi","2016-12-26",{"$f":"'Planning Mensuel'!B12","v":"Congés"},null,null,null,null,null,null,0]
["Mardi","2016-12-27",{"$f":"'Planning Mensuel'!B13","v":"Congés"},null,null,null,null,null,null,0]
["Mercredi","2016-12-28",{"$f":"'Planning Mensuel'!B14","v":"Congés"},null,null,null,null,null,null,0]
["Jeudi","2016-12-29",{"$f":"'Planning Mensuel'!B15","v":"Congés"},null,null,null,null,null,null,0]
["Vendredi","2016-12-30",{"$f":"'Planning Mensuel'!B16","v":"Congés"},null,null,null,null,null,null,0]
["Samedi","2016-12-31",{"$f":"'Planning Mensuel'!B17","v":"Congés"},null,null,null,null,null,null,0]
["Dimanche","2017-01-01",{"$f":"'Planning Mensuel'!B18","v":"Congés"},null,null,null,null,null,null,0]
["Lundi","2017-01-02",{"$f":"'Planning Mensuel'!B19","v":"B. CARTON"},null,null,null,null,null,null,0]
["Mardi","2017-01-03",{"$f":"'Planning Mensuel'!B20","v":"Repos"},null,null,null,null,null,null,0]
["Mercredi","2017-01-04",{"$f":"'Planning Mensuel'!B21","v":"B. CARTON"},null,null,null,null,null,null,0]
["Jeudi","2017-01-05",{"$f":"'Planning Mensuel'!B22","v":"B. CARTON"},null,null,null,null,null,null,0]
["Vendredi","2017-01-06",{"$f":"'Planning Mensuel'!B23","v":"B. CARTON"},null,null,null,null,null,null,0]
["Samedi","2017-01-07",{"$f":"'Planning Mensuel'!B24","v":"NICE OUEST"},null,null,null,null,null,null,0]
["Dimanche","2017-01-08",{"$f":"'Planning Mensuel'!B25","v":0},null,null,null,null,null,null,0]
["Lundi","2017-01-09",{"$f":"'Planning Mensuel'!B26","v":"B. CARTON"},null,null,null,null,null,null,0]
["Mardi","2017-01-10",{"$f":"'Planning Mensuel'!B27","v":"B. CARTON"},null,null,null,null,null,null,0]
["Mercredi","2017-01-11",{"$f":"'Planning Mensuel'!B28","v":"B. CARTON"},null,null,null,null,null,null,0]
["Jeudi","2017-01-12",{"$f":"'Planning Mensuel'!B29","v":"B. CARTON"},null,null,null,null,null,null,0]
["Vendredi","2017-01-13",{"$f":"'Planning Mensuel'!B30","v":"B. CARTON"},null,null,null,null,null,null,0]
["Samedi","2017-01-14",{"$f":"'Planning Mensuel'!B31","v":"Repos"},null,null,null,null,null,null,0]
["Dimanche","2017-01-15",{"$f":"'Planning Mensuel'!B32","v":"V.N.  Après Midi"},null,"Vieux Nice","13H-19H",null,null,null,0]
["Lundi","2017-01-16",{"$f":"'Planning Mensuel'!B33","v":"B. CARTON"},null,null,null,null,null,null,0]
["Mardi","2017-01-17",{"$f":"'Planning Mensuel'!B34","v":"B. CARTON"},null,null,null,null,null,null,0]
["Mercredi","2017-01-18",{"$f":"'Planning Mensuel'!B35","v":"B. CARTON"},null,null,null,null,null,null,0]
["Jeudi","2017-01-19",{"$f":"'Planning Mensuel'!B36","v":"B. CARTON"},null,null,null,null,null,null,0]
["Vendredi","2017-01-20",{"$f":"'Planning Mensuel'!B37","v":"B. CARTON"},null,null,null,null,null,null,0]
[null,null,null,null,null,null,{"$f":"SUM(G5:G35)","v":0},0,0,0,0,0]
[]
[]
[]
[]
[]
[]
[]
[]
[]
[]
["REMARQUES"]
["Date","heures","Remarques",null,null,"Responsables"]
["2016-08-17","14H30","Départ à 14H30 des cartons",null,null,"Arnaud"]
["2016-10-01","8H40","Arrivée à 8H40 sur Nice Est",null,null,"Cirimele"]
["2016-11-12","8H45","Arrivée à 8H40 sur Nice Est ",null,null,"Cirimele"]

{"sheet":"GUIZANI","index":29,"n_rows":50,"n_cols":12,"rows_kept":50,"cut":false,"hidden":false,"merged":[[64,2,64,4],[65,2,65,4],[66,2,66,4],[67,2,67,4],[58,2,58,4],[59,2,59,4],[60,2,60,4],[61,2,61,4],[62,2,62,4],[63,2,63,4],[57,2,57,4],[46,0,46,5],[47,2,47,4],[48,2,48,4],[49,2,49,4],[50,2,50,4],[51,2,51,4],[52,2,52,4],[53,2,53,4],[54,2,54,4],[55,2,55,4],[56,2,56,4],[40,2,45,5],[0,0,1,2],[0,3,1,5],[0,6,1,11],[2,0,2,1],[2,2,2,5]]}
["GUIZANI SAMI",null,null,null,null,null,"Feuille Attachement"]
[]
["2017-01-01",null," fournir avant  Mercredi 04/01  demande de congés pour Février 2017 en fonction des disponibilités",null,null,null,"HS","HS","HS","Total","Nuit","Insalubrité"]
["Jours","Date","Prestations","Confirmations","Prestations  HS","Horaires",0,0,0,{"$f":"SUM(G4:I4)","v":0},0,0]
["Mercredi","2016-12-21",{"$f":"'Planning Mensuel'!L7","v":"CARTON MATIN"},null,null,null,null,null,null,0]
["Jeudi","2016-12-22",{"$f":"'Planning Mensuel'!L8","v":"CARTON MATIN"},null,null,null,null,null,null,0]
["Vendredi","2016-12-23",{"$f":"'Planning Mensuel'!L9","v":"Repos"},"CARTON MATIN",null,null,null,null,null,0]
["Samedi","2016-12-24",{"$f":"'Planning Mensuel'!L10","v":"EST"},null,"NICE EST","8H30-14H",null,null,null,0]
["Dimanche","2016-12-25",{"$f":"'Planning Mensuel'!L11","v":0},null,null,null,null,null,null,0]
["Lundi","2016-12-26",{"$f":"'Planning Mensuel'!L12","v":"CARTON MATIN"},null,null,null,null,null,null,0]
["Mardi","2016-12-27",{"$f":"'Planning Mensuel'!L13","v":"CARTON MATIN"},null,null,null,null,null,null,0]
["Mercredi","2016-12-28",{"$f":"'Planning Mensuel'!L14","v":"CARTON MATIN"},null,null,null,null,null,null,0]
["Jeudi","2016-12-29",{"$f":"'Planning Mensuel'!L15","v":"CARTON MATIN"},null,null,null,null,null,null,0]
["Vendredi","2016-12-30",{"$f":"'Planning Mensuel'!L16","v":"CARTON MATIN"},null,null,null,null,null,null,0]
["Samedi","2016-12-31",{"$f":"'Planning Mensuel'!L17","v":"Repos"},null,null,null,null,null,null,0]
["Dimanche","2017-01-01",{"$f":"'Planning Mensuel'!L18","v":"V.N.  Après Midi"},null,"Vieux Nice","14H-19H",null,null,null,0]
["Lundi","2017-01-02",{"$f":"'Planning Mensuel'!L19","v":"CARTON MATIN"},null,null,null,null,null,null,0]
["Mardi","2017-01-03",{"$f":"'Planning Mensuel'!L20","v":"CARTON MATIN"},null,null,null,null,null,null,0]
["Mercredi","2017-01-04",{"$f":"'Planning Mensuel'!L21","v":"CARTON MATIN"},null,null,null,null,null,null,0]
["Jeudi","2017-01-05",{"$f":"'Planning Mensuel'!L22","v":"CARTON MATIN"},null,null,null,null,null,null,0]
["Vendredi","2017-01-06",{"$f":"'Planning Mensuel'!L23","v":"CARTON MATIN"},null,null,null,null,null,null,0]
["Samedi","2017-01-07",{"$f":"'Planning Mensuel'!L24","v":0},null,null,null,null,null,null,0]
["Dimanche","2017-01-08",{"$f":"'Planning Mensuel'!L25","v":0},null,null,null,null,null,null,0]
["Lundi","2017-01-09",{"$f":"'Planning Mensuel'!L26","v":"CARTON MATIN"},null,null,null,null,null,null,0]
["Mardi","2017-01-10",{"$f":"'Planning Mensuel'!L27","v":"CARTON MATIN"},null,null,null,null,null,null,0]
["Mercredi","2017-01-11",{"$f":"'Planning Mensuel'!L28","v":"CARTON MATIN"},null,null,null,null,null,null,0]
["Jeudi","2017-01-12",{"$f":"'Planning Mensuel'!L29","v":"CARTON MATIN"},null,null,null,null,null,null,0]
["Vendredi","2017-01-13",{"$f":"'Planning Mensuel'!L30","v":"CARTON MATIN"},null,null,null,null,null,null,0]
["Samedi","2017-01-14",{"$f":"'Planning Mensuel'!L31","v":"Repos"},null,null,null,null,null,null,0]
["Dimanche","2017-01-15",{"$f":"'Planning Mensuel'!L32","v":"NICE NORD & VIEUX NICE"},null,"Nice Est & Vieux Nice","8H-12H / 13H-19H",null,null,null,0]
["Lundi","2017-01-16",{"$f":"'Planning Mensuel'!L33","v":"CARTON MATIN"},null,null,null,null,null,null,0]
["Mardi","2017-01-17",{"$f":"'Planning Mensuel'!L34","v":"CARTON MATIN"},null,null,null,null,null,null,0]
["Mercredi","2017-01-18",{"$f":"'Planning Mensuel'!L35","v":"CARTON MATIN"},null,null,null,null,null,null,0]
["Jeudi","2017-01-19",{"$f":"'Planning Mensuel'!L36","v":"CARTON MATIN"},null,null,null,null,null,null,0]
["Vendredi","2017-01-20",{"$f":"'Planning Mensuel'!L37","v":"CARTON MATIN"},null,null,null,null,null,null,0]
[null,null,null,null,null,null,{"$f":"SUM(G5:G35)","v":0},0,0,0,0,0]
[]
[]
[]
[]
[null,null,"Formation 3/11,17/11,24/11,01/12,08/12,15/12\nCongés du 22/10/2016 au 29/10/2016\n"]
[]
[]
[]
[]
[]
["REMARQUES"]
["Date","heures","Remarques",null,null,"Responsables"]
["2015-12-30","7H","Pas de chaussures de sécurité à la prise de service",null,null,"Corvisier"]
["2016-09-09","12H","Pas de chaussures de sécurité à la prise de service",null,null,"Corvisier"]

{"sheet":"ISOARD","index":30,"n_rows":48,"n_cols":12,"rows_kept":48,"cut":false,"hidden":false,"merged":[[64,2,64,4],[65,2,65,4],[66,2,66,4],[67,2,67,4],[58,2,58,4],[59,2,59,4],[60,2,60,4],[61,2,61,4],[62,2,62,4],[63,2,63,4],[57,2,57,4],[46,0,46,5],[47,2,47,4],[48,2,48,4],[49,2,49,4],[50,2,50,4],[51,2,51,4],[52,2,52,4],[53,2,53,4],[54,2,54,4],[55,2,55,4],[56,2,56,4],[40,2,45,5],[0,0,1,2],[0,3,1,5],[0,6,1,11],[2,0,2,1],[2,2,2,5]]}
["ISOARD NICOLAS",null,null,null,null,null,"Feuille Attachement"]
[]
["2017-01-01",null," fournir avant  Mercredi 04/01  demande de congés pour Février 2017 en fonction des disponibilités",null,null,null,"HS","HS","HS","Total","Nuit","Insalubrité"]
["Jours","Date","Prestations","Confirmations","Prestations  HS","Horaires",0,0,0,{"$f":"SUM(G4:I4)","v":0},0,0]
["Mercredi","2016-12-21",{"$f":"'Planning Mensuel'!AG7","v":0},null,null,null,null,null,null,0]
["Jeudi","2016-12-22",{"$f":"'Planning Mensuel'!AG8","v":0},null,null,null,null,null,null,0]
["Vendredi","2016-12-23",{"$f":"'Planning Mensuel'!AG9","v":0},null,null,null,null,null,null,0]
["Samedi","2016-12-24",{"$f":"'Planning Mensuel'!AG10","v":0},null,null,null,null,null,null,0]
["Dimanche","2016-12-25",{"$f":"'Planning Mensuel'!AG11","v":0},null,null,null,null,null,null,0]
["Lundi","2016-12-26",{"$f":"'Planning Mensuel'!AG12","v":0},null,null,null,null,null,null,0]
["Mardi","2016-12-27",{"$f":"'Planning Mensuel'!AG13","v":0},null,null,null,null,null,null,0]
["Mercredi","2016-12-28",{"$f":"'Planning Mensuel'!AG14","v":0},null,null,null,null,null,null,0]
["Jeudi","2016-12-29",{"$f":"'Planning Mensuel'!AG15","v":0},null,null,null,null,null,null,0]
["Vendredi","2016-12-30",{"$f":"'Planning Mensuel'!AG16","v":0},null,null,null,null,null,null,0]
["Samedi","2016-12-31",{"$f":"'Planning Mensuel'!AG17","v":0},null,null,null,null,null,null,0]
["Dimanche","2017-01-01",{"$f":"'Planning Mensuel'!AG18","v":0},null,null,null,null,null,null,0]
["Lundi","2017-01-02",{"$f":"'Planning Mensuel'!AG19","v":0},null,null,null,null,null,null,0]
["Mardi","2017-01-03",{"$f":"'Planning Mensuel'!AG20","v":0},null,null,null,null,null,null,0]
["Mercredi","2017-01-04",{"$f":"'Planning Mensuel'!AG21","v":0},null,null,null,null,null,null,0]
["Jeudi","2017-01-05",{"$f":"'Planning Mensuel'!AG22","v":0},null,null,null,null,null,null,0]
["Vendredi","2017-01-06",{"$f":"'Planning Mensuel'!AG23","v":0},null,null,null,null,null,null,0]
["Samedi","2017-01-07",{"$f":"'Planning Mensuel'!AG24","v":0},null,null,null,null,null,null,0]
["Dimanche","2017-01-08",{"$f":"'Planning Mensuel'!AG25","v":0},null,null,null,null,null,null,0]
["Lundi","2017-01-09",{"$f":"'Planning Mensuel'!AG26","v":0},null,null,null,null,null,null,0]
["Mardi","2017-01-10",{"$f":"'Planning Mensuel'!AG27","v":0},null,null,null,null,null,null,0]
["Mercredi","2017-01-11",{"$f":"'Planning Mensuel'!AG28","v":0},null,null,null,null,null,null,0]
["Jeudi","2017-01-12",{"$f":"'Planning Mensuel'!AG29","v":0},null,null,null,null,null,null,0]
["Vendredi","2017-01-13",{"$f":"'Planning Mensuel'!AG30","v":0},null,null,null,null,null,null,0]
["Samedi","2017-01-14",{"$f":"'Planning Mensuel'!AG31","v":0},null,null,null,null,null,null,0]
["Dimanche","2017-01-15",{"$f":"'Planning Mensuel'!AG32","v":0},null,null,null,null,null,null,0]
["Lundi","2017-01-16",{"$f":"'Planning Mensuel'!AG33","v":0},null,null,null,null,null,null,0]
["Mardi","2017-01-17",{"$f":"'Planning Mensuel'!AG34","v":0},null,null,null,null,null,null,0]
["Mercredi","2017-01-18",{"$f":"'Planning Mensuel'!AG35","v":0},null,null,null,null,null,null,0]
["Jeudi","2017-01-19",{"$f":"'Planning Mensuel'!AG36","v":0},null,null,null,null,null,null,0]
["Vendredi","2017-01-20",{"$f":"'Planning Mensuel'!AG37","v":0},null,null,null,null,null,null,0]
[null,null,null,null,null,null,{"$f":"SUM(G5:G35)","v":0},0,0,0,0,0]
[]
[]
[]
[]
[null,null,"Arrêt maladie jusqu'au 14/11/2016 avertir Raschella Brigitte"]
[]
[]
[]
[]
[]
["REMARQUES"]
["Date","heures","Remarques",null,null,"Responsables"]

{"sheet":"LANDRIEUX","index":31,"n_rows":48,"n_cols":12,"rows_kept":48,"cut":false,"hidden":false,"merged":[[63,2,63,4],[64,2,64,4],[65,2,65,4],[66,2,66,4],[67,2,67,4],[62,2,62,4],[51,2,51,4],[52,2,52,4],[53,2,53,4],[54,2,54,4],[55,2,55,4],[56,2,56,4],[57,2,57,4],[58,2,58,4],[59,2,59,4],[60,2,60,4],[61,2,61,4],[50,2,50,4],[0,0,1,2],[0,3,1,5],[0,6,1,11],[2,0,2,1],[2,2,2,5],[13,3,16,3],[40,2,45,5],[46,0,46,5],[47,2,47,4],[48,2,48,4],[49,2,49,4]]}
["LANDRIEUX NATHALIE",null,null,null,null,null,"Feuille Attachement"]
[]
["2017-01-01",null," fournir avant  Mercredi 04/01  demande de congés pour Février 2017 en fonction des disponibilités",null,null,null,"HS","HS","HS","Total","Nuit","Insalubrité"]
["Jours","Date","Prestations","Confirmations","Prestations  HS","Horaires",0,0,0,{"$f":"SUM(G4:I4)","v":0},0,0]
["Mercredi","2016-12-21",{"$f":"'Planning Mensuel'!AO7","v":"Repos"},null,null,null,null,null,null,0]
["Jeudi","2016-12-22",{"$f":"'Planning Mensuel'!AO8","v":"B. CARTON"},null,null,null,null,null,null,0]
["Vendredi","2016-12-23",{"$f":"'Planning Mensuel'!AO9","v":"B. CARTON"},null,null,null,null,null,null,0]
["Samedi","2016-12-24",{"$f":"'Planning Mensuel'!AO10","v":"POLY 7H-14H"},null,null,null,null,null,null,0]
["Dimanche","2016-12-25",{"$f":"'Planning Mensuel'!AO11","v":0},null,null,null,null,null,null,0]
["Lundi","2016-12-26",{"$f":"'Planning Mensuel'!AO12","v":"B. CARTON"},null,null,null,null,null,null,0]
["Mardi","2016-12-27",{"$f":"'Planning Mensuel'!AO13","v":"B. CARTON"},null,null,null,null,null,null,0]
["Mercredi","2016-12-28",{"$f":"'Planning Mensuel'!AO14","v":"Repos"},null,null,null,null,null,null,0]
["Jeudi","2016-12-29",{"$f":"'Planning Mensuel'!AO15","v":"B. CARTON"},null,null,null,null,null,null,0]
["Vendredi","2016-12-30",{"$f":"'Planning Mensuel'!AO16","v":"B. CARTON"},"Astreinte Garder\n Portable Allumé",null,null,null,null,null,0]
["Samedi","2016-12-31",{"$f":"'Planning Mensuel'!AO17","v":"POLY 7H-14H"},null,null,null,null,null,null,0]
["Dimanche","2017-01-01",{"$f":"'Planning Mensuel'!AO18","v":0},null,null,null,null,null,null,0]
["Lundi","2017-01-02",{"$f":"'Planning Mensuel'!AO19","v":"B. CARTON"},null,null,null,null,null,null,0]
["Mardi","2017-01-03",{"$f":"'Planning Mensuel'!AO20","v":"B. CARTON"},null,null,null,null,null,null,0]
["Mercredi","2017-01-04",{"$f":"'Planning Mensuel'!AO21","v":"Repos"},null,null,null,null,null,null,0]
["Jeudi","2017-01-05",{"$f":"'Planning Mensuel'!AO22","v":"B. CARTON"},null,null,null,null,null,null,0]
["Vendredi","2017-01-06",{"$f":"'Planning Mensuel'!AO23","v":"B. CARTON"},null,null,null,null,null,null,0]
["Samedi","2017-01-07",{"$f":"'Planning Mensuel'!AO24","v":"7H-12H / 14H-18H"},null,"Polybenne"," 16H-18H",null,null,null,0]
["Dimanche","2017-01-08",{"$f":"'Planning Mensuel'!AO25","v":"CP + POLY 4H-12H"},null,"Cité du Parc & polybenne","7H-12H",null,null,null,0]
["Lundi","2017-01-09",{"$f":"'Planning Mensuel'!AO26","v":"B. CARTON"},null,null,null,null,null,null,0]
["Mardi","2017-01-10",{"$f":"'Planning Mensuel'!AO27","v":"B. CARTON"},null,null,null,null,null,null,0]
["Mercredi","2017-01-11",{"$f":"'Planning Mensuel'!AO28","v":"Repos"},null,null,null,null,null,null,0]
["Jeudi","2017-01-12",{"$f":"'Planning Mensuel'!AO29","v":"B. CARTON"},null,null,null,null,null,null,0]
["Vendredi","2017-01-13",{"$f":"'Planning Mensuel'!AO30","v":"B. CARTON"},null,null,null,null,null,null,0]
["Samedi","2017-01-14",{"$f":"'Planning Mensuel'!AO31","v":"POLY 7H-12H / 14H-18H"},null,"Polybenne"," 16H-18H",null,null,null,0]
["Dimanche","2017-01-15",{"$f":"'Planning Mensuel'!AO32","v":0},null,null,null,null,null,null,0]
["Lundi","2017-01-16",{"$f":"'Planning Mensuel'!AO33","v":"B. CARTON"},null,null,null,null,null,null,0]
["Mardi","2017-01-17",{"$f":"'Planning Mensuel'!AO34","v":"B. CARTON"},null,null,null,null,null,null,0]
["Mercredi","2017-01-18",{"$f":"'Planning Mensuel'!AO35","v":"Repos"},null,null,null,null,null,null,0]
["Jeudi","2017-01-19",{"$f":"'Planning Mensuel'!AO36","v":"B. CARTON"},null,null,null,null,null,null,0]
["Vendredi","2017-01-20",{"$f":"'Planning Mensuel'!AO37","v":"B. CARTON"},null,null,null,null,null,null,0]
[null,null,null,null,null,null,{"$f":"SUM(G5:G35)","v":0},0,0,0,0,0]
[]
[]
[]
[]
[]
[]
[]
[]
[]
[]
["REMARQUES"]
["Date","heures","Remarques",null,null,"Responsables"]

{"sheet":"MALLO","index":32,"n_rows":48,"n_cols":12,"rows_kept":48,"cut":false,"hidden":false,"merged":[[64,2,64,4],[65,2,65,4],[66,2,66,4],[67,2,67,4],[58,2,58,4],[59,2,59,4],[60,2,60,4],[61,2,61,4],[62,2,62,4],[63,2,63,4],[57,2,57,4],[46,0,46,5],[47,2,47,4],[48,2,48,4],[49,2,49,4],[50,2,50,4],[51,2,51,4],[52,2,52,4],[53,2,53,4],[54,2,54,4],[55,2,55,4],[56,2,56,4],[40,2,45,5],[0,0,1,2],[0,3,1,5],[0,6,1,11],[2,0,2,1],[2,2,2,5]]}
["MALLO ALFRED",null,null,null,null,null,"Feuille Attachement"]
[]
["2017-01-01",null," fournir avant  Mercredi 04/01  demande de congés pour Février 2017 en fonction des disponibilités",null,null,null,"HS","HS","HS","Total","Nuit","Insalubrité"]
["Jours","Date","Prestations","Confirmations","Prestations  HS","Horaires",0,0,0,{"$f":"SUM(G4:I4)","v":0},0,0]
["Mercredi","2016-12-21",{"$f":"'Planning Mensuel'!N7","v":"Repos"},"NICE NORD",null,null,null,null,null,0]
["Jeudi","2016-12-22",{"$f":"'Planning Mensuel'!N8","v":"NICE NORD"},null,null,null,null,null,null,0]
["Vendredi","2016-12-23",{"$f":"'Planning Mensuel'!N9","v":"NICE NORD"},null,null,null,null,null,null,0]
["Samedi","2016-12-24",{"$f":"'Planning Mensuel'!N10","v":"NICE NORD"},null,"NICE NORD","8H30-14H30",null,null,null,0]
["Dimanche","2016-12-25",{"$f":"'Planning Mensuel'!N11","v":0},null,null,null,null,null,null,0]
["Lundi","2016-12-26",{"$f":"'Planning Mensuel'!N12","v":"NICE NORD"},null,null,null,null,null,null,0]
["Mardi","2016-12-27",{"$f":"'Planning Mensuel'!N13","v":"NICE NORD"},null,null,null,null,null,null,0]
["Mercredi","2016-12-28",{"$f":"'Planning Mensuel'!N14","v":"NICE NORD"},null,null,null,null,null,null,0]
["Jeudi","2016-12-29",{"$f":"'Planning Mensuel'!N15","v":"NICE NORD"},null,null,null,null,null,null,0]
["Vendredi","2016-12-30",{"$f":"'Planning Mensuel'!N16","v":"NICE NORD"},null,null,null,null,null,null,0]
["Samedi","2016-12-31",{"$f":"'Planning Mensuel'!N17","v":"Repos"},null,null,null,null,null,null,0]
["Dimanche","2017-01-01",{"$f":"'Planning Mensuel'!N18","v":"Repos"},null,null,null,null,null,null,0]
["Lundi","2017-01-02",{"$f":"'Planning Mensuel'!N19","v":"NICE NORD"},null,null,null,null,null,null,0]
["Mardi","2017-01-03",{"$f":"'Planning Mensuel'!N20","v":"NICE NORD"},null,null,null,null,null,null,0]
["Mercredi","2017-01-04",{"$f":"'Planning Mensuel'!N21","v":"NICE NORD"},null,null,null,null,null,null,0]
["Jeudi","2017-01-05",{"$f":"'Planning Mensuel'!N22","v":"NICE NORD"},null,null,null,null,null,null,0]
["Vendredi","2017-01-06",{"$f":"'Planning Mensuel'!N23","v":"NICE NORD"},null,null,null,null,null,null,0]
["Samedi","2017-01-07",{"$f":"'Planning Mensuel'!N24","v":0},null,null,null,null,null,null,0]
["Dimanche","2017-01-08",{"$f":"'Planning Mensuel'!N25","v":0},null,null,null,null,null,null,0]
["Lundi","2017-01-09",{"$f":"'Planning Mensuel'!N26","v":"NICE NORD"},null,null,null,null,null,null,0]
["Mardi","2017-01-10",{"$f":"'Planning Mensuel'!N27","v":"NICE NORD"},null,null,null,null,null,null,0]
["Mercredi","2017-01-11",{"$f":"'Planning Mensuel'!N28","v":"NICE NORD"},null,null,null,null,null,null,0]
["Jeudi","2017-01-12",{"$f":"'Planning Mensuel'!N29","v":"NICE NORD"},null,null,null,null,null,null,0]
["Vendredi","2017-01-13",{"$f":"'Planning Mensuel'!N30","v":"NICE NORD"},null,null,null,null,null,null,0]
["Samedi","2017-01-14",{"$f":"'Planning Mensuel'!N31","v":"Repos"},null,null,null,null,null,null,0]
["Dimanche","2017-01-15",{"$f":"'Planning Mensuel'!N32","v":"Repos"},null,null,null,null,null,null,0]
["Lundi","2017-01-16",{"$f":"'Planning Mensuel'!N33","v":"NICE NORD"},null,null,null,null,null,null,0]
["Mardi","2017-01-17",{"$f":"'Planning Mensuel'!N34","v":"NICE NORD"},null,null,null,null,null,null,0]
["Mercredi","2017-01-18",{"$f":"'Planning Mensuel'!N35","v":"NICE NORD"},null,null,null,null,null,null,0]
["Jeudi","2017-01-19",{"$f":"'Planning Mensuel'!N36","v":"NICE NORD"},null,null,null,null,null,null,0]
["Vendredi","2017-01-20",{"$f":"'Planning Mensuel'!N37","v":"NICE NORD"},null,null,null,null,null,null,0]
[null,null,null,null,null,null,{"$f":"SUM(G5:G35)","v":0},0,0,0,0,0]
[]
[]
[]
[]
[]
[]
[]
[]
[]
[]
["REMARQUES"]
["Date","heures","Remarques",null,null,"Responsables"]

{"sheet":"MANDREA","index":33,"n_rows":48,"n_cols":12,"rows_kept":48,"cut":false,"hidden":false,"merged":[[64,2,64,4],[65,2,65,4],[66,2,66,4],[67,2,67,4],[58,2,58,4],[59,2,59,4],[60,2,60,4],[61,2,61,4],[62,2,62,4],[63,2,63,4],[57,2,57,4],[46,0,46,5],[47,2,47,4],[48,2,48,4],[49,2,49,4],[50,2,50,4],[51,2,51,4],[52,2,52,4],[53,2,53,4],[54,2,54,4],[55,2,55,4],[56,2,56,4],[40,2,45,5],[0,0,1,2],[0,3,1,5],[0,6,1,11],[2,0,2,1],[2,2,2,5]]}
["MANDREA THIERRY",null,null,null,null,null,"Feuille Attachement"]
[]
["2017-01-01",null," fournir avant  Mercredi 04/01  demande de congés pour Février 2017 en fonction des disponibilités",null,null,null,"HS","HS","HS","Total","Nuit","Insalubrité"]
["Jours","Date","Prestations","Confirmations","Prestations  HS","Horaires",0,0,0,{"$f":"SUM(G4:I4)","v":0},0,0]
["Mercredi","2016-12-21",{"$f":"'Planning Mensuel'!R7","v":"NICE OUEST"},null,"Nice Ouest","14H-14H30",null,null,null,0]
["Jeudi","2016-12-22",{"$f":"'Planning Mensuel'!R8","v":"NICE OUEST"},null,"Nice Ouest","14H-14H30",null,null,null,0]
["Vendredi","2016-12-23",{"$f":"'Planning Mensuel'!R9","v":"NICE OUEST"},null,"Nice Ouest","14H-14H30",null,null,null,0]
["Samedi","2016-12-24",{"$f":"'Planning Mensuel'!R10","v":0},null,null,null,null,null,null,0]
["Dimanche","2016-12-25",{"$f":"'Planning Mensuel'!R11","v":0},null,null,null,null,null,null,0]
["Lundi","2016-12-26",{"$f":"'Planning Mensuel'!R12","v":"Congés"},null,null,null,null,null,null,0]
["Mardi","2016-12-27",{"$f":"'Planning Mensuel'!R13","v":"Congés"},null,null,null,null,null,null,0]
["Mercredi","2016-12-28",{"$f":"'Planning Mensuel'!R14","v":"Congés"},null,null,null,null,null,null,0]
["Jeudi","2016-12-29",{"$f":"'Planning Mensuel'!R15","v":"Congés"},null,null,null,null,null,null,0]
["Vendredi","2016-12-30",{"$f":"'Planning Mensuel'!R16","v":"Congés"},null,null,null,null,null,null,0]
["Samedi","2016-12-31",{"$f":"'Planning Mensuel'!R17","v":"Congés"},null,null,null,null,null,null,0]
["Dimanche","2017-01-01",{"$f":"'Planning Mensuel'!R18","v":"Congés"},null,null,null,null,null,null,0]
["Lundi","2017-01-02",{"$f":"'Planning Mensuel'!R19","v":"NICE OUEST"},null,"Nice Ouest","14H-14H30",null,null,null,0]
["Mardi","2017-01-03",{"$f":"'Planning Mensuel'!R20","v":"NICE OUEST"},null,"Nice Ouest","14H-14H30",null,null,null,0]
["Mercredi","2017-01-04",{"$f":"'Planning Mensuel'!R21","v":"Repos"},null,null,null,null,null,null,0]
["Jeudi","2017-01-05",{"$f":"'Planning Mensuel'!R22","v":"NICE OUEST"},null,"Nice Ouest","14H-14H30",null,null,null,0]
["Vendredi","2017-01-06",{"$f":"'Planning Mensuel'!R23","v":"NICE OUEST"},null,"Nice Ouest","14H-14H30",null,null,null,0]
["Samedi","2017-01-07",{"$f":"'Planning Mensuel'!R24","v":"NICE OUEST"},null,"Nice Ouest","14H-14H30",null,null,null,0]
["Dimanche","2017-01-08",{"$f":"'Planning Mensuel'!R25","v":0},null,null,null,null,null,null,0]
["Lundi","2017-01-09",{"$f":"'Planning Mensuel'!R26","v":"NICE OUEST"},null,"Nice Ouest","14H-14H30",null,null,null,0]
["Mardi","2017-01-10",{"$f":"'Planning Mensuel'!R27","v":"NICE OUEST"},null,"Nice Ouest","14H-14H30",null,null,null,0]
["Mercredi","2017-01-11",{"$f":"'Planning Mensuel'!R28","v":"NICE OUEST"},null,"Nice Ouest","14H-14H30",null,null,null,0]
["Jeudi","2017-01-12",{"$f":"'Planning Mensuel'!R29","v":"NICE OUEST"},null,"Nice Ouest","14H-14H30",null,null,null,0]
["Vendredi","2017-01-13",{"$f":"'Planning Mensuel'!R30","v":"NICE OUEST"},null,"Nice Ouest","14H-14H30",null,null,null,0]
["Samedi","2017-01-14",{"$f":"'Planning Mensuel'!R31","v":"Repos"},null,null,null,null,null,null,0]
["Dimanche","2017-01-15",{"$f":"'Planning Mensuel'!R32","v":"NICE OUEST"},null,"Nice Ouest","8H-12H",null,null,null,0]
["Lundi","2017-01-16",{"$f":"'Planning Mensuel'!R33","v":"NICE OUEST"},null,"Nice Ouest","14H-14H30",null,null,null,0]
["Mardi","2017-01-17",{"$f":"'Planning Mensuel'!R34","v":"NICE OUEST"},null,"Nice Ouest","14H-14H30",null,null,null,0]
["Mercredi","2017-01-18",{"$f":"'Planning Mensuel'!R35","v":"NICE OUEST"},null,"Nice Ouest","14H-14H30",null,null,null,0]
["Jeudi","2017-01-19",{"$f":"'Planning Mensuel'!R36","v":"NICE OUEST"},null,"Nice Ouest","14H-14H30",null,null,null,0]
["Vendredi","2017-01-20",{"$f":"'Planning Mensuel'!R37","v":"NICE OUEST"},null,"Nice Ouest","14H-14H30",null,null,null,0]
[null,null,null,null,null,null,{"$f":"SUM(G5:G35)","v":0},0,0,0,0,0]
[]
[]
[]
[]
[null,null,"Congés du 23/12 au 01/01/17"]
[]
[]
[]
[]
[]
["REMARQUES"]
["Date","heures","Remarques",null,null,"Responsables"]

{"sheet":"MARCELLI","index":34,"n_rows":49,"n_cols":12,"rows_kept":49,"cut":false,"hidden":false,"merged":[[64,2,64,4],[65,2,65,4],[66,2,66,4],[67,2,67,4],[58,2,58,4],[59,2,59,4],[60,2,60,4],[61,2,61,4],[62,2,62,4],[63,2,63,4],[57,2,57,4],[46,0,46,5],[47,2,47,4],[48,2,48,4],[49,2,49,4],[50,2,50,4],[51,2,51,4],[52,2,52,4],[53,2,53,4],[54,2,54,4],[55,2,55,4],[56,2,56,4],[40,2,45,5],[0,0,1,2],[0,3,1,5],[0,6,1,11],[2,0,2,1],[2,2,2,5]]}
["MARCELLI ALAIN",null,null,null,null,null,"Feuille Attachement"]
[]
["2017-01-01",null," fournir avant  Mercredi 04/01  demande de congés pour Février 2017 en fonction des disponibilités",null,null,null,"HS","HS","HS","Total","Nuit","Insalubrité"]
["Jours","Date","Prestations","Confirmations","Prestations  HS","Horaires",0,0,0,{"$f":"SUM(G4:I4)","v":0},0,0]
["Mercredi","2016-12-21",{"$f":"'Planning Mensuel'!E7","v":"NICE EST"},null,null,null,null,null,null,0]
["Jeudi","2016-12-22",{"$f":"'Planning Mensuel'!E8","v":"NICE EST"},null,null,null,null,null,null,0]
["Vendredi","2016-12-23",{"$f":"'Planning Mensuel'!E9","v":"NICE EST"},null,null,null,null,null,null,0]
["Samedi","2016-12-24",{"$f":"'Planning Mensuel'!E10","v":0},null,null,null,null,null,null,0]
["Dimanche","2016-12-25",{"$f":"'Planning Mensuel'!E11","v":0},null,null,null,null,null,null,0]
["Lundi","2016-12-26",{"$f":"'Planning Mensuel'!E12","v":"NICE EST"},null,null,null,null,null,null,0]
["Mardi","2016-12-27",{"$f":"'Planning Mensuel'!E13","v":"NICE EST"},null,null,null,null,null,null,0]
["Mercredi","2016-12-28",{"$f":"'Planning Mensuel'!E14","v":"NICE EST"},null,null,null,null,null,null,0]
["Jeudi","2016-12-29",{"$f":"'Planning Mensuel'!E15","v":"NICE EST"},null,null,null,null,null,null,0]
["Vendredi","2016-12-30",{"$f":"'Planning Mensuel'!E16","v":"NICE EST"},null,null,null,null,null,null,0]
["Samedi","2016-12-31",{"$f":"'Planning Mensuel'!E17","v":"Repos"},null,null,null,null,null,null,0]
["Dimanche","2017-01-01",{"$f":"'Planning Mensuel'!E18","v":"Repos"},null,null,null,null,null,null,0]
["Lundi","2017-01-02",{"$f":"'Planning Mensuel'!E19","v":"Congés"},null,null,null,null,null,null,0]
["Mardi","2017-01-03",{"$f":"'Planning Mensuel'!E20","v":"Congés"},null,null,null,null,null,null,0]
["Mercredi","2017-01-04",{"$f":"'Planning Mensuel'!E21","v":"Congés"},null,null,null,null,null,null,0]
["Jeudi","2017-01-05",{"$f":"'Planning Mensuel'!E22","v":"Congés"},null,null,null,null,null,null,0]
["Vendredi","2017-01-06",{"$f":"'Planning Mensuel'!E23","v":"Congés"},null,null,null,null,null,null,0]
["Samedi","2017-01-07",{"$f":"'Planning Mensuel'!E24","v":"Congés"},null,null,null,null,null,null,0]
["Dimanche","2017-01-08",{"$f":"'Planning Mensuel'!E25","v":"Congés"},null,null,null,null,null,null,0]
["Lundi","2017-01-09",{"$f":"'Planning Mensuel'!E26","v":"NICE EST"},null,null,null,null,null,null,0]
["Mardi","2017-01-10",{"$f":"'Planning Mensuel'!E27","v":"Repos"},null,null,null,null,null,null,0]
["Mercredi","2017-01-11",{"$f":"'Planning Mensuel'!E28","v":"NICE EST"},null,null,null,null,null,null,0]
["Jeudi","2017-01-12",{"$f":"'Planning Mensuel'!E29","v":"NICE EST"},null,null,null,null,null,null,0]
["Vendredi","2017-01-13",{"$f":"'Planning Mensuel'!E30","v":"NICE EST"},null,null,null,null,null,null,0]
["Samedi","2017-01-14",{"$f":"'Planning Mensuel'!E31","v":"NICE EST"},null,null,null,null,null,null,0]
["Dimanche","2017-01-15",{"$f":"'Planning Mensuel'!E32","v":"Repos"},null,null,null,null,null,null,0]
["Lundi","2017-01-16",{"$f":"'Planning Mensuel'!E33","v":"NICE EST"},null,null,null,null,null,null,0]
["Mardi","2017-01-17",{"$f":"'Planning Mensuel'!E34","v":"NICE EST"},null,null,null,null,null,null,0]
["Mercredi","2017-01-18",{"$f":"'Planning Mensuel'!E35","v":"NICE EST"},null,null,null,null,null,null,0]
["Jeudi","2017-01-19",{"$f":"'Planning Mensuel'!E36","v":"NICE EST"},null,null,null,null,null,null,0]
["Vendredi","2017-01-20",{"$f":"'Planning Mensuel'!E37","v":"NICE EST"},null,null,null,null,null,null,0]
[null,null,null,null,null,null,{"$f":"SUM(G5:G35)","v":0},0,0,0,0,0]
[]
[]
[]
[]
[]
[]
[]
[]
[]
[]
["REMARQUES"]
["Date","heures","Remarques",null,null,"Responsables"]
["2016-04-07","17H","Discute avec Astier et le tri n'est pas fait par les usagers"]

{"sheet":"MARINO","index":35,"n_rows":51,"n_cols":12,"rows_kept":51,"cut":false,"hidden":false,"merged":[[64,2,64,4],[65,2,65,4],[66,2,66,4],[67,2,67,4],[58,2,58,4],[59,2,59,4],[60,2,60,4],[61,2,61,4],[62,2,62,4],[63,2,63,4],[57,2,57,4],[46,0,46,5],[47,2,47,4],[48,2,48,4],[49,2,49,4],[50,2,50,4],[51,2,51,4],[52,2,52,4],[53,2,53,4],[54,2,54,4],[55,2,55,4],[56,2,56,4],[40,2,45,5],[0,0,1,2],[0,3,1,5],[0,6,1,11],[2,0,2,1],[2,2,2,5]]}
["MARINO ALAIN",null,null,null,null,null,"Feuille Attachement"]
[]
["2017-01-01",null," fournir avant  Mercredi 04/01  demande de congés pour Février 2017 en fonction des disponibilités",null,null,null,"HS","HS","HS","Total","Nuit","Insalubrité"]
["Jours","Date","Prestations","Confirmations","Prestations  HS","Horaires",0,0,0,{"$f":"SUM(G4:I4)","v":0},0,0]
["Mercredi","2016-12-21",{"$f":"'Planning Mensuel'!Z7","v":"NICE NORD"},"CARTON MATIN",null,null,null,null,null,0]
["Jeudi","2016-12-22",{"$f":"'Planning Mensuel'!Z8","v":"ENC MATIN 5H-12H"},"CARTON MATIN",null,null,null,null,null,0]
["Vendredi","2016-12-23",{"$f":"'Planning Mensuel'!Z9","v":"CARTON MATIN"},"CARTON MATIN",null,null,null,null,null,0]
["Samedi","2016-12-24",{"$f":"'Planning Mensuel'!Z10","v":0},null,null,null,null,null,null,0]
["Dimanche","2016-12-25",{"$f":"'Planning Mensuel'!Z11","v":0},null,null,null,null,null,null,0]
["Lundi","2016-12-26",{"$f":"'Planning Mensuel'!Z12","v":"ENC MATIN 5H-12H"},null,null,null,null,null,null,0]
["Mardi","2016-12-27",{"$f":"'Planning Mensuel'!Z13","v":"Repos"},null,null,null,null,null,null,0]
["Mercredi","2016-12-28",{"$f":"'Planning Mensuel'!Z14","v":"ENC MATIN 5H-12H"},null,null,null,null,null,null,0]
["Jeudi","2016-12-29",{"$f":"'Planning Mensuel'!Z15","v":"ENC MATIN 5H-12H"},null,null,null,null,null,null,0]
["Vendredi","2016-12-30",{"$f":"'Planning Mensuel'!Z16","v":"ENC MATIN 5H-12H"},null,null,null,null,null,null,0]
["Samedi","2016-12-31",{"$f":"'Planning Mensuel'!Z17","v":"NICE NORD"},null,null,null,null,null,null,0]
["Dimanche","2017-01-01",{"$f":"'Planning Mensuel'!Z18","v":"Repos"},null,null,null,null,null,null,0]
["Lundi","2017-01-02",{"$f":"'Planning Mensuel'!Z19","v":"ENC MATIN 5H-12H"},null,null,null,null,null,null,0]
["Mardi","2017-01-03",{"$f":"'Planning Mensuel'!Z20","v":"ENC MATIN 5H-12H"},null,null,null,null,null,null,0]
["Mercredi","2017-01-04",{"$f":"'Planning Mensuel'!Z21","v":"ENC MATIN 5H-12H"},null,null,null,null,null,null,0]
["Jeudi","2017-01-05",{"$f":"'Planning Mensuel'!Z22","v":"ENC MATIN 5H-12H"},null,null,null,null,null,null,0]
["Vendredi","2017-01-06",{"$f":"'Planning Mensuel'!Z23","v":"ENC MATIN 5H-12H"},null,null,null,null,null,null,0]
["Samedi","2017-01-07",{"$f":"'Planning Mensuel'!Z24","v":"Repos"},null,null,null,null,null,null,0]
["Dimanche","2017-01-08",{"$f":"'Planning Mensuel'!Z25","v":"NICE EST"},null,"Nice Est","8H-12H",null,null,null,0]
["Lundi","2017-01-09",{"$f":"'Planning Mensuel'!Z26","v":"ENC MATIN 5H-12H"},null,null,null,null,null,null,0]
["Mardi","2017-01-10",{"$f":"'Planning Mensuel'!Z27","v":"ENC MATIN 5H-12H"},null,null,null,null,null,null,0]
["Mercredi","2017-01-11",{"$f":"'Planning Mensuel'!Z28","v":"CARTON MATIN"},null,null,null,null,null,null,0]
["Jeudi","2017-01-12",{"$f":"'Planning Mensuel'!Z29","v":"ENC MATIN 5H-12H"},null,null,null,null,null,null,0]
["Vendredi","2017-01-13",{"$f":"'Planning Mensuel'!Z30","v":"ENC MATIN 5H-12H"},null,null,null,null,null,null,0]
["Samedi","2017-01-14",{"$f":"'Planning Mensuel'!Z31","v":"Repos"},null,null,null,null,null,null,0]
["Dimanche","2017-01-15",{"$f":"'Planning Mensuel'!Z32","v":"Repos"},null,null,null,null,null,null,0]
["Lundi","2017-01-16",{"$f":"'Planning Mensuel'!Z33","v":"ENC MATIN 5H-12H"},null,null,null,null,null,null,0]
["Mardi","2017-01-17",{"$f":"'Planning Mensuel'!Z34","v":"ENC MATIN 5H-12H"},null,null,null,null,null,null,0]
["Mercredi","2017-01-18",{"$f":"'Planning Mensuel'!Z35","v":"ENC MATIN 5H-12H"},null,null,null,null,null,null,0]
["Jeudi","2017-01-19",{"$f":"'Planning Mensuel'!Z36","v":"ENC MATIN 5H-12H"},null,null,null,null,null,null,0]
["Vendredi","2017-01-20",{"$f":"'Planning Mensuel'!Z37","v":"ENC MATIN 5H-12H"},null,null,null,null,null,null,0]
[null,null,null,null,null,null,{"$f":"SUM(G5:G35)","v":0},0,0,0,0,0]
[]
[]
[]
[]
[null,null,"Ne peut pas travailler le 25 et le 01/01/17"]
[]
[]
[]
[]
[]
["REMARQUES"]
["Date","heures","Remarques",null,null,"Responsables"]
["2016-03-16","12H30","Circule sur la voie du tram République",null,null,"Novelli"]
["2016-03-16","15H30","25 scaliéro signale RAS mais n'y passe pas",null,null,"Arnaud"]
["2016-10-26","8H30-9H30","Doit collecter la clinique du Parc Impérial entre 8H et 9H , n'y passe pas , se met en pause 45 mn et note RAS sur sa feuille de route",null,null,"Novelli"]

{"sheet":"MARTINELLI","index":36,"n_rows":48,"n_cols":12,"rows_kept":48,"cut":false,"hidden":false,"merged":[[64,2,64,4],[65,2,65,4],[66,2,66,4],[67,2,67,4],[58,2,58,4],[59,2,59,4],[60,2,60,4],[61,2,61,4],[62,2,62,4],[63,2,63,4],[57,2,57,4],[46,0,46,5],[47,2,47,4],[48,2,48,4],[49,2,49,4],[50,2,50,4],[51,2,51,4],[52,2,52,4],[53,2,53,4],[54,2,54,4],[55,2,55,4],[56,2,56,4],[40,2,45,5],[0,0,1,2],[0,3,1,5],[0,6,1,11],[2,0,2,1],[2,2,2,5]]}
["MARTINELLI JULIEN",null,null,null,null,null,"Feuille Attachement"]
[]
["2017-01-01",null," fournir avant  Mercredi 04/01  demande de congés pour Février 2017 en fonction des disponibilités",null,null,null,"HS","HS","HS","Total","Nuit","Insalubrité"]
["Jours","Date","Prestations","Confirmations","Prestations  HS","Horaires",0,0,0,{"$f":"SUM(G4:I4)","v":0},0,0]
["Mercredi","2016-12-21",{"$f":"'Planning Mensuel'!M7","v":"CARTON MATIN"},"ABSENT","ABSENT",null,null,null,null,0,null,0]
["Jeudi","2016-12-22",{"$f":"'Planning Mensuel'!M8","v":"CARTON MATIN"},"ABSENT","ABSENT",null,null,null,null,0,null,0]
["Vendredi","2016-12-23",{"$f":"'Planning Mensuel'!M9","v":"CARTON MATIN"},"ABSENT","ABSENT",null,null,null,null,0,null,0]
["Samedi","2016-12-24",{"$f":"'Planning Mensuel'!M10","v":0},"ABSENT","ABSENT",null,null,null,null,0,null,0]
["Dimanche","2016-12-25",{"$f":"'Planning Mensuel'!M11","v":0},"ABSENT","ABSENT",null,null,null,null,0,null,0]
["Lundi","2016-12-26",{"$f":"'Planning Mensuel'!M12","v":"Congés"},null,null,null,null,null,null,0]
["Mardi","2016-12-27",{"$f":"'Planning Mensuel'!M13","v":"Congés"},null,null,null,null,null,null,0]
["Mercredi","2016-12-28",{"$f":"'Planning Mensuel'!M14","v":"Congés"},null,null,null,null,null,null,0]
["Jeudi","2016-12-29",{"$f":"'Planning Mensuel'!M15","v":"Congés"},null,null,null,null,null,null,0]
["Vendredi","2016-12-30",{"$f":"'Planning Mensuel'!M16","v":"Congés"},null,null,null,null,null,null,0]
["Samedi","2016-12-31",{"$f":"'Planning Mensuel'!M17","v":"Congés"},null,null,null,null,null,null,0]
["Dimanche","2017-01-01",{"$f":"'Planning Mensuel'!M18","v":"Congés"},null,null,null,null,null,null,0]
["Lundi","2017-01-02",{"$f":"'Planning Mensuel'!M19","v":"CARTON MATIN"},null,null,null,null,null,null,0]
["Mardi","2017-01-03",{"$f":"'Planning Mensuel'!M20","v":"CARTON MATIN"},null,null,null,null,null,null,0]
["Mercredi","2017-01-04",{"$f":"'Planning Mensuel'!M21","v":"CARTON MATIN"},null,null,null,null,null,null,0]
["Jeudi","2017-01-05",{"$f":"'Planning Mensuel'!M22","v":"CARTON MATIN"},null,null,null,null,null,null,0]
["Vendredi","2017-01-06",{"$f":"'Planning Mensuel'!M23","v":"CARTON MATIN"},null,null,null,null,null,null,0]
["Samedi","2017-01-07",{"$f":"'Planning Mensuel'!M24","v":0},null,null,null,null,null,null,0]
["Dimanche","2017-01-08",{"$f":"'Planning Mensuel'!M25","v":"NICE OUEST"},null,"Nice Nord","8H-12H",null,null,null,0]
["Lundi","2017-01-09",{"$f":"'Planning Mensuel'!M26","v":"CARTON MATIN"},null,null,null,null,null,null,0]
["Mardi","2017-01-10",{"$f":"'Planning Mensuel'!M27","v":"CARTON MATIN"},null,null,null,null,null,null,0]
["Mercredi","2017-01-11",{"$f":"'Planning Mensuel'!M28","v":"Repos"},null,null,null,null,null,null,0]
["Jeudi","2017-01-12",{"$f":"'Planning Mensuel'!M29","v":"CARTON MATIN"},null,null,null,null,null,null,0]
["Vendredi","2017-01-13",{"$f":"'Planning Mensuel'!M30","v":"CARTON MATIN"},null,null,null,null,null,null,0]
["Samedi","2017-01-14",{"$f":"'Planning Mensuel'!M31","v":"NICE OUEST"},null,"Nice Ouest","14H-14H30",null,null,null,0]
["Dimanche","2017-01-15",{"$f":"'Planning Mensuel'!M32","v":"Repos"},null,null,null,null,null,null,0]
["Lundi","2017-01-16",{"$f":"'Planning Mensuel'!M33","v":"CARTON MATIN"},null,null,null,null,null,null,0]
["Mardi","2017-01-17",{"$f":"'Planning Mensuel'!M34","v":"CARTON MATIN"},null,null,null,null,null,null,0]
["Mercredi","2017-01-18",{"$f":"'Planning Mensuel'!M35","v":"CARTON MATIN"},null,null,null,null,null,null,0]
["Jeudi","2017-01-19",{"$f":"'Planning Mensuel'!M36","v":"CARTON MATIN"},null,null,null,null,null,null,0]
["Vendredi","2017-01-20",{"$f":"'Planning Mensuel'!M37","v":"CARTON MATIN"},null,null,null,null,null,null,0]
[null,null,null,null,null,null,{"$f":"SUM(G5:G35)","v":0},0,0,0,0,0]
[]
[]
[]
[]
[]
[]
[]
[]
[]
[]
["REMARQUES"]
["Date","heures","Remarques",null,null,"Responsables"]

{"sheet":"MARZARRO","index":37,"n_rows":48,"n_cols":12,"rows_kept":48,"cut":false,"hidden":false,"merged":[[64,2,64,4],[65,2,65,4],[66,2,66,4],[67,2,67,4],[58,2,58,4],[59,2,59,4],[60,2,60,4],[61,2,61,4],[62,2,62,4],[63,2,63,4],[57,2,57,4],[46,0,46,5],[47,2,47,4],[48,2,48,4],[49,2,49,4],[50,2,50,4],[51,2,51,4],[52,2,52,4],[53,2,53,4],[54,2,54,4],[55,2,55,4],[56,2,56,4],[40,2,45,5],[0,0,1,2],[0,3,1,5],[0,6,1,11],[2,0,2,1],[2,2,2,5]]}
["MARZARO CHRISTOPHER",null,null,null,null,null,"Feuille Attachement"]
[]
["2017-01-01",null," fournir avant  Mercredi 04/01  demande de congés pour Février 2017 en fonction des disponibilités",null,null,null,"HS","HS","HS","Total","Nuit","Insalubrité"]
["Jours","Date","Prestations","Confirmations","Prestations  HS","Horaires",0,0,0,{"$f":"SUM(G4:I4)","v":0},0,0]
["Mercredi","2016-12-21",{"$f":"'Planning Mensuel'!I7","v":"CARTON AP"},null,null,null,null,null,null,0]
["Jeudi","2016-12-22",{"$f":"'Planning Mensuel'!I8","v":"CARTON AP"},null,null,null,null,null,null,0]
["Vendredi","2016-12-23",{"$f":"'Planning Mensuel'!I9","v":"CARTON AP"},null,null,null,null,null,null,0]
["Samedi","2016-12-24",{"$f":"'Planning Mensuel'!I10","v":"CARTON AP"},null,null,null,null,null,null,0]
["Dimanche","2016-12-25",{"$f":"'Planning Mensuel'!I11","v":0},null,null,null,null,null,null,0]
["Lundi","2016-12-26",{"$f":"'Planning Mensuel'!I12","v":"CARTON AP"},null,null,null,null,null,null,0]
["Mardi","2016-12-27",{"$f":"'Planning Mensuel'!I13","v":"CARTON AP"},null,null,null,null,null,null,0]
["Mercredi","2016-12-28",{"$f":"'Planning Mensuel'!I14","v":"CARTON AP"},null,null,null,null,null,null,0]
["Jeudi","2016-12-29",{"$f":"'Planning Mensuel'!I15","v":"CARTON AP"},null,null,null,null,null,null,0]
["Vendredi","2016-12-30",{"$f":"'Planning Mensuel'!I16","v":"CARTON AP"},null,null,null,null,null,null,0]
["Samedi","2016-12-31",{"$f":"'Planning Mensuel'!I17","v":"Repos"},null,null,null,null,null,null,0]
["Dimanche","2017-01-01",{"$f":"'Planning Mensuel'!I18","v":"Repos"},null,null,null,null,null,null,0]
["Lundi","2017-01-02",{"$f":"'Planning Mensuel'!I19","v":"CARTON AP"},null,null,null,null,null,null,0]
["Mardi","2017-01-03",{"$f":"'Planning Mensuel'!I20","v":"CARTON AP"},null,null,null,null,null,null,0]
["Mercredi","2017-01-04",{"$f":"'Planning Mensuel'!I21","v":"CARTON AP"},null,null,null,null,null,null,0]
["Jeudi","2017-01-05",{"$f":"'Planning Mensuel'!I22","v":"CARTON AP"},null,null,null,null,null,null,0]
["Vendredi","2017-01-06",{"$f":"'Planning Mensuel'!I23","v":"CARTON AP"},null,null,null,null,null,null,0]
["Samedi","2017-01-07",{"$f":"'Planning Mensuel'!I24","v":0},null,null,null,null,null,null,0]
["Dimanche","2017-01-08",{"$f":"'Planning Mensuel'!I25","v":0},null,null,null,null,null,null,0]
["Lundi","2017-01-09",{"$f":"'Planning Mensuel'!I26","v":"CARTON AP"},null,null,null,null,null,null,0]
["Mardi","2017-01-10",{"$f":"'Planning Mensuel'!I27","v":"CARTON AP"},null,null,null,null,null,null,0]
["Mercredi","2017-01-11",{"$f":"'Planning Mensuel'!I28","v":"CARTON AP"},null,null,null,null,null,null,0]
["Jeudi","2017-01-12",{"$f":"'Planning Mensuel'!I29","v":"CARTON AP"},null,null,null,null,null,null,0]
["Vendredi","2017-01-13",{"$f":"'Planning Mensuel'!I30","v":"CARTON AP"},null,null,null,null,null,null,0]
["Samedi","2017-01-14",{"$f":"'Planning Mensuel'!I31","v":"Repos"},null,null,null,null,null,null,0]
["Dimanche","2017-01-15",{"$f":"'Planning Mensuel'!I32","v":"Repos"},null,null,null,null,null,null,0]
["Lundi","2017-01-16",{"$f":"'Planning Mensuel'!I33","v":"Repos"},null,null,null,null,null,null,0]
["Mardi","2017-01-17",{"$f":"'Planning Mensuel'!I34","v":"CARTON AP"},null,null,null,null,null,null,0]
["Mercredi","2017-01-18",{"$f":"'Planning Mensuel'!I35","v":"CARTON AP"},null,null,null,null,null,null,0]
["Jeudi","2017-01-19",{"$f":"'Planning Mensuel'!I36","v":"CARTON AP"},null,null,null,null,null,null,0]
["Vendredi","2017-01-20",{"$f":"'Planning Mensuel'!I37","v":"CARTON AP"},null,null,null,null,null,null,0]
[null,null,null,null,null,null,{"$f":"SUM(G5:G35)","v":0},0,0,0,0,0]
[]
[]
[]
[]
[null,null,"Travaille le samedi 21/01/16"]
[]
[]
[]
[]
[]
["REMARQUES"]
["Date","heures","Remarques",null,null,"Responsables"]

{"sheet":"MATTEI","index":38,"n_rows":48,"n_cols":12,"rows_kept":48,"cut":false,"hidden":false,"merged":[[64,2,64,4],[65,2,65,4],[66,2,66,4],[67,2,67,4],[58,2,58,4],[59,2,59,4],[60,2,60,4],[61,2,61,4],[62,2,62,4],[63,2,63,4],[57,2,57,4],[46,0,46,5],[47,2,47,4],[48,2,48,4],[49,2,49,4],[50,2,50,4],[51,2,51,4],[52,2,52,4],[53,2,53,4],[54,2,54,4],[55,2,55,4],[56,2,56,4],[40,2,45,5],[0,0,1,2],[0,3,1,5],[0,6,1,11],[2,0,2,1],[2,2,2,5]]}
["MATTEI PATRICK",null,null,null,null,null,"Feuille Attachement"]
[]
["2017-01-01",null," fournir avant  Mercredi 04/01  demande de congés pour Février 2017 en fonction des disponibilités",null,null,null,"HS","HS","HS","Total","Nuit","Insalubrité"]
["Jours","Date","Prestations","Confirmations","Prestations  HS","Horaires",0,0,0,{"$f":"SUM(G4:I4)","v":0},0,0]
["Mercredi","2016-12-21",{"$f":"'Planning Mensuel'!AA7","v":"NICE NORD"},null,null,null,null,null,null,0]
["Jeudi","2016-12-22",{"$f":"'Planning Mensuel'!AA8","v":"ENC MATIN 5H-12H"},null,null,null,null,null,null,0]
["Vendredi","2016-12-23",{"$f":"'Planning Mensuel'!AA9","v":"CARTON MATIN"},null,null,null,null,null,null,0]
["Samedi","2016-12-24",{"$f":"'Planning Mensuel'!AA10","v":0},null,null,null,null,null,null,0]
["Dimanche","2016-12-25",{"$f":"'Planning Mensuel'!AA11","v":0},null,null,null,null,null,null,0]
["Lundi","2016-12-26",{"$f":"'Planning Mensuel'!AA12","v":"ENC MATIN 5H-12H"},null,null,null,null,null,null,0]
["Mardi","2016-12-27",{"$f":"'Planning Mensuel'!AA13","v":"Repos"},null,null,null,null,null,null,0]
["Mercredi","2016-12-28",{"$f":"'Planning Mensuel'!AA14","v":"ENC MATIN 5H-12H"},null,null,null,null,null,null,0]
["Jeudi","2016-12-29",{"$f":"'Planning Mensuel'!AA15","v":"ENC MATIN 5H-12H"},null,null,null,null,null,null,0]
["Vendredi","2016-12-30",{"$f":"'Planning Mensuel'!AA16","v":"ENC MATIN 5H-12H"},null,null,null,null,null,null,0]
["Samedi","2016-12-31",{"$f":"'Planning Mensuel'!AA17","v":"NICE NORD"},null,null,null,null,null,null,0]
["Dimanche","2017-01-01",{"$f":"'Planning Mensuel'!AA18","v":"Repos"},null,null,null,null,null,null,0]
["Lundi","2017-01-02",{"$f":"'Planning Mensuel'!AA19","v":"ENC MATIN 5H-12H"},null,null,null,null,null,null,0]
["Mardi","2017-01-03",{"$f":"'Planning Mensuel'!AA20","v":"ENC MATIN 5H-12H"},null,null,null,null,null,null,0]
["Mercredi","2017-01-04",{"$f":"'Planning Mensuel'!AA21","v":"ENC MATIN 5H-12H"},null,null,null,null,null,null,0]
["Jeudi","2017-01-05",{"$f":"'Planning Mensuel'!AA22","v":"ENC MATIN 5H-12H"},null,null,null,null,null,null,0]
["Vendredi","2017-01-06",{"$f":"'Planning Mensuel'!AA23","v":"ENC MATIN 5H-12H"},null,null,null,null,null,null,0]
["Samedi","2017-01-07",{"$f":"'Planning Mensuel'!AA24","v":"Repos"},null,null,null,null,null,null,0]
["Dimanche","2017-01-08",{"$f":"'Planning Mensuel'!AA25","v":"NICE EST"},null,null,null,null,null,null,0]
["Lundi","2017-01-09",{"$f":"'Planning Mensuel'!AA26","v":"ENC MATIN 5H-12H"},null,null,null,null,null,null,0]
["Mardi","2017-01-10",{"$f":"'Planning Mensuel'!AA27","v":"ENC MATIN 5H-12H"},null,null,null,null,null,null,0]
["Mercredi","2017-01-11",{"$f":"'Planning Mensuel'!AA28","v":"CARTON MATIN"},null,null,null,null,null,null,0]
["Jeudi","2017-01-12",{"$f":"'Planning Mensuel'!AA29","v":"ENC MATIN 5H-12H"},null,null,null,null,null,null,0]
["Vendredi","2017-01-13",{"$f":"'Planning Mensuel'!AA30","v":"ENC MATIN 5H-12H"},null,null,null,null,null,null,0]
["Samedi","2017-01-14",{"$f":"'Planning Mensuel'!AA31","v":"Repos"},null,null,null,null,null,null,0]
["Dimanche","2017-01-15",{"$f":"'Planning Mensuel'!AA32","v":"Repos"},null,null,null,null,null,null,0]
["Lundi","2017-01-16",{"$f":"'Planning Mensuel'!AA33","v":"ENC MATIN 5H-12H"},null,null,null,null,null,null,0]
["Mardi","2017-01-17",{"$f":"'Planning Mensuel'!AA34","v":"ENC MATIN 5H-12H"},null,null,null,null,null,null,0]
["Mercredi","2017-01-18",{"$f":"'Planning Mensuel'!AA35","v":"ENC MATIN 5H-12H"},null,null,null,null,null,null,0]
["Jeudi","2017-01-19",{"$f":"'Planning Mensuel'!AA36","v":"ENC MATIN 5H-12H"},null,null,null,null,null,null,0]
["Vendredi","2017-01-20",{"$f":"'Planning Mensuel'!AA37","v":"ENC MATIN 5H-12H"},null,null,null,null,null,null,0]
[null,null,null,null,null,null,{"$f":"SUM(G5:G35)","v":0},0,0,0,0,0]
[]
[]
[]
[]
[null,null,"Travaille le samedi 21/01/16"]
[]
[]
[]
[]
[]
["REMARQUES"]
["Date","heures","Remarques",null,null,"Responsables"]

{"sheet":"MOLINER","index":39,"n_rows":48,"n_cols":12,"rows_kept":48,"cut":false,"hidden":false,"merged":[[64,2,64,4],[65,2,65,4],[66,2,66,4],[67,2,67,4],[58,2,58,4],[59,2,59,4],[60,2,60,4],[61,2,61,4],[62,2,62,4],[63,2,63,4],[57,2,57,4],[46,0,46,5],[47,2,47,4],[48,2,48,4],[49,2,49,4],[50,2,50,4],[51,2,51,4],[52,2,52,4],[53,2,53,4],[54,2,54,4],[55,2,55,4],[56,2,56,4],[40,2,45,5],[0,0,1,2],[0,3,1,5],[0,6,1,11],[2,0,2,1],[2,2,2,5]]}
["MOLINER DAVID",null,null,null,null,null,"Feuille Attachement"]
[]
["2017-01-01",null," fournir avant  Mercredi 04/01  demande de congés pour Février 2017 en fonction des disponibilités",null,null,null,"HS","HS","HS","Total","Nuit","Insalubrité"]
["Jours","Date","Prestations","Confirmations","Prestations  HS","Horaires",0,0,0,{"$f":"SUM(G4:I4)","v":0},0,0]
["Mercredi","2016-12-21",{"$f":"'Planning Mensuel'!AP7","v":"CP + POLY 4H-12H"},null,"Cité du Parc","04H-05H",null,null,null,0]
["Jeudi","2016-12-22",{"$f":"'Planning Mensuel'!AP8","v":"Repos"},null,null,null,null,null,null,0]
["Vendredi","2016-12-23",{"$f":"'Planning Mensuel'!AP9","v":"POLY + CP 4H-12H"},null,"Cité du Parc","04H-05H",null,null,null,0]
["Samedi","2016-12-24",{"$f":"'Planning Mensuel'!AP10","v":"4H-14H COMPACTEUR"},null,"Cité du parc","4H-7H",null,null,null,0]
["Dimanche","2016-12-25",{"$f":"'Planning Mensuel'!AP11","v":0},null,null,null,null,null,null,0]
["Lundi","2016-12-26",{"$f":"'Planning Mensuel'!AP12","v":"CP + POLY 4H-12H"},null,"Cité du Parc","04H-05H",null,null,null,0]
["Mardi","2016-12-27",{"$f":"'Planning Mensuel'!AP13","v":"CP + POLY 4H-12H"},null,"Cité du Parc","04H-05H",null,null,null,0]
["Mercredi","2016-12-28",{"$f":"'Planning Mensuel'!AP14","v":"CP + POLY 4H-12H"},null,"Cité du Parc","04H-05H",null,null,null,0]
["Jeudi","2016-12-29",{"$f":"'Planning Mensuel'!AP15","v":"CP + POLY 4H-12H"},null,"Cité du Parc","04H-05H",null,null,null,0]
["Vendredi","2016-12-30",{"$f":"'Planning Mensuel'!AP16","v":"CP + POLY 4H-12H"},null,"Cité du Parc","04H-05H",null,null,null,0]
["Samedi","2016-12-31",{"$f":"'Planning Mensuel'!AP17","v":0},null,null,null,null,null,null,0]
["Dimanche","2017-01-01",{"$f":"'Planning Mensuel'!AP18","v":0},null,null,null,null,null,null,0]
["Lundi","2017-01-02",{"$f":"'Planning Mensuel'!AP19","v":"Congés"},null,null,null,null,null,null,0]
["Mardi","2017-01-03",{"$f":"'Planning Mensuel'!AP20","v":"Congés"},null,null,null,null,null,null,0]
["Mercredi","2017-01-04",{"$f":"'Planning Mensuel'!AP21","v":"Congés"},null,null,null,null,null,null,0]
["Jeudi","2017-01-05",{"$f":"'Planning Mensuel'!AP22","v":"Congés"},null,null,null,null,null,null,0]
["Vendredi","2017-01-06",{"$f":"'Planning Mensuel'!AP23","v":"Congés"},null,null,null,null,null,null,0]
["Samedi","2017-01-07",{"$f":"'Planning Mensuel'!AP24","v":0},null,null,null,null,null,null,0]
["Dimanche","2017-01-08",{"$f":"'Planning Mensuel'!AP25","v":0},null,null,null,null,null,null,0]
["Lundi","2017-01-09",{"$f":"'Planning Mensuel'!AP26","v":"CP + POLY 4H-12H"},null,"Cité du Parc","04H-05H",null,null,null,0]
["Mardi","2017-01-10",{"$f":"'Planning Mensuel'!AP27","v":"CP + POLY 4H-12H"},null,"Cité du Parc","04H-05H",null,null,null,0]
["Mercredi","2017-01-11",{"$f":"'Planning Mensuel'!AP28","v":"CP + POLY 4H-12H"},null,"Cité du Parc","04H-05H",null,null,null,0]
["Jeudi","2017-01-12",{"$f":"'Planning Mensuel'!AP29","v":"CP + POLY 4H-12H"},null,"Cité du Parc","04H-05H",null,null,null,0]
["Vendredi","2017-01-13",{"$f":"'Planning Mensuel'!AP30","v":"CP + POLY 4H-12H"},null,"Cité du Parc","04H-05H",null,null,null,0]
["Samedi","2017-01-14",{"$f":"'Planning Mensuel'!AP31","v":"CP 4H-7H"},null,"Cité du parc","4H-7H",null,null,null,0]
["Dimanche","2017-01-15",{"$f":"'Planning Mensuel'!AP32","v":0},null,null,null,null,null,null,0]
["Lundi","2017-01-16",{"$f":"'Planning Mensuel'!AP33","v":"POLY 5H-12H"},null,null,null,null,null,null,0]
["Mardi","2017-01-17",{"$f":"'Planning Mensuel'!AP34","v":"POLY 5H-12H"},null,null,null,null,null,null,0]
["Mercredi","2017-01-18",{"$f":"'Planning Mensuel'!AP35","v":"POLY 5H-12H"},null,null,null,null,null,null,0]
["Jeudi","2017-01-19",{"$f":"'Planning Mensuel'!AP36","v":"POLY 5H-12H"},null,null,null,null,null,null,0]
["Vendredi","2017-01-20",{"$f":"'Planning Mensuel'!AP37","v":"POLY 5H-12H"},null,null,null,null,null,null,0]
[null,null,null,null,null,null,{"$f":"SUM(G5:G35)","v":0},0,0,0,0,0]
[]
[]
[]
[]
[]
[]
[]
[]
[]
[]
["REMARQUES"]
["Date","heures","Remarques",null,null,"Responsables"]

{"sheet":"MONGRANDI","index":40,"n_rows":49,"n_cols":12,"rows_kept":49,"cut":false,"hidden":false,"merged":[[64,2,64,4],[65,2,65,4],[66,2,66,4],[67,2,67,4],[58,2,58,4],[59,2,59,4],[60,2,60,4],[61,2,61,4],[62,2,62,4],[63,2,63,4],[57,2,57,4],[46,0,46,5],[47,2,47,4],[48,2,48,4],[49,2,49,4],[50,2,50,4],[51,2,51,4],[52,2,52,4],[53,2,53,4],[54,2,54,4],[55,2,55,4],[56,2,56,4],[40,2,45,5],[0,0,1,2],[0,3,1,5],[0,6,1,11],[2,0,2,1],[2,2,2,5]]}
["MONGRANDI FREDERIC",null,null,null,null,null,"Feuille Attachement"]
[]
["2017-01-01",null," fournir avant  Mercredi 04/01  demande de congés pour Février 2017 en fonction des disponibilités",null,null,null,"HS","HS","HS","Total","Nuit","Insalubrité"]
["Jours","Date","Prestations","Confirmations","Prestations  HS","Horaires",0,0,0,{"$f":"SUM(G4:I4)","v":0},0,0]
["Mercredi","2016-12-21",{"$f":"'Planning Mensuel'!F7","v":"Congés"},null,null,null,null,null,null,0]
["Jeudi","2016-12-22",{"$f":"'Planning Mensuel'!F8","v":"Congés"},null,null,null,null,null,null,0]
["Vendredi","2016-12-23",{"$f":"'Planning Mensuel'!F9","v":"Congés"},null,null,null,null,null,null,0]
["Samedi","2016-12-24",{"$f":"'Planning Mensuel'!F10","v":0},null,null,null,null,null,null,0]
["Dimanche","2016-12-25",{"$f":"'Planning Mensuel'!F11","v":0},null,null,null,null,null,null,0]
["Lundi","2016-12-26",{"$f":"'Planning Mensuel'!F12","v":"NICE EST"},null,null,null,null,null,null,0]
["Mardi","2016-12-27",{"$f":"'Planning Mensuel'!F13","v":"NICE EST"},null,null,null,null,null,null,0]
["Mercredi","2016-12-28",{"$f":"'Planning Mensuel'!F14","v":"Repos"},null,null,null,null,null,null,0]
["Jeudi","2016-12-29",{"$f":"'Planning Mensuel'!F15","v":"NICE EST"},null,null,null,null,null,null,0]
["Vendredi","2016-12-30",{"$f":"'Planning Mensuel'!F16","v":"NICE EST"},null,null,null,null,null,null,0]
["Samedi","2016-12-31",{"$f":"'Planning Mensuel'!F17","v":"NICE EST"},null,null,null,null,null,null,0]
["Dimanche","2017-01-01",{"$f":"'Planning Mensuel'!F18","v":"Repos"},null,null,null,null,null,null,0]
["Lundi","2017-01-02",{"$f":"'Planning Mensuel'!F19","v":"NICE EST"},null,null,null,null,null,null,0]
["Mardi","2017-01-03",{"$f":"'Planning Mensuel'!F20","v":"NICE EST"},null,null,null,null,null,null,0]
["Mercredi","2017-01-04",{"$f":"'Planning Mensuel'!F21","v":"NICE EST"},null,null,null,null,null,null,0]
["Jeudi","2017-01-05",{"$f":"'Planning Mensuel'!F22","v":"NICE EST"},null,null,null,null,null,null,0]
["Vendredi","2017-01-06",{"$f":"'Planning Mensuel'!F23","v":"NICE EST"},null,null,null,null,null,null,0]
["Samedi","2017-01-07",{"$f":"'Planning Mensuel'!F24","v":"NICE EST"},null,"Nice Est","8H30-12H / 14H30-18H",null,null,null,0]
["Dimanche","2017-01-08",{"$f":"'Planning Mensuel'!F25","v":0},null,null,null,null,null,null,0]
["Lundi","2017-01-09",{"$f":"'Planning Mensuel'!F26","v":"NICE EST"},null,null,null,null,null,null,0]
["Mardi","2017-01-10",{"$f":"'Planning Mensuel'!F27","v":"NICE EST"},null,null,null,null,null,null,0]
["Mercredi","2017-01-11",{"$f":"'Planning Mensuel'!F28","v":"NICE EST"},null,null,null,null,null,null,0]
["Jeudi","2017-01-12",{"$f":"'Planning Mensuel'!F29","v":"NICE EST"},null,null,null,null,null,null,0]
["Vendredi","2017-01-13",{"$f":"'Planning Mensuel'!F30","v":"NICE EST"},null,null,null,null,null,null,0]
["Samedi","2017-01-14",{"$f":"'Planning Mensuel'!F31","v":"Repos"},null,null,null,null,null,null,0]
["Dimanche","2017-01-15",{"$f":"'Planning Mensuel'!F32","v":"Repos"},null,null,null,null,null,null,0]
["Lundi","2017-01-16",{"$f":"'Planning Mensuel'!F33","v":"NICE EST"},null,null,null,null,null,null,0]
["Mardi","2017-01-17",{"$f":"'Planning Mensuel'!F34","v":"NICE EST"},null,null,null,null,null,null,0]
["Mercredi","2017-01-18",{"$f":"'Planning Mensuel'!F35","v":"NICE EST"},null,null,null,null,null,null,0]
["Jeudi","2017-01-19",{"$f":"'Planning Mensuel'!F36","v":"NICE EST"},null,null,null,null,null,null,0]
["Vendredi","2017-01-20",{"$f":"'Planning Mensuel'!F37","v":"NICE EST"},null,null,null,null,null,null,0]
[null,null,null,null,null,null,{"$f":"SUM(G5:G35)","v":0},0,0,0,0,0]
[]
[]
[]
[]
[]
[]
[]
[]
[]
[]
["REMARQUES"]
["Date","heures","Remarques",null,null,"Responsables"]
["2016-11-07","17H","Départ à 17H de la déchetterie pour aller chercher sa fille",null,null,"Arnaud"]

{"sheet":"MORALDO","index":41,"n_rows":74,"n_cols":14,"rows_kept":74,"cut":false,"hidden":false,"merged":[[64,2,64,4],[65,2,65,4],[66,2,66,4],[67,2,67,4],[73,13,73,15],[63,2,63,4],[52,2,52,4],[53,2,53,4],[54,2,54,4],[55,2,55,4],[56,2,56,4],[57,2,57,4],[58,2,58,4],[59,2,59,4],[60,2,60,4],[61,2,61,4],[62,2,62,4],[51,2,51,4],[0,0,1,2],[0,3,1,5],[0,6,1,11],[2,0,2,1],[2,2,2,5],[40,2,45,5],[46,0,46,5],[47,2,47,4],[48,2,48,4],[49,2,49,4],[50,2,50,4]]}
["MORALDO ADRIEN",null,null,null,null,null,"Feuille Attachement"]
[]
["2017-01-01",null," fournir avant  Mercredi 04/01  demande de congés pour Février 2017 en fonction des disponibilités",null,null,null,"HS","HS","HS","Total","Nuit","Insalubrité"]
["Jours","Date","Prestations","Confirmations","Prestations  HS","Horaires",0,0,0,{"$f":"SUM(G4:I4)","v":0},0,0]
["Mercredi","2016-12-21",{"$f":"'Planning Mensuel'!AH7","v":"ENC AM 12H30-19H30"},"CARTON AM",null,null,null,null,null,0]
["Jeudi","2016-12-22",{"$f":"'Planning Mensuel'!AH8","v":"Repos"},"CARTON AM",null,null,null,null,null,0]
["Vendredi","2016-12-23",{"$f":"'Planning Mensuel'!AH9","v":"ENC AM 12H30-19H30"},"CARTON AM",null,null,null,null,null,0]
["Samedi","2016-12-24",{"$f":"'Planning Mensuel'!AH10","v":"NICE OUEST"},null,"NICE OUEST","8H30-14H30",null,null,null,0]
["Dimanche","2016-12-25",{"$f":"'Planning Mensuel'!AH11","v":0},null,null,null,null,null,null,0]
["Lundi","2016-12-26",{"$f":"'Planning Mensuel'!AH12","v":"Congés"},null,null,null,null,null,null,0]
["Mardi","2016-12-27",{"$f":"'Planning Mensuel'!AH13","v":"Congés"},null,null,null,null,null,null,0]
["Mercredi","2016-12-28",{"$f":"'Planning Mensuel'!AH14","v":"Congés"},null,null,null,null,null,null,0]
["Jeudi","2016-12-29",{"$f":"'Planning Mensuel'!AH15","v":"Congés"},null,null,null,null,null,null,0]
["Vendredi","2016-12-30",{"$f":"'Planning Mensuel'!AH16","v":"Congés"},null,null,null,null,null,null,0]
["Samedi","2016-12-31",{"$f":"'Planning Mensuel'!AH17","v":"Congés"},null,null,null,null,null,null,0]
["Dimanche","2017-01-01",{"$f":"'Planning Mensuel'!AH18","v":"Congés"},null,null,null,null,null,null,0]
["Lundi","2017-01-02",{"$f":"'Planning Mensuel'!AH19","v":"CARTON AM"},null,null,null,null,null,null,0]
["Mardi","2017-01-03",{"$f":"'Planning Mensuel'!AH20","v":"CARTON AM"},null,null,null,null,null,null,0]
["Mercredi","2017-01-04",{"$f":"'Planning Mensuel'!AH21","v":"CARTON AM"},null,null,null,null,null,null,0]
["Jeudi","2017-01-05",{"$f":"'Planning Mensuel'!AH22","v":"CARTON AM"},null,null,null,null,null,null,0]
["Vendredi","2017-01-06",{"$f":"'Planning Mensuel'!AH23","v":"CARTON AM"},null,null,null,null,null,null,0]
["Samedi","2017-01-07",{"$f":"'Planning Mensuel'!AH24","v":"Repos"},null,null,null,null,null,null,0]
["Dimanche","2017-01-08",{"$f":"'Planning Mensuel'!AH25","v":"Repos"},null,null,null,null,null,null,0]
["Lundi","2017-01-09",{"$f":"'Planning Mensuel'!AH26","v":"CARTON AM"},null,null,null,null,null,null,0]
["Mardi","2017-01-10",{"$f":"'Planning Mensuel'!AH27","v":"CARTON AM"},null,null,null,null,null,null,0]
["Mercredi","2017-01-11",{"$f":"'Planning Mensuel'!AH28","v":"CARTON AM"},null,null,null,null,null,null,0]
["Jeudi","2017-01-12",{"$f":"'Planning Mensuel'!AH29","v":"CARTON AM"},null,null,null,null,null,null,0]
["Vendredi","2017-01-13",{"$f":"'Planning Mensuel'!AH30","v":"CARTON AM"},null,null,null,null,null,null,0]
["Samedi","2017-01-14",{"$f":"'Planning Mensuel'!AH31","v":"Repos"},null,null,null,null,null,null,0]
["Dimanche","2017-01-15",{"$f":"'Planning Mensuel'!AH32","v":"Repos"},null,null,null,null,null,null,0]
["Lundi","2017-01-16",{"$f":"'Planning Mensuel'!AH33","v":"ENC AM 12H30-19H30"},null,null,null,null,null,null,0]
["Mardi","2017-01-17",{"$f":"'Planning Mensuel'!AH34","v":"ENC AM 12H30-19H30"},null,null,null,null,null,null,0]
["Mercredi","2017-01-18",{"$f":"'Planning Mensuel'!AH35","v":"ENC AM 12H30-19H30"},null,null,null,null,null,null,0]
["Jeudi","2017-01-19",{"$f":"'Planning Mensuel'!AH36","v":"ENC AM 12H30-19H30"},null,null,null,null,null,null,0]
["Vendredi","2017-01-20",{"$f":"'Planning Mensuel'!AH37","v":"ENC AM 12H30-19H30"},null,null,null,null,null,null,0]
[null,null,null,null,null,null,{"$f":"SUM(G5:G35)","v":0},0,0,0,0,0]
[]
[]
[]
[]
[null,null,"Formation intégration\n- les 23/03/17, 24/03/17, 29/03/17, 30/03/17, 31/03/17,"]
[]
[]
[]
[]
[]
["REMARQUES"]
["Date","heures","Remarques",null,null,"Responsables"]
["2016-01-09","8H30-12H / 14H-18H","Aucun tri sur les DEEE",null,null,"Peters"]
[]
[]
[]
[]
[]
[]
[]
[]
[]
[]
[]
[]
[]
[]
[]
[]
[]
[]
[]
[]
[]
[]
[]
[]
[null,null,null,null,null,null,null,null,null,null,null,"2016-01-09","8H30-12H / 14H-18H","Aucun tri sur les DEEE"]

{"sheet":"NAPOLITANO","index":42,"n_rows":50,"n_cols":12,"rows_kept":50,"cut":false,"hidden":false,"merged":[[64,2,64,4],[65,2,65,4],[66,2,66,4],[67,2,67,4],[58,2,58,4],[59,2,59,4],[60,2,60,4],[61,2,61,4],[62,2,62,4],[63,2,63,4],[57,2,57,4],[46,0,46,5],[47,2,47,4],[48,2,48,4],[49,2,49,4],[50,2,50,4],[51,2,51,4],[52,2,52,4],[53,2,53,4],[54,2,54,4],[55,2,55,4],[56,2,56,4],[40,2,45,5],[0,0,1,2],[0,3,1,5],[0,6,1,11],[2,0,2,1],[2,2,2,5]]}
["NAPOLITANO VALTER",null,null,null,null,null,"Feuille Attachement"]
[]
["2017-01-01",null," fournir avant  Mercredi 04/01  demande de congés pour Février 2017 en fonction des disponibilités",null,null,null,"HS","HS","HS","Total","Nuit","Insalubrité"]
["Jours","Date","Prestations","Confirmations","Prestations  HS","Horaires",0,0,0,{"$f":"SUM(G4:I4)","v":0},0,0]
["Mercredi","2016-12-21",{"$f":"'Planning Mensuel'!AB7","v":"ENC MATIN 5H-12H"},"ABSENT","ABSENT",null,null,null,null,0]
["Jeudi","2016-12-22",{"$f":"'Planning Mensuel'!AB8","v":"ENC MATIN 5H-12H"},"ABSENT","ABSENT",null,null,null,null,0]
["Vendredi","2016-12-23",{"$f":"'Planning Mensuel'!AB9","v":"ENC MATIN 5H-12H"},"ABSENT","ABSENT",null,null,null,null,0]
["Samedi","2016-12-24",{"$f":"'Planning Mensuel'!AB10","v":0},"ABSENT","ABSENT",null,null,null,null,0]
["Dimanche","2016-12-25",{"$f":"'Planning Mensuel'!AB11","v":0},"ABSENT","ABSENT",null,null,null,null,0]
["Lundi","2016-12-26",{"$f":"'Planning Mensuel'!AB12","v":"ENC NUIT 20H30-02H30"},null,null,null,null,null,null,0]
["Mardi","2016-12-27",{"$f":"'Planning Mensuel'!AB13","v":"ENC NUIT 20H30-02H30"},null,null,null,null,null,null,0]
["Mercredi","2016-12-28",{"$f":"'Planning Mensuel'!AB14","v":"ENC NUIT 20H30-02H30"},null,null,null,null,null,null,0]
["Jeudi","2016-12-29",{"$f":"'Planning Mensuel'!AB15","v":"ENC NUIT 20H30-02H30"},null,null,null,null,null,null,0]
["Vendredi","2016-12-30",{"$f":"'Planning Mensuel'!AB16","v":"ENC NUIT 20H30-02H30"},null,null,null,null,null,null,0]
["Samedi","2016-12-31",{"$f":"'Planning Mensuel'!AB17","v":"Repos"},null,null,null,null,null,null,0]
["Dimanche","2017-01-01",{"$f":"'Planning Mensuel'!AB18","v":"Repos"},null,null,null,null,null,null,0]
["Lundi","2017-01-02",{"$f":"'Planning Mensuel'!AB19","v":"ENC NUIT 20H30-02H30"},null,null,null,null,null,null,0]
["Mardi","2017-01-03",{"$f":"'Planning Mensuel'!AB20","v":"ENC NUIT 20H30-02H30"},null,null,null,null,null,null,0]
["Mercredi","2017-01-04",{"$f":"'Planning Mensuel'!AB21","v":"ENC NUIT 20H30-02H30"},null,null,null,null,null,null,0]
["Jeudi","2017-01-05",{"$f":"'Planning Mensuel'!AB22","v":"ENC NUIT 20H30-02H30"},null,null,null,null,null,null,0]
["Vendredi","2017-01-06",{"$f":"'Planning Mensuel'!AB23","v":"ENC NUIT 20H30-02H30"},null,null,null,null,null,null,0]
["Samedi","2017-01-07",{"$f":"'Planning Mensuel'!AB24","v":"Repos"},null,null,null,null,null,null,0]
["Dimanche","2017-01-08",{"$f":"'Planning Mensuel'!AB25","v":"Repos"},null,null,null,null,null,null,0]
["Lundi","2017-01-09",{"$f":"'Planning Mensuel'!AB26","v":"ENC MATIN 5H-12H"},null,null,null,null,null,null,0]
["Mardi","2017-01-10",{"$f":"'Planning Mensuel'!AB27","v":"ENC MATIN 5H-12H"},null,null,null,null,null,null,0]
["Mercredi","2017-01-11",{"$f":"'Planning Mensuel'!AB28","v":"ENC MATIN 5H-12H"},null,null,null,null,null,null,0]
["Jeudi","2017-01-12",{"$f":"'Planning Mensuel'!AB29","v":"ENC MATIN 5H-12H"},null,null,null,null,null,null,0]
["Vendredi","2017-01-13",{"$f":"'Planning Mensuel'!AB30","v":"Repos"},null,null,null,null,null,null,0]
["Samedi","2017-01-14",{"$f":"'Planning Mensuel'!AB31","v":"NICE OUEST"},null,"Nice Ouest","14H-14H30",null,null,null,0]
["Dimanche","2017-01-15",{"$f":"'Planning Mensuel'!AB32","v":"Repos"},null,null,null,null,null,null,0]
["Lundi","2017-01-16",{"$f":"'Planning Mensuel'!AB33","v":"ENC MATIN 5H-12H"},null,null,null,null,null,null,0]
["Mardi","2017-01-17",{"$f":"'Planning Mensuel'!AB34","v":"ENC MATIN 5H-12H"},null,null,null,null,null,null,0]
["Mercredi","2017-01-18",{"$f":"'Planning Mensuel'!AB35","v":"ENC MATIN 5H-12H"},null,null,null,null,null,null,0]
["Jeudi","2017-01-19",{"$f":"'Planning Mensuel'!AB36","v":"Repos"},null,null,null,null,null,null,0]
["Vendredi","2017-01-20",{"$f":"'Planning Mensuel'!AB37","v":"ENC MATIN 5H-12H"},null,null,null,null,null,null,0]
[null,null,null,null,null,null,{"$f":"SUM(G5:G35)","v":0},0,0,0,0,0]
[]
[]
[]
[]
[null,null,"Travaille le samedi 21/01/16"]
[]
[]
[]
[]
[]
["REMARQUES"]
["Date","heures","Remarques",null,null,"Responsables"]
["2016-08-27","14H40","Arrivée déchetterie 14H40",null,null,"Tripodi"]
["2016-09-20","5H25","Arrivée à 5H25 au lieu de 5H",null,null,"Cambra"]

{"sheet":"OROFINO","index":43,"n_rows":50,"n_cols":12,"rows_kept":50,"cut":false,"hidden":false,"merged":[[64,2,64,4],[65,2,65,4],[66,2,66,4],[67,2,67,4],[58,2,58,4],[59,2,59,4],[60,2,60,4],[61,2,61,4],[62,2,62,4],[63,2,63,4],[57,2,57,4],[46,0,46,5],[47,2,47,4],[48,2,48,4],[49,2,49,4],[50,2,50,4],[51,2,51,4],[52,2,52,4],[53,2,53,4],[54,2,54,4],[55,2,55,4],[56,2,56,4],[40,2,45,5],[0,0,1,2],[0,3,1,5],[0,6,1,11],[2,0,2,1],[2,2,2,5]]}
["OROFINO CARMELO",null,null,null,null,null,"Feuille Attachement"]
[]
["2017-01-01",null," fournir avant  Mercredi 04/01  demande de congés pour Février 2017 en fonction des disponibilités",null,null,null,"HS","HS","HS","Total","Nuit","Insalubrité"]
["Jours","Date","Prestations","Confirmations","Prestations  HS","Horaires",0,0,0,{"$f":"SUM(G4:I4)","v":0},0,0]
["Mercredi","2016-12-21",{"$f":"'Planning Mensuel'!AC7","v":"NICE EST"},null,null,null,null,null,null,0]
["Jeudi","2016-12-22",{"$f":"'Planning Mensuel'!AC8","v":"NICE EST"},null,null,null,null,null,null,0]
["Vendredi","2016-12-23",{"$f":"'Planning Mensuel'!AC9","v":"NICE EST"},null,null,null,null,null,null,0]
["Samedi","2016-12-24",{"$f":"'Planning Mensuel'!AC10","v":0},null,null,null,null,null,null,0]
["Dimanche","2016-12-25",{"$f":"'Planning Mensuel'!AC11","v":0},null,null,null,null,null,null,0]
["Lundi","2016-12-26",{"$f":"'Planning Mensuel'!AC12","v":"B. CARTON"},null,null,null,null,null,null,0]
["Mardi","2016-12-27",{"$f":"'Planning Mensuel'!AC13","v":"B. CARTON"},null,null,null,null,null,null,0]
["Mercredi","2016-12-28",{"$f":"'Planning Mensuel'!AC14","v":"B. CARTON"},null,null,null,null,null,null,0]
["Jeudi","2016-12-29",{"$f":"'Planning Mensuel'!AC15","v":"B. CARTON"},null,null,null,null,null,null,0]
["Vendredi","2016-12-30",{"$f":"'Planning Mensuel'!AC16","v":"B. CARTON"},null,null,null,null,null,null,0]
["Samedi","2016-12-31",{"$f":"'Planning Mensuel'!AC17","v":"Repos"},null,null,null,null,null,null,0]
["Dimanche","2017-01-01",{"$f":"'Planning Mensuel'!AC18","v":"Repos"},null,null,null,null,null,null,0]
["Lundi","2017-01-02",{"$f":"'Planning Mensuel'!AC19","v":"NICE EST"},null,null,null,null,null,null,0]
["Mardi","2017-01-03",{"$f":"'Planning Mensuel'!AC20","v":"B. CARTON"},null,null,null,null,null,null,0]
["Mercredi","2017-01-04",{"$f":"'Planning Mensuel'!AC21","v":"NICE EST"},null,null,null,null,null,null,0]
["Jeudi","2017-01-05",{"$f":"'Planning Mensuel'!AC22","v":"Repos"},null,null,null,null,null,null,0]
["Vendredi","2017-01-06",{"$f":"'Planning Mensuel'!AC23","v":"NICE EST"},null,null,null,null,null,null,0]
["Samedi","2017-01-07",{"$f":"'Planning Mensuel'!AC24","v":"Repos"},null,null,null,null,null,null,0]
["Dimanche","2017-01-08",{"$f":"'Planning Mensuel'!AC25","v":"Repos"},null,null,null,null,null,null,0]
["Lundi","2017-01-09",{"$f":"'Planning Mensuel'!AC26","v":"NICE EST"},null,null,null,null,null,null,0]
["Mardi","2017-01-10",{"$f":"'Planning Mensuel'!AC27","v":"B. CARTON"},null,null,null,null,null,null,0]
["Mercredi","2017-01-11",{"$f":"'Planning Mensuel'!AC28","v":"NICE EST"},null,null,null,null,null,null,0]
["Jeudi","2017-01-12",{"$f":"'Planning Mensuel'!AC29","v":"ENC AM 12H30-19H30"},null,null,null,null,null,null,0]
["Vendredi","2017-01-13",{"$f":"'Planning Mensuel'!AC30","v":"ENC AM 12H30-19H30"},null,null,null,null,null,null,0]
["Samedi","2017-01-14",{"$f":"'Planning Mensuel'!AC31","v":"Repos"},null,null,null,null,null,null,0]
["Dimanche","2017-01-15",{"$f":"'Planning Mensuel'!AC32","v":"Repos"},null,null,null,null,null,null,0]
["Lundi","2017-01-16",{"$f":"'Planning Mensuel'!AC33","v":"ENC AM 12H30-19H30"},null,null,null,null,null,null,0]
["Mardi","2017-01-17",{"$f":"'Planning Mensuel'!AC34","v":"ENC AM 12H30-19H30"},null,null,null,null,null,null,0]
["Mercredi","2017-01-18",{"$f":"'Planning Mensuel'!AC35","v":"ENC AM 12H30-19H30"},null,null,null,null,null,null,0]
["Jeudi","2017-01-19",{"$f":"'Planning Mensuel'!AC36","v":"ENC AM 12H30-19H30"},null,null,null,null,null,null,0]
["Vendredi","2017-01-20",{"$f":"'Planning Mensuel'!AC37","v":"ENC AM 12H30-19H30"},null,null,null,null,null,null,0]
[null,null,null,null,null,null,{"$f":"SUM(G5:G35)","v":0},0,0,0,0,0]
[]
[]
[]
[]
[]
[]
[]
[]
[]
[]
["REMARQUES"]
["Date","heures","Remarques",null,null,"Responsables"]
["2016-06-13","5H30","Arrivé à 5H30 aux encombrants du matin",null,null,"Cambra"]
["2016-06-15","5H20","Arrivé à 5H20 aux encombrants du matin",null,null,"Cambra"]

{"sheet":"OUTILI","index":44,"n_rows":48,"n_cols":12,"rows_kept":48,"cut":false,"hidden":false,"merged":[[64,2,64,4],[65,2,65,4],[66,2,66,4],[67,2,67,4],[58,2,58,4],[59,2,59,4],[60,2,60,4],[61,2,61,4],[62,2,62,4],[63,2,63,4],[57,2,57,4],[46,0,46,5],[47,2,47,4],[48,2,48,4],[49,2,49,4],[50,2,50,4],[51,2,51,4],[52,2,52,4],[53,2,53,4],[54,2,54,4],[55,2,55,4],[56,2,56,4],[40,2,45,5],[0,0,1,2],[0,3,1,5],[0,6,1,11],[2,0,2,1],[2,2,2,5]]}
["OUTILI YASSIN",null,null,null,null,null,"Feuille Attachement"]
[]
["2017-01-01",null," fournir avant  Mercredi 04/01  demande de congés pour Février 2017 en fonction des disponibilités",null,null,null,"HS","HS","HS","Total","Nuit","Insalubrité"]
["Jours","Date","Prestations","Confirmations","Prestations  HS","Horaires",0,0,0,{"$f":"SUM(G4:I4)","v":0},0,0]
["Mercredi","2016-12-21",{"$f":"'Planning Mensuel'!AD7","v":"ENC NUIT 20H30-02H30"},null,null,null,null,null,null,0]
["Jeudi","2016-12-22",{"$f":"'Planning Mensuel'!AD8","v":"ENC NUIT 20H30-02H30"},null,null,null,null,null,null,0]
["Vendredi","2016-12-23",{"$f":"'Planning Mensuel'!AD9","v":"ENC NUIT 20H30-02H30"},null,null,null,null,null,null,0]
["Samedi","2016-12-24",{"$f":"'Planning Mensuel'!AD10","v":0},null,null,null,null,null,null,0]
["Dimanche","2016-12-25",{"$f":"'Planning Mensuel'!AD11","v":0},null,null,null,null,null,null,0]
["Lundi","2016-12-26",{"$f":"'Planning Mensuel'!AD12","v":"ENC MATIN 5H-12H"},null,null,null,null,null,null,0]
["Mardi","2016-12-27",{"$f":"'Planning Mensuel'!AD13","v":"ENC MATIN 5H-12H"},null,null,null,null,null,null,0]
["Mercredi","2016-12-28",{"$f":"'Planning Mensuel'!AD14","v":"ENC MATIN 5H-12H"},null,null,null,null,null,null,0]
["Jeudi","2016-12-29",{"$f":"'Planning Mensuel'!AD15","v":"Repos"},null,null,null,null,null,null,0]
["Vendredi","2016-12-30",{"$f":"'Planning Mensuel'!AD16","v":"ENC MATIN 5H-12H"},null,null,null,null,null,null,0]
["Samedi","2016-12-31",{"$f":"'Planning Mensuel'!AD17","v":"NICE OUEST"},null,null,null,null,null,null,0]
["Dimanche","2017-01-01",{"$f":"'Planning Mensuel'!AD18","v":"Repos"},null,null,null,null,null,null,0]
["Lundi","2017-01-02",{"$f":"'Planning Mensuel'!AD19","v":"ENC MATIN 5H-12H"},null,null,null,null,null,null,0]
["Mardi","2017-01-03",{"$f":"'Planning Mensuel'!AD20","v":"ENC MATIN 5H-12H"},null,null,null,null,null,null,0]
["Mercredi","2017-01-04",{"$f":"'Planning Mensuel'!AD21","v":"ENC MATIN 5H-12H"},null,null,null,null,null,null,0]
["Jeudi","2017-01-05",{"$f":"'Planning Mensuel'!AD22","v":"ENC MATIN 5H-12H"},null,null,null,null,null,null,0]
["Vendredi","2017-01-06",{"$f":"'Planning Mensuel'!AD23","v":"ENC MATIN 5H-12H"},null,null,null,null,null,null,0]
["Samedi","2017-01-07",{"$f":"'Planning Mensuel'!AD24","v":"Repos"},null,null,null,null,null,null,0]
["Dimanche","2017-01-08",{"$f":"'Planning Mensuel'!AD25","v":"V.N.  Après Midi"},null,"Vieux Nice","13H-19H",null,null,null,0]
["Lundi","2017-01-09",{"$f":"'Planning Mensuel'!AD26","v":"ENC NUIT 20H30-02H30"},null,null,null,null,null,null,0]
["Mardi","2017-01-10",{"$f":"'Planning Mensuel'!AD27","v":"ENC NUIT 20H30-02H30"},null,null,null,null,null,null,0]
["Mercredi","2017-01-11",{"$f":"'Planning Mensuel'!AD28","v":"ENC NUIT 20H30-02H30"},null,null,null,null,null,null,0]
["Jeudi","2017-01-12",{"$f":"'Planning Mensuel'!AD29","v":"ENC NUIT 20H30-02H30"},null,null,null,null,null,null,0]
["Vendredi","2017-01-13",{"$f":"'Planning Mensuel'!AD30","v":"ENC NUIT 20H30-02H30"},null,null,null,null,null,null,0]
["Samedi","2017-01-14",{"$f":"'Planning Mensuel'!AD31","v":"Repos"},null,null,null,null,null,null,0]
["Dimanche","2017-01-15",{"$f":"'Planning Mensuel'!AD32","v":"Repos"},null,null,null,null,null,null,0]
["Lundi","2017-01-16",{"$f":"'Planning Mensuel'!AD33","v":"ENC NUIT 20H30-02H30"},null,null,null,null,null,null,0]
["Mardi","2017-01-17",{"$f":"'Planning Mensuel'!AD34","v":"ENC NUIT 20H30-02H30"},null,null,null,null,null,null,0]
["Mercredi","2017-01-18",{"$f":"'Planning Mensuel'!AD35","v":"ENC NUIT 20H30-02H30"},null,null,null,null,null,null,0]
["Jeudi","2017-01-19",{"$f":"'Planning Mensuel'!AD36","v":"ENC NUIT 20H30-02H30"},null,null,null,null,null,null,0]
["Vendredi","2017-01-20",{"$f":"'Planning Mensuel'!AD37","v":"ENC NUIT 20H30-02H30"},null,null,null,null,null,null,0]
[null,null,null,null,null,null,{"$f":"SUM(G5:G35)","v":0},0,0,0,0,0]
[]
[]
[]
[]
[]
[]
[]
[]
[]
[]
["REMARQUES"]
["Date","heures","Remarques",null,null,"Responsables"]

{"sheet":"PEREZ","index":45,"n_rows":51,"n_cols":12,"rows_kept":51,"cut":false,"hidden":false,"merged":[[64,2,64,4],[65,2,65,4],[66,2,66,4],[67,2,67,4],[58,2,58,4],[59,2,59,4],[60,2,60,4],[61,2,61,4],[62,2,62,4],[63,2,63,4],[57,2,57,4],[46,0,46,5],[47,2,47,4],[48,2,48,4],[49,2,49,4],[50,2,50,4],[51,2,51,4],[52,2,52,4],[53,2,53,4],[54,2,54,4],[55,2,55,4],[56,2,56,4],[40,2,45,5],[0,0,1,2],[0,3,1,5],[0,6,1,11],[2,0,2,1],[2,2,2,5]]}
["PEREZ YANN",null,null,null,null,null,"Feuille Attachement"]
[]
["2017-01-01",null," fournir avant  Mercredi 04/01  demande de congés pour Février 2017 en fonction des disponibilités",null,null,null,"HS","HS","HS","Total","Nuit","Insalubrité"]
["Jours","Date","Prestations","Confirmations","Prestations  HS","Horaires",0,0,0,{"$f":"SUM(G4:I4)","v":0},0,0]
["Mercredi","2016-12-21",{"$f":"'Planning Mensuel'!J7","v":"CARTON AM"},"CONGES EXP","CONGES EXP",null,null,null,null,0,null,0]
["Jeudi","2016-12-22",{"$f":"'Planning Mensuel'!J8","v":"CARTON AM"},"CONGES EXP","CONGES EXP",null,null,null,null,0,null,0]
["Vendredi","2016-12-23",{"$f":"'Planning Mensuel'!J9","v":"CARTON AM"},"CONGES EXP","CONGES EXP",null,null,null,null,0,null,0]
["Samedi","2016-12-24",{"$f":"'Planning Mensuel'!J10","v":0},"CONGES EXP","CONGES EXP",null,null,null,null,0,null,0]
["Dimanche","2016-12-25",{"$f":"'Planning Mensuel'!J11","v":0},"CONGES EXP","CONGES EXP",null,null,null,null,0,null,0]
["Lundi","2016-12-26",{"$f":"'Planning Mensuel'!J12","v":"CARTON AM"},"CONGES","CONGES",null,null,null,null,0,null,0]
["Mardi","2016-12-27",{"$f":"'Planning Mensuel'!J13","v":"CARTON AM"},null,null,null,null,null,null,0]
["Mercredi","2016-12-28",{"$f":"'Planning Mensuel'!J14","v":"CARTON AM"},null,null,null,null,null,null,0]
["Jeudi","2016-12-29",{"$f":"'Planning Mensuel'!J15","v":"CARTON AM"},null,null,null,null,null,null,0]
["Vendredi","2016-12-30",{"$f":"'Planning Mensuel'!J16","v":"CARTON AM"},null,null,null,null,null,null,0]
["Samedi","2016-12-31",{"$f":"'Planning Mensuel'!J17","v":"Repos"},null,null,null,null,null,null,0]
["Dimanche","2017-01-01",{"$f":"'Planning Mensuel'!J18","v":"Repos"},null,null,null,null,null,null,0]
["Lundi","2017-01-02",{"$f":"'Planning Mensuel'!J19","v":"Congés"},null,null,null,null,null,null,0]
["Mardi","2017-01-03",{"$f":"'Planning Mensuel'!J20","v":"Congés"},null,null,null,null,null,null,0]
["Mercredi","2017-01-04",{"$f":"'Planning Mensuel'!J21","v":"Congés"},null,null,null,null,null,null,0]
["Jeudi","2017-01-05",{"$f":"'Planning Mensuel'!J22","v":"Congés"},null,null,null,null,null,null,0]
["Vendredi","2017-01-06",{"$f":"'Planning Mensuel'!J23","v":"Congés"},null,null,null,null,null,null,0]
["Samedi","2017-01-07",{"$f":"'Planning Mensuel'!J24","v":0},null,null,null,null,null,null,0]
["Dimanche","2017-01-08",{"$f":"'Planning Mensuel'!J25","v":0},null,null,null,null,null,null,0]
["Lundi","2017-01-09",{"$f":"'Planning Mensuel'!J26","v":"Repos"},null,null,null,null,null,null,0]
["Mardi","2017-01-10",{"$f":"'Planning Mensuel'!J27","v":"CARTON AM"},null,null,null,null,null,null,0]
["Mercredi","2017-01-11",{"$f":"'Planning Mensuel'!J28","v":"CARTON AM"},null,null,null,null,null,null,0]
["Jeudi","2017-01-12",{"$f":"'Planning Mensuel'!J29","v":"CARTON AM"},null,null,null,null,null,null,0]
["Vendredi","2017-01-13",{"$f":"'Planning Mensuel'!J30","v":"CARTON AM"},null,null,null,null,null,null,0]
["Samedi","2017-01-14",{"$f":"'Planning Mensuel'!J31","v":"CARTON AM"},null,null,null,null,null,null,0]
["Dimanche","2017-01-15",{"$f":"'Planning Mensuel'!J32","v":"Repos"},null,null,null,null,null,null,0]
["Lundi","2017-01-16",{"$f":"'Planning Mensuel'!J33","v":"CARTON AM"},null,null,null,null,null,null,0]
["Mardi","2017-01-17",{"$f":"'Planning Mensuel'!J34","v":"CARTON AM"},null,null,null,null,null,null,0]
["Mercredi","2017-01-18",{"$f":"'Planning Mensuel'!J35","v":"CARTON AM"},null,null,null,null,null,null,0]
["Jeudi","2017-01-19",{"$f":"'Planning Mensuel'!J36","v":"CARTON AM"},null,null,null,null,null,null,0]
["Vendredi","2017-01-20",{"$f":"'Planning Mensuel'!J37","v":"CARTON AM"},null,null,null,null,null,null,0]
[null,null,null,null,null,null,{"$f":"SUM(G5:G35)","v":0},0,0,0,0,0]
[]
[]
[]
[]
[]
[]
[]
[]
[]
[]
["REMARQUES"]
["Date","heures","Remarques",null,null,"Responsables"]
["2016-03-16","15H30","Boucherie Aviv, 33 lépante n'y passe pas",null,null,"Arnaud"]
["2016-04-10","8H15","Arrivé 8H15 déchetterie Nice Ouest",null,null,"Cirimele"]
["2016-10-01","8H40","Arrivée à 8H40 aux cartons",null,null,"Cirimele"]

{"sheet":"PERRONE","index":46,"n_rows":48,"n_cols":12,"rows_kept":48,"cut":false,"hidden":false,"merged":[[64,2,64,4],[65,2,65,4],[66,2,66,4],[67,2,67,4],[58,2,58,4],[59,2,59,4],[60,2,60,4],[61,2,61,4],[62,2,62,4],[63,2,63,4],[57,2,57,4],[46,0,46,5],[47,2,47,4],[48,2,48,4],[49,2,49,4],[50,2,50,4],[51,2,51,4],[52,2,52,4],[53,2,53,4],[54,2,54,4],[55,2,55,4],[56,2,56,4],[40,2,45,5],[0,0,1,2],[0,3,1,5],[0,6,1,11],[2,0,2,1],[2,2,2,5]]}
["PERRONE  LUCAS",null,null,null,null,null,"Feuille Attachement"]
[]
["2017-01-01",null," fournir avant  Mercredi 04/01  demande de congés pour Février 2017 en fonction des disponibilités",null,null,null,"HS","HS","HS","Total","Nuit","Insalubrité"]
["Jours","Date","Prestations","Confirmations","Prestations  HS","Horaires",0,0,0,{"$f":"SUM(G4:I4)","v":0},0,0]
["Mercredi","2016-12-21",{"$f":"'Planning Mensuel'!AI7","v":"Congés"},null,null,null,null,null,null,0]
["Jeudi","2016-12-22",{"$f":"'Planning Mensuel'!AI8","v":"Congés"},null,null,null,null,null,null,0]
["Vendredi","2016-12-23",{"$f":"'Planning Mensuel'!AI9","v":"Congés"},null,null,null,null,null,null,0]
["Samedi","2016-12-24",{"$f":"'Planning Mensuel'!AI10","v":0},null,null,null,null,null,null,0]
["Dimanche","2016-12-25",{"$f":"'Planning Mensuel'!AI11","v":0},null,null,null,null,null,null,0]
["Lundi","2016-12-26",{"$f":"'Planning Mensuel'!AI12","v":"ENC NUIT 20H30-02H30"},null,null,null,null,null,null,0]
["Mardi","2016-12-27",{"$f":"'Planning Mensuel'!AI13","v":"ENC NUIT 20H30-02H30"},null,null,null,null,null,null,0]
["Mercredi","2016-12-28",{"$f":"'Planning Mensuel'!AI14","v":"ENC NUIT 20H30-02H30"},null,null,null,null,null,null,0]
["Jeudi","2016-12-29",{"$f":"'Planning Mensuel'!AI15","v":"ENC NUIT 20H30-02H30"},null,null,null,null,null,null,0]
["Vendredi","2016-12-30",{"$f":"'Planning Mensuel'!AI16","v":"ENC NUIT 20H30-02H30"},null,null,null,null,null,null,0]
["Samedi","2016-12-31",{"$f":"'Planning Mensuel'!AI17","v":"Repos"},null,null,null,null,null,null,0]
["Dimanche","2017-01-01",{"$f":"'Planning Mensuel'!AI18","v":"V.N.  Après Midi"},null,"Vieux Nice","14H-19H",null,null,null,0]
["Lundi","2017-01-02",{"$f":"'Planning Mensuel'!AI19","v":"ENC NUIT 20H30-02H30"},null,null,null,null,null,null,0]
["Mardi","2017-01-03",{"$f":"'Planning Mensuel'!AI20","v":"ENC NUIT 20H30-02H30"},null,null,null,null,null,null,0]
["Mercredi","2017-01-04",{"$f":"'Planning Mensuel'!AI21","v":"ENC NUIT 20H30-02H30"},null,null,null,null,null,null,0]
["Jeudi","2017-01-05",{"$f":"'Planning Mensuel'!AI22","v":"ENC NUIT 20H30-02H30"},null,null,null,null,null,null,0]
["Vendredi","2017-01-06",{"$f":"'Planning Mensuel'!AI23","v":"ENC NUIT 20H30-02H30"},null,null,null,null,null,null,0]
["Samedi","2017-01-07",{"$f":"'Planning Mensuel'!AI24","v":"Repos"},null,null,null,null,null,null,0]
["Dimanche","2017-01-08",{"$f":"'Planning Mensuel'!AI25","v":"V.N.  Après Midi"},null,"Vieux Nice","13H-19H",null,null,null,0]
["Lundi","2017-01-09",{"$f":"'Planning Mensuel'!AI26","v":"ENC AM 12H30-19H30"},null,null,null,null,null,null,0]
["Mardi","2017-01-10",{"$f":"'Planning Mensuel'!AI27","v":"ENC AM 12H30-19H30"},null,null,null,null,null,null,0]
["Mercredi","2017-01-11",{"$f":"'Planning Mensuel'!AI28","v":"ENC AM 12H30-19H30"},null,null,null,null,null,null,0]
["Jeudi","2017-01-12",{"$f":"'Planning Mensuel'!AI29","v":"ENC AM 12H30-19H30"},null,null,null,null,null,null,0]
["Vendredi","2017-01-13",{"$f":"'Planning Mensuel'!AI30","v":"Repos"},null,null,null,null,null,null,0]
["Samedi","2017-01-14",{"$f":"'Planning Mensuel'!AI31","v":"NICE NORD"},null,null,null,null,null,null,0]
["Dimanche","2017-01-15",{"$f":"'Planning Mensuel'!AI32","v":"Repos"},null,null,null,null,null,null,0]
["Lundi","2017-01-16",{"$f":"'Planning Mensuel'!AI33","v":"ENC NUIT 20H30-02H30"},null,null,null,null,null,null,0]
["Mardi","2017-01-17",{"$f":"'Planning Mensuel'!AI34","v":"ENC NUIT 20H30-02H30"},null,null,null,null,null,null,0]
["Mercredi","2017-01-18",{"$f":"'Planning Mensuel'!AI35","v":"ENC NUIT 20H30-02H30"},null,null,null,null,null,null,0]
["Jeudi","2017-01-19",{"$f":"'Planning Mensuel'!AI36","v":"ENC NUIT 20H30-02H30"},null,null,null,null,null,null,0]
["Vendredi","2017-01-20",{"$f":"'Planning Mensuel'!AI37","v":"ENC NUIT 20H30-02H30"},null,null,null,null,null,null,0]
[null,null,null,null,null,null,{"$f":"SUM(G5:G35)","v":0},0,0,0,0,0]
[]
[]
[]
[]
[null,null,"En congés jusqu'au 25/12"]
[]
[]
[]
[]
[]
["REMARQUES"]
["Date","heures","Remarques",null,null,"Responsables"]

{"sheet":"PETERS","index":47,"n_rows":48,"n_cols":12,"rows_kept":48,"cut":false,"hidden":false,"merged":[[64,2,64,4],[65,2,65,4],[66,2,66,4],[67,2,67,4],[58,2,58,4],[59,2,59,4],[60,2,60,4],[61,2,61,4],[62,2,62,4],[63,2,63,4],[57,2,57,4],[46,0,46,5],[47,2,47,4],[48,2,48,4],[49,2,49,4],[50,2,50,4],[51,2,51,4],[52,2,52,4],[53,2,53,4],[54,2,54,4],[55,2,55,4],[56,2,56,4],[40,2,45,5],[0,0,1,2],[0,3,1,5],[0,6,1,11],[2,0,2,1],[2,2,2,5]]}
["PETERS ROBERT",null,null,null,null,null,"Feuille Attachement"]
[]
["2017-01-01",null," fournir avant  Mercredi 04/01  demande de congés pour Février 2017 en fonction des disponibilités",null,null,null,"HS","HS","HS","Total","Nuit","Insalubrité"]
["Jours","Date","Prestations","Confirmations","Prestations  HS","Horaires",0,0,0,{"$f":"SUM(G4:I4)","v":0},0,0]
["Mercredi","2016-12-21",{"$f":"'Planning Mensuel'!AW7","v":"Congés"},"Congés","Congés",null,null,null,null,0]
["Jeudi","2016-12-22",{"$f":"'Planning Mensuel'!AW8","v":"Congés"},"Congés","Congés",null,null,null,null,0]
["Vendredi","2016-12-23",{"$f":"'Planning Mensuel'!AW9","v":"Congés"},"Congés","Congés",null,null,null,null,0]
["Samedi","2016-12-24",{"$f":"'Planning Mensuel'!AW10","v":0},"Congés","Congés",null,null,null,null,0]
["Dimanche","2016-12-25",{"$f":"'Planning Mensuel'!AW11","v":0},"Congés","Congés",null,null,null,null,0]
["Lundi","2016-12-26",{"$f":"'Planning Mensuel'!AW12","v":"Contrôle 7H-12H / 14H30-17H"},null,null,null,null,null,null,0]
["Mardi","2016-12-27",{"$f":"'Planning Mensuel'!AW13","v":"Contrôle 7H-12H / 14H30-17H"},null,null,null,null,null,null,0]
["Mercredi","2016-12-28",{"$f":"'Planning Mensuel'!AW14","v":"Contrôle 7H-12H / 14H30-17H"},null,null,null,null,null,null,0]
["Jeudi","2016-12-29",{"$f":"'Planning Mensuel'!AW15","v":"Contrôle 7H-12H / 14H30-17H"},null,null,null,null,null,null,0]
["Vendredi","2016-12-30",{"$f":"'Planning Mensuel'!AW16","v":"Contrôle 7H-12H / 14H30-17H"},null,null,null,null,null,null,0]
["Samedi","2016-12-31",{"$f":"'Planning Mensuel'!AW17","v":"Repos"},null,null,null,null,null,null,0]
["Dimanche","2017-01-01",{"$f":"'Planning Mensuel'!AW18","v":"Repos"},null,null,null,null,null,null,0]
["Lundi","2017-01-02",{"$f":"'Planning Mensuel'!AW19","v":"Contrôle 7H-12H / 14H30-17H"},null,null,null,null,null,null,0]
["Mardi","2017-01-03",{"$f":"'Planning Mensuel'!AW20","v":"Contrôle 7H-12H / 14H30-17H"},null,null,null,null,null,null,0]
["Mercredi","2017-01-04",{"$f":"'Planning Mensuel'!AW21","v":"Contrôle 7H-12H / 14H30-17H"},null,null,null,null,null,null,0]
["Jeudi","2017-01-05",{"$f":"'Planning Mensuel'!AW22","v":"Contrôle 7H-12H / 14H30-17H"},null,null,null,null,null,null,0]
["Vendredi","2017-01-06",{"$f":"'Planning Mensuel'!AW23","v":"Contrôle 7H-12H / 14H30-17H"},null,null,null,null,null,null,0]
["Samedi","2017-01-07",{"$f":"'Planning Mensuel'!AW24","v":"Repos"},null,null,null,null,null,null,0]
["Dimanche","2017-01-08",{"$f":"'Planning Mensuel'!AW25","v":"Contrôle Déch 6H-12H"},null,"Contrôle déchetteries","6H-12H",null,null,null,0]
["Lundi","2017-01-09",{"$f":"'Planning Mensuel'!AW26","v":"Contrôle 7H-12H / 14H30-17H"},null,null,null,null,null,null,0]
["Mardi","2017-01-10",{"$f":"'Planning Mensuel'!AW27","v":"Contrôle 7H-12H / 14H30-17H"},null,null,null,null,null,null,0]
["Mercredi","2017-01-11",{"$f":"'Planning Mensuel'!AW28","v":"Contrôle 7H-12H / 14H30-17H"},null,null,null,null,null,null,0]
["Jeudi","2017-01-12",{"$f":"'Planning Mensuel'!AW29","v":"Contrôle 7H-12H / 14H30-17H"},null,null,null,null,null,null,0]
["Vendredi","2017-01-13",{"$f":"'Planning Mensuel'!AW30","v":"Contrôle 7H-12H / 14H30-17H"},null,null,null,null,null,null,0]
["Samedi","2017-01-14",{"$f":"'Planning Mensuel'!AW31","v":"Repos"},null,null,null,null,null,null,0]
["Dimanche","2017-01-15",{"$f":"'Planning Mensuel'!AW32","v":"Contrôle Déch 6H-12H"},null,"Contrôle déchetteries","6H-12H",null,null,null,0]
["Lundi","2017-01-16",{"$f":"'Planning Mensuel'!AW33","v":"Contrôle 7H-12H / 14H30-17H"},null,null,null,null,null,null,0]
["Mardi","2017-01-17",{"$f":"'Planning Mensuel'!AW34","v":"Contrôle 7H-12H / 14H30-17H"},null,null,null,null,null,null,0]
["Mercredi","2017-01-18",{"$f":"'Planning Mensuel'!AW35","v":"Contrôle 7H-12H / 14H30-17H"},null,null,null,null,null,null,0]
["Jeudi","2017-01-19",{"$f":"'Planning Mensuel'!AW36","v":"Contrôle 7H-12H / 14H30-17H"},null,null,null,null,null,null,0]
["Vendredi","2017-01-20",{"$f":"'Planning Mensuel'!AW37","v":"Contrôle 7H-12H / 14H30-17H"},null,null,null,null,null,null,0]
[null,null,null,null,null,null,{"$f":"SUM(G5:G35)","v":0},0,0,0,0,0]
[]
[]
[]
[]
[]
[]
[]
[]
[]
[]
["REMARQUES"]
["Date","heures","Remarques",null,null,"Responsables"]

{"sheet":"PIOMBINO","index":48,"n_rows":48,"n_cols":12,"rows_kept":48,"cut":false,"hidden":false,"merged":[[64,2,64,4],[65,2,65,4],[66,2,66,4],[67,2,67,4],[58,2,58,4],[59,2,59,4],[60,2,60,4],[61,2,61,4],[62,2,62,4],[63,2,63,4],[57,2,57,4],[46,0,46,5],[47,2,47,4],[48,2,48,4],[49,2,49,4],[50,2,50,4],[51,2,51,4],[52,2,52,4],[53,2,53,4],[54,2,54,4],[55,2,55,4],[56,2,56,4],[40,2,45,5],[0,0,1,2],[0,3,1,5],[0,6,1,11],[2,0,2,1],[2,2,2,5]]}
["PIOMBINO JEAN MARC",null,null,null,null,null,"Feuille Attachement"]
[]
["2017-01-01",null," fournir avant  Mercredi 04/01  demande de congés pour Février 2017 en fonction des disponibilités",null,null,null,"HS","HS","HS","Total","Nuit","Insalubrité"]
["Jours","Date","Prestations","Confirmations","Prestations  HS","Horaires",0,0,0,{"$f":"SUM(G4:I4)","v":0},0,0]
["Mercredi","2016-12-21",{"$f":"'Planning Mensuel'!AQ7","v":"5H-12H"},null,null,null,null,null,null,0]
["Jeudi","2016-12-22",{"$f":"'Planning Mensuel'!AQ8","v":"CP + POLY 4H-12H"},null,"Cité du Parc","04H-05H",null,null,null,0]
["Vendredi","2016-12-23",{"$f":"'Planning Mensuel'!AQ9","v":"CP + POLY 4H-12H"},null,null,null,null,null,null,0]
["Samedi","2016-12-24",{"$f":"'Planning Mensuel'!AQ10","v":0},null,null,null,null,null,null,0]
["Dimanche","2016-12-25",{"$f":"'Planning Mensuel'!AQ11","v":0},null,null,null,null,null,null,0]
["Lundi","2016-12-26",{"$f":"'Planning Mensuel'!AQ12","v":"POLY 5H-12H"},null,null,null,null,null,null,0]
["Mardi","2016-12-27",{"$f":"'Planning Mensuel'!AQ13","v":"Repos"},null,null,null,null,null,null,0]
["Mercredi","2016-12-28",{"$f":"'Planning Mensuel'!AQ14","v":"POLY 5H-12H"},null,null,null,null,null,null,0]
["Jeudi","2016-12-29",{"$f":"'Planning Mensuel'!AQ15","v":"POLY 5H-12H"},null,null,null,null,null,null,0]
["Vendredi","2016-12-30",{"$f":"'Planning Mensuel'!AQ16","v":"POLY 5H-12H"},null,null,null,null,null,null,0]
["Samedi","2016-12-31",{"$f":"'Planning Mensuel'!AQ17","v":"POLY 4H-14H COMPACTEUR"},null,"Cité du parc","4H-7H",null,null,null,0]
["Dimanche","2017-01-01",{"$f":"'Planning Mensuel'!AQ18","v":0},null,null,null,null,null,null,0]
["Lundi","2017-01-02",{"$f":"'Planning Mensuel'!AQ19","v":"CP + POLY 4H-12H"},null,"Cité du Parc","04H-05H",null,null,null,0]
["Mardi","2017-01-03",{"$f":"'Planning Mensuel'!AQ20","v":"CP + POLY 4H-12H"},null,"Cité du Parc","04H-05H",null,null,null,0]
["Mercredi","2017-01-04",{"$f":"'Planning Mensuel'!AQ21","v":"CP + POLY 4H-12H"},null,"Cité du Parc","04H-05H",null,null,null,0]
["Jeudi","2017-01-05",{"$f":"'Planning Mensuel'!AQ22","v":"CP + POLY 4H-12H"},null,"Cité du Parc","04H-05H",null,null,null,0]
["Vendredi","2017-01-06",{"$f":"'Planning Mensuel'!AQ23","v":"CP + POLY 4H-12H"},null,"Cité du Parc","04H-05H",null,null,null,0]
["Samedi","2017-01-07",{"$f":"'Planning Mensuel'!AQ24","v":"CP 4H-7H"},null,"Cité du parc","4H-7H",null,null,null,0]
["Dimanche","2017-01-08",{"$f":"'Planning Mensuel'!AQ25","v":0},null,null,null,null,null,null,0]
["Lundi","2017-01-09",{"$f":"'Planning Mensuel'!AQ26","v":"POLY 5H-12H"},null,null,null,null,null,null,0]
["Mardi","2017-01-10",{"$f":"'Planning Mensuel'!AQ27","v":"POLY 5H-12H"},null,null,null,null,null,null,0]
["Mercredi","2017-01-11",{"$f":"'Planning Mensuel'!AQ28","v":"POLY 5H-12H"},null,null,null,null,null,null,0]
["Jeudi","2017-01-12",{"$f":"'Planning Mensuel'!AQ29","v":"POLY 5H-12H"},null,null,null,null,null,null,0]
["Vendredi","2017-01-13",{"$f":"'Planning Mensuel'!AQ30","v":"POLY 5H-12H"},null,null,null,null,null,null,0]
["Samedi","2017-01-14",{"$f":"'Planning Mensuel'!AQ31","v":0},null,null,null,null,null,null,0]
["Dimanche","2017-01-15",{"$f":"'Planning Mensuel'!AQ32","v":0},null,null,null,null,null,null,0]
["Lundi","2017-01-16",{"$f":"'Planning Mensuel'!AQ33","v":"CP + POLY 4H-12H"},null,"Cité du Parc","04H-05H",null,null,null,0]
["Mardi","2017-01-17",{"$f":"'Planning Mensuel'!AQ34","v":"CP + POLY 4H-12H"},null,"Cité du Parc","04H-05H",null,null,null,0]
["Mercredi","2017-01-18",{"$f":"'Planning Mensuel'!AQ35","v":"CP + POLY 4H-12H"},null,"Cité du Parc","04H-05H",null,null,null,0]
["Jeudi","2017-01-19",{"$f":"'Planning Mensuel'!AQ36","v":"CP + POLY 4H-12H"},null,"Cité du Parc","04H-05H",null,null,null,0]
["Vendredi","2017-01-20",{"$f":"'Planning Mensuel'!AQ37","v":"CP + POLY 4H-12H"},null,"Cité du Parc","04H-05H",null,null,null,0]
[null,null,null,null,null,null,{"$f":"SUM(G5:G35)","v":0},0,0,0,0,0]
[]
[]
[]
[]
[null,null,"Astreinte jusqu'au lundi 21/11/2016"]
[]
[]
[]
[]
[]
["REMARQUES"]
["Date","heures","Remarques",null,null,"Responsables"]

{"sheet":"RATEAU","index":49,"n_rows":49,"n_cols":12,"rows_kept":49,"cut":false,"hidden":false,"merged":[[64,2,64,4],[65,2,65,4],[66,2,66,4],[67,2,67,4],[58,2,58,4],[59,2,59,4],[60,2,60,4],[61,2,61,4],[62,2,62,4],[63,2,63,4],[57,2,57,4],[46,0,46,5],[47,2,47,4],[48,2,48,4],[49,2,49,4],[50,2,50,4],[51,2,51,4],[52,2,52,4],[53,2,53,4],[54,2,54,4],[55,2,55,4],[56,2,56,4],[40,2,45,5],[0,0,1,2],[0,3,1,5],[0,6,1,11],[2,0,2,1],[2,2,2,5]]}
["RATEAU LAURENT",null,null,null,null,null,"Feuille Attachement"]
[]
["2017-01-01",null," fournir avant  Mercredi 04/01  demande de congés pour Février 2017 en fonction des disponibilités",null,null,null,"HS","HS","HS","Total","Nuit","Insalubrité"]
["Jours","Date","Prestations","Confirmations","Prestations  HS","Horaires",0,0,0,{"$f":"SUM(G4:I4)","v":0},0,0]
["Mercredi","2016-12-21",{"$f":"'Planning Mensuel'!AR7","v":"POLY 9H-16H"},"Absent",null,null,null,null,null,0]
["Jeudi","2016-12-22",{"$f":"'Planning Mensuel'!AR8","v":"POLY 9H-16H"},"Absent",null,null,null,null,null,0]
["Vendredi","2016-12-23",{"$f":"'Planning Mensuel'!AR9","v":"POLY 9H-16H"},"Absent",null,null,null,null,null,0]
["Samedi","2016-12-24",{"$f":"'Planning Mensuel'!AR10","v":0},"Absent",null,null,null,null,null,0]
["Dimanche","2016-12-25",{"$f":"'Planning Mensuel'!AR11","v":0},"Absent",null,null,null,null,null,0]
["Lundi","2016-12-26",{"$f":"'Planning Mensuel'!AR12","v":"POLY 9H-16H"},"Absent",null,null,null,null,null,0]
["Mardi","2016-12-27",{"$f":"'Planning Mensuel'!AR13","v":"POLY 9H-16H"},"Absent",null,null,null,null,null,0]
["Mercredi","2016-12-28",{"$f":"'Planning Mensuel'!AR14","v":"POLY 9H-16H"},"Absent",null,null,null,null,null,0]
["Jeudi","2016-12-29",{"$f":"'Planning Mensuel'!AR15","v":"POLY 9H-16H"},"Absent",null,null,null,null,null,0]
["Vendredi","2016-12-30",{"$f":"'Planning Mensuel'!AR16","v":"POLY 9H-16H"},"Absent",null,null,null,null,null,0]
["Samedi","2016-12-31",{"$f":"'Planning Mensuel'!AR17","v":0},"Absent",null,null,null,null,null,0]
["Dimanche","2017-01-01",{"$f":"'Planning Mensuel'!AR18","v":0},"Absent",null,null,null,null,null,0]
["Lundi","2017-01-02",{"$f":"'Planning Mensuel'!AR19","v":"POLY 9H-16H"},null,null,null,null,null,null,0]
["Mardi","2017-01-03",{"$f":"'Planning Mensuel'!AR20","v":"POLY 9H-16H"},null,null,null,null,null,null,0]
["Mercredi","2017-01-04",{"$f":"'Planning Mensuel'!AR21","v":"POLY 9H-16H"},null,null,null,null,null,null,0]
["Jeudi","2017-01-05",{"$f":"'Planning Mensuel'!AR22","v":"POLY 9H-16H"},null,null,null,null,null,null,0]
["Vendredi","2017-01-06",{"$f":"'Planning Mensuel'!AR23","v":"POLY 9H-16H"},null,null,null,null,null,null,0]
["Samedi","2017-01-07",{"$f":"'Planning Mensuel'!AR24","v":0},null,null,null,null,null,null,0]
["Dimanche","2017-01-08",{"$f":"'Planning Mensuel'!AR25","v":0},null,null,null,null,null,null,0]
["Lundi","2017-01-09",{"$f":"'Planning Mensuel'!AR26","v":"POLY 9H-16H"},null,null,null,null,null,null,0]
["Mardi","2017-01-10",{"$f":"'Planning Mensuel'!AR27","v":"POLY 9H-16H"},null,null,null,null,null,null,0]
["Mercredi","2017-01-11",{"$f":"'Planning Mensuel'!AR28","v":"POLY 9H-16H"},null,null,null,null,null,null,0]
["Jeudi","2017-01-12",{"$f":"'Planning Mensuel'!AR29","v":"POLY 9H-16H"},null,null,null,null,null,null,0]
["Vendredi","2017-01-13",{"$f":"'Planning Mensuel'!AR30","v":"POLY 9H-16H"},null,null,null,null,null,null,0]
["Samedi","2017-01-14",{"$f":"'Planning Mensuel'!AR31","v":0},null,null,null,null,null,null,0]
["Dimanche","2017-01-15",{"$f":"'Planning Mensuel'!AR32","v":0},null,null,null,null,null,null,0]
["Lundi","2017-01-16",{"$f":"'Planning Mensuel'!AR33","v":"POLY 9H-16H"},null,null,null,null,null,null,0]
["Mardi","2017-01-17",{"$f":"'Planning Mensuel'!AR34","v":"POLY 9H-16H"},null,null,null,null,null,null,0]
["Mercredi","2017-01-18",{"$f":"'Planning Mensuel'!AR35","v":"POLY 9H-16H"},null,null,null,null,null,null,0]
["Jeudi","2017-01-19",{"$f":"'Planning Mensuel'!AR36","v":"POLY 9H-16H"},null,null,null,null,null,null,0]
["Vendredi","2017-01-20",{"$f":"'Planning Mensuel'!AR37","v":"Repos"},null,null,null,null,null,null,0]
[null,null,null,null,null,null,{"$f":"SUM(G5:G35)","v":0},0,0,0,0,0]
[]
[]
[]
[]
[]
[]
[]
[]
[]
[]
["REMARQUES"]
["Date","heures","Remarques",null,null,"Responsables"]
["2016-02-01","12H00","cessation de tout vidage après 12H",null,null,"Novelli"]

{"sheet":"RINI","index":50,"n_rows":49,"n_cols":12,"rows_kept":49,"cut":false,"hidden":false,"merged":[[64,2,64,4],[65,2,65,4],[66,2,66,4],[67,2,67,4],[58,2,58,4],[59,2,59,4],[60,2,60,4],[61,2,61,4],[62,2,62,4],[63,2,63,4],[57,2,57,4],[46,0,46,5],[47,2,47,4],[48,2,48,4],[49,2,49,4],[50,2,50,4],[51,2,51,4],[52,2,52,4],[53,2,53,4],[54,2,54,4],[55,2,55,4],[56,2,56,4],[40,2,45,5],[0,0,1,2],[0,3,1,5],[0,6,1,11],[2,0,2,1],[2,2,2,5]]}
["RINI ROMAIN",null,null,null,null,null,"Feuille Attachement"]
[]
["2017-01-01",null," fournir avant  Mercredi 04/01  demande de congés pour Février 2017 en fonction des disponibilités",null,null,null,"HS","HS","HS","Total","Nuit","Insalubrité"]
["Jours","Date","Prestations","Confirmations","Prestations  HS","Horaires",0,0,0,{"$f":"SUM(G4:I4)","v":0},0,0]
["Mercredi","2016-12-21",{"$f":"'Planning Mensuel'!G7","v":"Congés"},null,null,null,null,null,null,0]
["Jeudi","2016-12-22",{"$f":"'Planning Mensuel'!G8","v":"Congés"},null,null,null,null,null,null,0]
["Vendredi","2016-12-23",{"$f":"'Planning Mensuel'!G9","v":"Congés"},null,null,null,null,null,null,0]
["Samedi","2016-12-24",{"$f":"'Planning Mensuel'!G10","v":0},null,null,null,null,null,null,0]
["Dimanche","2016-12-25",{"$f":"'Planning Mensuel'!G11","v":0},null,null,null,null,null,null,0]
["Lundi","2016-12-26",{"$f":"'Planning Mensuel'!G12","v":"Congés"},null,null,null,null,null,null,0]
["Mardi","2016-12-27",{"$f":"'Planning Mensuel'!G13","v":"Congés"},null,null,null,null,null,null,0]
["Mercredi","2016-12-28",{"$f":"'Planning Mensuel'!G14","v":"Congés"},null,null,null,null,null,null,0]
["Jeudi","2016-12-29",{"$f":"'Planning Mensuel'!G15","v":"Congés"},null,null,null,null,null,null,0]
["Vendredi","2016-12-30",{"$f":"'Planning Mensuel'!G16","v":"Congés"},null,null,null,null,null,null,0]
["Samedi","2016-12-31",{"$f":"'Planning Mensuel'!G17","v":"Congés"},null,null,null,null,null,null,0]
["Dimanche","2017-01-01",{"$f":"'Planning Mensuel'!G18","v":"Congés"},null,null,null,null,null,null,0]
["Lundi","2017-01-02",{"$f":"'Planning Mensuel'!G19","v":"NICE EST"},null,null,null,null,null,null,0]
["Mardi","2017-01-03",{"$f":"'Planning Mensuel'!G20","v":"NICE EST"},null,null,null,null,null,null,0]
["Mercredi","2017-01-04",{"$f":"'Planning Mensuel'!G21","v":"NICE EST"},null,null,null,null,null,null,0]
["Jeudi","2017-01-05",{"$f":"'Planning Mensuel'!G22","v":"NICE EST"},null,null,null,null,null,null,0]
["Vendredi","2017-01-06",{"$f":"'Planning Mensuel'!G23","v":"NICE EST"},null,null,null,null,null,null,0]
["Samedi","2017-01-07",{"$f":"'Planning Mensuel'!G24","v":0},null,null,null,null,null,null,0]
["Dimanche","2017-01-08",{"$f":"'Planning Mensuel'!G25","v":0},null,null,null,null,null,null,0]
["Lundi","2017-01-09",{"$f":"'Planning Mensuel'!G26","v":"NICE EST"},null,null,null,null,null,null,0]
["Mardi","2017-01-10",{"$f":"'Planning Mensuel'!G27","v":"NICE EST"},null,null,null,null,null,null,0]
["Mercredi","2017-01-11",{"$f":"'Planning Mensuel'!G28","v":"Repos"},null,null,null,null,null,null,0]
["Jeudi","2017-01-12",{"$f":"'Planning Mensuel'!G29","v":"NICE EST"},null,null,null,null,null,null,0]
["Vendredi","2017-01-13",{"$f":"'Planning Mensuel'!G30","v":"NICE EST"},null,null,null,null,null,null,0]
["Samedi","2017-01-14",{"$f":"'Planning Mensuel'!G31","v":"NICE EST"},null,null,null,null,null,null,0]
["Dimanche","2017-01-15",{"$f":"'Planning Mensuel'!G32","v":"Repos"},null,null,null,null,null,null,0]
["Lundi","2017-01-16",{"$f":"'Planning Mensuel'!G33","v":"NICE EST"},null,null,null,null,null,null,0]
["Mardi","2017-01-17",{"$f":"'Planning Mensuel'!G34","v":"NICE EST"},null,null,null,null,null,null,0]
["Mercredi","2017-01-18",{"$f":"'Planning Mensuel'!G35","v":"NICE EST"},null,null,null,null,null,null,0]
["Jeudi","2017-01-19",{"$f":"'Planning Mensuel'!G36","v":"NICE EST"},null,null,null,null,null,null,0]
["Vendredi","2017-01-20",{"$f":"'Planning Mensuel'!G37","v":"NICE EST"},null,null,null,null,null,null,0]
[null,null,null,null,null,null,{"$f":"SUM(G5:G35)","v":0},0,0,0,0,0]
[]
[]
[]
[]
[null,null,"En congés jusqu'au 01/01/2017"]
[]
[]
[]
[]
[]
["REMARQUES"]
["Date","heures","Remarques",null,null,"Responsables"]
["2016-04-07","17H","Est au téléphoneet le tri n'est pas fait par les usagers",null,null,"Arnaud"]

{"sheet":"RODRIGUEZ","index":51,"n_rows":49,"n_cols":12,"rows_kept":49,"cut":false,"hidden":false,"merged":[[64,2,64,4],[65,2,65,4],[66,2,66,4],[67,2,67,4],[58,2,58,4],[59,2,59,4],[60,2,60,4],[61,2,61,4],[62,2,62,4],[63,2,63,4],[57,2,57,4],[46,0,46,5],[47,2,47,4],[48,2,48,4],[49,2,49,4],[50,2,50,4],[51,2,51,4],[52,2,52,4],[53,2,53,4],[54,2,54,4],[55,2,55,4],[56,2,56,4],[40,2,45,5],[0,0,1,2],[0,3,1,5],[0,6,1,11],[2,0,2,1],[2,2,2,5]]}
["RODRIGUEZ FRANCK",null,null,null,null,null,"Feuille Attachement"]
[]
["2017-01-01",null," fournir avant  Mercredi 04/01  demande de congés pour Février 2017 en fonction des disponibilités",null,null,null,"HS","HS","HS","Total","Nuit","Insalubrité"]
["Jours","Date","Prestations","Confirmations","Prestations  HS","Horaires",0,0,0,{"$f":"SUM(G4:I4)","v":0},0,0]
["Mercredi","2016-12-21",{"$f":"'Planning Mensuel'!AJ7","v":"Congés"},null,null,null,null,null,null,0]
["Jeudi","2016-12-22",{"$f":"'Planning Mensuel'!AJ8","v":"Congés"},null,null,null,null,null,null,0]
["Vendredi","2016-12-23",{"$f":"'Planning Mensuel'!AJ9","v":"Congés"},null,null,null,null,null,null,0]
["Samedi","2016-12-24",{"$f":"'Planning Mensuel'!AJ10","v":0},null,null,null,null,null,null,0]
["Dimanche","2016-12-25",{"$f":"'Planning Mensuel'!AJ11","v":0},null,null,null,null,null,null,0]
["Lundi","2016-12-26",{"$f":"'Planning Mensuel'!AJ12","v":"ENC AM 12H30-19H30"},null,null,null,null,null,null,0]
["Mardi","2016-12-27",{"$f":"'Planning Mensuel'!AJ13","v":"ENC AM 12H30-19H30"},null,null,null,null,null,null,0]
["Mercredi","2016-12-28",{"$f":"'Planning Mensuel'!AJ14","v":"ENC AM 12H30-19H30"},null,null,null,null,null,null,0]
["Jeudi","2016-12-29",{"$f":"'Planning Mensuel'!AJ15","v":"ENC AM 12H30-19H30"},null,null,null,null,null,null,0]
["Vendredi","2016-12-30",{"$f":"'Planning Mensuel'!AJ16","v":"ENC AM 12H30-19H30"},null,null,null,null,null,null,0]
["Samedi","2016-12-31",{"$f":"'Planning Mensuel'!AJ17","v":"Repos"},null,null,null,null,null,null,0]
["Dimanche","2017-01-01",{"$f":"'Planning Mensuel'!AJ18","v":"V.N.  A.M."},null,"Vieux Nice","14H-19H",null,null,null,0]
["Lundi","2017-01-02",{"$f":"'Planning Mensuel'!AJ19","v":"ENC AM 12H30-19H30"},null,null,null,null,null,null,0]
["Mardi","2017-01-03",{"$f":"'Planning Mensuel'!AJ20","v":"ENC AM 12H30-19H30"},null,null,null,null,null,null,0]
["Mercredi","2017-01-04",{"$f":"'Planning Mensuel'!AJ21","v":"ENC AM 12H30-19H30"},null,null,null,null,null,null,0]
["Jeudi","2017-01-05",{"$f":"'Planning Mensuel'!AJ22","v":"ENC AM 12H30-19H30"},null,null,null,null,null,null,0]
["Vendredi","2017-01-06",{"$f":"'Planning Mensuel'!AJ23","v":"ENC AM 12H30-19H30"},null,null,null,null,null,null,0]
["Samedi","2017-01-07",{"$f":"'Planning Mensuel'!AJ24","v":"Repos"},null,null,null,null,null,null,0]
["Dimanche","2017-01-08",{"$f":"'Planning Mensuel'!AJ25","v":"Repos"},null,null,null,null,null,null,0]
["Lundi","2017-01-09",{"$f":"'Planning Mensuel'!AJ26","v":"ENC AM 12H30-19H30"},null,null,null,null,null,null,0]
["Mardi","2017-01-10",{"$f":"'Planning Mensuel'!AJ27","v":"ENC AM 12H30-19H30"},null,null,null,null,null,null,0]
["Mercredi","2017-01-11",{"$f":"'Planning Mensuel'!AJ28","v":"ENC AM 12H30-19H30"},null,null,null,null,null,null,0]
["Jeudi","2017-01-12",{"$f":"'Planning Mensuel'!AJ29","v":"Repos"},null,null,null,null,null,null,0]
["Vendredi","2017-01-13",{"$f":"'Planning Mensuel'!AJ30","v":"ENC AM 12H30-19H30"},null,null,null,null,null,null,0]
["Samedi","2017-01-14",{"$f":"'Planning Mensuel'!AJ31","v":"NICE OUEST"},null,"Nice Ouest","14H-14H30",null,null,null,0]
["Dimanche","2017-01-15",{"$f":"'Planning Mensuel'!AJ32","v":"Repos"},null,null,null,null,null,null,0]
["Lundi","2017-01-16",{"$f":"'Planning Mensuel'!AJ33","v":"ENC AM 12H30-19H30"},null,null,null,null,null,null,0]
["Mardi","2017-01-17",{"$f":"'Planning Mensuel'!AJ34","v":"ENC AM 12H30-19H30"},null,null,null,null,null,null,0]
["Mercredi","2017-01-18",{"$f":"'Planning Mensuel'!AJ35","v":"ENC AM 12H30-19H30"},null,null,null,null,null,null,0]
["Jeudi","2017-01-19",{"$f":"'Planning Mensuel'!AJ36","v":"ENC AM 12H30-19H30"},null,null,null,null,null,null,0]
["Vendredi","2017-01-20",{"$f":"'Planning Mensuel'!AJ37","v":"ENC AM 12H30-19H30"},null,null,null,null,null,null,0]
[null,null,null,null,null,null,{"$f":"SUM(G5:G35)","v":0},0,0,0,0,0]
[]
[]
[]
[]
[null,null,"En congés jusqu'au 25/12/2016"]
[]
[]
[]
[]
[]
["REMARQUES"]
["Date","heures","Remarques",null,null,"Responsables"]
["2016-01-30","15H","Fouille dans les bacs alors qu'il y a de nombreux usagers",null,null,"Corvisier"]

{"sheet":"ROSSO","index":52,"n_rows":50,"n_cols":12,"rows_kept":50,"cut":false,"hidden":false,"merged":[[64,2,64,4],[65,2,65,4],[66,2,66,4],[67,2,67,4],[58,2,58,4],[59,2,59,4],[60,2,60,4],[61,2,61,4],[62,2,62,4],[63,2,63,4],[57,2,57,4],[46,0,46,5],[47,2,47,4],[48,2,48,4],[49,2,49,4],[50,2,50,4],[51,2,51,4],[52,2,52,4],[53,2,53,4],[54,2,54,4],[55,2,55,4],[56,2,56,4],[40,2,45,5],[0,0,1,2],[0,3,1,5],[0,6,1,11],[2,0,2,1],[2,2,2,5]]}
["ROSSO DOMINIQUE",null,null,null,null,null,"Feuille Attachement"]
[]
["2017-01-01",null," fournir avant  Mercredi 04/01  demande de congés pour Février 2017 en fonction des disponibilités",null,null,null,"HS","HS","HS","Total","Nuit","Insalubrité"]
["Jours","Date","Prestations","Confirmations","Prestations  HS","Horaires",0,0,0,{"$f":"SUM(G4:I4)","v":0},0,0]
["Mercredi","2016-12-21",{"$f":"'Planning Mensuel'!AS7","v":"POLY 12H-19H"},null,null,null,null,null,null,0]
["Jeudi","2016-12-22",{"$f":"'Planning Mensuel'!AS8","v":"POLY 12H-19H"},null,null,null,null,null,null,0]
["Vendredi","2016-12-23",{"$f":"'Planning Mensuel'!AS9","v":"POLY 12H-19H"},null,null,null,null,null,null,0]
["Samedi","2016-12-24",{"$f":"'Planning Mensuel'!AS10","v":0},null,null,null,null,null,null,0]
["Dimanche","2016-12-25",{"$f":"'Planning Mensuel'!AS11","v":0},null,null,null,null,null,null,0]
["Lundi","2016-12-26",{"$f":"'Planning Mensuel'!AS12","v":"POLY 12H-19H"},null,null,null,null,null,null,0]
["Mardi","2016-12-27",{"$f":"'Planning Mensuel'!AS13","v":"POLY 12H-19H"},null,null,null,null,null,null,0]
["Mercredi","2016-12-28",{"$f":"'Planning Mensuel'!AS14","v":"POLY 12H-19H"},null,null,null,null,null,null,0]
["Jeudi","2016-12-29",{"$f":"'Planning Mensuel'!AS15","v":"Congés"},null,null,null,null,null,null,0]
["Vendredi","2016-12-30",{"$f":"'Planning Mensuel'!AS16","v":"Congés"},null,null,null,null,null,null,0]
["Samedi","2016-12-31",{"$f":"'Planning Mensuel'!AS17","v":0},null,null,null,null,null,null,0]
["Dimanche","2017-01-01",{"$f":"'Planning Mensuel'!AS18","v":0},null,null,null,null,null,null,0]
["Lundi","2017-01-02",{"$f":"'Planning Mensuel'!AS19","v":"POLY 12H-19H"},null,null,null,null,null,null,0]
["Mardi","2017-01-03",{"$f":"'Planning Mensuel'!AS20","v":"POLY 12H-19H"},null,null,null,null,null,null,0]
["Mercredi","2017-01-04",{"$f":"'Planning Mensuel'!AS21","v":"POLY 12H-19H"},null,null,null,null,null,null,0]
["Jeudi","2017-01-05",{"$f":"'Planning Mensuel'!AS22","v":"POLY 12H-19H"},null,null,null,null,null,null,0]
["Vendredi","2017-01-06",{"$f":"'Planning Mensuel'!AS23","v":"POLY 12H-19H"},null,null,null,null,null,null,0]
["Samedi","2017-01-07",{"$f":"'Planning Mensuel'!AS24","v":0},null,null,null,null,null,null,0]
["Dimanche","2017-01-08",{"$f":"'Planning Mensuel'!AS25","v":0},null,null,null,null,null,null,0]
["Lundi","2017-01-09",{"$f":"'Planning Mensuel'!AS26","v":"POLY 12H-19H"},null,null,null,null,null,null,0]
["Mardi","2017-01-10",{"$f":"'Planning Mensuel'!AS27","v":"POLY 12H-19H"},null,null,null,null,null,null,0]
["Mercredi","2017-01-11",{"$f":"'Planning Mensuel'!AS28","v":"POLY 12H-19H"},null,null,null,null,null,null,0]
["Jeudi","2017-01-12",{"$f":"'Planning Mensuel'!AS29","v":"POLY 12H-19H"},null,null,null,null,null,null,0]
["Vendredi","2017-01-13",{"$f":"'Planning Mensuel'!AS30","v":"POLY 12H-19H"},null,null,null,null,null,null,0]
["Samedi","2017-01-14",{"$f":"'Planning Mensuel'!AS31","v":0},null,null,null,null,null,null,0]
["Dimanche","2017-01-15",{"$f":"'Planning Mensuel'!AS32","v":0},null,null,null,null,null,null,0]
["Lundi","2017-01-16",{"$f":"'Planning Mensuel'!AS33","v":"POLY 12H-19H"},null,null,null,null,null,null,0]
["Mardi","2017-01-17",{"$f":"'Planning Mensuel'!AS34","v":"POLY 12H-19H"},null,null,null,null,null,null,0]
["Mercredi","2017-01-18",{"$f":"'Planning Mensuel'!AS35","v":"POLY 12H-19H"},null,null,null,null,null,null,0]
["Jeudi","2017-01-19",{"$f":"'Planning Mensuel'!AS36","v":"POLY 12H-19H"},null,null,null,null,null,null,0]
["Vendredi","2017-01-20",{"$f":"'Planning Mensuel'!AS37","v":"Repos"},null,null,null,null,null,null,0]
[null,null,null,null,null,null,{"$f":"SUM(G5:G35)","v":0},0,0,0,0,0]
[]
[]
[]
[]
[null,null,"Travaillera le samedi 21/01/17"]
[]
[]
[]
[]
[]
["REMARQUES"]
["Date","heures","Remarques",null,null,"Responsables"]
["2016-01-25","19H00","Non remise de la feuille de route",null,null,"Corvisier"]
["2016-02-01","19H00","Non remise de la feuille de route",null,null,"Novelli"]

{"sheet":"SARTORI","index":53,"n_rows":48,"n_cols":12,"rows_kept":48,"cut":false,"hidden":false,"merged":[[64,2,64,4],[65,2,65,4],[66,2,66,4],[67,2,67,4],[58,2,58,4],[59,2,59,4],[60,2,60,4],[61,2,61,4],[62,2,62,4],[63,2,63,4],[57,2,57,4],[46,0,46,5],[47,2,47,4],[48,2,48,4],[49,2,49,4],[50,2,50,4],[51,2,51,4],[52,2,52,4],[53,2,53,4],[54,2,54,4],[55,2,55,4],[56,2,56,4],[40,2,45,5],[0,0,1,2],[0,3,1,5],[0,6,1,11],[2,0,2,1],[2,2,2,5]]}
["SARTORI PIERRE",null,null,null,null,null,"Feuille Attachement"]
[]
["2017-01-01",null," fournir avant  Mercredi 04/01  demande de congés pour Février 2017 en fonction des disponibilités",null,null,null,"HS","HS","HS","Total","Nuit","Insalubrité"]
["Jours","Date","Prestations","Confirmations","Prestations  HS","Horaires",0,0,0,{"$f":"SUM(G4:I4)","v":0},0,0]
["Mercredi","2016-12-21",{"$f":"'Planning Mensuel'!AY7","v":"Contrôle Privé 19H00-02H"},null,null,null,null,null,null,0]
["Jeudi","2016-12-22",{"$f":"'Planning Mensuel'!AY8","v":"Contrôle Privé 12H-19H"},null,null,null,null,null,null,0]
["Vendredi","2016-12-23",{"$f":"'Planning Mensuel'!AY9","v":"Contrôle Privé 06H-13H30"},null,null,null,null,null,null,0]
["Samedi","2016-12-24",{"$f":"'Planning Mensuel'!AY10","v":0},null,null,null,null,null,null,0]
["Dimanche","2016-12-25",{"$f":"'Planning Mensuel'!AY11","v":0},null,null,null,null,null,null,0]
["Lundi","2016-12-26",{"$f":"'Planning Mensuel'!AY12","v":"Contrôle Privé 06H-14H"},null,null,null,null,null,null,0]
["Mardi","2016-12-27",{"$f":"'Planning Mensuel'!AY13","v":"Contrôle Privé 06H-14H"},null,null,null,null,null,null,0]
["Mercredi","2016-12-28",{"$f":"'Planning Mensuel'!AY14","v":"Contrôle Privé 19H00-02H"},null,null,null,null,null,null,0]
["Jeudi","2016-12-29",{"$f":"'Planning Mensuel'!AY15","v":"Contrôle Privé 12H-19H"},null,null,null,null,null,null,0]
["Vendredi","2016-12-30",{"$f":"'Planning Mensuel'!AY16","v":"Contrôle Privé 06H-13H30"},null,null,null,null,null,null,0]
["Samedi","2016-12-31",{"$f":"'Planning Mensuel'!AY17","v":"Repos"},null,null,null,null,null,null,0]
["Dimanche","2017-01-01",{"$f":"'Planning Mensuel'!AY18","v":"Repos"},null,null,null,null,null,null,0]
["Lundi","2017-01-02",{"$f":"'Planning Mensuel'!AY19","v":"Contrôle Privé 06H-14H"},null,null,null,null,null,null,0]
["Mardi","2017-01-03",{"$f":"'Planning Mensuel'!AY20","v":"Contrôle Privé 06H-14H"},null,null,null,null,null,null,0]
["Mercredi","2017-01-04",{"$f":"'Planning Mensuel'!AY21","v":"Contrôle Privé 19H00-02H"},null,null,null,null,null,null,0]
["Jeudi","2017-01-05",{"$f":"'Planning Mensuel'!AY22","v":"Contrôle Privé 12H-19H"},null,null,null,null,null,null,0]
["Vendredi","2017-01-06",{"$f":"'Planning Mensuel'!AY23","v":"Contrôle Privé 06H-13H30"},null,null,null,null,null,null,0]
["Samedi","2017-01-07",{"$f":"'Planning Mensuel'!AY24","v":"Repos"},null,null,null,null,null,null,0]
["Dimanche","2017-01-08",{"$f":"'Planning Mensuel'!AY25","v":"Repos"},null,null,null,null,null,null,0]
["Lundi","2017-01-09",{"$f":"'Planning Mensuel'!AY26","v":"Contrôle Privé 06H-14H"},null,null,null,null,null,null,0]
["Mardi","2017-01-10",{"$f":"'Planning Mensuel'!AY27","v":"Contrôle Privé 06H-14H"},null,null,null,null,null,null,0]
["Mercredi","2017-01-11",{"$f":"'Planning Mensuel'!AY28","v":"Contrôle Privé 19H00-02H"},null,null,null,null,null,null,0]
["Jeudi","2017-01-12",{"$f":"'Planning Mensuel'!AY29","v":"Contrôle Privé 12H-19H"},null,null,null,null,null,null,0]
["Vendredi","2017-01-13",{"$f":"'Planning Mensuel'!AY30","v":"Contrôle Privé 06H-13H30"},null,null,null,null,null,null,0]
["Samedi","2017-01-14",{"$f":"'Planning Mensuel'!AY31","v":"Repos"},null,null,null,null,null,null,0]
["Dimanche","2017-01-15",{"$f":"'Planning Mensuel'!AY32","v":"Repos"},null,null,null,null,null,null,0]
["Lundi","2017-01-16",{"$f":"'Planning Mensuel'!AY33","v":"Contrôle Privé 06H-14H"},null,null,null,null,null,null,0]
["Mardi","2017-01-17",{"$f":"'Planning Mensuel'!AY34","v":"Contrôle Privé 06H-14H"},null,null,null,null,null,null,0]
["Mercredi","2017-01-18",{"$f":"'Planning Mensuel'!AY35","v":"Contrôle Privé 19H00-02H"},null,null,null,null,null,null,0]
["Jeudi","2017-01-19",{"$f":"'Planning Mensuel'!AY36","v":"Contrôle Privé 12H-19H"},null,null,null,null,null,null,0]
["Vendredi","2017-01-20",{"$f":"'Planning Mensuel'!AY37","v":"Contrôle Privé 06H-13H30"},null,null,null,null,null,null,0]
[null,null,null,null,null,null,{"$f":"SUM(G5:G35)","v":0},0,0,0,0,0]
[]
[]
[]
[]
[]
[]
[]
[]
[]
[]
["REMARQUES"]
["Date","heures","Remarques",null,null,"Responsables"]

{"sheet":"TORDO","index":54,"n_rows":48,"n_cols":12,"rows_kept":48,"cut":false,"hidden":false,"merged":[[64,2,64,4],[65,2,65,4],[66,2,66,4],[67,2,67,4],[58,2,58,4],[59,2,59,4],[60,2,60,4],[61,2,61,4],[62,2,62,4],[63,2,63,4],[57,2,57,4],[46,0,46,5],[47,2,47,4],[48,2,48,4],[49,2,49,4],[50,2,50,4],[51,2,51,4],[52,2,52,4],[53,2,53,4],[54,2,54,4],[55,2,55,4],[56,2,56,4],[40,2,45,5],[0,0,1,2],[0,3,1,5],[0,6,1,11],[2,0,2,1],[2,2,2,5]]}
["TORDO FABIEN",null,null,null,null,null,"Feuille Attachement"]
[]
["2017-01-01",null," fournir avant  Mercredi 04/01  demande de congés pour Février 2017 en fonction des disponibilités",null,null,null,"HS","HS","HS","Total","Nuit","Insalubrité"]
["Jours","Date","Prestations","Confirmations","Prestations  HS","Horaires",0,0,0,{"$f":"SUM(G4:I4)","v":0},0,0]
["Mercredi","2016-12-21",{"$f":"'Planning Mensuel'!AE7","v":"NICE OUEST"},"AT","AT",null,null,null,null,0]
["Jeudi","2016-12-22",{"$f":"'Planning Mensuel'!AE8","v":"NICE OUEST"},"AT","AT",null,null,null,null,0]
["Vendredi","2016-12-23",{"$f":"'Planning Mensuel'!AE9","v":"NICE OUEST"},"AT","AT",null,null,null,null,0]
["Samedi","2016-12-24",{"$f":"'Planning Mensuel'!AE10","v":0},"AT","AT",null,null,null,null,0]
["Dimanche","2016-12-25",{"$f":"'Planning Mensuel'!AE11","v":0},"AT","AT",null,null,null,null,0]
["Lundi","2016-12-26",{"$f":"'Planning Mensuel'!AE12","v":"ENC NUIT 20H30-02H30"},null,null,null,null,null,null,0]
["Mardi","2016-12-27",{"$f":"'Planning Mensuel'!AE13","v":"ENC NUIT 20H30-02H30"},null,null,null,null,null,null,0]
["Mercredi","2016-12-28",{"$f":"'Planning Mensuel'!AE14","v":"ENC NUIT 20H30-02H30"},null,null,null,null,null,null,0]
["Jeudi","2016-12-29",{"$f":"'Planning Mensuel'!AE15","v":"ENC NUIT 20H30-02H30"},null,null,null,null,null,null,0]
["Vendredi","2016-12-30",{"$f":"'Planning Mensuel'!AE16","v":"ENC NUIT 20H30-02H30"},null,null,null,null,null,null,0]
["Samedi","2016-12-31",{"$f":"'Planning Mensuel'!AE17","v":"Repos"},null,null,null,null,null,null,0]
["Dimanche","2017-01-01",{"$f":"'Planning Mensuel'!AE18","v":"Repos"},null,null,null,null,null,null,0]
["Lundi","2017-01-02",{"$f":"'Planning Mensuel'!AE19","v":"ENC NUIT 20H30-02H30"},null,null,null,null,null,null,0]
["Mardi","2017-01-03",{"$f":"'Planning Mensuel'!AE20","v":"ENC NUIT 20H30-02H30"},null,null,null,null,null,null,0]
["Mercredi","2017-01-04",{"$f":"'Planning Mensuel'!AE21","v":"ENC NUIT 20H30-02H30"},null,null,null,null,null,null,0]
["Jeudi","2017-01-05",{"$f":"'Planning Mensuel'!AE22","v":"ENC NUIT 20H30-02H30"},null,null,null,null,null,null,0]
["Vendredi","2017-01-06",{"$f":"'Planning Mensuel'!AE23","v":"ENC NUIT 20H30-02H30"},null,null,null,null,null,null,0]
["Samedi","2017-01-07",{"$f":"'Planning Mensuel'!AE24","v":"Repos"},null,null,null,null,null,null,0]
["Dimanche","2017-01-08",{"$f":"'Planning Mensuel'!AE25","v":"Repos"},null,null,null,null,null,null,0]
["Lundi","2017-01-09",{"$f":"'Planning Mensuel'!AE26","v":"ENC NUIT 20H30-02H30"},null,null,null,null,null,null,0]
["Mardi","2017-01-10",{"$f":"'Planning Mensuel'!AE27","v":"ENC NUIT 20H30-02H30"},null,null,null,null,null,null,0]
["Mercredi","2017-01-11",{"$f":"'Planning Mensuel'!AE28","v":"ENC NUIT 20H30-02H30"},null,null,null,null,null,null,0]
["Jeudi","2017-01-12",{"$f":"'Planning Mensuel'!AE29","v":"ENC NUIT 20H30-02H30"},null,null,null,null,null,null,0]
["Vendredi","2017-01-13",{"$f":"'Planning Mensuel'!AE30","v":"ENC NUIT 20H30-02H30"},null,null,null,null,null,null,0]
["Samedi","2017-01-14",{"$f":"'Planning Mensuel'!AE31","v":"Repos"},null,null,null,null,null,null,0]
["Dimanche","2017-01-15",{"$f":"'Planning Mensuel'!AE32","v":"Repos"},null,null,null,null,null,null,0]
["Lundi","2017-01-16",{"$f":"'Planning Mensuel'!AE33","v":"ENC MATIN 5H-12H"},null,null,null,null,null,null,0]
["Mardi","2017-01-17",{"$f":"'Planning Mensuel'!AE34","v":"ENC MATIN 5H-12H"},null,null,null,null,null,null,0]
["Mercredi","2017-01-18",{"$f":"'Planning Mensuel'!AE35","v":"ENC MATIN 5H-12H"},null,null,null,null,null,null,0]
["Jeudi","2017-01-19",{"$f":"'Planning Mensuel'!AE36","v":"ENC MATIN 5H-12H"},null,null,null,null,null,null,0]
["Vendredi","2017-01-20",{"$f":"'Planning Mensuel'!AE37","v":"Repos"},null,null,null,null,null,null,0]
[null,null,null,null,null,null,{"$f":"SUM(G5:G35)","v":0},0,0,0,0,0]
[]
[]
[]
[]
[null,null,"Travaille le samedi 21/01"]
[]
[]
[]
[]
[]
["REMARQUES"]
["Date","heures","Remarques",null,null,"Responsables"]

{"sheet":"TORRE","index":55,"n_rows":48,"n_cols":12,"rows_kept":48,"cut":false,"hidden":false,"merged":[[64,2,64,4],[65,2,65,4],[66,2,66,4],[67,2,67,4],[58,2,58,4],[59,2,59,4],[60,2,60,4],[61,2,61,4],[62,2,62,4],[63,2,63,4],[57,2,57,4],[46,0,46,5],[47,2,47,4],[48,2,48,4],[49,2,49,4],[50,2,50,4],[51,2,51,4],[52,2,52,4],[53,2,53,4],[54,2,54,4],[55,2,55,4],[56,2,56,4],[40,2,45,5],[0,0,1,2],[0,3,1,5],[0,6,1,11],[2,0,2,1],[2,2,2,5]]}
["TORRE JEAN MARIE",null,null,null,null,null,"Feuille Attachement"]
[]
["2017-01-01",null," fournir avant  Mercredi 04/01  demande de congés pour Février 2017 en fonction des disponibilités",null,null,null,"HS","HS","HS","Total","Nuit","Insalubrité"]
["Jours","Date","Prestations","Confirmations","Prestations  HS","Horaires",0,0,0,{"$f":"SUM(G4:I4)","v":0},0,0]
["Mercredi","2016-12-21",{"$f":"'Planning Mensuel'!C7","v":"B. CARTON"},"Absent","Absent",null,null,null,null,0,null,0]
["Jeudi","2016-12-22",{"$f":"'Planning Mensuel'!C8","v":"B. CARTON"},"Absent","Absent",null,null,null,null,0,null,0]
["Vendredi","2016-12-23",{"$f":"'Planning Mensuel'!C9","v":"B. CARTON"},"Absent","Absent",null,null,null,null,0,null,0]
["Samedi","2016-12-24",{"$f":"'Planning Mensuel'!C10","v":0},"Absent","Absent",null,null,null,null,0,null,0]
["Dimanche","2016-12-25",{"$f":"'Planning Mensuel'!C11","v":0},"Absent","Absent",null,null,null,null,0,null,0]
["Lundi","2016-12-26",{"$f":"'Planning Mensuel'!C12","v":"B. CARTON"},null,null,null,null,null,null,0]
["Mardi","2016-12-27",{"$f":"'Planning Mensuel'!C13","v":"B. CARTON"},null,null,null,null,null,null,0]
["Mercredi","2016-12-28",{"$f":"'Planning Mensuel'!C14","v":"B. CARTON"},null,null,null,null,null,null,0]
["Jeudi","2016-12-29",{"$f":"'Planning Mensuel'!C15","v":"B. CARTON"},null,null,null,null,null,null,0]
["Vendredi","2016-12-30",{"$f":"'Planning Mensuel'!C16","v":"B. CARTON"},null,null,null,null,null,null,0]
["Samedi","2016-12-31",{"$f":"'Planning Mensuel'!C17","v":"Repos"},null,null,null,null,null,null,0]
["Dimanche","2017-01-01",{"$f":"'Planning Mensuel'!C18","v":"Repos"},null,null,null,null,null,null,0]
["Lundi","2017-01-02",{"$f":"'Planning Mensuel'!C19","v":"B. CARTON"},null,null,null,null,null,null,0]
["Mardi","2017-01-03",{"$f":"'Planning Mensuel'!C20","v":"B. CARTON"},null,null,null,null,null,null,0]
["Mercredi","2017-01-04",{"$f":"'Planning Mensuel'!C21","v":"B. CARTON"},null,null,null,null,null,null,0]
["Jeudi","2017-01-05",{"$f":"'Planning Mensuel'!C22","v":"B. CARTON"},null,null,null,null,null,null,0]
["Vendredi","2017-01-06",{"$f":"'Planning Mensuel'!C23","v":"B. CARTON"},null,null,null,null,null,null,0]
["Samedi","2017-01-07",{"$f":"'Planning Mensuel'!C24","v":0},null,null,null,null,null,null,0]
["Dimanche","2017-01-08",{"$f":"'Planning Mensuel'!C25","v":0},null,null,null,null,null,null,0]
["Lundi","2017-01-09",{"$f":"'Planning Mensuel'!C26","v":"B. CARTON"},null,null,null,null,null,null,0]
["Mardi","2017-01-10",{"$f":"'Planning Mensuel'!C27","v":"Repos"},null,null,null,null,null,null,0]
["Mercredi","2017-01-11",{"$f":"'Planning Mensuel'!C28","v":"B. CARTON"},null,null,null,null,null,null,0]
["Jeudi","2017-01-12",{"$f":"'Planning Mensuel'!C29","v":"B. CARTON"},null,null,null,null,null,null,0]
["Vendredi","2017-01-13",{"$f":"'Planning Mensuel'!C30","v":"B. CARTON"},null,null,null,null,null,null,0]
["Samedi","2017-01-14",{"$f":"'Planning Mensuel'!C31","v":"NICE EST"},null,null,null,null,null,null,0]
["Dimanche","2017-01-15",{"$f":"'Planning Mensuel'!C32","v":"Repos"},null,null,null,null,null,null,0]
["Lundi","2017-01-16",{"$f":"'Planning Mensuel'!C33","v":"B. CARTON"},null,null,null,null,null,null,0]
["Mardi","2017-01-17",{"$f":"'Planning Mensuel'!C34","v":"B. CARTON"},null,null,null,null,null,null,0]
["Mercredi","2017-01-18",{"$f":"'Planning Mensuel'!C35","v":"B. CARTON"},null,null,null,null,null,null,0]
["Jeudi","2017-01-19",{"$f":"'Planning Mensuel'!C36","v":"B. CARTON"},null,null,null,null,null,null,0]
["Vendredi","2017-01-20",{"$f":"'Planning Mensuel'!C37","v":"B. CARTON"},null,null,null,null,null,null,0]
[null,null,null,null,null,null,{"$f":"SUM(G5:G35)","v":0},0,0,0,0,0]
[]
[]
[]
[]
[]
[]
[]
[]
[]
[]
["REMARQUES"]
["Date","heures","Remarques",null,null,"Responsables"]

{"sheet":"TRIPODIN","index":56,"n_rows":48,"n_cols":12,"rows_kept":48,"cut":false,"hidden":false,"merged":[[64,2,64,4],[65,2,65,4],[66,2,66,4],[67,2,67,4],[58,2,58,4],[59,2,59,4],[60,2,60,4],[61,2,61,4],[62,2,62,4],[63,2,63,4],[57,2,57,4],[46,0,46,5],[47,2,47,4],[48,2,48,4],[49,2,49,4],[50,2,50,4],[51,2,51,4],[52,2,52,4],[53,2,53,4],[54,2,54,4],[55,2,55,4],[56,2,56,4],[40,2,45,5],[0,0,1,2],[0,3,1,5],[0,6,1,11],[2,0,2,1],[2,2,2,5]]}
["TRIPODI NADEGE",null,null,null,null,null,"Feuille Attachement"]
[]
["2017-01-01",null," fournir avant  Mercredi 04/01  demande de congés pour Février 2017 en fonction des disponibilités",null,null,null,"HS","HS","HS","Total","Nuit","Insalubrité"]
["Jours","Date","Prestations","Confirmations","Prestations  HS","Horaires",0,0,0,{"$f":"SUM(G4:I4)","v":0},0,0]
["Mercredi","2016-12-21",{"$f":"'Planning Mensuel'!BE7","v":"Repos"},null,null,null,null,null,null,0]
["Jeudi","2016-12-22",{"$f":"'Planning Mensuel'!BE8","v":"Secrétariat 8H30-12H/12H45-16H15"},null,null,null,null,null,null,0]
["Vendredi","2016-12-23",{"$f":"'Planning Mensuel'!BE9","v":"Secrétariat 8H30-12H/12H45-16H15"},null,null,null,null,null,null,0]
["Samedi","2016-12-24",{"$f":"'Planning Mensuel'!BE10","v":0},null,null,null,null,null,null,0]
["Dimanche","2016-12-25",{"$f":"'Planning Mensuel'!BE11","v":0},null,null,null,null,null,null,0]
["Lundi","2016-12-26",{"$f":"'Planning Mensuel'!BE12","v":"Secrétariat 8H30-12H/12H45-16H15"},null,null,null,null,null,null,0]
["Mardi","2016-12-27",{"$f":"'Planning Mensuel'!BE13","v":"Congés"},"Congés",null,null,null,null,null,0]
["Mercredi","2016-12-28",{"$f":"'Planning Mensuel'!BE14","v":"Congés"},"Congés",null,null,null,null,null,0]
["Jeudi","2016-12-29",{"$f":"'Planning Mensuel'!BE15","v":"Congés"},"Congés",null,null,null,null,null,0]
["Vendredi","2016-12-30",{"$f":"'Planning Mensuel'!BE16","v":"Congés"},"Congés",null,null,null,null,null,0]
["Samedi","2016-12-31",{"$f":"'Planning Mensuel'!BE17","v":"Congés"},"Congés",null,null,null,null,null,0]
["Dimanche","2017-01-01",{"$f":"'Planning Mensuel'!BE18","v":"Congés"},"Congés",null,null,null,null,null,0]
["Lundi","2017-01-02",{"$f":"'Planning Mensuel'!BE19","v":"Congés"},"Congés",null,null,null,null,null,0]
["Mardi","2017-01-03",{"$f":"'Planning Mensuel'!BE20","v":"Secrétariat 8H30-12H/12H45-16H15"},null,null,null,null,null,null,0]
["Mercredi","2017-01-04",{"$f":"'Planning Mensuel'!BE21","v":"Repos"},null,null,null,null,null,null,0]
["Jeudi","2017-01-05",{"$f":"'Planning Mensuel'!BE22","v":"Secrétariat 8H30-12H/12H45-16H15"},null,null,null,null,null,null,0]
["Vendredi","2017-01-06",{"$f":"'Planning Mensuel'!BE23","v":"Secrétariat 8H30-12H/12H45-16H15"},null,null,null,null,null,null,0]
["Samedi","2017-01-07",{"$f":"'Planning Mensuel'!BE24","v":"Repos"},null,null,null,null,null,null,0]
["Dimanche","2017-01-08",{"$f":"'Planning Mensuel'!BE25","v":"Repos"},null,null,null,null,null,null,0]
["Lundi","2017-01-09",{"$f":"'Planning Mensuel'!BE26","v":"Secrétariat 8H30-12H/12H45-16H15"},null,null,null,null,null,null,0]
["Mardi","2017-01-10",{"$f":"'Planning Mensuel'!BE27","v":"Secrétariat 8H30-12H/12H45-16H15"},null,null,null,null,null,null,0]
["Mercredi","2017-01-11",{"$f":"'Planning Mensuel'!BE28","v":"Repos"},null,null,null,null,null,null,0]
["Jeudi","2017-01-12",{"$f":"'Planning Mensuel'!BE29","v":"Secrétariat 8H30-12H/12H45-16H15"},null,null,null,null,null,null,0]
["Vendredi","2017-01-13",{"$f":"'Planning Mensuel'!BE30","v":"Secrétariat 8H30-12H/12H45-16H15"},null,null,null,null,null,null,0]
["Samedi","2017-01-14",{"$f":"'Planning Mensuel'!BE31","v":"Repos"},null,null,null,null,null,null,0]
["Dimanche","2017-01-15",{"$f":"'Planning Mensuel'!BE32","v":"Repos"},null,null,null,null,null,null,0]
["Lundi","2017-01-16",{"$f":"'Planning Mensuel'!BE33","v":"Secrétariat 8H30-12H/12H45-16H15"},null,null,null,null,null,null,0]
["Mardi","2017-01-17",{"$f":"'Planning Mensuel'!BE34","v":"Secrétariat 8H30-12H/12H45-16H15"},null,null,null,null,null,null,0]
["Mercredi","2017-01-18",{"$f":"'Planning Mensuel'!BE35","v":"Repos"},null,null,null,null,null,null,0]
["Jeudi","2017-01-19",{"$f":"'Planning Mensuel'!BE36","v":"Secrétariat 8H30-12H/12H45-16H15"},null,null,null,null,null,null,0]
["Vendredi","2017-01-20",{"$f":"'Planning Mensuel'!BE37","v":"Secrétariat 8H30-12H/12H45-16H15"},null,null,null,null,null,null,0]
[null,null,null,null,null,null,{"$f":"SUM(G5:G35)","v":0},0,0,0,0,0]
[]
[]
[]
[]
[]
[]
[]
[]
[]
[]
["REMARQUES"]
["Date","heures","Remarques",null,null,"Responsables"]

{"sheet":"TRIPODIP","index":57,"n_rows":48,"n_cols":12,"rows_kept":48,"cut":false,"hidden":false,"merged":[[64,2,64,4],[65,2,65,4],[66,2,66,4],[67,2,67,4],[58,2,58,4],[59,2,59,4],[60,2,60,4],[61,2,61,4],[62,2,62,4],[63,2,63,4],[57,2,57,4],[46,0,46,5],[47,2,47,4],[48,2,48,4],[49,2,49,4],[50,2,50,4],[51,2,51,4],[52,2,52,4],[53,2,53,4],[54,2,54,4],[55,2,55,4],[56,2,56,4],[40,2,45,5],[0,0,1,2],[0,3,1,5],[0,6,1,11],[2,0,2,1],[2,2,2,5]]}
["TRIPODI PATRICK",null,null,null,null,null,"Feuille Attachement"]
[]
["2017-01-01",null," fournir avant  Mercredi 04/01  demande de congés pour Février 2017 en fonction des disponibilités",null,null,null,"HS","HS","HS","Total","Nuit","Insalubrité"]
["Jours","Date","Prestations","Confirmations","Prestations  HS","Horaires",0,0,0,{"$f":"SUM(G4:I4)","v":0},0,0]
["Mercredi","2016-12-21",{"$f":"'Planning Mensuel'!AX7","v":"Contröle 12H00-19H30"},null,null,null,null,null,null,0]
["Jeudi","2016-12-22",{"$f":"'Planning Mensuel'!AX8","v":"Contröle 12H00-19H30"},null,null,null,null,null,null,0]
["Vendredi","2016-12-23",{"$f":"'Planning Mensuel'!AX9","v":"Contröle 12H00-19H30"},null,null,null,null,null,null,0]
["Samedi","2016-12-24",{"$f":"'Planning Mensuel'!AX10","v":0},null,null,null,null,null,null,0]
["Dimanche","2016-12-25",{"$f":"'Planning Mensuel'!AX11","v":"Contrôle Enc 13H-19H"},null,"Contrôle Encombrants","13H-19H",null,null,null,0]
["Lundi","2016-12-26",{"$f":"'Planning Mensuel'!AX12","v":"Contröle 12H00-19H30"},null,null,null,null,null,null,0]
["Mardi","2016-12-27",{"$f":"'Planning Mensuel'!AX13","v":"Contröle 12H00-19H30"},null,"Contröle PM  ","22H-02H00",null,null,null,0]
["Mercredi","2016-12-28",{"$f":"'Planning Mensuel'!AX14","v":"Contröle 12H00-19H30"},null,null,null,null,null,null,0]
["Jeudi","2016-12-29",{"$f":"'Planning Mensuel'!AX15","v":"Contröle 12H00-19H30"},null,null,null,null,null,null,0]
["Vendredi","2016-12-30",{"$f":"'Planning Mensuel'!AX16","v":"Contröle 12H00-19H30"},null,null,null,null,null,null,0]
["Samedi","2016-12-31",{"$f":"'Planning Mensuel'!AX17","v":"Repos"},null,null,null,null,null,null,0]
["Dimanche","2017-01-01",{"$f":"'Planning Mensuel'!AX18","v":"Repos"},null,null,null,null,null,null,0]
["Lundi","2017-01-02",{"$f":"'Planning Mensuel'!AX19","v":"Contröle 12H00-19H30"},null,null,null,null,null,null,0]
["Mardi","2017-01-03",{"$f":"'Planning Mensuel'!AX20","v":"Contröle 12H00-19H30"},null,"Contröle PM  récup","22H-02H00",null,null,null,0]
["Mercredi","2017-01-04",{"$f":"'Planning Mensuel'!AX21","v":"Contröle 12H00-19H30"},null,null,null,null,null,null,0]
["Jeudi","2017-01-05",{"$f":"'Planning Mensuel'!AX22","v":"Contröle 12H00-19H30"},null,null,null,null,null,null,0]
["Vendredi","2017-01-06",{"$f":"'Planning Mensuel'!AX23","v":"Contröle 12H00-19H30"},null,null,null,null,null,null,0]
["Samedi","2017-01-07",{"$f":"'Planning Mensuel'!AX24","v":"Repos"},null,null,null,null,null,null,0]
["Dimanche","2017-01-08",{"$f":"'Planning Mensuel'!AX25","v":"Repos"},null,null,null,null,null,null,0]
["Lundi","2017-01-09",{"$f":"'Planning Mensuel'!AX26","v":"Contröle 12H00-19H30"},null,null,null,null,null,null,0]
["Mardi","2017-01-10",{"$f":"'Planning Mensuel'!AX27","v":"Contröle 12H00-19H30"},null,"Contröle PM  ","22H-02H00",null,null,null,0]
["Mercredi","2017-01-11",{"$f":"'Planning Mensuel'!AX28","v":"Contröle 12H00-19H30"},null,null,null,null,null,null,0]
["Jeudi","2017-01-12",{"$f":"'Planning Mensuel'!AX29","v":"Contröle 12H00-19H30"},null,null,null,null,null,null,0]
["Vendredi","2017-01-13",{"$f":"'Planning Mensuel'!AX30","v":"Contröle 12H00-19H30"},null,null,null,null,null,null,0]
["Samedi","2017-01-14",{"$f":"'Planning Mensuel'!AX31","v":"Repos"},null,null,null,null,null,null,0]
["Dimanche","2017-01-15",{"$f":"'Planning Mensuel'!AX32","v":"Repos"},null,null,null,null,null,null,0]
["Lundi","2017-01-16",{"$f":"'Planning Mensuel'!AX33","v":"Contröle 12H00-19H30"},null,null,null,null,null,null,0]
["Mardi","2017-01-17",{"$f":"'Planning Mensuel'!AX34","v":"Contröle 12H00-19H30"},null,"Contröle PM  récup","22H-02H00",null,null,null,0]
["Mercredi","2017-01-18",{"$f":"'Planning Mensuel'!AX35","v":"Contröle 12H00-19H30"},null,null,null,null,null,null,0]
["Jeudi","2017-01-19",{"$f":"'Planning Mensuel'!AX36","v":"Contröle 12H00-19H30"},null,null,null,null,null,null,0]
["Vendredi","2017-01-20",{"$f":"'Planning Mensuel'!AX37","v":"Contröle 12H00-19H30"},null,null,null,null,null,null,0]
[null,null,null,null,null,null,{"$f":"SUM(G5:G35)","v":0},0,0,0,0,0]
[]
[]
[]
[]
[]
[]
[]
[]
[]
[]
["REMARQUES"]
["Date","heures","Remarques",null,null,"Responsables"]

{"sheet":"VANINI","index":58,"n_rows":49,"n_cols":12,"rows_kept":49,"cut":false,"hidden":false,"merged":[[64,2,64,4],[65,2,65,4],[66,2,66,4],[67,2,67,4],[58,2,58,4],[59,2,59,4],[60,2,60,4],[61,2,61,4],[62,2,62,4],[63,2,63,4],[57,2,57,4],[46,0,46,5],[47,2,47,4],[48,2,48,4],[49,2,49,4],[50,2,50,4],[51,2,51,4],[52,2,52,4],[53,2,53,4],[54,2,54,4],[55,2,55,4],[56,2,56,4],[40,2,45,5],[0,0,1,2],[0,3,1,5],[0,6,1,11],[2,0,2,1],[2,2,2,5]]}
["VANINI KEVIN",null,null,null,null,null,"Feuille Attachement"]
[]
["2017-01-01",null," fournir avant  Mercredi 04/01  demande de congés pour Février 2017 en fonction des disponibilités",null,null,null,"HS","HS","HS","Total","Nuit","Insalubrité"]
["Jours","Date","Prestations","Confirmations","Prestations  HS","Horaires",0,0,0,{"$f":"SUM(G4:I4)","v":0},0,0]
["Mercredi","2016-12-21",{"$f":"'Planning Mensuel'!K7","v":"CARTON AM"},null,null,null,null,null,null,0]
["Jeudi","2016-12-22",{"$f":"'Planning Mensuel'!K8","v":"CARTON AM"},null,null,null,null,null,null,0]
["Vendredi","2016-12-23",{"$f":"'Planning Mensuel'!K9","v":"CARTON AM"},null,null,null,null,null,null,0]
["Samedi","2016-12-24",{"$f":"'Planning Mensuel'!K10","v":0},null,null,null,null,null,null,0]
["Dimanche","2016-12-25",{"$f":"'Planning Mensuel'!K11","v":0},null,null,null,null,null,null,0]
["Lundi","2016-12-26",{"$f":"'Planning Mensuel'!K12","v":"Repos"},null,null,null,null,null,null,0]
["Mardi","2016-12-27",{"$f":"'Planning Mensuel'!K13","v":"CARTON AM"},null,null,null,null,null,null,0]
["Mercredi","2016-12-28",{"$f":"'Planning Mensuel'!K14","v":"CARTON AM"},null,null,null,null,null,null,0]
["Jeudi","2016-12-29",{"$f":"'Planning Mensuel'!K15","v":"CARTON AM"},null,null,null,null,null,null,0]
["Vendredi","2016-12-30",{"$f":"'Planning Mensuel'!K16","v":"CARTON AM"},null,null,null,null,null,null,0]
["Samedi","2016-12-31",{"$f":"'Planning Mensuel'!K17","v":"CARTON AM"},null,null,null,null,null,null,0]
["Dimanche","2017-01-01",{"$f":"'Planning Mensuel'!K18","v":"Repos"},null,null,null,null,null,null,0]
["Lundi","2017-01-02",{"$f":"'Planning Mensuel'!K19","v":"CARTON AM"},null,null,null,null,null,null,0]
["Mardi","2017-01-03",{"$f":"'Planning Mensuel'!K20","v":"CARTON AM"},null,null,null,null,null,null,0]
["Mercredi","2017-01-04",{"$f":"'Planning Mensuel'!K21","v":"CARTON AM"},null,null,null,null,null,null,0]
["Jeudi","2017-01-05",{"$f":"'Planning Mensuel'!K22","v":"CARTON AM"},null,null,null,null,null,null,0]
["Vendredi","2017-01-06",{"$f":"'Planning Mensuel'!K23","v":"CARTON AM"},null,null,null,null,null,null,0]
["Samedi","2017-01-07",{"$f":"'Planning Mensuel'!K24","v":0},null,null,null,null,null,null,0]
["Dimanche","2017-01-08",{"$f":"'Planning Mensuel'!K25","v":0},null,null,null,null,null,null,0]
["Lundi","2017-01-09",{"$f":"'Planning Mensuel'!K26","v":"Congés"},null,null,null,null,null,null,0]
["Mardi","2017-01-10",{"$f":"'Planning Mensuel'!K27","v":"Congés"},null,null,null,null,null,null,0]
["Mercredi","2017-01-11",{"$f":"'Planning Mensuel'!K28","v":"Congés"},null,null,null,null,null,null,0]
["Jeudi","2017-01-12",{"$f":"'Planning Mensuel'!K29","v":"Congés"},null,null,null,null,null,null,0]
["Vendredi","2017-01-13",{"$f":"'Planning Mensuel'!K30","v":"Congés"},null,null,null,null,null,null,0]
["Samedi","2017-01-14",{"$f":"'Planning Mensuel'!K31","v":"Congés"},null,null,null,null,null,null,0]
["Dimanche","2017-01-15",{"$f":"'Planning Mensuel'!K32","v":"Congés"},null,null,null,null,null,null,0]
["Lundi","2017-01-16",{"$f":"'Planning Mensuel'!K33","v":"CARTON AM"},null,null,null,null,null,null,0]
["Mardi","2017-01-17",{"$f":"'Planning Mensuel'!K34","v":"CARTON AM"},null,null,null,null,null,null,0]
["Mercredi","2017-01-18",{"$f":"'Planning Mensuel'!K35","v":"CARTON AM"},null,null,null,null,null,null,0]
["Jeudi","2017-01-19",{"$f":"'Planning Mensuel'!K36","v":"CARTON AM"},null,null,null,null,null,null,0]
["Vendredi","2017-01-20",{"$f":"'Planning Mensuel'!K37","v":"CARTON AM"},null,null,null,null,null,null,0]
[null,null,null,null,null,null,{"$f":"SUM(G5:G35)","v":0},0,0,0,0,0]
[]
[]
[]
[]
[]
[]
[]
[]
[]
[]
["REMARQUES"]
["Date","heures","Remarques",null,null,"Responsables"]
["2016-05-25","5H20","Arrivé à 5H20",null,null,"cambra"]

{"sheet":"VELLA","index":59,"n_rows":48,"n_cols":12,"rows_kept":48,"cut":false,"hidden":false,"merged":[[64,2,64,4],[65,2,65,4],[66,2,66,4],[67,2,67,4],[58,2,58,4],[59,2,59,4],[60,2,60,4],[61,2,61,4],[62,2,62,4],[63,2,63,4],[57,2,57,4],[46,0,46,5],[47,2,47,4],[48,2,48,4],[49,2,49,4],[50,2,50,4],[51,2,51,4],[52,2,52,4],[53,2,53,4],[54,2,54,4],[55,2,55,4],[56,2,56,4],[40,2,45,5],[0,0,1,2],[0,3,1,5],[0,6,1,11],[2,0,2,1],[2,2,2,5]]}
["VELLA FERDINAND",null,null,null,null,null,"Feuille Attachement"]
[]
["2017-01-01",null," fournir avant  Mercredi 04/01  demande de congés pour Février 2017 en fonction des disponibilités",null,null,null,"HS","HS","HS","Total","Nuit","Insalubrité"]
["Jours","Date","Prestations","Confirmations","Prestations  HS","Horaires",0,0,0,{"$f":"SUM(G4:I4)","v":0},0,0]
["Mercredi","2016-12-21",{"$f":"'Planning Mensuel'!AZ7","v":"Contrôle 19H-02H30"},null,null,null,null,null,null,0]
["Jeudi","2016-12-22",{"$f":"'Planning Mensuel'!AZ8","v":"Contrôle 19H-02H30"},null,null,null,null,null,null,0]
["Vendredi","2016-12-23",{"$f":"'Planning Mensuel'!AZ9","v":"Contrôle 19H-02H30"},null,null,null,null,null,null,0]
["Samedi","2016-12-24",{"$f":"'Planning Mensuel'!AZ10","v":0},null,null,null,null,null,null,0]
["Dimanche","2016-12-25",{"$f":"'Planning Mensuel'!AZ11","v":0},null,null,null,null,null,null,0]
["Lundi","2016-12-26",{"$f":"'Planning Mensuel'!AZ12","v":"Congés"},"Congés",null,null,null,null,null,0]
["Mardi","2016-12-27",{"$f":"'Planning Mensuel'!AZ13","v":"Congés"},"Congés",null,null,null,null,null,0]
["Mercredi","2016-12-28",{"$f":"'Planning Mensuel'!AZ14","v":"Congés"},"Congés",null,null,null,null,null,0]
["Jeudi","2016-12-29",{"$f":"'Planning Mensuel'!AZ15","v":"Congés"},"Congés",null,null,null,null,null,0]
["Vendredi","2016-12-30",{"$f":"'Planning Mensuel'!AZ16","v":"Congés"},"Congés",null,null,null,null,null,0]
["Samedi","2016-12-31",{"$f":"'Planning Mensuel'!AZ17","v":"Congés"},"Congés",null,null,null,null,null,0]
["Dimanche","2017-01-01",{"$f":"'Planning Mensuel'!AZ18","v":"Congés"},null,"Contröle OM","20H-02H",null,null,null,0]
["Lundi","2017-01-02",{"$f":"'Planning Mensuel'!AZ19","v":"Contrôle 13H-20H"},null,"Contrôle PM","22H-02H",null,null,4,4]
["Mardi","2017-01-03",{"$f":"'Planning Mensuel'!AZ20","v":"Contrôle 19H-02H30"},null,null,null,null,null,null,0]
["Mercredi","2017-01-04",{"$f":"'Planning Mensuel'!AZ21","v":"Contrôle 19H-02H30"},null,null,null,null,null,null,0]
["Jeudi","2017-01-05",{"$f":"'Planning Mensuel'!AZ22","v":"Contrôle 19H-02H30"},null,null,null,null,null,null,0]
["Vendredi","2017-01-06",{"$f":"'Planning Mensuel'!AZ23","v":"Repos"},null,null,null,null,null,null,0]
["Samedi","2017-01-07",{"$f":"'Planning Mensuel'!AZ24","v":"Contrôle 19H-02H30"},null,null,null,null,null,null,0]
["Dimanche","2017-01-08",{"$f":"'Planning Mensuel'!AZ25","v":"Repos"},null,null,null,null,null,null,0]
["Lundi","2017-01-09",{"$f":"'Planning Mensuel'!AZ26","v":"Contrôle 13H-20H"},null,"Contrôle PM","22H-02H",null,null,4,4]
["Mardi","2017-01-10",{"$f":"'Planning Mensuel'!AZ27","v":"Contrôle 19H-02H30"},null,null,null,null,null,null,0]
["Mercredi","2017-01-11",{"$f":"'Planning Mensuel'!AZ28","v":"Contrôle 19H-02H30"},null,null,null,null,null,null,0]
["Jeudi","2017-01-12",{"$f":"'Planning Mensuel'!AZ29","v":"Contrôle 19H-02H30"},null,null,null,null,null,null,0]
["Vendredi","2017-01-13",{"$f":"'Planning Mensuel'!AZ30","v":"Contrôle 19H-02H30"},null,null,null,null,null,null,0]
["Samedi","2017-01-14",{"$f":"'Planning Mensuel'!AZ31","v":"Repos"},null,null,null,null,null,null,0]
["Dimanche","2017-01-15",{"$f":"'Planning Mensuel'!AZ32","v":"Contrôle OM 20H-02H"},null,"Contröle OM","20H-02H",null,null,4,4]
["Lundi","2017-01-16",{"$f":"'Planning Mensuel'!AZ33","v":"Contrôle 13H-20H"},null,"Contrôle PM","22H-02H",null,null,4,4]
["Mardi","2017-01-17",{"$f":"'Planning Mensuel'!AZ34","v":"Contrôle 19H-02H30"},null,null,null,null,null,null,0]
["Mercredi","2017-01-18",{"$f":"'Planning Mensuel'!AZ35","v":"Contrôle 19H-02H30"},null,null,null,null,null,null,0]
["Jeudi","2017-01-19",{"$f":"'Planning Mensuel'!AZ36","v":"VN 13H-20H"},null,null,null,null,null,null,0]
["Vendredi","2017-01-20",{"$f":"'Planning Mensuel'!AZ37","v":"VN 13H-20H"},null,null,null,null,null,null,0]
[null,null,null,null,null,null,{"$f":"SUM(G5:G35)","v":0},0,16,16,0,0]
[]
[]
[]
[]
[null,null,"Congés du 26 Déc au 01 Janv 2017"]
[]
[]
[]
[]
[]
["REMARQUES"]
["Date","heures","Remarques",null,null,"Responsables"]

{"sheet":"VIALE","index":60,"n_rows":48,"n_cols":12,"rows_kept":48,"cut":false,"hidden":false,"merged":[[64,2,64,4],[65,2,65,4],[66,2,66,4],[67,2,67,4],[58,2,58,4],[59,2,59,4],[60,2,60,4],[61,2,61,4],[62,2,62,4],[63,2,63,4],[57,2,57,4],[46,0,46,5],[47,2,47,4],[48,2,48,4],[49,2,49,4],[50,2,50,4],[51,2,51,4],[52,2,52,4],[53,2,53,4],[54,2,54,4],[55,2,55,4],[56,2,56,4],[40,2,45,5],[0,0,1,2],[0,3,1,5],[0,6,1,11],[2,0,2,1],[2,2,2,5]]}
["VIALE JONATHAN",null,null,null,null,null,"Feuille Attachement"]
[]
["2017-01-01",null," fournir avant  Mercredi 04/01  demande de congés pour Février 2017 en fonction des disponibilités",null,null,null,"HS","HS","HS","Total","Nuit","Insalubrité"]
["Jours","Date","Prestations","Confirmations","Prestations  HS","Horaires",0,0,0,{"$f":"SUM(G4:I4)","v":0},0,0]
["Mercredi","2016-12-21",{"$f":"'Planning Mensuel'!AF7","v":"ENC NUIT 20H30-02H30"},null,null,null,null,null,null,0]
["Jeudi","2016-12-22",{"$f":"'Planning Mensuel'!AF8","v":"ENC NUIT 20H30-02H30"},null,null,null,null,null,null,0]
["Vendredi","2016-12-23",{"$f":"'Planning Mensuel'!AF9","v":"ENC NUIT 20H30-02H30"},null,null,null,null,null,null,0]
["Samedi","2016-12-24",{"$f":"'Planning Mensuel'!AF10","v":0},null,null,null,null,null,null,0]
["Dimanche","2016-12-25",{"$f":"'Planning Mensuel'!AF11","v":0},null,null,null,null,null,null,0]
["Lundi","2016-12-26",{"$f":"'Planning Mensuel'!AF12","v":"ENC MATIN 5H-12H"},null,null,null,null,null,null,0]
["Mardi","2016-12-27",{"$f":"'Planning Mensuel'!AF13","v":"ENC MATIN 5H-12H"},null,null,null,null,null,null,0]
["Mercredi","2016-12-28",{"$f":"'Planning Mensuel'!AF14","v":"ENC MATIN 5H-12H"},null,null,null,null,null,null,0]
["Jeudi","2016-12-29",{"$f":"'Planning Mensuel'!AF15","v":"ENC MATIN 5H-12H"},null,null,null,null,null,null,0]
["Vendredi","2016-12-30",{"$f":"'Planning Mensuel'!AF16","v":"Repos"},null,null,null,null,null,null,0]
["Samedi","2016-12-31",{"$f":"'Planning Mensuel'!AF17","v":"NICE EST"},null,null,null,null,null,null,0]
["Dimanche","2017-01-01",{"$f":"'Planning Mensuel'!AF18","v":"Repos"},null,null,null,null,null,null,0]
["Lundi","2017-01-02",{"$f":"'Planning Mensuel'!AF19","v":"ENC MATIN 5H-12H"},null,null,null,null,null,null,0]
["Mardi","2017-01-03",{"$f":"'Planning Mensuel'!AF20","v":"ENC MATIN 5H-12H"},null,null,null,null,null,null,0]
["Mercredi","2017-01-04",{"$f":"'Planning Mensuel'!AF21","v":"ENC MATIN 5H-12H"},null,null,null,null,null,null,0]
["Jeudi","2017-01-05",{"$f":"'Planning Mensuel'!AF22","v":"ENC MATIN 5H-12H"},null,null,null,null,null,null,0]
["Vendredi","2017-01-06",{"$f":"'Planning Mensuel'!AF23","v":"ENC MATIN 5H-12H"},null,null,null,null,null,null,0]
["Samedi","2017-01-07",{"$f":"'Planning Mensuel'!AF24","v":"Repos"},null,null,null,null,null,null,0]
["Dimanche","2017-01-08",{"$f":"'Planning Mensuel'!AF25","v":"Repos"},null,null,null,null,null,null,0]
["Lundi","2017-01-09",{"$f":"'Planning Mensuel'!AF26","v":"ENC NUIT 20H30-02H30"},null,null,null,null,null,null,0]
["Mardi","2017-01-10",{"$f":"'Planning Mensuel'!AF27","v":"ENC NUIT 20H30-02H30"},null,null,null,null,null,null,0]
["Mercredi","2017-01-11",{"$f":"'Planning Mensuel'!AF28","v":"ENC NUIT 20H30-02H30"},null,null,null,null,null,null,0]
["Jeudi","2017-01-12",{"$f":"'Planning Mensuel'!AF29","v":"ENC NUIT 20H30-02H30"},null,null,null,null,null,null,0]
["Vendredi","2017-01-13",{"$f":"'Planning Mensuel'!AF30","v":"ENC NUIT 20H30-02H30"},null,null,null,null,null,null,0]
["Samedi","2017-01-14",{"$f":"'Planning Mensuel'!AF31","v":"Repos"},null,null,null,null,null,null,0]
["Dimanche","2017-01-15",{"$f":"'Planning Mensuel'!AF32","v":"NICE NORD"},null,"Nice Nord","8H-12H",null,null,null,0]
["Lundi","2017-01-16",{"$f":"'Planning Mensuel'!AF33","v":"ENC NUIT 20H30-02H30"},null,null,null,null,null,null,0]
["Mardi","2017-01-17",{"$f":"'Planning Mensuel'!AF34","v":"ENC NUIT 20H30-02H30"},null,null,null,null,null,null,0]
["Mercredi","2017-01-18",{"$f":"'Planning Mensuel'!AF35","v":"ENC NUIT 20H30-02H30"},null,null,null,null,null,null,0]
["Jeudi","2017-01-19",{"$f":"'Planning Mensuel'!AF36","v":"ENC NUIT 20H30-02H30"},null,null,null,null,null,null,0]
["Vendredi","2017-01-20",{"$f":"'Planning Mensuel'!AF37","v":"ENC NUIT 20H30-02H30"},null,null,null,null,null,null,0]
[null,null,null,null,null,null,{"$f":"SUM(G5:G35)","v":0},0,0,0,0,0]
[]
[]
[]
[]
[]
[]
[]
[]
[]
[]
["REMARQUES"]
["Date","heures","Remarques",null,null,"Responsables"]